Workbook

Sheet 20121224
S1: comm rate | T1: 0.065
T5: =SUM(T7:T9744) -> 477.3318626 | V5: $20sp | W5: =SUM(W7:W9744) -> -14.5507 | Y5: sp | Z5: =SUM(Z7:Z9744) -> -0.195 | AB5: first | AD5: =SUM(AD7:AD9744) -> 2.308825 | AF5: first | AH5: =SUM(AH7:AH9744) -> 0.84335
A6: EVENT_ID | B6: FULL_DESCRIPTION | C6: COURSE | D6: SCHEDULED_OFF | E6: EVENT | F6: ACTUAL_OFF | G6: SELECTION | H6: SETTLED_DATE | I6: ODDS | J6: LATEST_TAKEN | K6: FIRST_TAKEN | L6: IN_PLAY | M6: NUMBER_BETS | N6: VOLUME_MATCHED | O6: SPORTS_ID | P6: SELECTION_ID | Q6: WIN_FLAG | S6: liab$100 | T6: race net | V6: max | W6: race net | Y6: race fav | Z6: race net | AB6: 2 favs | AC6: collect | AD6: race net | AF6: 3 favs | AG6: collect | AH6: race net
A7: 100595324 | B7: Sale (AUS) 24th Dec | C7: Sale | D7: 2012-12-24T13:00:00 | E7: TO BE PLACED | F7: 2013-01-04T08:29:16 | G7: 7. Double Black | H7: 2012-12-24T13:06:59 | I7: 2.2 | J7: 2012-12-24T13:03:15 | K7: 2012-12-24T12:57:22 | L7: NI | M7: 6 | N7: 356.86 | O7: 7 | P7: 4893966 | Q7: 1 | S7: =IF($D7="","",IF($E7="to be placed","",IF($Q7=1,-$I7*SUM(100/($I7-1))+SUM(100/($I7-1)),SUM(100/($I7-1))))) ->  | T7: =IF($D7="","",IF($E7="to be placed","",IF(AND($A7<>$A8,SUMIF($A$7:$A$10000,$A7,S$7:S$10000)>0),SUMIF($A$7:$A$10000,$A7,S$7:S$10000)*(1-$T$1),IF($A7<>$A8,SUMIF($A$7:$A$10000,$A7,S$7:S$10000),"")))) ->  | V7: =IF($D7="","",IF($E7="to be placed","",IF(AND($I7<20,$Q7=1),-$I7+1,IF(AND($I7<20,$Q7<>1),1,"")))) ->  | W7: =IF($D7="","",IF($E7="to be placed","",IF(AND($A7<>$A8,SUMIF($A$7:$A$10000,$A7,V$7:V$10000)>0),SUMIF($A$7:$A$10000,$A7,V$7:V$10000)*(1-$T$1),IF($A7<>$A8,SUMIF($A$7:$A$10000,$A7,V$7:V$10000),"")))) ->  | Y7: =IF(A7="","",IF(E7="to be placed","",IF(MIN(IF($A$7:$A$10000=A7,$I$7:$I$10000))=I7,MIN(IF($A$7:$A$10000=A7,$I$7:$I$10000)),""))) ->  | Z7: =IF($D7="","",IF($E7="to be placed","",IF(ISERROR(Y7*1),"",IF(AND(Y7>0,Q7=1),-Y7+1,IF(AND(Y7<>"",Q7<>1),0.935,""))))) ->  | AB7: =IF($A7="","",IF($E7="to be placed","",IF(MIN(IF($A$7:$A$10000=A7,$I$7:$I$10000))=I7,MIN(IF($A$7:$A$10000=A7,$I$7:$I$10000)),IF(SMALL(IF($A$7:$A$10000=A7,$I$7:$I$10000),2)=I7,SMALL(IF($A$7:$A$10000=A7,$I$7:$I$10000),2),"")))) ->  | AC7: =IF($D7="","",IF($E7="to be placed","",IF(ISERROR(AB7*1),"",IF(AND(AB7>0,$Q7=1),-AB7+1,IF(AND(AB7<>"",$Q7<>1),0.935,""))))) ->  | AD7: =IF($D7="","",IF($E7="to be placed","",IF(AND($A7<>$A8,SUMIF($A$7:$A$10000,$A7,AC$7:AC$10000)>0),SUMIF($A$7:$A$10000,$A7,AC$7:AC$10000)*(1-$T$1),IF($A7<>$A8,SUMIF($A$7:$A$10000,$A7,AC$7:AC$10000),"")))) ->  | AF7: =IF($A7="","",IF($E7="to be placed","",IF(MIN(IF($A$7:$A$10000=A7,$I$7:$I$10000))=I7,MIN(IF($A$7:$A$10000=A7,$I$7:$I$10000)),IF(SMALL(IF($A$7:$A$10000=A7,$I$7:$I$10000),2)=I7,SMALL(IF($A$7:$A$10000=A7,$I$7:$I$10000),2),IF(SMALL(IF($A$7:$A$10000=A7,$I$7:$I$10000),3)=I7,SMALL(IF($A$7:$A$10000=A7,$I$7:$I$10000),3),""))))) ->  | AG7: =IF($D7="","",IF($E7="to be placed","",IF(ISERROR(AF7*1),"",IF(AND(AF7>0,$Q7=1),-AF7+1,IF(AND(AF7<>"",$Q7<>1),0.935,""))))) ->  | AH7: =IF($D7="","",IF($E7="to be placed","",IF(AND($A7<>$A8,SUMIF($A$7:$A$10000,$A7,AG$7:AG$10000)>0),SUMIF($A$7:$A$10000,$A7,AG$7:AG$10000)*(1-$T$1),IF($A7<>$A8,SUMIF($A$7:$A$10000,$A7,AG$7:AG$10000),"")))) -> 
A8: 100595324 | B8: Sale (AUS) 24th Dec | C8: Sale | D8: 2012-12-24T13:00:00 | E8: TO BE PLACED | F8: 2013-01-04T08:29:16 | G8: 2. Canova | H8: 2012-12-24T13:06:59 | I8: 1.86 | J8: 2012-12-24T13:01:39 | K8: 2012-12-24T13:01:39 | L8: NI | M8: 3 | N8: 188.04 | O8: 7 | P8: 6398395 | Q8: 0 | S8: =IF($D8="","",IF($E8="to be placed","",IF($Q8=1,-$I8*SUM(100/($I8-1))+SUM(100/($I8-1)),SUM(100/($I8-1))))) ->  | T8: =IF($D8="","",IF($E8="to be placed","",IF(AND($A8<>$A9,SUMIF($A$7:$A$10000,$A8,S$7:S$10000)>0),SUMIF($A$7:$A$10000,$A8,S$7:S$10000)*(1-$T$1),IF($A8<>$A9,SUMIF($A$7:$A$10000,$A8,S$7:S$10000),"")))) ->  | V8: =IF($D8="","",IF($E8="to be placed","",IF(AND($I8<20,$Q8=1),-$I8+1,IF(AND($I8<20,$Q8<>1),1,"")))) ->  | Y8: =IF(A8="","",IF(E8="to be placed","",IF(MIN(IF($A$7:$A$10000=A8,$I$7:$I$10000))=I8,MIN(IF($A$7:$A$10000=A8,$I$7:$I$10000)),""))) ->  | Z8: =IF($D8="","",IF($E8="to be placed","",IF(ISERROR(Y8*1),"",IF(AND(Y8>0,Q8=1),-Y8+1,IF(AND(Y8<>"",Q8<>1),0.935,""))))) ->  | AB8: =IF($A8="","",IF($E8="to be placed","",IF(MIN(IF($A$7:$A$10000=A8,$I$7:$I$10000))=I8,MIN(IF($A$7:$A$10000=A8,$I$7:$I$10000)),IF(SMALL(IF($A$7:$A$10000=A8,$I$7:$I$10000),2)=I8,SMALL(IF($A$7:$A$10000=A8,$I$7:$I$10000),2),"")))) ->  | AD8: =IF($D8="","",IF($E8="to be placed","",IF(AND($A8<>$A9,SUMIF($A$7:$A$10000,$A8,AC$7:AC$10000)>0),SUMIF($A$7:$A$10000,$A8,AC$7:AC$10000)*(1-$T$1),IF($A8<>$A9,SUMIF($A$7:$A$10000,$A8,AC$7:AC$10000),"")))) ->  | AF8: =IF($A8="","",IF($E8="to be placed","",IF(MIN(IF($A$7:$A$10000=A8,$I$7:$I$10000))=I8,MIN(IF($A$7:$A$10000=A8,$I$7:$I$10000)),IF(SMALL(IF($A$7:$A$10000=A8,$I$7:$I$10000),2)=I8,SMALL(IF($A$7:$A$10000=A8,$I$7:$I$10000),2),IF(SMALL(IF($A$7:$A$10000=A8,$I$7:$I$10000),3)=I8,SMALL(IF($A$7:$A$10000=A8,$I$7:$I$10000),3),""))))) ->  | AH8: =IF($D8="","",IF($E8="to be placed","",IF(AND($A8<>$A9,SUMIF($A$7:$A$10000,$A8,AG$7:AG$10000)>0),SUMIF($A$7:$A$10000,$A8,AG$7:AG$10000)*(1-$T$1),IF($A8<>$A9,SUMIF($A$7:$A$10000,$A8,AG$7:AG$10000),"")))) -> 
A9: 100595324 | B9: Sale (AUS) 24th Dec | C9: Sale | D9: 2012-12-24T13:00:00 | E9: TO BE PLACED | F9: 2013-01-04T08:29:16 | G9: 1. Allez Le Rouge | H9: 2012-12-24T13:06:59 | I9: 5.9 | J9: 2012-12-24T13:03:07 | K9: 2012-12-24T13:00:58 | L9: NI | M9: 3 | N9: 112.58 | O9: 7 | P9: 6934716 | Q9: 0 | Y9: =IF(A9="","",IF(E9="to be placed","",IF(MIN(IF($A$7:$A$10000=A9,$I$7:$I$10000))=I9,MIN(IF($A$7:$A$10000=A9,$I$7:$I$10000)),""))) ->  | AB9: =IF($A9="","",IF($E9="to be placed","",IF(MIN(IF($A$7:$A$10000=A9,$I$7:$I$10000))=I9,MIN(IF($A$7:$A$10000=A9,$I$7:$I$10000)),IF(SMALL(IF($A$7:$A$10000=A9,$I$7:$I$10000),2)=I9,SMALL(IF($A$7:$A$10000=A9,$I$7:$I$10000),2),"")))) ->  | AF9: =IF($A9="","",IF($E9="to be placed","",IF(MIN(IF($A$7:$A$10000=A9,$I$7:$I$10000))=I9,MIN(IF($A$7:$A$10000=A9,$I$7:$I$10000)),IF(SMALL(IF($A$7:$A$10000=A9,$I$7:$I$10000),2)=I9,SMALL(IF($A$7:$A$10000=A9,$I$7:$I$10000),2),IF(SMALL(IF($A$7:$A$10000=A9,$I$7:$I$10000),3)=I9,SMALL(IF($A$7:$A$10000=A9,$I$7:$I$10000),3),""))))) -> 
A10: 100595324 | B10: Sale (AUS) 24th Dec | C10: Sale | D10: 2012-12-24T13:00:00 | E10: TO BE PLACED | F10: 2013-01-04T08:29:16 | G10: 5. Kaiser Sun | H10: 2012-12-24T13:06:59 | I10: 1.39 | J10: 2012-12-24T13:02:55 | K10: 2012-12-24T13:01:48 | L10: NI | M10: 4 | N10: 374.56 | O10: 7 | P10: 6934719 | Q10: 1 | Y10: =IF(A10="","",IF(E10="to be placed","",IF(MIN(IF($A$7:$A$10000=A10,$I$7:$I$10000))=I10,MIN(IF($A$7:$A$10000=A10,$I$7:$I$10000)),""))) ->  | AB10: =IF($A10="","",IF($E10="to be placed","",IF(MIN(IF($A$7:$A$10000=A10,$I$7:$I$10000))=I10,MIN(IF($A$7:$A$10000=A10,$I$7:$I$10000)),IF(SMALL(IF($A$7:$A$10000=A10,$I$7:$I$10000),2)=I10,SMALL(IF($A$7:$A$10000=A10,$I$7:$I$10000),2),"")))) ->  | AF10: =IF($A10="","",IF($E10="to be placed","",IF(MIN(IF($A$7:$A$10000=A10,$I$7:$I$10000))=I10,MIN(IF($A$7:$A$10000=A10,$I$7:$I$10000)),IF(SMALL(IF($A$7:$A$10000=A10,$I$7:$I$10000),2)=I10,SMALL(IF($A$7:$A$10000=A10,$I$7:$I$10000),2),IF(SMALL(IF($A$7:$A$10000=A10,$I$7:$I$10000),3)=I10,SMALL(IF($A$7:$A$10000=A10,$I$7:$I$10000),3),""))))) -> 
A11: 100595324 | B11: Sale (AUS) 24th Dec | C11: Sale | D11: 2012-12-24T13:00:00 | E11: TO BE PLACED | F11: 2013-01-04T08:29:16 | G11: 6. Samuelsson | H11: 2012-12-24T13:06:59 | I11: 1.28 | J11: 2012-12-24T13:02:56 | K11: 2012-12-24T12:59:25 | L11: NI | M11: 12 | N11: 1001.12 | O11: 7 | P11: 6934720 | Q11: 0 | Y11: =IF(A11="","",IF(E11="to be placed","",IF(MIN(IF($A$7:$A$10000=A11,$I$7:$I$10000))=I11,MIN(IF($A$7:$A$10000=A11,$I$7:$I$10000)),""))) ->  | AB11: =IF($A11="","",IF($E11="to be placed","",IF(MIN(IF($A$7:$A$10000=A11,$I$7:$I$10000))=I11,MIN(IF($A$7:$A$10000=A11,$I$7:$I$10000)),IF(SMALL(IF($A$7:$A$10000=A11,$I$7:$I$10000),2)=I11,SMALL(IF($A$7:$A$10000=A11,$I$7:$I$10000),2),"")))) ->  | AF11: =IF($A11="","",IF($E11="to be placed","",IF(MIN(IF($A$7:$A$10000=A11,$I$7:$I$10000))=I11,MIN(IF($A$7:$A$10000=A11,$I$7:$I$10000)),IF(SMALL(IF($A$7:$A$10000=A11,$I$7:$I$10000),2)=I11,SMALL(IF($A$7:$A$10000=A11,$I$7:$I$10000),2),IF(SMALL(IF($A$7:$A$10000=A11,$I$7:$I$10000),3)=I11,SMALL(IF($A$7:$A$10000=A11,$I$7:$I$10000),3),""))))) -> 
A12: 100595324 | B12: Sale (AUS) 24th Dec | C12: Sale | D12: 2012-12-24T13:00:00 | E12: TO BE PLACED | F12: 2013-01-04T08:29:16 | G12: 10. Lakeside Lass | H12: 2012-12-24T13:06:59 | I12: 4.5 | J12: 2012-12-24T13:01:54 | K12: 2012-12-24T12:58:51 | L12: NI | M12: 7 | N12: 421.72 | O12: 7 | P12: 6934723 | Q12: 0 | Y12: =IF(A12="","",IF(E12="to be placed","",IF(MIN(IF($A$7:$A$10000=A12,$I$7:$I$10000))=I12,MIN(IF($A$7:$A$10000=A12,$I$7:$I$10000)),""))) ->  | AB12: =IF($A12="","",IF($E12="to be placed","",IF(MIN(IF($A$7:$A$10000=A12,$I$7:$I$10000))=I12,MIN(IF($A$7:$A$10000=A12,$I$7:$I$10000)),IF(SMALL(IF($A$7:$A$10000=A12,$I$7:$I$10000),2)=I12,SMALL(IF($A$7:$A$10000=A12,$I$7:$I$10000),2),"")))) ->  | AF12: =IF($A12="","",IF($E12="to be placed","",IF(MIN(IF($A$7:$A$10000=A12,$I$7:$I$10000))=I12,MIN(IF($A$7:$A$10000=A12,$I$7:$I$10000)),IF(SMALL(IF($A$7:$A$10000=A12,$I$7:$I$10000),2)=I12,SMALL(IF($A$7:$A$10000=A12,$I$7:$I$10000),2),IF(SMALL(IF($A$7:$A$10000=A12,$I$7:$I$10000),3)=I12,SMALL(IF($A$7:$A$10000=A12,$I$7:$I$10000),3),""))))) -> 
A13: 100595324 | B13: Sale (AUS) 24th Dec | C13: Sale | D13: 2012-12-24T13:00:00 | E13: TO BE PLACED | F13: 2013-01-04T08:29:16 | G13: 13. Survival Miss | H13: 2012-12-24T13:06:59 | I13: 8.2 | J13: 2012-12-24T13:00:44 | K13: 2012-12-24T12:59:49 | L13: NI | M13: 5 | N13: 62.08 | O13: 7 | P13: 6934725 | Q13: 1 | Y13: =IF(A13="","",IF(E13="to be placed","",IF(MIN(IF($A$7:$A$10000=A13,$I$7:$I$10000))=I13,MIN(IF($A$7:$A$10000=A13,$I$7:$I$10000)),""))) ->  | AB13: =IF($A13="","",IF($E13="to be placed","",IF(MIN(IF($A$7:$A$10000=A13,$I$7:$I$10000))=I13,MIN(IF($A$7:$A$10000=A13,$I$7:$I$10000)),IF(SMALL(IF($A$7:$A$10000=A13,$I$7:$I$10000),2)=I13,SMALL(IF($A$7:$A$10000=A13,$I$7:$I$10000),2),"")))) ->  | AF13: =IF($A13="","",IF($E13="to be placed","",IF(MIN(IF($A$7:$A$10000=A13,$I$7:$I$10000))=I13,MIN(IF($A$7:$A$10000=A13,$I$7:$I$10000)),IF(SMALL(IF($A$7:$A$10000=A13,$I$7:$I$10000),2)=I13,SMALL(IF($A$7:$A$10000=A13,$I$7:$I$10000),2),IF(SMALL(IF($A$7:$A$10000=A13,$I$7:$I$10000),3)=I13,SMALL(IF($A$7:$A$10000=A13,$I$7:$I$10000),3),""))))) -> 
A14: 100595325 | B14: Sale (AUS) 24th Dec | C14: Sale | D14: 2012-12-24T13:00:00 | E14: R1 1100m 3yo | F14: 2012-12-24T13:03:22 | G14: 7. Double Black | H14: 2012-12-24T13:06:03 | I14: 8.8 | J14: 2012-12-24T13:03:21 | K14: 2012-12-24T12:53:03 | L14: PE | M14: 48 | N14: 5094.46 | O14: 7 | P14: 4893966 | Q14: 0 | S14: 12.82051282 | V14: 1 | Y14: =IF(A14="","",IF(E14="to be placed","",IF(MIN(IF($A$7:$A$10000=A14,$I$7:$I$10000))=I14,MIN(IF($A$7:$A$10000=A14,$I$7:$I$10000)),""))) ->  | AB14: =IF($A14="","",IF($E14="to be placed","",IF(MIN(IF($A$7:$A$10000=A14,$I$7:$I$10000))=I14,MIN(IF($A$7:$A$10000=A14,$I$7:$I$10000)),IF(SMALL(IF($A$7:$A$10000=A14,$I$7:$I$10000),2)=I14,SMALL(IF($A$7:$A$10000=A14,$I$7:$I$10000),2),"")))) ->  | AF14: =IF($A14="","",IF($E14="to be placed","",IF(MIN(IF($A$7:$A$10000=A14,$I$7:$I$10000))=I14,MIN(IF($A$7:$A$10000=A14,$I$7:$I$10000)),IF(SMALL(IF($A$7:$A$10000=A14,$I$7:$I$10000),2)=I14,SMALL(IF($A$7:$A$10000=A14,$I$7:$I$10000),2),IF(SMALL(IF($A$7:$A$10000=A14,$I$7:$I$10000),3)=I14,SMALL(IF($A$7:$A$10000=A14,$I$7:$I$10000),3),""))))) -> 
A15: 100595325 | B15: Sale (AUS) 24th Dec | C15: Sale | D15: 2012-12-24T13:00:00 | E15: R1 1100m 3yo | F15: 2012-12-24T13:03:22 | G15: 2. Canova | H15: 2012-12-24T13:06:03 | I15: 7.2 | J15: 2012-12-24T13:03:21 | K15: 2012-12-24T12:47:12 | L15: PE | M15: 56 | N15: 3157.44 | O15: 7 | P15: 6398395 | Q15: 0 | S15: 16.12903226 | V15: 1 | Y15: =IF(A15="","",IF(E15="to be placed","",IF(MIN(IF($A$7:$A$10000=A15,$I$7:$I$10000))=I15,MIN(IF($A$7:$A$10000=A15,$I$7:$I$10000)),""))) ->  | AB15: =IF($A15="","",IF($E15="to be placed","",IF(MIN(IF($A$7:$A$10000=A15,$I$7:$I$10000))=I15,MIN(IF($A$7:$A$10000=A15,$I$7:$I$10000)),IF(SMALL(IF($A$7:$A$10000=A15,$I$7:$I$10000),2)=I15,SMALL(IF($A$7:$A$10000=A15,$I$7:$I$10000),2),"")))) ->  | AF15: =IF($A15="","",IF($E15="to be placed","",IF(MIN(IF($A$7:$A$10000=A15,$I$7:$I$10000))=I15,MIN(IF($A$7:$A$10000=A15,$I$7:$I$10000)),IF(SMALL(IF($A$7:$A$10000=A15,$I$7:$I$10000),2)=I15,SMALL(IF($A$7:$A$10000=A15,$I$7:$I$10000),2),IF(SMALL(IF($A$7:$A$10000=A15,$I$7:$I$10000),3)=I15,SMALL(IF($A$7:$A$10000=A15,$I$7:$I$10000),3),""))))) -> 7.2 | AG15: 0.935
A16: 100595325 | B16: Sale (AUS) 24th Dec | C16: Sale | D16: 2012-12-24T13:00:00 | E16: R1 1100m 3yo | F16: 2012-12-24T13:03:22 | G16: 1. Allez Le Rouge | H16: 2012-12-24T13:06:03 | I16: 46 | J16: 2012-12-24T13:03:21 | K16: 2012-12-24T12:58:26 | L16: PE | M16: 4 | N16: 362.64 | O16: 7 | P16: 6934716 | Q16: 0 | S16: 2.222222222 | Y16: =IF(A16="","",IF(E16="to be placed","",IF(MIN(IF($A$7:$A$10000=A16,$I$7:$I$10000))=I16,MIN(IF($A$7:$A$10000=A16,$I$7:$I$10000)),""))) ->  | AB16: =IF($A16="","",IF($E16="to be placed","",IF(MIN(IF($A$7:$A$10000=A16,$I$7:$I$10000))=I16,MIN(IF($A$7:$A$10000=A16,$I$7:$I$10000)),IF(SMALL(IF($A$7:$A$10000=A16,$I$7:$I$10000),2)=I16,SMALL(IF($A$7:$A$10000=A16,$I$7:$I$10000),2),"")))) ->  | AF16: =IF($A16="","",IF($E16="to be placed","",IF(MIN(IF($A$7:$A$10000=A16,$I$7:$I$10000))=I16,MIN(IF($A$7:$A$10000=A16,$I$7:$I$10000)),IF(SMALL(IF($A$7:$A$10000=A16,$I$7:$I$10000),2)=I16,SMALL(IF($A$7:$A$10000=A16,$I$7:$I$10000),2),IF(SMALL(IF($A$7:$A$10000=A16,$I$7:$I$10000),3)=I16,SMALL(IF($A$7:$A$10000=A16,$I$7:$I$10000),3),""))))) -> 
A17: 100595325 | B17: Sale (AUS) 24th Dec | C17: Sale | D17: 2012-12-24T13:00:00 | E17: R1 1100m 3yo | F17: 2012-12-24T13:03:22 | G17: 5. Kaiser Sun | H17: 2012-12-24T13:06:03 | I17: 3.55 | J17: 2012-12-24T13:03:21 | K17: 2012-12-24T12:53:57 | L17: PE | M17: 168 | N17: 12776.54 | O17: 7 | P17: 6934719 | Q17: 1 | S17: -100 | V17: -2.55 | Y17: =IF(A17="","",IF(E17="to be placed","",IF(MIN(IF($A$7:$A$10000=A17,$I$7:$I$10000))=I17,MIN(IF($A$7:$A$10000=A17,$I$7:$I$10000)),""))) ->  | AB17: =IF($A17="","",IF($E17="to be placed","",IF(MIN(IF($A$7:$A$10000=A17,$I$7:$I$10000))=I17,MIN(IF($A$7:$A$10000=A17,$I$7:$I$10000)),IF(SMALL(IF($A$7:$A$10000=A17,$I$7:$I$10000),2)=I17,SMALL(IF($A$7:$A$10000=A17,$I$7:$I$10000),2),"")))) -> 3.55 | AC17: -2.55 | AF17: =IF($A17="","",IF($E17="to be placed","",IF(MIN(IF($A$7:$A$10000=A17,$I$7:$I$10000))=I17,MIN(IF($A$7:$A$10000=A17,$I$7:$I$10000)),IF(SMALL(IF($A$7:$A$10000=A17,$I$7:$I$10000),2)=I17,SMALL(IF($A$7:$A$10000=A17,$I$7:$I$10000),2),IF(SMALL(IF($A$7:$A$10000=A17,$I$7:$I$10000),3)=I17,SMALL(IF($A$7:$A$10000=A17,$I$7:$I$10000),3),""))))) -> 3.55 | AG17: -2.55
A18: 100595325 | B18: Sale (AUS) 24th Dec | C18: Sale | D18: 2012-12-24T13:00:00 | E18: R1 1100m 3yo | F18: 2012-12-24T13:03:22 | G18: 6. Samuelsson | H18: 2012-12-24T13:06:03 | I18: 2.52 | J18: 2012-12-24T13:03:21 | K18: 2012-12-24T12:49:40 | L18: PE | M18: 79 | N18: 25113.66 | O18: 7 | P18: 6934720 | Q18: 0 | S18: 65.78947368 | V18: 1 | Y18: =IF(A18="","",IF(E18="to be placed","",IF(MIN(IF($A$7:$A$10000=A18,$I$7:$I$10000))=I18,MIN(IF($A$7:$A$10000=A18,$I$7:$I$10000)),""))) -> 2.52 | Z18: 0.935 | AB18: =IF($A18="","",IF($E18="to be placed","",IF(MIN(IF($A$7:$A$10000=A18,$I$7:$I$10000))=I18,MIN(IF($A$7:$A$10000=A18,$I$7:$I$10000)),IF(SMALL(IF($A$7:$A$10000=A18,$I$7:$I$10000),2)=I18,SMALL(IF($A$7:$A$10000=A18,$I$7:$I$10000),2),"")))) -> 2.52 | AC18: 0.935 | AF18: =IF($A18="","",IF($E18="to be placed","",IF(MIN(IF($A$7:$A$10000=A18,$I$7:$I$10000))=I18,MIN(IF($A$7:$A$10000=A18,$I$7:$I$10000)),IF(SMALL(IF($A$7:$A$10000=A18,$I$7:$I$10000),2)=I18,SMALL(IF($A$7:$A$10000=A18,$I$7:$I$10000),2),IF(SMALL(IF($A$7:$A$10000=A18,$I$7:$I$10000),3)=I18,SMALL(IF($A$7:$A$10000=A18,$I$7:$I$10000),3),""))))) -> 2.52 | AG18: 0.935
A19: 100595325 | B19: Sale (AUS) 24th Dec | C19: Sale | D19: 2012-12-24T13:00:00 | E19: R1 1100m 3yo | F19: 2012-12-24T13:03:22 | G19: 10. Lakeside Lass | H19: 2012-12-24T13:06:03 | I19: 28 | J19: 2012-12-24T13:03:21 | K19: 2012-12-24T12:59:14 | L19: PE | M19: 12 | N19: 1232.54 | O19: 7 | P19: 6934723 | Q19: 0 | S19: 3.703703704 | Y19: =IF(A19="","",IF(E19="to be placed","",IF(MIN(IF($A$7:$A$10000=A19,$I$7:$I$10000))=I19,MIN(IF($A$7:$A$10000=A19,$I$7:$I$10000)),""))) ->  | AB19: =IF($A19="","",IF($E19="to be placed","",IF(MIN(IF($A$7:$A$10000=A19,$I$7:$I$10000))=I19,MIN(IF($A$7:$A$10000=A19,$I$7:$I$10000)),IF(SMALL(IF($A$7:$A$10000=A19,$I$7:$I$10000),2)=I19,SMALL(IF($A$7:$A$10000=A19,$I$7:$I$10000),2),"")))) ->  | AF19: =IF($A19="","",IF($E19="to be placed","",IF(MIN(IF($A$7:$A$10000=A19,$I$7:$I$10000))=I19,MIN(IF($A$7:$A$10000=A19,$I$7:$I$10000)),IF(SMALL(IF($A$7:$A$10000=A19,$I$7:$I$10000),2)=I19,SMALL(IF($A$7:$A$10000=A19,$I$7:$I$10000),2),IF(SMALL(IF($A$7:$A$10000=A19,$I$7:$I$10000),3)=I19,SMALL(IF($A$7:$A$10000=A19,$I$7:$I$10000),3),""))))) -> 
A20: 100595325 | B20: Sale (AUS) 24th Dec | C20: Sale | D20: 2012-12-24T13:00:00 | E20: R1 1100m 3yo | F20: 2012-12-24T13:03:22 | G20: 13. Survival Miss | H20: 2012-12-24T13:06:03 | I20: 75 | J20: 2012-12-24T13:03:21 | K20: 2012-12-24T12:57:59 | L20: PE | M20: 9 | N20: 143.34 | O20: 7 | P20: 6934725 | Q20: 0 | S20: 1.351351351 | T20: 1.885236797 | W20: 0.42075 | Y20: =IF(A20="","",IF(E20="to be placed","",IF(MIN(IF($A$7:$A$10000=A20,$I$7:$I$10000))=I20,MIN(IF($A$7:$A$10000=A20,$I$7:$I$10000)),""))) ->  | AB20: =IF($A20="","",IF($E20="to be placed","",IF(MIN(IF($A$7:$A$10000=A20,$I$7:$I$10000))=I20,MIN(IF($A$7:$A$10000=A20,$I$7:$I$10000)),IF(SMALL(IF($A$7:$A$10000=A20,$I$7:$I$10000),2)=I20,SMALL(IF($A$7:$A$10000=A20,$I$7:$I$10000),2),"")))) ->  | AD20: -1.615 | AF20: =IF($A20="","",IF($E20="to be placed","",IF(MIN(IF($A$7:$A$10000=A20,$I$7:$I$10000))=I20,MIN(IF($A$7:$A$10000=A20,$I$7:$I$10000)),IF(SMALL(IF($A$7:$A$10000=A20,$I$7:$I$10000),2)=I20,SMALL(IF($A$7:$A$10000=A20,$I$7:$I$10000),2),IF(SMALL(IF($A$7:$A$10000=A20,$I$7:$I$10000),3)=I20,SMALL(IF($A$7:$A$10000=A20,$I$7:$I$10000),3),""))))) ->  | AH20: -0.68
A21: 100595360 | B21: Goul (AUS) 24th Dec | C21: Goul | D21: 2012-12-24T13:04:00 | E21: R1 1710m Pace M | F21: 2013-01-04T08:29:17 | G21: 8. Waitati | H21: 2012-12-24T13:07:57 | I21: 1.6 | J21: 2012-12-24T13:05:26 | K21: 2012-12-24T13:03:29 | L21: NI | M21: 11 | N21: 5468.16 | O21: 7 | P21: 6934800 | Q21: 0 | S21: 166.6666667 | V21: 1 | Y21: =IF(A21="","",IF(E21="to be placed","",IF(MIN(IF($A$7:$A$10000=A21,$I$7:$I$10000))=I21,MIN(IF($A$7:$A$10000=A21,$I$7:$I$10000)),""))) -> 1.6 | Z21: 0.935 | AB21: =IF($A21="","",IF($E21="to be placed","",IF(MIN(IF($A$7:$A$10000=A21,$I$7:$I$10000))=I21,MIN(IF($A$7:$A$10000=A21,$I$7:$I$10000)),IF(SMALL(IF($A$7:$A$10000=A21,$I$7:$I$10000),2)=I21,SMALL(IF($A$7:$A$10000=A21,$I$7:$I$10000),2),"")))) -> 1.6 | AC21: 0.935 | AF21: =IF($A21="","",IF($E21="to be placed","",IF(MIN(IF($A$7:$A$10000=A21,$I$7:$I$10000))=I21,MIN(IF($A$7:$A$10000=A21,$I$7:$I$10000)),IF(SMALL(IF($A$7:$A$10000=A21,$I$7:$I$10000),2)=I21,SMALL(IF($A$7:$A$10000=A21,$I$7:$I$10000),2),IF(SMALL(IF($A$7:$A$10000=A21,$I$7:$I$10000),3)=I21,SMALL(IF($A$7:$A$10000=A21,$I$7:$I$10000),3),""))))) -> 1.6 | AG21: 0.935
A22: 100595360 | B22: Goul (AUS) 24th Dec | C22: Goul | D22: 2012-12-24T13:04:00 | E22: R1 1710m Pace M | F22: 2013-01-04T08:29:17 | G22: 5. Alcohol Free | H22: 2012-12-24T13:07:57 | I22: 10.5 | J22: 2012-12-24T13:05:22 | K22: 2012-12-24T13:05:06 | L22: NI | M22: 4 | N22: 111.26 | O22: 7 | P22: 5254444 | Q22: 0 | S22: 10.52631579 | V22: 1 | Y22: =IF(A22="","",IF(E22="to be placed","",IF(MIN(IF($A$7:$A$10000=A22,$I$7:$I$10000))=I22,MIN(IF($A$7:$A$10000=A22,$I$7:$I$10000)),""))) ->  | AB22: =IF($A22="","",IF($E22="to be placed","",IF(MIN(IF($A$7:$A$10000=A22,$I$7:$I$10000))=I22,MIN(IF($A$7:$A$10000=A22,$I$7:$I$10000)),IF(SMALL(IF($A$7:$A$10000=A22,$I$7:$I$10000),2)=I22,SMALL(IF($A$7:$A$10000=A22,$I$7:$I$10000),2),"")))) ->  | AF22: =IF($A22="","",IF($E22="to be placed","",IF(MIN(IF($A$7:$A$10000=A22,$I$7:$I$10000))=I22,MIN(IF($A$7:$A$10000=A22,$I$7:$I$10000)),IF(SMALL(IF($A$7:$A$10000=A22,$I$7:$I$10000),2)=I22,SMALL(IF($A$7:$A$10000=A22,$I$7:$I$10000),2),IF(SMALL(IF($A$7:$A$10000=A22,$I$7:$I$10000),3)=I22,SMALL(IF($A$7:$A$10000=A22,$I$7:$I$10000),3),""))))) -> 
A23: 100595360 | B23: Goul (AUS) 24th Dec | C23: Goul | D23: 2012-12-24T13:04:00 | E23: R1 1710m Pace M | F23: 2013-01-04T08:29:17 | G23: 1. Sasha Sasha | H23: 2012-12-24T13:07:57 | I23: 8.8 | J23: 2012-12-24T13:05:00 | K23: 2012-12-24T13:04:59 | L23: NI | M23: 4 | N23: 87.22 | O23: 7 | P23: 5363412 | Q23: 0 | S23: 12.82051282 | V23: 1 | Y23: =IF(A23="","",IF(E23="to be placed","",IF(MIN(IF($A$7:$A$10000=A23,$I$7:$I$10000))=I23,MIN(IF($A$7:$A$10000=A23,$I$7:$I$10000)),""))) ->  | AB23: =IF($A23="","",IF($E23="to be placed","",IF(MIN(IF($A$7:$A$10000=A23,$I$7:$I$10000))=I23,MIN(IF($A$7:$A$10000=A23,$I$7:$I$10000)),IF(SMALL(IF($A$7:$A$10000=A23,$I$7:$I$10000),2)=I23,SMALL(IF($A$7:$A$10000=A23,$I$7:$I$10000),2),"")))) ->  | AF23: =IF($A23="","",IF($E23="to be placed","",IF(MIN(IF($A$7:$A$10000=A23,$I$7:$I$10000))=I23,MIN(IF($A$7:$A$10000=A23,$I$7:$I$10000)),IF(SMALL(IF($A$7:$A$10000=A23,$I$7:$I$10000),2)=I23,SMALL(IF($A$7:$A$10000=A23,$I$7:$I$10000),2),IF(SMALL(IF($A$7:$A$10000=A23,$I$7:$I$10000),3)=I23,SMALL(IF($A$7:$A$10000=A23,$I$7:$I$10000),3),""))))) -> 8.8 | AG23: 0.935
A24: 100595360 | B24: Goul (AUS) 24th Dec | C24: Goul | D24: 2012-12-24T13:04:00 | E24: R1 1710m Pace M | F24: 2013-01-04T08:29:17 | G24: 2. Jenikim Girl | H24: 2012-12-24T13:07:57 | I24: 340 | J24: 2012-12-24T13:05:00 | K24: 2012-12-24T13:03:29 | L24: NI | M24: 6 | N24: 1.04 | O24: 7 | P24: 5765905 | Q24: 0 | S24: 0.2949852507 | Y24: =IF(A24="","",IF(E24="to be placed","",IF(MIN(IF($A$7:$A$10000=A24,$I$7:$I$10000))=I24,MIN(IF($A$7:$A$10000=A24,$I$7:$I$10000)),""))) ->  | AB24: =IF($A24="","",IF($E24="to be placed","",IF(MIN(IF($A$7:$A$10000=A24,$I$7:$I$10000))=I24,MIN(IF($A$7:$A$10000=A24,$I$7:$I$10000)),IF(SMALL(IF($A$7:$A$10000=A24,$I$7:$I$10000),2)=I24,SMALL(IF($A$7:$A$10000=A24,$I$7:$I$10000),2),"")))) ->  | AF24: =IF($A24="","",IF($E24="to be placed","",IF(MIN(IF($A$7:$A$10000=A24,$I$7:$I$10000))=I24,MIN(IF($A$7:$A$10000=A24,$I$7:$I$10000)),IF(SMALL(IF($A$7:$A$10000=A24,$I$7:$I$10000),2)=I24,SMALL(IF($A$7:$A$10000=A24,$I$7:$I$10000),2),IF(SMALL(IF($A$7:$A$10000=A24,$I$7:$I$10000),3)=I24,SMALL(IF($A$7:$A$10000=A24,$I$7:$I$10000),3),""))))) -> 
A25: 100595360 | B25: Goul (AUS) 24th Dec | C25: Goul | D25: 2012-12-24T13:04:00 | E25: R1 1710m Pace M | F25: 2013-01-04T08:29:17 | G25: 4. Another Gladiator | H25: 2012-12-24T13:07:57 | I25: 34 | J25: 2012-12-24T13:05:02 | K25: 2012-12-24T13:05:00 | L25: NI | M25: 3 | N25: 76.7 | O25: 7 | P25: 5830087 | Q25: 0 | S25: 3.03030303 | Y25: =IF(A25="","",IF(E25="to be placed","",IF(MIN(IF($A$7:$A$10000=A25,$I$7:$I$10000))=I25,MIN(IF($A$7:$A$10000=A25,$I$7:$I$10000)),""))) ->  | AB25: =IF($A25="","",IF($E25="to be placed","",IF(MIN(IF($A$7:$A$10000=A25,$I$7:$I$10000))=I25,MIN(IF($A$7:$A$10000=A25,$I$7:$I$10000)),IF(SMALL(IF($A$7:$A$10000=A25,$I$7:$I$10000),2)=I25,SMALL(IF($A$7:$A$10000=A25,$I$7:$I$10000),2),"")))) ->  | AF25: =IF($A25="","",IF($E25="to be placed","",IF(MIN(IF($A$7:$A$10000=A25,$I$7:$I$10000))=I25,MIN(IF($A$7:$A$10000=A25,$I$7:$I$10000)),IF(SMALL(IF($A$7:$A$10000=A25,$I$7:$I$10000),2)=I25,SMALL(IF($A$7:$A$10000=A25,$I$7:$I$10000),2),IF(SMALL(IF($A$7:$A$10000=A25,$I$7:$I$10000),3)=I25,SMALL(IF($A$7:$A$10000=A25,$I$7:$I$10000),3),""))))) -> 
A26: 100595360 | B26: Goul (AUS) 24th Dec | C26: Goul | D26: 2012-12-24T13:04:00 | E26: R1 1710m Pace M | F26: 2013-01-04T08:29:17 | G26: 7. Sign Of Perfecshon | H26: 2012-12-24T13:07:57 | I26: 30 | J26: 2012-12-24T13:05:04 | K26: 2012-12-24T13:05:00 | L26: NI | M26: 3 | N26: 52.4 | O26: 7 | P26: 5832158 | Q26: 1 | S26: -100 | Y26: =IF(A26="","",IF(E26="to be placed","",IF(MIN(IF($A$7:$A$10000=A26,$I$7:$I$10000))=I26,MIN(IF($A$7:$A$10000=A26,$I$7:$I$10000)),""))) ->  | AB26: =IF($A26="","",IF($E26="to be placed","",IF(MIN(IF($A$7:$A$10000=A26,$I$7:$I$10000))=I26,MIN(IF($A$7:$A$10000=A26,$I$7:$I$10000)),IF(SMALL(IF($A$7:$A$10000=A26,$I$7:$I$10000),2)=I26,SMALL(IF($A$7:$A$10000=A26,$I$7:$I$10000),2),"")))) ->  | AF26: =IF($A26="","",IF($E26="to be placed","",IF(MIN(IF($A$7:$A$10000=A26,$I$7:$I$10000))=I26,MIN(IF($A$7:$A$10000=A26,$I$7:$I$10000)),IF(SMALL(IF($A$7:$A$10000=A26,$I$7:$I$10000),2)=I26,SMALL(IF($A$7:$A$10000=A26,$I$7:$I$10000),2),IF(SMALL(IF($A$7:$A$10000=A26,$I$7:$I$10000),3)=I26,SMALL(IF($A$7:$A$10000=A26,$I$7:$I$10000),3),""))))) -> 
A27: 100595360 | B27: Goul (AUS) 24th Dec | C27: Goul | D27: 2012-12-24T13:04:00 | E27: R1 1710m Pace M | F27: 2013-01-04T08:29:17 | G27: 6. Mister Ebby | H27: 2012-12-24T13:07:57 | I27: 8 | J27: 2012-12-24T13:05:22 | K27: 2012-12-24T13:05:22 | L27: NI | M27: 4 | N27: 301.72 | O27: 7 | P27: 6327533 | Q27: 0 | S27: 14.28571429 | T27: 100.6289055 | V27: 1 | W27: 3.74 | Y27: =IF(A27="","",IF(E27="to be placed","",IF(MIN(IF($A$7:$A$10000=A27,$I$7:$I$10000))=I27,MIN(IF($A$7:$A$10000=A27,$I$7:$I$10000)),""))) ->  | AB27: =IF($A27="","",IF($E27="to be placed","",IF(MIN(IF($A$7:$A$10000=A27,$I$7:$I$10000))=I27,MIN(IF($A$7:$A$10000=A27,$I$7:$I$10000)),IF(SMALL(IF($A$7:$A$10000=A27,$I$7:$I$10000),2)=I27,SMALL(IF($A$7:$A$10000=A27,$I$7:$I$10000),2),"")))) -> 8 | AC27: 0.935 | AD27: 1.74845 | AF27: =IF($A27="","",IF($E27="to be placed","",IF(MIN(IF($A$7:$A$10000=A27,$I$7:$I$10000))=I27,MIN(IF($A$7:$A$10000=A27,$I$7:$I$10000)),IF(SMALL(IF($A$7:$A$10000=A27,$I$7:$I$10000),2)=I27,SMALL(IF($A$7:$A$10000=A27,$I$7:$I$10000),2),IF(SMALL(IF($A$7:$A$10000=A27,$I$7:$I$10000),3)=I27,SMALL(IF($A$7:$A$10000=A27,$I$7:$I$10000),3),""))))) -> 8 | AG27: 0.935 | AH27: 2.622675
A28: 100595361 | B28: Goul (AUS) 24th Dec | C28: Goul | D28: 2012-12-24T13:04:00 | E28: TO BE PLACED | F28: 2013-01-04T08:29:17 | G28: 8. Waitati | H28: 2012-12-24T13:09:38 | I28: 2.16 | J28: 2012-12-24T13:02:29 | K28: 2012-12-24T13:02:29 | L28: NI | M28: 2 | N28: 0.04 | O28: 7 | P28: 6934800 | Q28: 0 | W28: =IF($D28="","",IF($E28="to be placed","",IF(AND($A28<>$A29,SUMIF($A$7:$A$10000,$A28,V$7:V$10000)>0),SUMIF($A$7:$A$10000,$A28,V$7:V$10000)*(1-$T$1),IF($A28<>$A29,SUMIF($A$7:$A$10000,$A28,V$7:V$10000),"")))) ->  | Y28: =IF(A28="","",IF(E28="to be placed","",IF(MIN(IF($A$7:$A$10000=A28,$I$7:$I$10000))=I28,MIN(IF($A$7:$A$10000=A28,$I$7:$I$10000)),""))) ->  | AB28: =IF($A28="","",IF($E28="to be placed","",IF(MIN(IF($A$7:$A$10000=A28,$I$7:$I$10000))=I28,MIN(IF($A$7:$A$10000=A28,$I$7:$I$10000)),IF(SMALL(IF($A$7:$A$10000=A28,$I$7:$I$10000),2)=I28,SMALL(IF($A$7:$A$10000=A28,$I$7:$I$10000),2),"")))) ->  | AF28: =IF($A28="","",IF($E28="to be placed","",IF(MIN(IF($A$7:$A$10000=A28,$I$7:$I$10000))=I28,MIN(IF($A$7:$A$10000=A28,$I$7:$I$10000)),IF(SMALL(IF($A$7:$A$10000=A28,$I$7:$I$10000),2)=I28,SMALL(IF($A$7:$A$10000=A28,$I$7:$I$10000),2),IF(SMALL(IF($A$7:$A$10000=A28,$I$7:$I$10000),3)=I28,SMALL(IF($A$7:$A$10000=A28,$I$7:$I$10000),3),""))))) -> 
A29: 100595361 | B29: Goul (AUS) 24th Dec | C29: Goul | D29: 2012-12-24T13:04:00 | E29: TO BE PLACED | F29: 2013-01-04T08:29:17 | G29: 7. Sign Of Perfecshon | H29: 2012-12-24T13:09:38 | I29: 6.2 | J29: 2012-12-24T13:05:21 | K29: 2012-12-24T13:04:45 | L29: NI | M29: 6 | N29: 16.88 | O29: 7 | P29: 5832158 | Q29: 1 | Y29: =IF(A29="","",IF(E29="to be placed","",IF(MIN(IF($A$7:$A$10000=A29,$I$7:$I$10000))=I29,MIN(IF($A$7:$A$10000=A29,$I$7:$I$10000)),""))) ->  | AB29: =IF($A29="","",IF($E29="to be placed","",IF(MIN(IF($A$7:$A$10000=A29,$I$7:$I$10000))=I29,MIN(IF($A$7:$A$10000=A29,$I$7:$I$10000)),IF(SMALL(IF($A$7:$A$10000=A29,$I$7:$I$10000),2)=I29,SMALL(IF($A$7:$A$10000=A29,$I$7:$I$10000),2),"")))) ->  | AF29: =IF($A29="","",IF($E29="to be placed","",IF(MIN(IF($A$7:$A$10000=A29,$I$7:$I$10000))=I29,MIN(IF($A$7:$A$10000=A29,$I$7:$I$10000)),IF(SMALL(IF($A$7:$A$10000=A29,$I$7:$I$10000),2)=I29,SMALL(IF($A$7:$A$10000=A29,$I$7:$I$10000),2),IF(SMALL(IF($A$7:$A$10000=A29,$I$7:$I$10000),3)=I29,SMALL(IF($A$7:$A$10000=A29,$I$7:$I$10000),3),""))))) -> 
A30: 100595296 | B30: Orng (AUS) 24th Dec | C30: Orng | D30: 2012-12-24T13:10:00 | E30: TO BE PLACED | F30: 2013-01-04T08:29:15 | G30: 1. Classical Melody | H30: 2012-12-24T13:24:00 | I30: 1.75 | J30: 2012-12-24T13:10:47 | K30: 2012-12-24T13:10:47 | L30: NI | M30: 2 | N30: 627.62 | O30: 7 | P30: 4976755 | Q30: 0 | Y30: =IF(A30="","",IF(E30="to be placed","",IF(MIN(IF($A$7:$A$10000=A30,$I$7:$I$10000))=I30,MIN(IF($A$7:$A$10000=A30,$I$7:$I$10000)),""))) ->  | AB30: =IF($A30="","",IF($E30="to be placed","",IF(MIN(IF($A$7:$A$10000=A30,$I$7:$I$10000))=I30,MIN(IF($A$7:$A$10000=A30,$I$7:$I$10000)),IF(SMALL(IF($A$7:$A$10000=A30,$I$7:$I$10000),2)=I30,SMALL(IF($A$7:$A$10000=A30,$I$7:$I$10000),2),"")))) ->  | AF30: =IF($A30="","",IF($E30="to be placed","",IF(MIN(IF($A$7:$A$10000=A30,$I$7:$I$10000))=I30,MIN(IF($A$7:$A$10000=A30,$I$7:$I$10000)),IF(SMALL(IF($A$7:$A$10000=A30,$I$7:$I$10000),2)=I30,SMALL(IF($A$7:$A$10000=A30,$I$7:$I$10000),2),IF(SMALL(IF($A$7:$A$10000=A30,$I$7:$I$10000),3)=I30,SMALL(IF($A$7:$A$10000=A30,$I$7:$I$10000),3),""))))) -> 
A31: 100595296 | B31: Orng (AUS) 24th Dec | C31: Orng | D31: 2012-12-24T13:10:00 | E31: TO BE PLACED | F31: 2013-01-04T08:29:15 | G31: 6. Thunder Row | H31: 2012-12-24T13:24:00 | I31: 6.4 | J31: 2012-12-24T13:10:36 | K31: 2012-12-24T13:10:34 | L31: NI | M31: 3 | N31: 235.8 | O31: 7 | P31: 5953440 | Q31: 1 | Y31: =IF(A31="","",IF(E31="to be placed","",IF(MIN(IF($A$7:$A$10000=A31,$I$7:$I$10000))=I31,MIN(IF($A$7:$A$10000=A31,$I$7:$I$10000)),""))) ->  | AB31: =IF($A31="","",IF($E31="to be placed","",IF(MIN(IF($A$7:$A$10000=A31,$I$7:$I$10000))=I31,MIN(IF($A$7:$A$10000=A31,$I$7:$I$10000)),IF(SMALL(IF($A$7:$A$10000=A31,$I$7:$I$10000),2)=I31,SMALL(IF($A$7:$A$10000=A31,$I$7:$I$10000),2),"")))) ->  | AF31: =IF($A31="","",IF($E31="to be placed","",IF(MIN(IF($A$7:$A$10000=A31,$I$7:$I$10000))=I31,MIN(IF($A$7:$A$10000=A31,$I$7:$I$10000)),IF(SMALL(IF($A$7:$A$10000=A31,$I$7:$I$10000),2)=I31,SMALL(IF($A$7:$A$10000=A31,$I$7:$I$10000),2),IF(SMALL(IF($A$7:$A$10000=A31,$I$7:$I$10000),3)=I31,SMALL(IF($A$7:$A$10000=A31,$I$7:$I$10000),3),""))))) -> 
A32: 100595296 | B32: Orng (AUS) 24th Dec | C32: Orng | D32: 2012-12-24T13:10:00 | E32: TO BE PLACED | F32: 2013-01-04T08:29:15 | G32: 4. Gina n Adelina | H32: 2012-12-24T13:24:00 | I32: 7.2 | J32: 2012-12-24T13:10:41 | K32: 2012-12-24T13:10:41 | L32: NI | M32: 2 | N32: 123.36 | O32: 7 | P32: 6854607 | Q32: 0 | Y32: =IF(A32="","",IF(E32="to be placed","",IF(MIN(IF($A$7:$A$10000=A32,$I$7:$I$10000))=I32,MIN(IF($A$7:$A$10000=A32,$I$7:$I$10000)),""))) ->  | AB32: =IF($A32="","",IF($E32="to be placed","",IF(MIN(IF($A$7:$A$10000=A32,$I$7:$I$10000))=I32,MIN(IF($A$7:$A$10000=A32,$I$7:$I$10000)),IF(SMALL(IF($A$7:$A$10000=A32,$I$7:$I$10000),2)=I32,SMALL(IF($A$7:$A$10000=A32,$I$7:$I$10000),2),"")))) ->  | AF32: =IF($A32="","",IF($E32="to be placed","",IF(MIN(IF($A$7:$A$10000=A32,$I$7:$I$10000))=I32,MIN(IF($A$7:$A$10000=A32,$I$7:$I$10000)),IF(SMALL(IF($A$7:$A$10000=A32,$I$7:$I$10000),2)=I32,SMALL(IF($A$7:$A$10000=A32,$I$7:$I$10000),2),IF(SMALL(IF($A$7:$A$10000=A32,$I$7:$I$10000),3)=I32,SMALL(IF($A$7:$A$10000=A32,$I$7:$I$10000),3),""))))) -> 
A33: 100595296 | B33: Orng (AUS) 24th Dec | C33: Orng | D33: 2012-12-24T13:10:00 | E33: TO BE PLACED | F33: 2013-01-04T08:29:15 | G33: 2. Jamies Star | H33: 2012-12-24T13:24:00 | I33: 1.27 | J33: 2012-12-24T13:10:41 | K33: 2012-12-24T12:58:37 | L33: NI | M33: 7 | N33: 789.78 | O33: 7 | P33: 6934671 | Q33: 1 | Y33: =IF(A33="","",IF(E33="to be placed","",IF(MIN(IF($A$7:$A$10000=A33,$I$7:$I$10000))=I33,MIN(IF($A$7:$A$10000=A33,$I$7:$I$10000)),""))) ->  | AB33: =IF($A33="","",IF($E33="to be placed","",IF(MIN(IF($A$7:$A$10000=A33,$I$7:$I$10000))=I33,MIN(IF($A$7:$A$10000=A33,$I$7:$I$10000)),IF(SMALL(IF($A$7:$A$10000=A33,$I$7:$I$10000),2)=I33,SMALL(IF($A$7:$A$10000=A33,$I$7:$I$10000),2),"")))) ->  | AF33: =IF($A33="","",IF($E33="to be placed","",IF(MIN(IF($A$7:$A$10000=A33,$I$7:$I$10000))=I33,MIN(IF($A$7:$A$10000=A33,$I$7:$I$10000)),IF(SMALL(IF($A$7:$A$10000=A33,$I$7:$I$10000),2)=I33,SMALL(IF($A$7:$A$10000=A33,$I$7:$I$10000),2),IF(SMALL(IF($A$7:$A$10000=A33,$I$7:$I$10000),3)=I33,SMALL(IF($A$7:$A$10000=A33,$I$7:$I$10000),3),""))))) -> 
A34: 100595296 | B34: Orng (AUS) 24th Dec | C34: Orng | D34: 2012-12-24T13:10:00 | E34: TO BE PLACED | F34: 2013-01-04T08:29:15 | G34: 3. Do Over | H34: 2012-12-24T13:24:00 | I34: 21 | J34: 2012-12-24T13:10:44 | K34: 2012-12-24T13:10:44 | L34: NI | M34: 3 | N34: 11.64 | O34: 7 | P34: 6934672 | Q34: 0 | Y34: =IF(A34="","",IF(E34="to be placed","",IF(MIN(IF($A$7:$A$10000=A34,$I$7:$I$10000))=I34,MIN(IF($A$7:$A$10000=A34,$I$7:$I$10000)),""))) ->  | AB34: =IF($A34="","",IF($E34="to be placed","",IF(MIN(IF($A$7:$A$10000=A34,$I$7:$I$10000))=I34,MIN(IF($A$7:$A$10000=A34,$I$7:$I$10000)),IF(SMALL(IF($A$7:$A$10000=A34,$I$7:$I$10000),2)=I34,SMALL(IF($A$7:$A$10000=A34,$I$7:$I$10000),2),"")))) ->  | AF34: =IF($A34="","",IF($E34="to be placed","",IF(MIN(IF($A$7:$A$10000=A34,$I$7:$I$10000))=I34,MIN(IF($A$7:$A$10000=A34,$I$7:$I$10000)),IF(SMALL(IF($A$7:$A$10000=A34,$I$7:$I$10000),2)=I34,SMALL(IF($A$7:$A$10000=A34,$I$7:$I$10000),2),IF(SMALL(IF($A$7:$A$10000=A34,$I$7:$I$10000),3)=I34,SMALL(IF($A$7:$A$10000=A34,$I$7:$I$10000),3),""))))) -> 
A35: 100595296 | B35: Orng (AUS) 24th Dec | C35: Orng | D35: 2012-12-24T13:10:00 | E35: TO BE PLACED | F35: 2013-01-04T08:29:15 | G35: 5. Jennys Got Cha | H35: 2012-12-24T13:24:00 | I35: 3.5 | J35: 2012-12-24T13:10:46 | K35: 2012-12-24T13:10:46 | L35: NI | M35: 2 | N35: 97.1 | O35: 7 | P35: 6934673 | Q35: 0 | Y35: =IF(A35="","",IF(E35="to be placed","",IF(MIN(IF($A$7:$A$10000=A35,$I$7:$I$10000))=I35,MIN(IF($A$7:$A$10000=A35,$I$7:$I$10000)),""))) ->  | AB35: =IF($A35="","",IF($E35="to be placed","",IF(MIN(IF($A$7:$A$10000=A35,$I$7:$I$10000))=I35,MIN(IF($A$7:$A$10000=A35,$I$7:$I$10000)),IF(SMALL(IF($A$7:$A$10000=A35,$I$7:$I$10000),2)=I35,SMALL(IF($A$7:$A$10000=A35,$I$7:$I$10000),2),"")))) ->  | AF35: =IF($A35="","",IF($E35="to be placed","",IF(MIN(IF($A$7:$A$10000=A35,$I$7:$I$10000))=I35,MIN(IF($A$7:$A$10000=A35,$I$7:$I$10000)),IF(SMALL(IF($A$7:$A$10000=A35,$I$7:$I$10000),2)=I35,SMALL(IF($A$7:$A$10000=A35,$I$7:$I$10000),2),IF(SMALL(IF($A$7:$A$10000=A35,$I$7:$I$10000),3)=I35,SMALL(IF($A$7:$A$10000=A35,$I$7:$I$10000),3),""))))) -> 
A36: 100595297 | B36: Orng (AUS) 24th Dec | C36: Orng | D36: 2012-12-24T13:10:00 | E36: R1 1280m 3yo | F36: 2012-12-24T13:10:50 | G36: 1. Classical Melody | H36: 2012-12-24T13:23:21 | I36: 4.1 | J36: 2012-12-24T13:10:49 | K36: 2012-12-24T13:06:46 | L36: PE | M36: 56 | N36: 4953.68 | O36: 7 | P36: 4976755 | Q36: 0 | S36: 32.25806452 | V36: 1 | Y36: =IF(A36="","",IF(E36="to be placed","",IF(MIN(IF($A$7:$A$10000=A36,$I$7:$I$10000))=I36,MIN(IF($A$7:$A$10000=A36,$I$7:$I$10000)),""))) ->  | AB36: =IF($A36="","",IF($E36="to be placed","",IF(MIN(IF($A$7:$A$10000=A36,$I$7:$I$10000))=I36,MIN(IF($A$7:$A$10000=A36,$I$7:$I$10000)),IF(SMALL(IF($A$7:$A$10000=A36,$I$7:$I$10000),2)=I36,SMALL(IF($A$7:$A$10000=A36,$I$7:$I$10000),2),"")))) -> 4.1 | AC36: 0.935 | AF36: =IF($A36="","",IF($E36="to be placed","",IF(MIN(IF($A$7:$A$10000=A36,$I$7:$I$10000))=I36,MIN(IF($A$7:$A$10000=A36,$I$7:$I$10000)),IF(SMALL(IF($A$7:$A$10000=A36,$I$7:$I$10000),2)=I36,SMALL(IF($A$7:$A$10000=A36,$I$7:$I$10000),2),IF(SMALL(IF($A$7:$A$10000=A36,$I$7:$I$10000),3)=I36,SMALL(IF($A$7:$A$10000=A36,$I$7:$I$10000),3),""))))) -> 4.1 | AG36: 0.935
A37: 100595297 | B37: Orng (AUS) 24th Dec | C37: Orng | D37: 2012-12-24T13:10:00 | E37: R1 1280m 3yo | F37: 2012-12-24T13:10:50 | G37: 6. Thunder Row | H37: 2012-12-24T13:23:21 | I37: 21 | J37: 2012-12-24T13:10:40 | K37: 2012-12-24T13:09:48 | L37: PE | M37: 8 | N37: 634.52 | O37: 7 | P37: 5953440 | Q37: 0 | S37: 5 | Y37: =IF(A37="","",IF(E37="to be placed","",IF(MIN(IF($A$7:$A$10000=A37,$I$7:$I$10000))=I37,MIN(IF($A$7:$A$10000=A37,$I$7:$I$10000)),""))) ->  | AB37: =IF($A37="","",IF($E37="to be placed","",IF(MIN(IF($A$7:$A$10000=A37,$I$7:$I$10000))=I37,MIN(IF($A$7:$A$10000=A37,$I$7:$I$10000)),IF(SMALL(IF($A$7:$A$10000=A37,$I$7:$I$10000),2)=I37,SMALL(IF($A$7:$A$10000=A37,$I$7:$I$10000),2),"")))) ->  | AF37: =IF($A37="","",IF($E37="to be placed","",IF(MIN(IF($A$7:$A$10000=A37,$I$7:$I$10000))=I37,MIN(IF($A$7:$A$10000=A37,$I$7:$I$10000)),IF(SMALL(IF($A$7:$A$10000=A37,$I$7:$I$10000),2)=I37,SMALL(IF($A$7:$A$10000=A37,$I$7:$I$10000),2),IF(SMALL(IF($A$7:$A$10000=A37,$I$7:$I$10000),3)=I37,SMALL(IF($A$7:$A$10000=A37,$I$7:$I$10000),3),""))))) -> 
A38: 100595297 | B38: Orng (AUS) 24th Dec | C38: Orng | D38: 2012-12-24T13:10:00 | E38: R1 1280m 3yo | F38: 2012-12-24T13:10:50 | G38: 4. Gina n Adelina | H38: 2012-12-24T13:23:21 | I38: 30 | J38: 2012-12-24T13:10:39 | K38: 2012-12-24T13:08:33 | L38: PE | M38: 11 | N38: 157.52 | O38: 7 | P38: 6854607 | Q38: 0 | S38: 3.448275862 | Y38: =IF(A38="","",IF(E38="to be placed","",IF(MIN(IF($A$7:$A$10000=A38,$I$7:$I$10000))=I38,MIN(IF($A$7:$A$10000=A38,$I$7:$I$10000)),""))) ->  | AB38: =IF($A38="","",IF($E38="to be placed","",IF(MIN(IF($A$7:$A$10000=A38,$I$7:$I$10000))=I38,MIN(IF($A$7:$A$10000=A38,$I$7:$I$10000)),IF(SMALL(IF($A$7:$A$10000=A38,$I$7:$I$10000),2)=I38,SMALL(IF($A$7:$A$10000=A38,$I$7:$I$10000),2),"")))) ->  | AF38: =IF($A38="","",IF($E38="to be placed","",IF(MIN(IF($A$7:$A$10000=A38,$I$7:$I$10000))=I38,MIN(IF($A$7:$A$10000=A38,$I$7:$I$10000)),IF(SMALL(IF($A$7:$A$10000=A38,$I$7:$I$10000),2)=I38,SMALL(IF($A$7:$A$10000=A38,$I$7:$I$10000),2),IF(SMALL(IF($A$7:$A$10000=A38,$I$7:$I$10000),3)=I38,SMALL(IF($A$7:$A$10000=A38,$I$7:$I$10000),3),""))))) -> 
A39: 100595297 | B39: Orng (AUS) 24th Dec | C39: Orng | D39: 2012-12-24T13:10:00 | E39: R1 1280m 3yo | F39: 2012-12-24T13:10:50 | G39: 2. Jamies Star | H39: 2012-12-24T13:23:21 | I39: 1.78 | J39: 2012-12-24T13:10:49 | K39: 2012-12-24T13:06:55 | L39: PE | M39: 33 | N39: 21276.7 | O39: 7 | P39: 6934671 | Q39: 1 | S39: -100 | V39: -0.78 | Y39: =IF(A39="","",IF(E39="to be placed","",IF(MIN(IF($A$7:$A$10000=A39,$I$7:$I$10000))=I39,MIN(IF($A$7:$A$10000=A39,$I$7:$I$10000)),""))) -> 1.78 | Z39: -0.78 | AB39: =IF($A39="","",IF($E39="to be placed","",IF(MIN(IF($A$7:$A$10000=A39,$I$7:$I$10000))=I39,MIN(IF($A$7:$A$10000=A39,$I$7:$I$10000)),IF(SMALL(IF($A$7:$A$10000=A39,$I$7:$I$10000),2)=I39,SMALL(IF($A$7:$A$10000=A39,$I$7:$I$10000),2),"")))) -> 1.78 | AC39: -0.78 | AF39: =IF($A39="","",IF($E39="to be placed","",IF(MIN(IF($A$7:$A$10000=A39,$I$7:$I$10000))=I39,MIN(IF($A$7:$A$10000=A39,$I$7:$I$10000)),IF(SMALL(IF($A$7:$A$10000=A39,$I$7:$I$10000),2)=I39,SMALL(IF($A$7:$A$10000=A39,$I$7:$I$10000),2),IF(SMALL(IF($A$7:$A$10000=A39,$I$7:$I$10000),3)=I39,SMALL(IF($A$7:$A$10000=A39,$I$7:$I$10000),3),""))))) -> 1.78 | AG39: -0.78
A40: 100595297 | B40: Orng (AUS) 24th Dec | C40: Orng | D40: 2012-12-24T13:10:00 | E40: R1 1280m 3yo | F40: 2012-12-24T13:10:50 | G40: 3. Do Over | H40: 2012-12-24T13:23:21 | I40: 32 | J40: 2012-12-24T13:10:49 | K40: 2012-12-24T13:10:49 | L40: PE | M40: 2 | N40: 418.72 | O40: 7 | P40: 6934672 | Q40: 0 | S40: 3.225806452 | Y40: =IF(A40="","",IF(E40="to be placed","",IF(MIN(IF($A$7:$A$10000=A40,$I$7:$I$10000))=I40,MIN(IF($A$7:$A$10000=A40,$I$7:$I$10000)),""))) ->  | AB40: =IF($A40="","",IF($E40="to be placed","",IF(MIN(IF($A$7:$A$10000=A40,$I$7:$I$10000))=I40,MIN(IF($A$7:$A$10000=A40,$I$7:$I$10000)),IF(SMALL(IF($A$7:$A$10000=A40,$I$7:$I$10000),2)=I40,SMALL(IF($A$7:$A$10000=A40,$I$7:$I$10000),2),"")))) ->  | AF40: =IF($A40="","",IF($E40="to be placed","",IF(MIN(IF($A$7:$A$10000=A40,$I$7:$I$10000))=I40,MIN(IF($A$7:$A$10000=A40,$I$7:$I$10000)),IF(SMALL(IF($A$7:$A$10000=A40,$I$7:$I$10000),2)=I40,SMALL(IF($A$7:$A$10000=A40,$I$7:$I$10000),2),IF(SMALL(IF($A$7:$A$10000=A40,$I$7:$I$10000),3)=I40,SMALL(IF($A$7:$A$10000=A40,$I$7:$I$10000),3),""))))) -> 
A41: 100595297 | B41: Orng (AUS) 24th Dec | C41: Orng | D41: 2012-12-24T13:10:00 | E41: R1 1280m 3yo | F41: 2012-12-24T13:10:50 | G41: 5. Jennys Got Cha | H41: 2012-12-24T13:23:21 | I41: 11 | J41: 2012-12-24T13:10:49 | K41: 2012-12-24T13:06:59 | L41: PE | M41: 10 | N41: 2329.98 | O41: 7 | P41: 6934673 | Q41: 0 | S41: 10 | T41: -46.06785317 | V41: 1 | W41: 1.1407 | Y41: =IF(A41="","",IF(E41="to be placed","",IF(MIN(IF($A$7:$A$10000=A41,$I$7:$I$10000))=I41,MIN(IF($A$7:$A$10000=A41,$I$7:$I$10000)),""))) ->  | AB41: =IF($A41="","",IF($E41="to be placed","",IF(MIN(IF($A$7:$A$10000=A41,$I$7:$I$10000))=I41,MIN(IF($A$7:$A$10000=A41,$I$7:$I$10000)),IF(SMALL(IF($A$7:$A$10000=A41,$I$7:$I$10000),2)=I41,SMALL(IF($A$7:$A$10000=A41,$I$7:$I$10000),2),"")))) ->  | AD41: 0.144925 | AF41: =IF($A41="","",IF($E41="to be placed","",IF(MIN(IF($A$7:$A$10000=A41,$I$7:$I$10000))=I41,MIN(IF($A$7:$A$10000=A41,$I$7:$I$10000)),IF(SMALL(IF($A$7:$A$10000=A41,$I$7:$I$10000),2)=I41,SMALL(IF($A$7:$A$10000=A41,$I$7:$I$10000),2),IF(SMALL(IF($A$7:$A$10000=A41,$I$7:$I$10000),3)=I41,SMALL(IF($A$7:$A$10000=A41,$I$7:$I$10000),3),""))))) -> 11 | AG41: 0.935 | AH41: 1.01915
A42: 100595378 | B42: Mary (AUS) 24th Dec | C42: Mary | D42: 2012-12-24T13:17:00 | E42: R1 2190m Trot M | F42: 2013-01-04T08:29:17 | G42: 7. Paris Pepperell | H42: 2012-12-24T13:21:21 | I42: 6 | J42: 2012-12-24T13:18:12 | K42: 2012-12-24T13:13:48 | L42: NI | M42: 12 | N42: 247.74 | O42: 7 | P42: 6270617 | Q42: 0 | S42: 20 | V42: 1 | Y42: =IF(A42="","",IF(E42="to be placed","",IF(MIN(IF($A$7:$A$10000=A42,$I$7:$I$10000))=I42,MIN(IF($A$7:$A$10000=A42,$I$7:$I$10000)),""))) ->  | AB42: =IF($A42="","",IF($E42="to be placed","",IF(MIN(IF($A$7:$A$10000=A42,$I$7:$I$10000))=I42,MIN(IF($A$7:$A$10000=A42,$I$7:$I$10000)),IF(SMALL(IF($A$7:$A$10000=A42,$I$7:$I$10000),2)=I42,SMALL(IF($A$7:$A$10000=A42,$I$7:$I$10000),2),"")))) ->  | AF42: =IF($A42="","",IF($E42="to be placed","",IF(MIN(IF($A$7:$A$10000=A42,$I$7:$I$10000))=I42,MIN(IF($A$7:$A$10000=A42,$I$7:$I$10000)),IF(SMALL(IF($A$7:$A$10000=A42,$I$7:$I$10000),2)=I42,SMALL(IF($A$7:$A$10000=A42,$I$7:$I$10000),2),IF(SMALL(IF($A$7:$A$10000=A42,$I$7:$I$10000),3)=I42,SMALL(IF($A$7:$A$10000=A42,$I$7:$I$10000),3),""))))) -> 6 | AG42: 0.935
A43: 100595378 | B43: Mary (AUS) 24th Dec | C43: Mary | D43: 2012-12-24T13:17:00 | E43: R1 2190m Trot M | F43: 2013-01-04T08:29:17 | G43: 10. Dora Pepperell | H43: 2012-12-24T13:21:21 | I43: 4.3 | J43: 2012-12-24T13:18:06 | K43: 2012-12-24T13:17:30 | L43: NI | M43: 12 | N43: 1456.72 | O43: 7 | P43: 6396278 | Q43: 0 | S43: 30.3030303 | V43: 1 | Y43: =IF(A43="","",IF(E43="to be placed","",IF(MIN(IF($A$7:$A$10000=A43,$I$7:$I$10000))=I43,MIN(IF($A$7:$A$10000=A43,$I$7:$I$10000)),""))) ->  | AB43: =IF($A43="","",IF($E43="to be placed","",IF(MIN(IF($A$7:$A$10000=A43,$I$7:$I$10000))=I43,MIN(IF($A$7:$A$10000=A43,$I$7:$I$10000)),IF(SMALL(IF($A$7:$A$10000=A43,$I$7:$I$10000),2)=I43,SMALL(IF($A$7:$A$10000=A43,$I$7:$I$10000),2),"")))) -> 4.3 | AC43: 0.935 | AF43: =IF($A43="","",IF($E43="to be placed","",IF(MIN(IF($A$7:$A$10000=A43,$I$7:$I$10000))=I43,MIN(IF($A$7:$A$10000=A43,$I$7:$I$10000)),IF(SMALL(IF($A$7:$A$10000=A43,$I$7:$I$10000),2)=I43,SMALL(IF($A$7:$A$10000=A43,$I$7:$I$10000),2),IF(SMALL(IF($A$7:$A$10000=A43,$I$7:$I$10000),3)=I43,SMALL(IF($A$7:$A$10000=A43,$I$7:$I$10000),3),""))))) -> 4.3 | AG43: 0.935
A44: 100595378 | B44: Mary (AUS) 24th Dec | C44: Mary | D44: 2012-12-24T13:17:00 | E44: R1 2190m Trot M | F44: 2013-01-04T08:29:17 | G44: 2. Lime And Lemonade | H44: 2012-12-24T13:21:21 | I44: 3.95 | J44: 2012-12-24T13:18:14 | K44: 2012-12-24T13:18:09 | L44: NI | M44: 4 | N44: 990.62 | O44: 7 | P44: 6506291 | Q44: 0 | S44: 33.89830508 | V44: 1 | Y44: =IF(A44="","",IF(E44="to be placed","",IF(MIN(IF($A$7:$A$10000=A44,$I$7:$I$10000))=I44,MIN(IF($A$7:$A$10000=A44,$I$7:$I$10000)),""))) -> 3.95 | Z44: 0.935 | AB44: =IF($A44="","",IF($E44="to be placed","",IF(MIN(IF($A$7:$A$10000=A44,$I$7:$I$10000))=I44,MIN(IF($A$7:$A$10000=A44,$I$7:$I$10000)),IF(SMALL(IF($A$7:$A$10000=A44,$I$7:$I$10000),2)=I44,SMALL(IF($A$7:$A$10000=A44,$I$7:$I$10000),2),"")))) -> 3.95 | AC44: 0.935 | AF44: =IF($A44="","",IF($E44="to be placed","",IF(MIN(IF($A$7:$A$10000=A44,$I$7:$I$10000))=I44,MIN(IF($A$7:$A$10000=A44,$I$7:$I$10000)),IF(SMALL(IF($A$7:$A$10000=A44,$I$7:$I$10000),2)=I44,SMALL(IF($A$7:$A$10000=A44,$I$7:$I$10000),2),IF(SMALL(IF($A$7:$A$10000=A44,$I$7:$I$10000),3)=I44,SMALL(IF($A$7:$A$10000=A44,$I$7:$I$10000),3),""))))) -> 3.95 | AG44: 0.935
A45: 100595378 | B45: Mary (AUS) 24th Dec | C45: Mary | D45: 2012-12-24T13:17:00 | E45: R1 2190m Trot M | F45: 2013-01-04T08:29:17 | G45: 4. Roxspur | H45: 2012-12-24T13:21:21 | I45: 11.5 | J45: 2012-12-24T13:18:08 | K45: 2012-12-24T13:18:06 | L45: NI | M45: 3 | N45: 114.94 | O45: 7 | P45: 6854805 | Q45: 0 | S45: 9.523809524 | V45: 1 | Y45: =IF(A45="","",IF(E45="to be placed","",IF(MIN(IF($A$7:$A$10000=A45,$I$7:$I$10000))=I45,MIN(IF($A$7:$A$10000=A45,$I$7:$I$10000)),""))) ->  | AB45: =IF($A45="","",IF($E45="to be placed","",IF(MIN(IF($A$7:$A$10000=A45,$I$7:$I$10000))=I45,MIN(IF($A$7:$A$10000=A45,$I$7:$I$10000)),IF(SMALL(IF($A$7:$A$10000=A45,$I$7:$I$10000),2)=I45,SMALL(IF($A$7:$A$10000=A45,$I$7:$I$10000),2),"")))) ->  | AF45: =IF($A45="","",IF($E45="to be placed","",IF(MIN(IF($A$7:$A$10000=A45,$I$7:$I$10000))=I45,MIN(IF($A$7:$A$10000=A45,$I$7:$I$10000)),IF(SMALL(IF($A$7:$A$10000=A45,$I$7:$I$10000),2)=I45,SMALL(IF($A$7:$A$10000=A45,$I$7:$I$10000),2),IF(SMALL(IF($A$7:$A$10000=A45,$I$7:$I$10000),3)=I45,SMALL(IF($A$7:$A$10000=A45,$I$7:$I$10000),3),""))))) -> 
A46: 100595378 | B46: Mary (AUS) 24th Dec | C46: Mary | D46: 2012-12-24T13:17:00 | E46: R1 2190m Trot M | F46: 2013-01-04T08:29:17 | G46: 1. Pride Of Sundon | H46: 2012-12-24T13:21:21 | I46: 14 | J46: 2012-12-24T13:18:09 | K46: 2012-12-24T13:17:26 | L46: NI | M46: 11 | N46: 560.16 | O46: 7 | P46: 6934814 | Q46: 0 | S46: 7.692307692 | V46: 1 | Y46: =IF(A46="","",IF(E46="to be placed","",IF(MIN(IF($A$7:$A$10000=A46,$I$7:$I$10000))=I46,MIN(IF($A$7:$A$10000=A46,$I$7:$I$10000)),""))) ->  | AB46: =IF($A46="","",IF($E46="to be placed","",IF(MIN(IF($A$7:$A$10000=A46,$I$7:$I$10000))=I46,MIN(IF($A$7:$A$10000=A46,$I$7:$I$10000)),IF(SMALL(IF($A$7:$A$10000=A46,$I$7:$I$10000),2)=I46,SMALL(IF($A$7:$A$10000=A46,$I$7:$I$10000),2),"")))) ->  | AF46: =IF($A46="","",IF($E46="to be placed","",IF(MIN(IF($A$7:$A$10000=A46,$I$7:$I$10000))=I46,MIN(IF($A$7:$A$10000=A46,$I$7:$I$10000)),IF(SMALL(IF($A$7:$A$10000=A46,$I$7:$I$10000),2)=I46,SMALL(IF($A$7:$A$10000=A46,$I$7:$I$10000),2),IF(SMALL(IF($A$7:$A$10000=A46,$I$7:$I$10000),3)=I46,SMALL(IF($A$7:$A$10000=A46,$I$7:$I$10000),3),""))))) -> 
A47: 100595378 | B47: Mary (AUS) 24th Dec | C47: Mary | D47: 2012-12-24T13:17:00 | E47: R1 2190m Trot M | F47: 2013-01-04T08:29:17 | G47: 3. Bornready | H47: 2012-12-24T13:21:21 | I47: 60 | J47: 2012-12-24T13:18:08 | K47: 2012-12-24T13:17:36 | L47: NI | M47: 9 | N47: 237.32 | O47: 7 | P47: 6934815 | Q47: 0 | S47: 1.694915254 | Y47: =IF(A47="","",IF(E47="to be placed","",IF(MIN(IF($A$7:$A$10000=A47,$I$7:$I$10000))=I47,MIN(IF($A$7:$A$10000=A47,$I$7:$I$10000)),""))) ->  | AB47: =IF($A47="","",IF($E47="to be placed","",IF(MIN(IF($A$7:$A$10000=A47,$I$7:$I$10000))=I47,MIN(IF($A$7:$A$10000=A47,$I$7:$I$10000)),IF(SMALL(IF($A$7:$A$10000=A47,$I$7:$I$10000),2)=I47,SMALL(IF($A$7:$A$10000=A47,$I$7:$I$10000),2),"")))) ->  | AF47: =IF($A47="","",IF($E47="to be placed","",IF(MIN(IF($A$7:$A$10000=A47,$I$7:$I$10000))=I47,MIN(IF($A$7:$A$10000=A47,$I$7:$I$10000)),IF(SMALL(IF($A$7:$A$10000=A47,$I$7:$I$10000),2)=I47,SMALL(IF($A$7:$A$10000=A47,$I$7:$I$10000),2),IF(SMALL(IF($A$7:$A$10000=A47,$I$7:$I$10000),3)=I47,SMALL(IF($A$7:$A$10000=A47,$I$7:$I$10000),3),""))))) -> 
A48: 100595378 | B48: Mary (AUS) 24th Dec | C48: Mary | D48: 2012-12-24T13:17:00 | E48: R1 2190m Trot M | F48: 2013-01-04T08:29:17 | G48: 5. Ifu Seek Flight | H48: 2012-12-24T13:21:21 | I48: 17.5 | J48: 2012-12-24T13:17:22 | K48: 2012-12-24T13:16:40 | L48: NI | M48: 8 | N48: 71.32 | O48: 7 | P48: 6934816 | Q48: 1 | S48: -100 | V48: -16.5 | Y48: =IF(A48="","",IF(E48="to be placed","",IF(MIN(IF($A$7:$A$10000=A48,$I$7:$I$10000))=I48,MIN(IF($A$7:$A$10000=A48,$I$7:$I$10000)),""))) ->  | AB48: =IF($A48="","",IF($E48="to be placed","",IF(MIN(IF($A$7:$A$10000=A48,$I$7:$I$10000))=I48,MIN(IF($A$7:$A$10000=A48,$I$7:$I$10000)),IF(SMALL(IF($A$7:$A$10000=A48,$I$7:$I$10000),2)=I48,SMALL(IF($A$7:$A$10000=A48,$I$7:$I$10000),2),"")))) ->  | AF48: =IF($A48="","",IF($E48="to be placed","",IF(MIN(IF($A$7:$A$10000=A48,$I$7:$I$10000))=I48,MIN(IF($A$7:$A$10000=A48,$I$7:$I$10000)),IF(SMALL(IF($A$7:$A$10000=A48,$I$7:$I$10000),2)=I48,SMALL(IF($A$7:$A$10000=A48,$I$7:$I$10000),2),IF(SMALL(IF($A$7:$A$10000=A48,$I$7:$I$10000),3)=I48,SMALL(IF($A$7:$A$10000=A48,$I$7:$I$10000),3),""))))) -> 
A49: 100595378 | B49: Mary (AUS) 24th Dec | C49: Mary | D49: 2012-12-24T13:17:00 | E49: R1 2190m Trot M | F49: 2013-01-04T08:29:17 | G49: 8. Framed And Hung | H49: 2012-12-24T13:21:21 | I49: 14.5 | J49: 2012-12-24T13:17:59 | K49: 2012-12-24T13:17:37 | L49: NI | M49: 9 | N49: 133.82 | O49: 7 | P49: 6934817 | Q49: 0 | S49: 7.407407407 | V49: 1 | Y49: =IF(A49="","",IF(E49="to be placed","",IF(MIN(IF($A$7:$A$10000=A49,$I$7:$I$10000))=I49,MIN(IF($A$7:$A$10000=A49,$I$7:$I$10000)),""))) ->  | AB49: =IF($A49="","",IF($E49="to be placed","",IF(MIN(IF($A$7:$A$10000=A49,$I$7:$I$10000))=I49,MIN(IF($A$7:$A$10000=A49,$I$7:$I$10000)),IF(SMALL(IF($A$7:$A$10000=A49,$I$7:$I$10000),2)=I49,SMALL(IF($A$7:$A$10000=A49,$I$7:$I$10000),2),"")))) ->  | AF49: =IF($A49="","",IF($E49="to be placed","",IF(MIN(IF($A$7:$A$10000=A49,$I$7:$I$10000))=I49,MIN(IF($A$7:$A$10000=A49,$I$7:$I$10000)),IF(SMALL(IF($A$7:$A$10000=A49,$I$7:$I$10000),2)=I49,SMALL(IF($A$7:$A$10000=A49,$I$7:$I$10000),2),IF(SMALL(IF($A$7:$A$10000=A49,$I$7:$I$10000),3)=I49,SMALL(IF($A$7:$A$10000=A49,$I$7:$I$10000),3),""))))) -> 
A50: 100595378 | B50: Mary (AUS) 24th Dec | C50: Mary | D50: 2012-12-24T13:17:00 | E50: R1 2190m Trot M | F50: 2013-01-04T08:29:17 | G50: 9. Good Looka | H50: 2012-12-24T13:21:21 | I50: 23 | J50: 2012-12-24T13:18:12 | K50: 2012-12-24T13:18:12 | L50: NI | M50: 2 | N50: 172.62 | O50: 7 | P50: 6934818 | Q50: 0 | S50: 4.545454545 | T50: 14.08598987 | W50: -10.5 | Y50: =IF(A50="","",IF(E50="to be placed","",IF(MIN(IF($A$7:$A$10000=A50,$I$7:$I$10000))=I50,MIN(IF($A$7:$A$10000=A50,$I$7:$I$10000)),""))) ->  | AB50: =IF($A50="","",IF($E50="to be placed","",IF(MIN(IF($A$7:$A$10000=A50,$I$7:$I$10000))=I50,MIN(IF($A$7:$A$10000=A50,$I$7:$I$10000)),IF(SMALL(IF($A$7:$A$10000=A50,$I$7:$I$10000),2)=I50,SMALL(IF($A$7:$A$10000=A50,$I$7:$I$10000),2),"")))) ->  | AD50: 1.74845 | AF50: =IF($A50="","",IF($E50="to be placed","",IF(MIN(IF($A$7:$A$10000=A50,$I$7:$I$10000))=I50,MIN(IF($A$7:$A$10000=A50,$I$7:$I$10000)),IF(SMALL(IF($A$7:$A$10000=A50,$I$7:$I$10000),2)=I50,SMALL(IF($A$7:$A$10000=A50,$I$7:$I$10000),2),IF(SMALL(IF($A$7:$A$10000=A50,$I$7:$I$10000),3)=I50,SMALL(IF($A$7:$A$10000=A50,$I$7:$I$10000),3),""))))) ->  | AH50: 2.622675
A51: 100595379 | B51: Mary (AUS) 24th Dec | C51: Mary | D51: 2012-12-24T13:17:00 | E51: TO BE PLACED | F51: 2013-01-04T08:29:17 | G51: 7. Paris Pepperell | H51: 2012-12-24T13:24:05 | I51: 2.1 | J51: 2012-12-24T13:17:46 | K51: 2012-12-24T13:17:21 | L51: NI | M51: 4 | N51: 19.32 | O51: 7 | P51: 6270617 | Q51: 1 | Y51: =IF(A51="","",IF(E51="to be placed","",IF(MIN(IF($A$7:$A$10000=A51,$I$7:$I$10000))=I51,MIN(IF($A$7:$A$10000=A51,$I$7:$I$10000)),""))) ->  | AB51: =IF($A51="","",IF($E51="to be placed","",IF(MIN(IF($A$7:$A$10000=A51,$I$7:$I$10000))=I51,MIN(IF($A$7:$A$10000=A51,$I$7:$I$10000)),IF(SMALL(IF($A$7:$A$10000=A51,$I$7:$I$10000),2)=I51,SMALL(IF($A$7:$A$10000=A51,$I$7:$I$10000),2),"")))) ->  | AF51: =IF($A51="","",IF($E51="to be placed","",IF(MIN(IF($A$7:$A$10000=A51,$I$7:$I$10000))=I51,MIN(IF($A$7:$A$10000=A51,$I$7:$I$10000)),IF(SMALL(IF($A$7:$A$10000=A51,$I$7:$I$10000),2)=I51,SMALL(IF($A$7:$A$10000=A51,$I$7:$I$10000),2),IF(SMALL(IF($A$7:$A$10000=A51,$I$7:$I$10000),3)=I51,SMALL(IF($A$7:$A$10000=A51,$I$7:$I$10000),3),""))))) -> 
A52: 100595379 | B52: Mary (AUS) 24th Dec | C52: Mary | D52: 2012-12-24T13:17:00 | E52: TO BE PLACED | F52: 2013-01-04T08:29:17 | G52: 10. Dora Pepperell | H52: 2012-12-24T13:24:05 | I52: 1.82 | J52: 2012-12-24T13:18:13 | K52: 2012-12-24T13:17:54 | L52: NI | M52: 8 | N52: 805.18 | O52: 7 | P52: 6396278 | Q52: 1 | Y52: =IF(A52="","",IF(E52="to be placed","",IF(MIN(IF($A$7:$A$10000=A52,$I$7:$I$10000))=I52,MIN(IF($A$7:$A$10000=A52,$I$7:$I$10000)),""))) ->  | AB52: =IF($A52="","",IF($E52="to be placed","",IF(MIN(IF($A$7:$A$10000=A52,$I$7:$I$10000))=I52,MIN(IF($A$7:$A$10000=A52,$I$7:$I$10000)),IF(SMALL(IF($A$7:$A$10000=A52,$I$7:$I$10000),2)=I52,SMALL(IF($A$7:$A$10000=A52,$I$7:$I$10000),2),"")))) ->  | AF52: =IF($A52="","",IF($E52="to be placed","",IF(MIN(IF($A$7:$A$10000=A52,$I$7:$I$10000))=I52,MIN(IF($A$7:$A$10000=A52,$I$7:$I$10000)),IF(SMALL(IF($A$7:$A$10000=A52,$I$7:$I$10000),2)=I52,SMALL(IF($A$7:$A$10000=A52,$I$7:$I$10000),2),IF(SMALL(IF($A$7:$A$10000=A52,$I$7:$I$10000),3)=I52,SMALL(IF($A$7:$A$10000=A52,$I$7:$I$10000),3),""))))) -> 
A53: 100595379 | B53: Mary (AUS) 24th Dec | C53: Mary | D53: 2012-12-24T13:17:00 | E53: TO BE PLACED | F53: 2013-01-04T08:29:17 | G53: 2. Lime And Lemonade | H53: 2012-12-24T13:24:05 | I53: 1.68 | J53: 2012-12-24T13:16:58 | K53: 2012-12-24T13:16:53 | L53: NI | M53: 4 | N53: 170.72 | O53: 7 | P53: 6506291 | Q53: 0 | Y53: =IF(A53="","",IF(E53="to be placed","",IF(MIN(IF($A$7:$A$10000=A53,$I$7:$I$10000))=I53,MIN(IF($A$7:$A$10000=A53,$I$7:$I$10000)),""))) ->  | AB53: =IF($A53="","",IF($E53="to be placed","",IF(MIN(IF($A$7:$A$10000=A53,$I$7:$I$10000))=I53,MIN(IF($A$7:$A$10000=A53,$I$7:$I$10000)),IF(SMALL(IF($A$7:$A$10000=A53,$I$7:$I$10000),2)=I53,SMALL(IF($A$7:$A$10000=A53,$I$7:$I$10000),2),"")))) ->  | AF53: =IF($A53="","",IF($E53="to be placed","",IF(MIN(IF($A$7:$A$10000=A53,$I$7:$I$10000))=I53,MIN(IF($A$7:$A$10000=A53,$I$7:$I$10000)),IF(SMALL(IF($A$7:$A$10000=A53,$I$7:$I$10000),2)=I53,SMALL(IF($A$7:$A$10000=A53,$I$7:$I$10000),2),IF(SMALL(IF($A$7:$A$10000=A53,$I$7:$I$10000),3)=I53,SMALL(IF($A$7:$A$10000=A53,$I$7:$I$10000),3),""))))) -> 
A54: 100595379 | B54: Mary (AUS) 24th Dec | C54: Mary | D54: 2012-12-24T13:17:00 | E54: TO BE PLACED | F54: 2013-01-04T08:29:17 | G54: 4. Roxspur | H54: 2012-12-24T13:24:05 | I54: 2.86 | J54: 2012-12-24T13:17:44 | K54: 2012-12-24T13:17:17 | L54: NI | M54: 7 | N54: 427.12 | O54: 7 | P54: 6854805 | Q54: 0 | Y54: =IF(A54="","",IF(E54="to be placed","",IF(MIN(IF($A$7:$A$10000=A54,$I$7:$I$10000))=I54,MIN(IF($A$7:$A$10000=A54,$I$7:$I$10000)),""))) ->  | AB54: =IF($A54="","",IF($E54="to be placed","",IF(MIN(IF($A$7:$A$10000=A54,$I$7:$I$10000))=I54,MIN(IF($A$7:$A$10000=A54,$I$7:$I$10000)),IF(SMALL(IF($A$7:$A$10000=A54,$I$7:$I$10000),2)=I54,SMALL(IF($A$7:$A$10000=A54,$I$7:$I$10000),2),"")))) ->  | AF54: =IF($A54="","",IF($E54="to be placed","",IF(MIN(IF($A$7:$A$10000=A54,$I$7:$I$10000))=I54,MIN(IF($A$7:$A$10000=A54,$I$7:$I$10000)),IF(SMALL(IF($A$7:$A$10000=A54,$I$7:$I$10000),2)=I54,SMALL(IF($A$7:$A$10000=A54,$I$7:$I$10000),2),IF(SMALL(IF($A$7:$A$10000=A54,$I$7:$I$10000),3)=I54,SMALL(IF($A$7:$A$10000=A54,$I$7:$I$10000),3),""))))) -> 
A55: 100595379 | B55: Mary (AUS) 24th Dec | C55: Mary | D55: 2012-12-24T13:17:00 | E55: TO BE PLACED | F55: 2013-01-04T08:29:17 | G55: 1. Pride Of Sundon | H55: 2012-12-24T13:24:05 | I55: 3 | J55: 2012-12-24T13:18:07 | K55: 2012-12-24T13:18:07 | L55: NI | M55: 2 | N55: 101.28 | O55: 7 | P55: 6934814 | Q55: 0 | Y55: =IF(A55="","",IF(E55="to be placed","",IF(MIN(IF($A$7:$A$10000=A55,$I$7:$I$10000))=I55,MIN(IF($A$7:$A$10000=A55,$I$7:$I$10000)),""))) ->  | AB55: =IF($A55="","",IF($E55="to be placed","",IF(MIN(IF($A$7:$A$10000=A55,$I$7:$I$10000))=I55,MIN(IF($A$7:$A$10000=A55,$I$7:$I$10000)),IF(SMALL(IF($A$7:$A$10000=A55,$I$7:$I$10000),2)=I55,SMALL(IF($A$7:$A$10000=A55,$I$7:$I$10000),2),"")))) ->  | AF55: =IF($A55="","",IF($E55="to be placed","",IF(MIN(IF($A$7:$A$10000=A55,$I$7:$I$10000))=I55,MIN(IF($A$7:$A$10000=A55,$I$7:$I$10000)),IF(SMALL(IF($A$7:$A$10000=A55,$I$7:$I$10000),2)=I55,SMALL(IF($A$7:$A$10000=A55,$I$7:$I$10000),2),IF(SMALL(IF($A$7:$A$10000=A55,$I$7:$I$10000),3)=I55,SMALL(IF($A$7:$A$10000=A55,$I$7:$I$10000),3),""))))) -> 
A56: 100595379 | B56: Mary (AUS) 24th Dec | C56: Mary | D56: 2012-12-24T13:17:00 | E56: TO BE PLACED | F56: 2013-01-04T08:29:17 | G56: 3. Bornready | H56: 2012-12-24T13:24:05 | I56: 60 | J56: 2012-12-24T13:18:09 | K56: 2012-12-24T13:18:09 | L56: NI | M56: 3 | N56: 17.58 | O56: 7 | P56: 6934815 | Q56: 0 | Y56: =IF(A56="","",IF(E56="to be placed","",IF(MIN(IF($A$7:$A$10000=A56,$I$7:$I$10000))=I56,MIN(IF($A$7:$A$10000=A56,$I$7:$I$10000)),""))) ->  | AB56: =IF($A56="","",IF($E56="to be placed","",IF(MIN(IF($A$7:$A$10000=A56,$I$7:$I$10000))=I56,MIN(IF($A$7:$A$10000=A56,$I$7:$I$10000)),IF(SMALL(IF($A$7:$A$10000=A56,$I$7:$I$10000),2)=I56,SMALL(IF($A$7:$A$10000=A56,$I$7:$I$10000),2),"")))) ->  | AF56: =IF($A56="","",IF($E56="to be placed","",IF(MIN(IF($A$7:$A$10000=A56,$I$7:$I$10000))=I56,MIN(IF($A$7:$A$10000=A56,$I$7:$I$10000)),IF(SMALL(IF($A$7:$A$10000=A56,$I$7:$I$10000),2)=I56,SMALL(IF($A$7:$A$10000=A56,$I$7:$I$10000),2),IF(SMALL(IF($A$7:$A$10000=A56,$I$7:$I$10000),3)=I56,SMALL(IF($A$7:$A$10000=A56,$I$7:$I$10000),3),""))))) -> 
A57: 100595379 | B57: Mary (AUS) 24th Dec | C57: Mary | D57: 2012-12-24T13:17:00 | E57: TO BE PLACED | F57: 2013-01-04T08:29:17 | G57: 5. Ifu Seek Flight | H57: 2012-12-24T13:24:05 | I57: 5.2 | J57: 2012-12-24T13:17:33 | K57: 2012-12-24T13:17:33 | L57: NI | M57: 2 | N57: 0.16 | O57: 7 | P57: 6934816 | Q57: 1 | Y57: =IF(A57="","",IF(E57="to be placed","",IF(MIN(IF($A$7:$A$10000=A57,$I$7:$I$10000))=I57,MIN(IF($A$7:$A$10000=A57,$I$7:$I$10000)),""))) ->  | AB57: =IF($A57="","",IF($E57="to be placed","",IF(MIN(IF($A$7:$A$10000=A57,$I$7:$I$10000))=I57,MIN(IF($A$7:$A$10000=A57,$I$7:$I$10000)),IF(SMALL(IF($A$7:$A$10000=A57,$I$7:$I$10000),2)=I57,SMALL(IF($A$7:$A$10000=A57,$I$7:$I$10000),2),"")))) ->  | AF57: =IF($A57="","",IF($E57="to be placed","",IF(MIN(IF($A$7:$A$10000=A57,$I$7:$I$10000))=I57,MIN(IF($A$7:$A$10000=A57,$I$7:$I$10000)),IF(SMALL(IF($A$7:$A$10000=A57,$I$7:$I$10000),2)=I57,SMALL(IF($A$7:$A$10000=A57,$I$7:$I$10000),2),IF(SMALL(IF($A$7:$A$10000=A57,$I$7:$I$10000),3)=I57,SMALL(IF($A$7:$A$10000=A57,$I$7:$I$10000),3),""))))) -> 
A58: 100595379 | B58: Mary (AUS) 24th Dec | C58: Mary | D58: 2012-12-24T13:17:00 | E58: TO BE PLACED | F58: 2013-01-04T08:29:17 | G58: 8. Framed And Hung | H58: 2012-12-24T13:24:05 | I58: 3.7 | J58: 2012-12-24T13:17:23 | K58: 2012-12-24T13:17:23 | L58: NI | M58: 2 | N58: 19.3 | O58: 7 | P58: 6934817 | Q58: 0 | Y58: =IF(A58="","",IF(E58="to be placed","",IF(MIN(IF($A$7:$A$10000=A58,$I$7:$I$10000))=I58,MIN(IF($A$7:$A$10000=A58,$I$7:$I$10000)),""))) ->  | AB58: =IF($A58="","",IF($E58="to be placed","",IF(MIN(IF($A$7:$A$10000=A58,$I$7:$I$10000))=I58,MIN(IF($A$7:$A$10000=A58,$I$7:$I$10000)),IF(SMALL(IF($A$7:$A$10000=A58,$I$7:$I$10000),2)=I58,SMALL(IF($A$7:$A$10000=A58,$I$7:$I$10000),2),"")))) ->  | AF58: =IF($A58="","",IF($E58="to be placed","",IF(MIN(IF($A$7:$A$10000=A58,$I$7:$I$10000))=I58,MIN(IF($A$7:$A$10000=A58,$I$7:$I$10000)),IF(SMALL(IF($A$7:$A$10000=A58,$I$7:$I$10000),2)=I58,SMALL(IF($A$7:$A$10000=A58,$I$7:$I$10000),2),IF(SMALL(IF($A$7:$A$10000=A58,$I$7:$I$10000),3)=I58,SMALL(IF($A$7:$A$10000=A58,$I$7:$I$10000),3),""))))) -> 
A59: 100595310 | B59: Tamw (AUS) 24th Dec | C59: Tamw | D59: 2012-12-24T13:23:00 | E59: TO BE PLACED | F59: 2013-01-04T08:29:15 | G59: 9. Silent Winn | H59: 2012-12-24T13:28:04 | I59: 9.2 | J59: 2012-12-24T13:23:56 | K59: 2012-12-24T13:23:56 | L59: NI | M59: 2 | N59: 203.68 | O59: 7 | P59: 4252626 | Q59: 0 | Y59: =IF(A59="","",IF(E59="to be placed","",IF(MIN(IF($A$7:$A$10000=A59,$I$7:$I$10000))=I59,MIN(IF($A$7:$A$10000=A59,$I$7:$I$10000)),""))) ->  | AB59: =IF($A59="","",IF($E59="to be placed","",IF(MIN(IF($A$7:$A$10000=A59,$I$7:$I$10000))=I59,MIN(IF($A$7:$A$10000=A59,$I$7:$I$10000)),IF(SMALL(IF($A$7:$A$10000=A59,$I$7:$I$10000),2)=I59,SMALL(IF($A$7:$A$10000=A59,$I$7:$I$10000),2),"")))) ->  | AF59: =IF($A59="","",IF($E59="to be placed","",IF(MIN(IF($A$7:$A$10000=A59,$I$7:$I$10000))=I59,MIN(IF($A$7:$A$10000=A59,$I$7:$I$10000)),IF(SMALL(IF($A$7:$A$10000=A59,$I$7:$I$10000),2)=I59,SMALL(IF($A$7:$A$10000=A59,$I$7:$I$10000),2),IF(SMALL(IF($A$7:$A$10000=A59,$I$7:$I$10000),3)=I59,SMALL(IF($A$7:$A$10000=A59,$I$7:$I$10000),3),""))))) -> 
A60: 100595310 | B60: Tamw (AUS) 24th Dec | C60: Tamw | D60: 2012-12-24T13:23:00 | E60: TO BE PLACED | F60: 2013-01-04T08:29:15 | G60: 11. The Lions Share | H60: 2012-12-24T13:28:04 | I60: 2.44 | J60: 2012-12-24T13:23:41 | K60: 2012-12-24T13:22:47 | L60: NI | M60: 7 | N60: 291.62 | O60: 7 | P60: 6072286 | Q60: 0 | Y60: =IF(A60="","",IF(E60="to be placed","",IF(MIN(IF($A$7:$A$10000=A60,$I$7:$I$10000))=I60,MIN(IF($A$7:$A$10000=A60,$I$7:$I$10000)),""))) ->  | AB60: =IF($A60="","",IF($E60="to be placed","",IF(MIN(IF($A$7:$A$10000=A60,$I$7:$I$10000))=I60,MIN(IF($A$7:$A$10000=A60,$I$7:$I$10000)),IF(SMALL(IF($A$7:$A$10000=A60,$I$7:$I$10000),2)=I60,SMALL(IF($A$7:$A$10000=A60,$I$7:$I$10000),2),"")))) ->  | AF60: =IF($A60="","",IF($E60="to be placed","",IF(MIN(IF($A$7:$A$10000=A60,$I$7:$I$10000))=I60,MIN(IF($A$7:$A$10000=A60,$I$7:$I$10000)),IF(SMALL(IF($A$7:$A$10000=A60,$I$7:$I$10000),2)=I60,SMALL(IF($A$7:$A$10000=A60,$I$7:$I$10000),2),IF(SMALL(IF($A$7:$A$10000=A60,$I$7:$I$10000),3)=I60,SMALL(IF($A$7:$A$10000=A60,$I$7:$I$10000),3),""))))) -> 
A61: 100595310 | B61: Tamw (AUS) 24th Dec | C61: Tamw | D61: 2012-12-24T13:23:00 | E61: TO BE PLACED | F61: 2013-01-04T08:29:15 | G61: 3. Golden Stitch | H61: 2012-12-24T13:28:04 | I61: 20 | J61: 2012-12-24T13:22:06 | K61: 2012-12-24T13:22:06 | L61: NI | M61: 2 | N61: 6.44 | O61: 7 | P61: 6934750 | Q61: 0 | Y61: =IF(A61="","",IF(E61="to be placed","",IF(MIN(IF($A$7:$A$10000=A61,$I$7:$I$10000))=I61,MIN(IF($A$7:$A$10000=A61,$I$7:$I$10000)),""))) ->  | AB61: =IF($A61="","",IF($E61="to be placed","",IF(MIN(IF($A$7:$A$10000=A61,$I$7:$I$10000))=I61,MIN(IF($A$7:$A$10000=A61,$I$7:$I$10000)),IF(SMALL(IF($A$7:$A$10000=A61,$I$7:$I$10000),2)=I61,SMALL(IF($A$7:$A$10000=A61,$I$7:$I$10000),2),"")))) ->  | AF61: =IF($A61="","",IF($E61="to be placed","",IF(MIN(IF($A$7:$A$10000=A61,$I$7:$I$10000))=I61,MIN(IF($A$7:$A$10000=A61,$I$7:$I$10000)),IF(SMALL(IF($A$7:$A$10000=A61,$I$7:$I$10000),2)=I61,SMALL(IF($A$7:$A$10000=A61,$I$7:$I$10000),2),IF(SMALL(IF($A$7:$A$10000=A61,$I$7:$I$10000),3)=I61,SMALL(IF($A$7:$A$10000=A61,$I$7:$I$10000),3),""))))) -> 
A62: 100595310 | B62: Tamw (AUS) 24th Dec | C62: Tamw | D62: 2012-12-24T13:23:00 | E62: TO BE PLACED | F62: 2013-01-04T08:29:15 | G62: 5. Snippet Express | H62: 2012-12-24T13:28:04 | I62: 1.63 | J62: 2012-12-24T13:23:45 | K62: 2012-12-24T13:23:45 | L62: NI | M62: 2 | N62: 311.72 | O62: 7 | P62: 6934751 | Q62: 1 | Y62: =IF(A62="","",IF(E62="to be placed","",IF(MIN(IF($A$7:$A$10000=A62,$I$7:$I$10000))=I62,MIN(IF($A$7:$A$10000=A62,$I$7:$I$10000)),""))) ->  | AB62: =IF($A62="","",IF($E62="to be placed","",IF(MIN(IF($A$7:$A$10000=A62,$I$7:$I$10000))=I62,MIN(IF($A$7:$A$10000=A62,$I$7:$I$10000)),IF(SMALL(IF($A$7:$A$10000=A62,$I$7:$I$10000),2)=I62,SMALL(IF($A$7:$A$10000=A62,$I$7:$I$10000),2),"")))) ->  | AF62: =IF($A62="","",IF($E62="to be placed","",IF(MIN(IF($A$7:$A$10000=A62,$I$7:$I$10000))=I62,MIN(IF($A$7:$A$10000=A62,$I$7:$I$10000)),IF(SMALL(IF($A$7:$A$10000=A62,$I$7:$I$10000),2)=I62,SMALL(IF($A$7:$A$10000=A62,$I$7:$I$10000),2),IF(SMALL(IF($A$7:$A$10000=A62,$I$7:$I$10000),3)=I62,SMALL(IF($A$7:$A$10000=A62,$I$7:$I$10000),3),""))))) -> 
A63: 100595310 | B63: Tamw (AUS) 24th Dec | C63: Tamw | D63: 2012-12-24T13:23:00 | E63: TO BE PLACED | F63: 2013-01-04T08:29:15 | G63: 6. Takiri | H63: 2012-12-24T13:28:04 | I63: 4.9 | J63: 2012-12-24T13:23:34 | K63: 2012-12-24T13:23:34 | L63: NI | M63: 2 | N63: 478.78 | O63: 7 | P63: 6934752 | Q63: 0 | Y63: =IF(A63="","",IF(E63="to be placed","",IF(MIN(IF($A$7:$A$10000=A63,$I$7:$I$10000))=I63,MIN(IF($A$7:$A$10000=A63,$I$7:$I$10000)),""))) ->  | AB63: =IF($A63="","",IF($E63="to be placed","",IF(MIN(IF($A$7:$A$10000=A63,$I$7:$I$10000))=I63,MIN(IF($A$7:$A$10000=A63,$I$7:$I$10000)),IF(SMALL(IF($A$7:$A$10000=A63,$I$7:$I$10000),2)=I63,SMALL(IF($A$7:$A$10000=A63,$I$7:$I$10000),2),"")))) ->  | AF63: =IF($A63="","",IF($E63="to be placed","",IF(MIN(IF($A$7:$A$10000=A63,$I$7:$I$10000))=I63,MIN(IF($A$7:$A$10000=A63,$I$7:$I$10000)),IF(SMALL(IF($A$7:$A$10000=A63,$I$7:$I$10000),2)=I63,SMALL(IF($A$7:$A$10000=A63,$I$7:$I$10000),2),IF(SMALL(IF($A$7:$A$10000=A63,$I$7:$I$10000),3)=I63,SMALL(IF($A$7:$A$10000=A63,$I$7:$I$10000),3),""))))) -> 
A64: 100595310 | B64: Tamw (AUS) 24th Dec | C64: Tamw | D64: 2012-12-24T13:23:00 | E64: TO BE PLACED | F64: 2013-01-04T08:29:15 | G64: 7. Gold Armani | H64: 2012-12-24T13:28:04 | I64: 3.6 | J64: 2012-12-24T13:23:17 | K64: 2012-12-24T13:23:17 | L64: NI | M64: 2 | N64: 154.38 | O64: 7 | P64: 6934753 | Q64: 0 | Y64: =IF(A64="","",IF(E64="to be placed","",IF(MIN(IF($A$7:$A$10000=A64,$I$7:$I$10000))=I64,MIN(IF($A$7:$A$10000=A64,$I$7:$I$10000)),""))) ->  | AB64: =IF($A64="","",IF($E64="to be placed","",IF(MIN(IF($A$7:$A$10000=A64,$I$7:$I$10000))=I64,MIN(IF($A$7:$A$10000=A64,$I$7:$I$10000)),IF(SMALL(IF($A$7:$A$10000=A64,$I$7:$I$10000),2)=I64,SMALL(IF($A$7:$A$10000=A64,$I$7:$I$10000),2),"")))) ->  | AF64: =IF($A64="","",IF($E64="to be placed","",IF(MIN(IF($A$7:$A$10000=A64,$I$7:$I$10000))=I64,MIN(IF($A$7:$A$10000=A64,$I$7:$I$10000)),IF(SMALL(IF($A$7:$A$10000=A64,$I$7:$I$10000),2)=I64,SMALL(IF($A$7:$A$10000=A64,$I$7:$I$10000),2),IF(SMALL(IF($A$7:$A$10000=A64,$I$7:$I$10000),3)=I64,SMALL(IF($A$7:$A$10000=A64,$I$7:$I$10000),3),""))))) -> 
A65: 100595310 | B65: Tamw (AUS) 24th Dec | C65: Tamw | D65: 2012-12-24T13:23:00 | E65: TO BE PLACED | F65: 2013-01-04T08:29:15 | G65: 10. Sugared Almond | H65: 2012-12-24T13:28:04 | I65: 1.59 | J65: 2012-12-24T13:23:46 | K65: 2012-12-24T13:22:40 | L65: NI | M65: 6 | N65: 1746.18 | O65: 7 | P65: 6934754 | Q65: 1 | Y65: =IF(A65="","",IF(E65="to be placed","",IF(MIN(IF($A$7:$A$10000=A65,$I$7:$I$10000))=I65,MIN(IF($A$7:$A$10000=A65,$I$7:$I$10000)),""))) ->  | AB65: =IF($A65="","",IF($E65="to be placed","",IF(MIN(IF($A$7:$A$10000=A65,$I$7:$I$10000))=I65,MIN(IF($A$7:$A$10000=A65,$I$7:$I$10000)),IF(SMALL(IF($A$7:$A$10000=A65,$I$7:$I$10000),2)=I65,SMALL(IF($A$7:$A$10000=A65,$I$7:$I$10000),2),"")))) ->  | AF65: =IF($A65="","",IF($E65="to be placed","",IF(MIN(IF($A$7:$A$10000=A65,$I$7:$I$10000))=I65,MIN(IF($A$7:$A$10000=A65,$I$7:$I$10000)),IF(SMALL(IF($A$7:$A$10000=A65,$I$7:$I$10000),2)=I65,SMALL(IF($A$7:$A$10000=A65,$I$7:$I$10000),2),IF(SMALL(IF($A$7:$A$10000=A65,$I$7:$I$10000),3)=I65,SMALL(IF($A$7:$A$10000=A65,$I$7:$I$10000),3),""))))) -> 
A66: 100595310 | B66: Tamw (AUS) 24th Dec | C66: Tamw | D66: 2012-12-24T13:23:00 | E66: TO BE PLACED | F66: 2013-01-04T08:29:15 | G66: 13. Vestalia | H66: 2012-12-24T13:28:04 | I66: 2.84 | J66: 2012-12-24T13:23:10 | K66: 2012-12-24T13:23:01 | L66: NI | M66: 3 | N66: 359.7 | O66: 7 | P66: 6934756 | Q66: 1 | Y66: =IF(A66="","",IF(E66="to be placed","",IF(MIN(IF($A$7:$A$10000=A66,$I$7:$I$10000))=I66,MIN(IF($A$7:$A$10000=A66,$I$7:$I$10000)),""))) ->  | AB66: =IF($A66="","",IF($E66="to be placed","",IF(MIN(IF($A$7:$A$10000=A66,$I$7:$I$10000))=I66,MIN(IF($A$7:$A$10000=A66,$I$7:$I$10000)),IF(SMALL(IF($A$7:$A$10000=A66,$I$7:$I$10000),2)=I66,SMALL(IF($A$7:$A$10000=A66,$I$7:$I$10000),2),"")))) ->  | AF66: =IF($A66="","",IF($E66="to be placed","",IF(MIN(IF($A$7:$A$10000=A66,$I$7:$I$10000))=I66,MIN(IF($A$7:$A$10000=A66,$I$7:$I$10000)),IF(SMALL(IF($A$7:$A$10000=A66,$I$7:$I$10000),2)=I66,SMALL(IF($A$7:$A$10000=A66,$I$7:$I$10000),2),IF(SMALL(IF($A$7:$A$10000=A66,$I$7:$I$10000),3)=I66,SMALL(IF($A$7:$A$10000=A66,$I$7:$I$10000),3),""))))) -> 
A67: 100595310 | B67: Tamw (AUS) 24th Dec | C67: Tamw | D67: 2012-12-24T13:23:00 | E67: TO BE PLACED | F67: 2013-01-04T08:29:15 | G67: 14. Witchy Women | H67: 2012-12-24T13:28:04 | I67: 6.2 | J67: 2012-12-24T13:23:22 | K67: 2012-12-24T13:23:22 | L67: NI | M67: 2 | N67: 19.3 | O67: 7 | P67: 6934757 | Q67: 0 | Y67: =IF(A67="","",IF(E67="to be placed","",IF(MIN(IF($A$7:$A$10000=A67,$I$7:$I$10000))=I67,MIN(IF($A$7:$A$10000=A67,$I$7:$I$10000)),""))) ->  | AB67: =IF($A67="","",IF($E67="to be placed","",IF(MIN(IF($A$7:$A$10000=A67,$I$7:$I$10000))=I67,MIN(IF($A$7:$A$10000=A67,$I$7:$I$10000)),IF(SMALL(IF($A$7:$A$10000=A67,$I$7:$I$10000),2)=I67,SMALL(IF($A$7:$A$10000=A67,$I$7:$I$10000),2),"")))) ->  | AF67: =IF($A67="","",IF($E67="to be placed","",IF(MIN(IF($A$7:$A$10000=A67,$I$7:$I$10000))=I67,MIN(IF($A$7:$A$10000=A67,$I$7:$I$10000)),IF(SMALL(IF($A$7:$A$10000=A67,$I$7:$I$10000),2)=I67,SMALL(IF($A$7:$A$10000=A67,$I$7:$I$10000),2),IF(SMALL(IF($A$7:$A$10000=A67,$I$7:$I$10000),3)=I67,SMALL(IF($A$7:$A$10000=A67,$I$7:$I$10000),3),""))))) -> 
A68: 100595310 | B68: Tamw (AUS) 24th Dec | C68: Tamw | D68: 2012-12-24T13:23:00 | E68: TO BE PLACED | F68: 2013-01-04T08:29:15 | G68: 15. Le Quesnay | H68: 2012-12-24T13:28:04 | I68: 9 | J68: 2012-12-24T13:23:19 | K68: 2012-12-24T13:22:17 | L68: NI | M68: 4 | N68: 114.16 | O68: 7 | P68: 6934758 | Q68: 0 | Y68: =IF(A68="","",IF(E68="to be placed","",IF(MIN(IF($A$7:$A$10000=A68,$I$7:$I$10000))=I68,MIN(IF($A$7:$A$10000=A68,$I$7:$I$10000)),""))) ->  | AB68: =IF($A68="","",IF($E68="to be placed","",IF(MIN(IF($A$7:$A$10000=A68,$I$7:$I$10000))=I68,MIN(IF($A$7:$A$10000=A68,$I$7:$I$10000)),IF(SMALL(IF($A$7:$A$10000=A68,$I$7:$I$10000),2)=I68,SMALL(IF($A$7:$A$10000=A68,$I$7:$I$10000),2),"")))) ->  | AF68: =IF($A68="","",IF($E68="to be placed","",IF(MIN(IF($A$7:$A$10000=A68,$I$7:$I$10000))=I68,MIN(IF($A$7:$A$10000=A68,$I$7:$I$10000)),IF(SMALL(IF($A$7:$A$10000=A68,$I$7:$I$10000),2)=I68,SMALL(IF($A$7:$A$10000=A68,$I$7:$I$10000),2),IF(SMALL(IF($A$7:$A$10000=A68,$I$7:$I$10000),3)=I68,SMALL(IF($A$7:$A$10000=A68,$I$7:$I$10000),3),""))))) -> 
A69: 100595311 | B69: Tamw (AUS) 24th Dec | C69: Tamw | D69: 2012-12-24T13:23:00 | E69: R1 1000m Mdn | F69: 2012-12-24T13:23:57 | G69: 4. Our Dancer | H69: 2012-12-24T13:25:45 | I69: 110 | J69: 2012-12-24T13:23:51 | K69: 2012-12-24T13:23:35 | L69: PE | M69: 4 | N69: 69.68 | O69: 7 | P69: 2353013 | Q69: 0 | S69: 0.9174311927 | Y69: =IF(A69="","",IF(E69="to be placed","",IF(MIN(IF($A$7:$A$10000=A69,$I$7:$I$10000))=I69,MIN(IF($A$7:$A$10000=A69,$I$7:$I$10000)),""))) ->  | AB69: =IF($A69="","",IF($E69="to be placed","",IF(MIN(IF($A$7:$A$10000=A69,$I$7:$I$10000))=I69,MIN(IF($A$7:$A$10000=A69,$I$7:$I$10000)),IF(SMALL(IF($A$7:$A$10000=A69,$I$7:$I$10000),2)=I69,SMALL(IF($A$7:$A$10000=A69,$I$7:$I$10000),2),"")))) ->  | AF69: =IF($A69="","",IF($E69="to be placed","",IF(MIN(IF($A$7:$A$10000=A69,$I$7:$I$10000))=I69,MIN(IF($A$7:$A$10000=A69,$I$7:$I$10000)),IF(SMALL(IF($A$7:$A$10000=A69,$I$7:$I$10000),2)=I69,SMALL(IF($A$7:$A$10000=A69,$I$7:$I$10000),2),IF(SMALL(IF($A$7:$A$10000=A69,$I$7:$I$10000),3)=I69,SMALL(IF($A$7:$A$10000=A69,$I$7:$I$10000),3),""))))) -> 
A70: 100595311 | B70: Tamw (AUS) 24th Dec | C70: Tamw | D70: 2012-12-24T13:23:00 | E70: R1 1000m Mdn | F70: 2012-12-24T13:23:57 | G70: 9. Silent Winn | H70: 2012-12-24T13:25:45 | I70: 48 | J70: 2012-12-24T13:23:53 | K70: 2012-12-24T13:23:53 | L70: PE | M70: 3 | N70: 348.16 | O70: 7 | P70: 4252626 | Q70: 0 | S70: 2.127659574 | Y70: =IF(A70="","",IF(E70="to be placed","",IF(MIN(IF($A$7:$A$10000=A70,$I$7:$I$10000))=I70,MIN(IF($A$7:$A$10000=A70,$I$7:$I$10000)),""))) ->  | AB70: =IF($A70="","",IF($E70="to be placed","",IF(MIN(IF($A$7:$A$10000=A70,$I$7:$I$10000))=I70,MIN(IF($A$7:$A$10000=A70,$I$7:$I$10000)),IF(SMALL(IF($A$7:$A$10000=A70,$I$7:$I$10000),2)=I70,SMALL(IF($A$7:$A$10000=A70,$I$7:$I$10000),2),"")))) ->  | AF70: =IF($A70="","",IF($E70="to be placed","",IF(MIN(IF($A$7:$A$10000=A70,$I$7:$I$10000))=I70,MIN(IF($A$7:$A$10000=A70,$I$7:$I$10000)),IF(SMALL(IF($A$7:$A$10000=A70,$I$7:$I$10000),2)=I70,SMALL(IF($A$7:$A$10000=A70,$I$7:$I$10000),2),IF(SMALL(IF($A$7:$A$10000=A70,$I$7:$I$10000),3)=I70,SMALL(IF($A$7:$A$10000=A70,$I$7:$I$10000),3),""))))) -> 
A71: 100595311 | B71: Tamw (AUS) 24th Dec | C71: Tamw | D71: 2012-12-24T13:23:00 | E71: R1 1000m Mdn | F71: 2012-12-24T13:23:57 | G71: 11. The Lions Share | H71: 2012-12-24T13:25:45 | I71: 7.4 | J71: 2012-12-24T13:23:56 | K71: 2012-12-24T13:14:37 | L71: PE | M71: 11 | N71: 2871.62 | O71: 7 | P71: 6072286 | Q71: 0 | S71: 15.625 | V71: 1 | Y71: =IF(A71="","",IF(E71="to be placed","",IF(MIN(IF($A$7:$A$10000=A71,$I$7:$I$10000))=I71,MIN(IF($A$7:$A$10000=A71,$I$7:$I$10000)),""))) ->  | AB71: =IF($A71="","",IF($E71="to be placed","",IF(MIN(IF($A$7:$A$10000=A71,$I$7:$I$10000))=I71,MIN(IF($A$7:$A$10000=A71,$I$7:$I$10000)),IF(SMALL(IF($A$7:$A$10000=A71,$I$7:$I$10000),2)=I71,SMALL(IF($A$7:$A$10000=A71,$I$7:$I$10000),2),"")))) ->  | AF71: =IF($A71="","",IF($E71="to be placed","",IF(MIN(IF($A$7:$A$10000=A71,$I$7:$I$10000))=I71,MIN(IF($A$7:$A$10000=A71,$I$7:$I$10000)),IF(SMALL(IF($A$7:$A$10000=A71,$I$7:$I$10000),2)=I71,SMALL(IF($A$7:$A$10000=A71,$I$7:$I$10000),2),IF(SMALL(IF($A$7:$A$10000=A71,$I$7:$I$10000),3)=I71,SMALL(IF($A$7:$A$10000=A71,$I$7:$I$10000),3),""))))) -> 7.4 | AG71: 0.935
A72: 100595311 | B72: Tamw (AUS) 24th Dec | C72: Tamw | D72: 2012-12-24T13:23:00 | E72: R1 1000m Mdn | F72: 2012-12-24T13:23:57 | G72: 2. Gee I George | H72: 2012-12-24T13:25:45 | I72: 110 | J72: 2012-12-24T13:23:52 | K72: 2012-12-24T13:22:01 | L72: PE | M72: 12 | N72: 44.42 | O72: 7 | P72: 6692376 | Q72: 0 | S72: =IF($D72="","",IF($E72="to be placed","",IF($Q72=1,-$I72*SUM(100/($I72-1))+SUM(100/($I72-1)),SUM(100/($I72-1))))) -> 0.9174311927 | T72: =IF($D72="","",IF($E72="to be placed","",IF(AND($A72<>$A73,SUMIF($A$7:$A$10000,$A72,S$7:S$10000)>0),SUMIF($A$7:$A$10000,$A72,S$7:S$10000)*(1-$T$1),IF($A72<>$A73,SUMIF($A$7:$A$10000,$A72,S$7:S$10000),"")))) ->  | V72: =IF($D72="","",IF($E72="to be placed","",IF(AND($I72<20,$Q72=1),-$I72+1,IF(AND($I72<20,$Q72<>1),1,"")))) ->  | Y72: =IF(A72="","",IF(E72="to be placed","",IF(MIN(IF($A$7:$A$10000=A72,$I$7:$I$10000))=I72,MIN(IF($A$7:$A$10000=A72,$I$7:$I$10000)),""))) ->  | Z72: =IF($D72="","",IF($E72="to be placed","",IF(ISERROR(Y72*1),"",IF(AND(Y72>0,Q72=1),-Y72+1,IF(AND(Y72<>"",Q72<>1),0.935,""))))) ->  | AB72: =IF($A72="","",IF($E72="to be placed","",IF(MIN(IF($A$7:$A$10000=A72,$I$7:$I$10000))=I72,MIN(IF($A$7:$A$10000=A72,$I$7:$I$10000)),IF(SMALL(IF($A$7:$A$10000=A72,$I$7:$I$10000),2)=I72,SMALL(IF($A$7:$A$10000=A72,$I$7:$I$10000),2),"")))) ->  | AD72: =IF($D72="","",IF($E72="to be placed","",IF(AND($A72<>$A73,SUMIF($A$7:$A$10000,$A72,AC$7:AC$10000)>0),SUMIF($A$7:$A$10000,$A72,AC$7:AC$10000)*(1-$T$1),IF($A72<>$A73,SUMIF($A$7:$A$10000,$A72,AC$7:AC$10000),"")))) ->  | AF72: =IF($A72="","",IF($E72="to be placed","",IF(MIN(IF($A$7:$A$10000=A72,$I$7:$I$10000))=I72,MIN(IF($A$7:$A$10000=A72,$I$7:$I$10000)),IF(SMALL(IF($A$7:$A$10000=A72,$I$7:$I$10000),2)=I72,SMALL(IF($A$7:$A$10000=A72,$I$7:$I$10000),2),IF(SMALL(IF($A$7:$A$10000=A72,$I$7:$I$10000),3)=I72,SMALL(IF($A$7:$A$10000=A72,$I$7:$I$10000),3),""))))) ->  | AH72: =IF($D72="","",IF($E72="to be placed","",IF(AND($A72<>$A73,SUMIF($A$7:$A$10000,$A72,AG$7:AG$10000)>0),SUMIF($A$7:$A$10000,$A72,AG$7:AG$10000)*(1-$T$1),IF($A72<>$A73,SUMIF($A$7:$A$10000,$A72,AG$7:AG$10000),"")))) -> 
A73: 100595311 | B73: Tamw (AUS) 24th Dec | C73: Tamw | D73: 2012-12-24T13:23:00 | E73: R1 1000m Mdn | F73: 2012-12-24T13:23:57 | G73: 3. Golden Stitch | H73: 2012-12-24T13:25:45 | I73: 100 | J73: 2012-12-24T13:23:52 | K73: 2012-12-24T13:21:39 | L73: PE | M73: 9 | N73: 200.14 | O73: 7 | P73: 6934750 | Q73: 0 | S73: 1.01010101 | Y73: =IF(A73="","",IF(E73="to be placed","",IF(MIN(IF($A$7:$A$10000=A73,$I$7:$I$10000))=I73,MIN(IF($A$7:$A$10000=A73,$I$7:$I$10000)),""))) ->  | AB73: =IF($A73="","",IF($E73="to be placed","",IF(MIN(IF($A$7:$A$10000=A73,$I$7:$I$10000))=I73,MIN(IF($A$7:$A$10000=A73,$I$7:$I$10000)),IF(SMALL(IF($A$7:$A$10000=A73,$I$7:$I$10000),2)=I73,SMALL(IF($A$7:$A$10000=A73,$I$7:$I$10000),2),"")))) ->  | AF73: =IF($A73="","",IF($E73="to be placed","",IF(MIN(IF($A$7:$A$10000=A73,$I$7:$I$10000))=I73,MIN(IF($A$7:$A$10000=A73,$I$7:$I$10000)),IF(SMALL(IF($A$7:$A$10000=A73,$I$7:$I$10000),2)=I73,SMALL(IF($A$7:$A$10000=A73,$I$7:$I$10000),2),IF(SMALL(IF($A$7:$A$10000=A73,$I$7:$I$10000),3)=I73,SMALL(IF($A$7:$A$10000=A73,$I$7:$I$10000),3),""))))) -> 
A74: 100595311 | B74: Tamw (AUS) 24th Dec | C74: Tamw | D74: 2012-12-24T13:23:00 | E74: R1 1000m Mdn | F74: 2012-12-24T13:23:57 | G74: 5. Snippet Express | H74: 2012-12-24T13:25:45 | I74: 4 | J74: 2012-12-24T13:23:55 | K74: 2012-12-24T13:21:40 | L74: PE | M74: 39 | N74: 8146 | O74: 7 | P74: 6934751 | Q74: 0 | S74: 33.33333333 | V74: 1 | Y74: =IF(A74="","",IF(E74="to be placed","",IF(MIN(IF($A$7:$A$10000=A74,$I$7:$I$10000))=I74,MIN(IF($A$7:$A$10000=A74,$I$7:$I$10000)),""))) ->  | AB74: =IF($A74="","",IF($E74="to be placed","",IF(MIN(IF($A$7:$A$10000=A74,$I$7:$I$10000))=I74,MIN(IF($A$7:$A$10000=A74,$I$7:$I$10000)),IF(SMALL(IF($A$7:$A$10000=A74,$I$7:$I$10000),2)=I74,SMALL(IF($A$7:$A$10000=A74,$I$7:$I$10000),2),"")))) -> 4 | AC74: 0.935 | AF74: =IF($A74="","",IF($E74="to be placed","",IF(MIN(IF($A$7:$A$10000=A74,$I$7:$I$10000))=I74,MIN(IF($A$7:$A$10000=A74,$I$7:$I$10000)),IF(SMALL(IF($A$7:$A$10000=A74,$I$7:$I$10000),2)=I74,SMALL(IF($A$7:$A$10000=A74,$I$7:$I$10000),2),IF(SMALL(IF($A$7:$A$10000=A74,$I$7:$I$10000),3)=I74,SMALL(IF($A$7:$A$10000=A74,$I$7:$I$10000),3),""))))) -> 4 | AG74: 0.935
A75: 100595311 | B75: Tamw (AUS) 24th Dec | C75: Tamw | D75: 2012-12-24T13:23:00 | E75: R1 1000m Mdn | F75: 2012-12-24T13:23:57 | G75: 6. Takiri | H75: 2012-12-24T13:25:45 | I75: 20 | J75: 2012-12-24T13:23:56 | K75: 2012-12-24T11:47:37 | L75: PE | M75: 11 | N75: 509.78 | O75: 7 | P75: 6934752 | Q75: 0 | S75: 5.263157895 | Y75: =IF(A75="","",IF(E75="to be placed","",IF(MIN(IF($A$7:$A$10000=A75,$I$7:$I$10000))=I75,MIN(IF($A$7:$A$10000=A75,$I$7:$I$10000)),""))) ->  | AB75: =IF($A75="","",IF($E75="to be placed","",IF(MIN(IF($A$7:$A$10000=A75,$I$7:$I$10000))=I75,MIN(IF($A$7:$A$10000=A75,$I$7:$I$10000)),IF(SMALL(IF($A$7:$A$10000=A75,$I$7:$I$10000),2)=I75,SMALL(IF($A$7:$A$10000=A75,$I$7:$I$10000),2),"")))) ->  | AF75: =IF($A75="","",IF($E75="to be placed","",IF(MIN(IF($A$7:$A$10000=A75,$I$7:$I$10000))=I75,MIN(IF($A$7:$A$10000=A75,$I$7:$I$10000)),IF(SMALL(IF($A$7:$A$10000=A75,$I$7:$I$10000),2)=I75,SMALL(IF($A$7:$A$10000=A75,$I$7:$I$10000),2),IF(SMALL(IF($A$7:$A$10000=A75,$I$7:$I$10000),3)=I75,SMALL(IF($A$7:$A$10000=A75,$I$7:$I$10000),3),""))))) -> 
A76: 100595311 | B76: Tamw (AUS) 24th Dec | C76: Tamw | D76: 2012-12-24T13:23:00 | E76: R1 1000m Mdn | F76: 2012-12-24T13:23:57 | G76: 7. Gold Armani | H76: 2012-12-24T13:25:45 | I76: 11 | J76: 2012-12-24T13:23:54 | K76: 2012-12-24T13:20:53 | L76: PE | M76: 17 | N76: 604.4 | O76: 7 | P76: 6934753 | Q76: 0 | S76: 10 | V76: 1 | Y76: =IF(A76="","",IF(E76="to be placed","",IF(MIN(IF($A$7:$A$10000=A76,$I$7:$I$10000))=I76,MIN(IF($A$7:$A$10000=A76,$I$7:$I$10000)),""))) ->  | AB76: =IF($A76="","",IF($E76="to be placed","",IF(MIN(IF($A$7:$A$10000=A76,$I$7:$I$10000))=I76,MIN(IF($A$7:$A$10000=A76,$I$7:$I$10000)),IF(SMALL(IF($A$7:$A$10000=A76,$I$7:$I$10000),2)=I76,SMALL(IF($A$7:$A$10000=A76,$I$7:$I$10000),2),"")))) ->  | AF76: =IF($A76="","",IF($E76="to be placed","",IF(MIN(IF($A$7:$A$10000=A76,$I$7:$I$10000))=I76,MIN(IF($A$7:$A$10000=A76,$I$7:$I$10000)),IF(SMALL(IF($A$7:$A$10000=A76,$I$7:$I$10000),2)=I76,SMALL(IF($A$7:$A$10000=A76,$I$7:$I$10000),2),IF(SMALL(IF($A$7:$A$10000=A76,$I$7:$I$10000),3)=I76,SMALL(IF($A$7:$A$10000=A76,$I$7:$I$10000),3),""))))) -> 
A77: 100595311 | B77: Tamw (AUS) 24th Dec | C77: Tamw | D77: 2012-12-24T13:23:00 | E77: R1 1000m Mdn | F77: 2012-12-24T13:23:57 | G77: 10. Sugared Almond | H77: 2012-12-24T13:25:45 | I77: 3.75 | J77: 2012-12-24T13:23:56 | K77: 2012-12-24T13:22:01 | L77: PE | M77: 40 | N77: 9851.04 | O77: 7 | P77: 6934754 | Q77: 1 | S77: -100 | V77: -2.75 | Y77: =IF(A77="","",IF(E77="to be placed","",IF(MIN(IF($A$7:$A$10000=A77,$I$7:$I$10000))=I77,MIN(IF($A$7:$A$10000=A77,$I$7:$I$10000)),""))) -> 3.75 | Z77: -2.75 | AB77: =IF($A77="","",IF($E77="to be placed","",IF(MIN(IF($A$7:$A$10000=A77,$I$7:$I$10000))=I77,MIN(IF($A$7:$A$10000=A77,$I$7:$I$10000)),IF(SMALL(IF($A$7:$A$10000=A77,$I$7:$I$10000),2)=I77,SMALL(IF($A$7:$A$10000=A77,$I$7:$I$10000),2),"")))) -> 3.75 | AC77: -2.75 | AF77: =IF($A77="","",IF($E77="to be placed","",IF(MIN(IF($A$7:$A$10000=A77,$I$7:$I$10000))=I77,MIN(IF($A$7:$A$10000=A77,$I$7:$I$10000)),IF(SMALL(IF($A$7:$A$10000=A77,$I$7:$I$10000),2)=I77,SMALL(IF($A$7:$A$10000=A77,$I$7:$I$10000),2),IF(SMALL(IF($A$7:$A$10000=A77,$I$7:$I$10000),3)=I77,SMALL(IF($A$7:$A$10000=A77,$I$7:$I$10000),3),""))))) -> 3.75 | AG77: -2.75
A78: 100595311 | B78: Tamw (AUS) 24th Dec | C78: Tamw | D78: 2012-12-24T13:23:00 | E78: R1 1000m Mdn | F78: 2012-12-24T13:23:57 | G78: 12. Tridanescay | H78: 2012-12-24T13:25:45 | I78: 300 | J78: 2012-12-24T13:23:35 | K78: 2012-12-24T13:23:07 | L78: PE | M78: 3 | N78: 23.96 | O78: 7 | P78: 6934755 | Q78: 0 | S78: 0.3344481605 | Y78: =IF(A78="","",IF(E78="to be placed","",IF(MIN(IF($A$7:$A$10000=A78,$I$7:$I$10000))=I78,MIN(IF($A$7:$A$10000=A78,$I$7:$I$10000)),""))) ->  | AB78: =IF($A78="","",IF($E78="to be placed","",IF(MIN(IF($A$7:$A$10000=A78,$I$7:$I$10000))=I78,MIN(IF($A$7:$A$10000=A78,$I$7:$I$10000)),IF(SMALL(IF($A$7:$A$10000=A78,$I$7:$I$10000),2)=I78,SMALL(IF($A$7:$A$10000=A78,$I$7:$I$10000),2),"")))) ->  | AF78: =IF($A78="","",IF($E78="to be placed","",IF(MIN(IF($A$7:$A$10000=A78,$I$7:$I$10000))=I78,MIN(IF($A$7:$A$10000=A78,$I$7:$I$10000)),IF(SMALL(IF($A$7:$A$10000=A78,$I$7:$I$10000),2)=I78,SMALL(IF($A$7:$A$10000=A78,$I$7:$I$10000),2),IF(SMALL(IF($A$7:$A$10000=A78,$I$7:$I$10000),3)=I78,SMALL(IF($A$7:$A$10000=A78,$I$7:$I$10000),3),""))))) -> 
A79: 100595311 | B79: Tamw (AUS) 24th Dec | C79: Tamw | D79: 2012-12-24T13:23:00 | E79: R1 1000m Mdn | F79: 2012-12-24T13:23:57 | G79: 13. Vestalia | H79: 2012-12-24T13:25:45 | I79: 11 | J79: 2012-12-24T13:23:44 | K79: 2012-12-24T13:23:05 | L79: PE | M79: 19 | N79: 2086.3 | O79: 7 | P79: 6934756 | Q79: 0 | S79: 10 | V79: 1 | Y79: =IF(A79="","",IF(E79="to be placed","",IF(MIN(IF($A$7:$A$10000=A79,$I$7:$I$10000))=I79,MIN(IF($A$7:$A$10000=A79,$I$7:$I$10000)),""))) ->  | AB79: =IF($A79="","",IF($E79="to be placed","",IF(MIN(IF($A$7:$A$10000=A79,$I$7:$I$10000))=I79,MIN(IF($A$7:$A$10000=A79,$I$7:$I$10000)),IF(SMALL(IF($A$7:$A$10000=A79,$I$7:$I$10000),2)=I79,SMALL(IF($A$7:$A$10000=A79,$I$7:$I$10000),2),"")))) ->  | AF79: =IF($A79="","",IF($E79="to be placed","",IF(MIN(IF($A$7:$A$10000=A79,$I$7:$I$10000))=I79,MIN(IF($A$7:$A$10000=A79,$I$7:$I$10000)),IF(SMALL(IF($A$7:$A$10000=A79,$I$7:$I$10000),2)=I79,SMALL(IF($A$7:$A$10000=A79,$I$7:$I$10000),2),IF(SMALL(IF($A$7:$A$10000=A79,$I$7:$I$10000),3)=I79,SMALL(IF($A$7:$A$10000=A79,$I$7:$I$10000),3),""))))) -> 
A80: 100595311 | B80: Tamw (AUS) 24th Dec | C80: Tamw | D80: 2012-12-24T13:23:00 | E80: R1 1000m Mdn | F80: 2012-12-24T13:23:57 | G80: 14. Witchy Women | H80: 2012-12-24T13:25:45 | I80: 34 | J80: 2012-12-24T13:23:55 | K80: 2012-12-24T13:22:01 | L80: PE | M80: 13 | N80: 207.46 | O80: 7 | P80: 6934757 | Q80: 0 | S80: 3.03030303 | Y80: =IF(A80="","",IF(E80="to be placed","",IF(MIN(IF($A$7:$A$10000=A80,$I$7:$I$10000))=I80,MIN(IF($A$7:$A$10000=A80,$I$7:$I$10000)),""))) ->  | AB80: =IF($A80="","",IF($E80="to be placed","",IF(MIN(IF($A$7:$A$10000=A80,$I$7:$I$10000))=I80,MIN(IF($A$7:$A$10000=A80,$I$7:$I$10000)),IF(SMALL(IF($A$7:$A$10000=A80,$I$7:$I$10000),2)=I80,SMALL(IF($A$7:$A$10000=A80,$I$7:$I$10000),2),"")))) ->  | AF80: =IF($A80="","",IF($E80="to be placed","",IF(MIN(IF($A$7:$A$10000=A80,$I$7:$I$10000))=I80,MIN(IF($A$7:$A$10000=A80,$I$7:$I$10000)),IF(SMALL(IF($A$7:$A$10000=A80,$I$7:$I$10000),2)=I80,SMALL(IF($A$7:$A$10000=A80,$I$7:$I$10000),2),IF(SMALL(IF($A$7:$A$10000=A80,$I$7:$I$10000),3)=I80,SMALL(IF($A$7:$A$10000=A80,$I$7:$I$10000),3),""))))) -> 
A81: 100595311 | B81: Tamw (AUS) 24th Dec | C81: Tamw | D81: 2012-12-24T13:23:00 | E81: R1 1000m Mdn | F81: 2012-12-24T13:23:57 | G81: 15. Le Quesnay | H81: 2012-12-24T13:25:45 | I81: 30 | J81: 2012-12-24T13:23:35 | K81: 2012-12-24T13:23:35 | L81: PE | M81: 2 | N81: 167.78 | O81: 7 | P81: 6934758 | Q81: 0 | S81: 3.448275862 | T81: -13.99285875 | W81: 1.16875 | Y81: =IF(A81="","",IF(E81="to be placed","",IF(MIN(IF($A$7:$A$10000=A81,$I$7:$I$10000))=I81,MIN(IF($A$7:$A$10000=A81,$I$7:$I$10000)),""))) ->  | AB81: =IF($A81="","",IF($E81="to be placed","",IF(MIN(IF($A$7:$A$10000=A81,$I$7:$I$10000))=I81,MIN(IF($A$7:$A$10000=A81,$I$7:$I$10000)),IF(SMALL(IF($A$7:$A$10000=A81,$I$7:$I$10000),2)=I81,SMALL(IF($A$7:$A$10000=A81,$I$7:$I$10000),2),"")))) ->  | AD81: -1.815 | AF81: =IF($A81="","",IF($E81="to be placed","",IF(MIN(IF($A$7:$A$10000=A81,$I$7:$I$10000))=I81,MIN(IF($A$7:$A$10000=A81,$I$7:$I$10000)),IF(SMALL(IF($A$7:$A$10000=A81,$I$7:$I$10000),2)=I81,SMALL(IF($A$7:$A$10000=A81,$I$7:$I$10000),2),IF(SMALL(IF($A$7:$A$10000=A81,$I$7:$I$10000),3)=I81,SMALL(IF($A$7:$A$10000=A81,$I$7:$I$10000),3),""))))) ->  | AH81: -0.88
A82: 100595326 | B82: Sale (AUS) 24th Dec | C82: Sale | D82: 2012-12-24T13:36:00 | E82: TO BE PLACED | F82: 2013-01-04T08:29:16 | G82: 3. Chad | H82: 2012-12-24T13:42:46 | I82: 1.65 | J82: 2012-12-24T13:37:46 | K82: 2012-12-24T13:31:45 | L82: NI | M82: 20 | N82: 1109.3 | O82: 7 | P82: 5167440 | Q82: 0 | Y82: =IF(A82="","",IF(E82="to be placed","",IF(MIN(IF($A$7:$A$10000=A82,$I$7:$I$10000))=I82,MIN(IF($A$7:$A$10000=A82,$I$7:$I$10000)),""))) ->  | AB82: =IF($A82="","",IF($E82="to be placed","",IF(MIN(IF($A$7:$A$10000=A82,$I$7:$I$10000))=I82,MIN(IF($A$7:$A$10000=A82,$I$7:$I$10000)),IF(SMALL(IF($A$7:$A$10000=A82,$I$7:$I$10000),2)=I82,SMALL(IF($A$7:$A$10000=A82,$I$7:$I$10000),2),"")))) ->  | AF82: =IF($A82="","",IF($E82="to be placed","",IF(MIN(IF($A$7:$A$10000=A82,$I$7:$I$10000))=I82,MIN(IF($A$7:$A$10000=A82,$I$7:$I$10000)),IF(SMALL(IF($A$7:$A$10000=A82,$I$7:$I$10000),2)=I82,SMALL(IF($A$7:$A$10000=A82,$I$7:$I$10000),2),IF(SMALL(IF($A$7:$A$10000=A82,$I$7:$I$10000),3)=I82,SMALL(IF($A$7:$A$10000=A82,$I$7:$I$10000),3),""))))) -> 
A83: 100595326 | B83: Sale (AUS) 24th Dec | C83: Sale | D83: 2012-12-24T13:36:00 | E83: TO BE PLACED | F83: 2013-01-04T08:29:16 | G83: 10. Beleven | H83: 2012-12-24T13:42:46 | I83: 9.2 | J83: 2012-12-24T13:36:58 | K83: 2012-12-24T13:31:38 | L83: NI | M83: 10 | N83: 130.16 | O83: 7 | P83: 5929589 | Q83: 0 | Y83: =IF(A83="","",IF(E83="to be placed","",IF(MIN(IF($A$7:$A$10000=A83,$I$7:$I$10000))=I83,MIN(IF($A$7:$A$10000=A83,$I$7:$I$10000)),""))) ->  | AB83: =IF($A83="","",IF($E83="to be placed","",IF(MIN(IF($A$7:$A$10000=A83,$I$7:$I$10000))=I83,MIN(IF($A$7:$A$10000=A83,$I$7:$I$10000)),IF(SMALL(IF($A$7:$A$10000=A83,$I$7:$I$10000),2)=I83,SMALL(IF($A$7:$A$10000=A83,$I$7:$I$10000),2),"")))) ->  | AF83: =IF($A83="","",IF($E83="to be placed","",IF(MIN(IF($A$7:$A$10000=A83,$I$7:$I$10000))=I83,MIN(IF($A$7:$A$10000=A83,$I$7:$I$10000)),IF(SMALL(IF($A$7:$A$10000=A83,$I$7:$I$10000),2)=I83,SMALL(IF($A$7:$A$10000=A83,$I$7:$I$10000),2),IF(SMALL(IF($A$7:$A$10000=A83,$I$7:$I$10000),3)=I83,SMALL(IF($A$7:$A$10000=A83,$I$7:$I$10000),3),""))))) -> 
A84: 100595326 | B84: Sale (AUS) 24th Dec | C84: Sale | D84: 2012-12-24T13:36:00 | E84: TO BE PLACED | F84: 2013-01-04T08:29:16 | G84: 5. Gold Rises | H84: 2012-12-24T13:42:46 | I84: 1.98 | J84: 2012-12-24T13:38:06 | K84: 2012-12-24T13:38:06 | L84: NI | M84: 2 | N84: 416.14 | O84: 7 | P84: 6294939 | Q84: 1 | Y84: =IF(A84="","",IF(E84="to be placed","",IF(MIN(IF($A$7:$A$10000=A84,$I$7:$I$10000))=I84,MIN(IF($A$7:$A$10000=A84,$I$7:$I$10000)),""))) ->  | AB84: =IF($A84="","",IF($E84="to be placed","",IF(MIN(IF($A$7:$A$10000=A84,$I$7:$I$10000))=I84,MIN(IF($A$7:$A$10000=A84,$I$7:$I$10000)),IF(SMALL(IF($A$7:$A$10000=A84,$I$7:$I$10000),2)=I84,SMALL(IF($A$7:$A$10000=A84,$I$7:$I$10000),2),"")))) ->  | AF84: =IF($A84="","",IF($E84="to be placed","",IF(MIN(IF($A$7:$A$10000=A84,$I$7:$I$10000))=I84,MIN(IF($A$7:$A$10000=A84,$I$7:$I$10000)),IF(SMALL(IF($A$7:$A$10000=A84,$I$7:$I$10000),2)=I84,SMALL(IF($A$7:$A$10000=A84,$I$7:$I$10000),2),IF(SMALL(IF($A$7:$A$10000=A84,$I$7:$I$10000),3)=I84,SMALL(IF($A$7:$A$10000=A84,$I$7:$I$10000),3),""))))) -> 
A85: 100595326 | B85: Sale (AUS) 24th Dec | C85: Sale | D85: 2012-12-24T13:36:00 | E85: TO BE PLACED | F85: 2013-01-04T08:29:16 | G85: 2. Biscay Diamond | H85: 2012-12-24T13:42:46 | I85: 9.8 | J85: 2012-12-24T13:38:01 | K85: 2012-12-24T13:36:07 | L85: NI | M85: 8 | N85: 157.9 | O85: 7 | P85: 6303390 | Q85: 0 | Y85: =IF(A85="","",IF(E85="to be placed","",IF(MIN(IF($A$7:$A$10000=A85,$I$7:$I$10000))=I85,MIN(IF($A$7:$A$10000=A85,$I$7:$I$10000)),""))) ->  | AB85: =IF($A85="","",IF($E85="to be placed","",IF(MIN(IF($A$7:$A$10000=A85,$I$7:$I$10000))=I85,MIN(IF($A$7:$A$10000=A85,$I$7:$I$10000)),IF(SMALL(IF($A$7:$A$10000=A85,$I$7:$I$10000),2)=I85,SMALL(IF($A$7:$A$10000=A85,$I$7:$I$10000),2),"")))) ->  | AF85: =IF($A85="","",IF($E85="to be placed","",IF(MIN(IF($A$7:$A$10000=A85,$I$7:$I$10000))=I85,MIN(IF($A$7:$A$10000=A85,$I$7:$I$10000)),IF(SMALL(IF($A$7:$A$10000=A85,$I$7:$I$10000),2)=I85,SMALL(IF($A$7:$A$10000=A85,$I$7:$I$10000),2),IF(SMALL(IF($A$7:$A$10000=A85,$I$7:$I$10000),3)=I85,SMALL(IF($A$7:$A$10000=A85,$I$7:$I$10000),3),""))))) -> 
A86: 100595326 | B86: Sale (AUS) 24th Dec | C86: Sale | D86: 2012-12-24T13:36:00 | E86: TO BE PLACED | F86: 2013-01-04T08:29:16 | G86: 1. Belli Laugh | H86: 2012-12-24T13:42:46 | I86: 2.04 | J86: 2012-12-24T13:38:09 | K86: 2012-12-24T13:32:42 | L86: NI | M86: 23 | N86: 1130.44 | O86: 7 | P86: 6373816 | Q86: 0 | Y86: =IF(A86="","",IF(E86="to be placed","",IF(MIN(IF($A$7:$A$10000=A86,$I$7:$I$10000))=I86,MIN(IF($A$7:$A$10000=A86,$I$7:$I$10000)),""))) ->  | AB86: =IF($A86="","",IF($E86="to be placed","",IF(MIN(IF($A$7:$A$10000=A86,$I$7:$I$10000))=I86,MIN(IF($A$7:$A$10000=A86,$I$7:$I$10000)),IF(SMALL(IF($A$7:$A$10000=A86,$I$7:$I$10000),2)=I86,SMALL(IF($A$7:$A$10000=A86,$I$7:$I$10000),2),"")))) ->  | AF86: =IF($A86="","",IF($E86="to be placed","",IF(MIN(IF($A$7:$A$10000=A86,$I$7:$I$10000))=I86,MIN(IF($A$7:$A$10000=A86,$I$7:$I$10000)),IF(SMALL(IF($A$7:$A$10000=A86,$I$7:$I$10000),2)=I86,SMALL(IF($A$7:$A$10000=A86,$I$7:$I$10000),2),IF(SMALL(IF($A$7:$A$10000=A86,$I$7:$I$10000),3)=I86,SMALL(IF($A$7:$A$10000=A86,$I$7:$I$10000),3),""))))) -> 
A87: 100595326 | B87: Sale (AUS) 24th Dec | C87: Sale | D87: 2012-12-24T13:36:00 | E87: TO BE PLACED | F87: 2013-01-04T08:29:16 | G87: 4. El Mandoma | H87: 2012-12-24T13:42:46 | I87: 2.08 | J87: 2012-12-24T13:37:15 | K87: 2012-12-24T13:35:32 | L87: NI | M87: 7 | N87: 599.3 | O87: 7 | P87: 6934726 | Q87: 1 | Y87: =IF(A87="","",IF(E87="to be placed","",IF(MIN(IF($A$7:$A$10000=A87,$I$7:$I$10000))=I87,MIN(IF($A$7:$A$10000=A87,$I$7:$I$10000)),""))) ->  | AB87: =IF($A87="","",IF($E87="to be placed","",IF(MIN(IF($A$7:$A$10000=A87,$I$7:$I$10000))=I87,MIN(IF($A$7:$A$10000=A87,$I$7:$I$10000)),IF(SMALL(IF($A$7:$A$10000=A87,$I$7:$I$10000),2)=I87,SMALL(IF($A$7:$A$10000=A87,$I$7:$I$10000),2),"")))) ->  | AF87: =IF($A87="","",IF($E87="to be placed","",IF(MIN(IF($A$7:$A$10000=A87,$I$7:$I$10000))=I87,MIN(IF($A$7:$A$10000=A87,$I$7:$I$10000)),IF(SMALL(IF($A$7:$A$10000=A87,$I$7:$I$10000),2)=I87,SMALL(IF($A$7:$A$10000=A87,$I$7:$I$10000),2),IF(SMALL(IF($A$7:$A$10000=A87,$I$7:$I$10000),3)=I87,SMALL(IF($A$7:$A$10000=A87,$I$7:$I$10000),3),""))))) -> 
A88: 100595326 | B88: Sale (AUS) 24th Dec | C88: Sale | D88: 2012-12-24T13:36:00 | E88: TO BE PLACED | F88: 2013-01-04T08:29:16 | G88: 7. Sky Gambler | H88: 2012-12-24T13:42:46 | I88: 9.2 | J88: 2012-12-24T13:36:48 | K88: 2012-12-24T13:34:51 | L88: NI | M88: 6 | N88: 222.02 | O88: 7 | P88: 6934728 | Q88: 0 | Y88: =IF(A88="","",IF(E88="to be placed","",IF(MIN(IF($A$7:$A$10000=A88,$I$7:$I$10000))=I88,MIN(IF($A$7:$A$10000=A88,$I$7:$I$10000)),""))) ->  | AB88: =IF($A88="","",IF($E88="to be placed","",IF(MIN(IF($A$7:$A$10000=A88,$I$7:$I$10000))=I88,MIN(IF($A$7:$A$10000=A88,$I$7:$I$10000)),IF(SMALL(IF($A$7:$A$10000=A88,$I$7:$I$10000),2)=I88,SMALL(IF($A$7:$A$10000=A88,$I$7:$I$10000),2),"")))) ->  | AF88: =IF($A88="","",IF($E88="to be placed","",IF(MIN(IF($A$7:$A$10000=A88,$I$7:$I$10000))=I88,MIN(IF($A$7:$A$10000=A88,$I$7:$I$10000)),IF(SMALL(IF($A$7:$A$10000=A88,$I$7:$I$10000),2)=I88,SMALL(IF($A$7:$A$10000=A88,$I$7:$I$10000),2),IF(SMALL(IF($A$7:$A$10000=A88,$I$7:$I$10000),3)=I88,SMALL(IF($A$7:$A$10000=A88,$I$7:$I$10000),3),""))))) -> 
A89: 100595326 | B89: Sale (AUS) 24th Dec | C89: Sale | D89: 2012-12-24T13:36:00 | E89: TO BE PLACED | F89: 2013-01-04T08:29:16 | G89: 8. De Master | H89: 2012-12-24T13:42:46 | I89: 2.08 | J89: 2012-12-24T13:37:36 | K89: 2012-12-24T13:37:36 | L89: NI | M89: 2 | N89: 1166.54 | O89: 7 | P89: 6934729 | Q89: 1 | Y89: =IF(A89="","",IF(E89="to be placed","",IF(MIN(IF($A$7:$A$10000=A89,$I$7:$I$10000))=I89,MIN(IF($A$7:$A$10000=A89,$I$7:$I$10000)),""))) ->  | AB89: =IF($A89="","",IF($E89="to be placed","",IF(MIN(IF($A$7:$A$10000=A89,$I$7:$I$10000))=I89,MIN(IF($A$7:$A$10000=A89,$I$7:$I$10000)),IF(SMALL(IF($A$7:$A$10000=A89,$I$7:$I$10000),2)=I89,SMALL(IF($A$7:$A$10000=A89,$I$7:$I$10000),2),"")))) ->  | AF89: =IF($A89="","",IF($E89="to be placed","",IF(MIN(IF($A$7:$A$10000=A89,$I$7:$I$10000))=I89,MIN(IF($A$7:$A$10000=A89,$I$7:$I$10000)),IF(SMALL(IF($A$7:$A$10000=A89,$I$7:$I$10000),2)=I89,SMALL(IF($A$7:$A$10000=A89,$I$7:$I$10000),2),IF(SMALL(IF($A$7:$A$10000=A89,$I$7:$I$10000),3)=I89,SMALL(IF($A$7:$A$10000=A89,$I$7:$I$10000),3),""))))) -> 
A90: 100595326 | B90: Sale (AUS) 24th Dec | C90: Sale | D90: 2012-12-24T13:36:00 | E90: TO BE PLACED | F90: 2013-01-04T08:29:16 | G90: 9. In Flight Mode | H90: 2012-12-24T13:42:46 | I90: 7.2 | J90: 2012-12-24T13:36:29 | K90: 2012-12-24T13:36:29 | L90: NI | M90: 3 | N90: 96.02 | O90: 7 | P90: 6934730 | Q90: 0 | Y90: =IF(A90="","",IF(E90="to be placed","",IF(MIN(IF($A$7:$A$10000=A90,$I$7:$I$10000))=I90,MIN(IF($A$7:$A$10000=A90,$I$7:$I$10000)),""))) ->  | AB90: =IF($A90="","",IF($E90="to be placed","",IF(MIN(IF($A$7:$A$10000=A90,$I$7:$I$10000))=I90,MIN(IF($A$7:$A$10000=A90,$I$7:$I$10000)),IF(SMALL(IF($A$7:$A$10000=A90,$I$7:$I$10000),2)=I90,SMALL(IF($A$7:$A$10000=A90,$I$7:$I$10000),2),"")))) ->  | AF90: =IF($A90="","",IF($E90="to be placed","",IF(MIN(IF($A$7:$A$10000=A90,$I$7:$I$10000))=I90,MIN(IF($A$7:$A$10000=A90,$I$7:$I$10000)),IF(SMALL(IF($A$7:$A$10000=A90,$I$7:$I$10000),2)=I90,SMALL(IF($A$7:$A$10000=A90,$I$7:$I$10000),2),IF(SMALL(IF($A$7:$A$10000=A90,$I$7:$I$10000),3)=I90,SMALL(IF($A$7:$A$10000=A90,$I$7:$I$10000),3),""))))) -> 
A91: 100595326 | B91: Sale (AUS) 24th Dec | C91: Sale | D91: 2012-12-24T13:36:00 | E91: TO BE PLACED | F91: 2013-01-04T08:29:16 | G91: 11. Joy Of Gold | H91: 2012-12-24T13:42:46 | I91: 34 | J91: 2012-12-24T13:38:07 | K91: 2012-12-24T13:36:46 | L91: NI | M91: 6 | N91: 32.2 | O91: 7 | P91: 6934731 | Q91: 0 | Y91: =IF(A91="","",IF(E91="to be placed","",IF(MIN(IF($A$7:$A$10000=A91,$I$7:$I$10000))=I91,MIN(IF($A$7:$A$10000=A91,$I$7:$I$10000)),""))) ->  | AB91: =IF($A91="","",IF($E91="to be placed","",IF(MIN(IF($A$7:$A$10000=A91,$I$7:$I$10000))=I91,MIN(IF($A$7:$A$10000=A91,$I$7:$I$10000)),IF(SMALL(IF($A$7:$A$10000=A91,$I$7:$I$10000),2)=I91,SMALL(IF($A$7:$A$10000=A91,$I$7:$I$10000),2),"")))) ->  | AF91: =IF($A91="","",IF($E91="to be placed","",IF(MIN(IF($A$7:$A$10000=A91,$I$7:$I$10000))=I91,MIN(IF($A$7:$A$10000=A91,$I$7:$I$10000)),IF(SMALL(IF($A$7:$A$10000=A91,$I$7:$I$10000),2)=I91,SMALL(IF($A$7:$A$10000=A91,$I$7:$I$10000),2),IF(SMALL(IF($A$7:$A$10000=A91,$I$7:$I$10000),3)=I91,SMALL(IF($A$7:$A$10000=A91,$I$7:$I$10000),3),""))))) -> 
A92: 100595327 | B92: Sale (AUS) 24th Dec | C92: Sale | D92: 2012-12-24T13:36:00 | E92: R2 1200m Mdn | F92: 2012-12-24T13:38:13 | G92: 3. Chad | H92: 2012-12-24T13:41:50 | I92: 4 | J92: 2012-12-24T13:38:12 | K92: 2012-12-24T13:32:17 | L92: PE | M92: 72 | N92: 11222.84 | O92: 7 | P92: 5167440 | Q92: 0 | S92: 33.33333333 | V92: 1 | W92: =IF($D92="","",IF($E92="to be placed","",IF(AND($A92<>$A93,SUMIF($A$7:$A$10000,$A92,V$7:V$10000)>0),SUMIF($A$7:$A$10000,$A92,V$7:V$10000)*(1-$T$1),IF($A92<>$A93,SUMIF($A$7:$A$10000,$A92,V$7:V$10000),"")))) ->  | Y92: =IF(A92="","",IF(E92="to be placed","",IF(MIN(IF($A$7:$A$10000=A92,$I$7:$I$10000))=I92,MIN(IF($A$7:$A$10000=A92,$I$7:$I$10000)),""))) -> 4 | Z92: 0.935 | AB92: =IF($A92="","",IF($E92="to be placed","",IF(MIN(IF($A$7:$A$10000=A92,$I$7:$I$10000))=I92,MIN(IF($A$7:$A$10000=A92,$I$7:$I$10000)),IF(SMALL(IF($A$7:$A$10000=A92,$I$7:$I$10000),2)=I92,SMALL(IF($A$7:$A$10000=A92,$I$7:$I$10000),2),"")))) -> 4 | AC92: 0.935 | AF92: =IF($A92="","",IF($E92="to be placed","",IF(MIN(IF($A$7:$A$10000=A92,$I$7:$I$10000))=I92,MIN(IF($A$7:$A$10000=A92,$I$7:$I$10000)),IF(SMALL(IF($A$7:$A$10000=A92,$I$7:$I$10000),2)=I92,SMALL(IF($A$7:$A$10000=A92,$I$7:$I$10000),2),IF(SMALL(IF($A$7:$A$10000=A92,$I$7:$I$10000),3)=I92,SMALL(IF($A$7:$A$10000=A92,$I$7:$I$10000),3),""))))) -> 4 | AG92: 0.935
A93: 100595327 | B93: Sale (AUS) 24th Dec | C93: Sale | D93: 2012-12-24T13:36:00 | E93: R2 1200m Mdn | F93: 2012-12-24T13:38:13 | G93: 10. Beleven | H93: 2012-12-24T13:41:50 | I93: 48 | J93: 2012-12-24T13:37:56 | K93: 2012-12-24T13:32:44 | L93: PE | M93: 11 | N93: 253.7 | O93: 7 | P93: 5929589 | Q93: 0 | S93: 2.127659574 | Y93: =IF(A93="","",IF(E93="to be placed","",IF(MIN(IF($A$7:$A$10000=A93,$I$7:$I$10000))=I93,MIN(IF($A$7:$A$10000=A93,$I$7:$I$10000)),""))) ->  | AB93: =IF($A93="","",IF($E93="to be placed","",IF(MIN(IF($A$7:$A$10000=A93,$I$7:$I$10000))=I93,MIN(IF($A$7:$A$10000=A93,$I$7:$I$10000)),IF(SMALL(IF($A$7:$A$10000=A93,$I$7:$I$10000),2)=I93,SMALL(IF($A$7:$A$10000=A93,$I$7:$I$10000),2),"")))) ->  | AF93: =IF($A93="","",IF($E93="to be placed","",IF(MIN(IF($A$7:$A$10000=A93,$I$7:$I$10000))=I93,MIN(IF($A$7:$A$10000=A93,$I$7:$I$10000)),IF(SMALL(IF($A$7:$A$10000=A93,$I$7:$I$10000),2)=I93,SMALL(IF($A$7:$A$10000=A93,$I$7:$I$10000),2),IF(SMALL(IF($A$7:$A$10000=A93,$I$7:$I$10000),3)=I93,SMALL(IF($A$7:$A$10000=A93,$I$7:$I$10000),3),""))))) -> 
A94: 100595327 | B94: Sale (AUS) 24th Dec | C94: Sale | D94: 2012-12-24T13:36:00 | E94: R2 1200m Mdn | F94: 2012-12-24T13:38:13 | G94: 5. Gold Rises | H94: 2012-12-24T13:41:50 | I94: 5.8 | J94: 2012-12-24T13:38:12 | K94: 2012-12-24T13:28:14 | L94: PE | M94: 34 | N94: 3148.24 | O94: 7 | P94: 6294939 | Q94: 0 | S94: 20.83333333 | V94: 1 | Y94: =IF(A94="","",IF(E94="to be placed","",IF(MIN(IF($A$7:$A$10000=A94,$I$7:$I$10000))=I94,MIN(IF($A$7:$A$10000=A94,$I$7:$I$10000)),""))) ->  | AB94: =IF($A94="","",IF($E94="to be placed","",IF(MIN(IF($A$7:$A$10000=A94,$I$7:$I$10000))=I94,MIN(IF($A$7:$A$10000=A94,$I$7:$I$10000)),IF(SMALL(IF($A$7:$A$10000=A94,$I$7:$I$10000),2)=I94,SMALL(IF($A$7:$A$10000=A94,$I$7:$I$10000),2),"")))) ->  | AF94: =IF($A94="","",IF($E94="to be placed","",IF(MIN(IF($A$7:$A$10000=A94,$I$7:$I$10000))=I94,MIN(IF($A$7:$A$10000=A94,$I$7:$I$10000)),IF(SMALL(IF($A$7:$A$10000=A94,$I$7:$I$10000),2)=I94,SMALL(IF($A$7:$A$10000=A94,$I$7:$I$10000),2),IF(SMALL(IF($A$7:$A$10000=A94,$I$7:$I$10000),3)=I94,SMALL(IF($A$7:$A$10000=A94,$I$7:$I$10000),3),""))))) -> 5.8 | AG94: 0.935
A95: 100595327 | B95: Sale (AUS) 24th Dec | C95: Sale | D95: 2012-12-24T13:36:00 | E95: R2 1200m Mdn | F95: 2012-12-24T13:38:13 | G95: 2. Biscay Diamond | H95: 2012-12-24T13:41:50 | I95: 50 | J95: 2012-12-24T13:37:55 | K95: 2012-12-24T13:36:57 | L95: PE | M95: 9 | N95: 219.88 | O95: 7 | P95: 6303390 | Q95: 0 | S95: 2.040816327 | Y95: =IF(A95="","",IF(E95="to be placed","",IF(MIN(IF($A$7:$A$10000=A95,$I$7:$I$10000))=I95,MIN(IF($A$7:$A$10000=A95,$I$7:$I$10000)),""))) ->  | AB95: =IF($A95="","",IF($E95="to be placed","",IF(MIN(IF($A$7:$A$10000=A95,$I$7:$I$10000))=I95,MIN(IF($A$7:$A$10000=A95,$I$7:$I$10000)),IF(SMALL(IF($A$7:$A$10000=A95,$I$7:$I$10000),2)=I95,SMALL(IF($A$7:$A$10000=A95,$I$7:$I$10000),2),"")))) ->  | AF95: =IF($A95="","",IF($E95="to be placed","",IF(MIN(IF($A$7:$A$10000=A95,$I$7:$I$10000))=I95,MIN(IF($A$7:$A$10000=A95,$I$7:$I$10000)),IF(SMALL(IF($A$7:$A$10000=A95,$I$7:$I$10000),2)=I95,SMALL(IF($A$7:$A$10000=A95,$I$7:$I$10000),2),IF(SMALL(IF($A$7:$A$10000=A95,$I$7:$I$10000),3)=I95,SMALL(IF($A$7:$A$10000=A95,$I$7:$I$10000),3),""))))) -> 
A96: 100595327 | B96: Sale (AUS) 24th Dec | C96: Sale | D96: 2012-12-24T13:36:00 | E96: R2 1200m Mdn | F96: 2012-12-24T13:38:13 | G96: 1. Belli Laugh | H96: 2012-12-24T13:41:50 | I96: 6.6 | J96: 2012-12-24T13:38:12 | K96: 2012-12-24T13:30:02 | L96: PE | M96: 92 | N96: 5610 | O96: 7 | P96: 6373816 | Q96: 0 | S96: 17.85714286 | V96: 1 | Y96: =IF(A96="","",IF(E96="to be placed","",IF(MIN(IF($A$7:$A$10000=A96,$I$7:$I$10000))=I96,MIN(IF($A$7:$A$10000=A96,$I$7:$I$10000)),""))) ->  | AB96: =IF($A96="","",IF($E96="to be placed","",IF(MIN(IF($A$7:$A$10000=A96,$I$7:$I$10000))=I96,MIN(IF($A$7:$A$10000=A96,$I$7:$I$10000)),IF(SMALL(IF($A$7:$A$10000=A96,$I$7:$I$10000),2)=I96,SMALL(IF($A$7:$A$10000=A96,$I$7:$I$10000),2),"")))) ->  | AF96: =IF($A96="","",IF($E96="to be placed","",IF(MIN(IF($A$7:$A$10000=A96,$I$7:$I$10000))=I96,MIN(IF($A$7:$A$10000=A96,$I$7:$I$10000)),IF(SMALL(IF($A$7:$A$10000=A96,$I$7:$I$10000),2)=I96,SMALL(IF($A$7:$A$10000=A96,$I$7:$I$10000),2),IF(SMALL(IF($A$7:$A$10000=A96,$I$7:$I$10000),3)=I96,SMALL(IF($A$7:$A$10000=A96,$I$7:$I$10000),3),""))))) -> 
A97: 100595327 | B97: Sale (AUS) 24th Dec | C97: Sale | D97: 2012-12-24T13:36:00 | E97: R2 1200m Mdn | F97: 2012-12-24T13:38:13 | G97: 4. El Mandoma | H97: 2012-12-24T13:41:50 | I97: 5.7 | J97: 2012-12-24T13:38:05 | K97: 2012-12-24T13:35:05 | L97: PE | M97: 12 | N97: 3204.54 | O97: 7 | P97: 6934726 | Q97: 0 | S97: 21.27659574 | V97: 1 | Y97: =IF(A97="","",IF(E97="to be placed","",IF(MIN(IF($A$7:$A$10000=A97,$I$7:$I$10000))=I97,MIN(IF($A$7:$A$10000=A97,$I$7:$I$10000)),""))) ->  | AB97: =IF($A97="","",IF($E97="to be placed","",IF(MIN(IF($A$7:$A$10000=A97,$I$7:$I$10000))=I97,MIN(IF($A$7:$A$10000=A97,$I$7:$I$10000)),IF(SMALL(IF($A$7:$A$10000=A97,$I$7:$I$10000),2)=I97,SMALL(IF($A$7:$A$10000=A97,$I$7:$I$10000),2),"")))) -> 5.7 | AC97: 0.935 | AF97: =IF($A97="","",IF($E97="to be placed","",IF(MIN(IF($A$7:$A$10000=A97,$I$7:$I$10000))=I97,MIN(IF($A$7:$A$10000=A97,$I$7:$I$10000)),IF(SMALL(IF($A$7:$A$10000=A97,$I$7:$I$10000),2)=I97,SMALL(IF($A$7:$A$10000=A97,$I$7:$I$10000),2),IF(SMALL(IF($A$7:$A$10000=A97,$I$7:$I$10000),3)=I97,SMALL(IF($A$7:$A$10000=A97,$I$7:$I$10000),3),""))))) -> 5.7 | AG97: 0.935
A98: 100595327 | B98: Sale (AUS) 24th Dec | C98: Sale | D98: 2012-12-24T13:36:00 | E98: R2 1200m Mdn | F98: 2012-12-24T13:38:13 | G98: 7. Sky Gambler | H98: 2012-12-24T13:41:50 | I98: 55 | J98: 2012-12-24T13:37:35 | K98: 2012-12-24T13:37:33 | L98: PE | M98: 4 | N98: 539.76 | O98: 7 | P98: 6934728 | Q98: 0 | S98: 1.851851852 | Y98: =IF(A98="","",IF(E98="to be placed","",IF(MIN(IF($A$7:$A$10000=A98,$I$7:$I$10000))=I98,MIN(IF($A$7:$A$10000=A98,$I$7:$I$10000)),""))) ->  | AB98: =IF($A98="","",IF($E98="to be placed","",IF(MIN(IF($A$7:$A$10000=A98,$I$7:$I$10000))=I98,MIN(IF($A$7:$A$10000=A98,$I$7:$I$10000)),IF(SMALL(IF($A$7:$A$10000=A98,$I$7:$I$10000),2)=I98,SMALL(IF($A$7:$A$10000=A98,$I$7:$I$10000),2),"")))) ->  | AF98: =IF($A98="","",IF($E98="to be placed","",IF(MIN(IF($A$7:$A$10000=A98,$I$7:$I$10000))=I98,MIN(IF($A$7:$A$10000=A98,$I$7:$I$10000)),IF(SMALL(IF($A$7:$A$10000=A98,$I$7:$I$10000),2)=I98,SMALL(IF($A$7:$A$10000=A98,$I$7:$I$10000),2),IF(SMALL(IF($A$7:$A$10000=A98,$I$7:$I$10000),3)=I98,SMALL(IF($A$7:$A$10000=A98,$I$7:$I$10000),3),""))))) -> 
A99: 100595327 | B99: Sale (AUS) 24th Dec | C99: Sale | D99: 2012-12-24T13:36:00 | E99: R2 1200m Mdn | F99: 2012-12-24T13:38:13 | G99: 8. De Master | H99: 2012-12-24T13:41:50 | I99: 6 | J99: 2012-12-24T13:38:12 | K99: 2012-12-24T13:37:16 | L99: PE | M99: 11 | N99: 5988.2 | O99: 7 | P99: 6934729 | Q99: 1 | S99: -100 | V99: -5 | Y99: =IF(A99="","",IF(E99="to be placed","",IF(MIN(IF($A$7:$A$10000=A99,$I$7:$I$10000))=I99,MIN(IF($A$7:$A$10000=A99,$I$7:$I$10000)),""))) ->  | AB99: =IF($A99="","",IF($E99="to be placed","",IF(MIN(IF($A$7:$A$10000=A99,$I$7:$I$10000))=I99,MIN(IF($A$7:$A$10000=A99,$I$7:$I$10000)),IF(SMALL(IF($A$7:$A$10000=A99,$I$7:$I$10000),2)=I99,SMALL(IF($A$7:$A$10000=A99,$I$7:$I$10000),2),"")))) ->  | AF99: =IF($A99="","",IF($E99="to be placed","",IF(MIN(IF($A$7:$A$10000=A99,$I$7:$I$10000))=I99,MIN(IF($A$7:$A$10000=A99,$I$7:$I$10000)),IF(SMALL(IF($A$7:$A$10000=A99,$I$7:$I$10000),2)=I99,SMALL(IF($A$7:$A$10000=A99,$I$7:$I$10000),2),IF(SMALL(IF($A$7:$A$10000=A99,$I$7:$I$10000),3)=I99,SMALL(IF($A$7:$A$10000=A99,$I$7:$I$10000),3),""))))) -> 
A100: 100595327 | B100: Sale (AUS) 24th Dec | C100: Sale | D100: 2012-12-24T13:36:00 | E100: R2 1200m Mdn | F100: 2012-12-24T13:38:13 | G100: 9. In Flight Mode | H100: 2012-12-24T13:41:50 | I100: 32 | J100: 2012-12-24T13:38:12 | K100: 2012-12-24T13:30:59 | L100: PE | M100: 28 | N100: 1240.1 | O100: 7 | P100: 6934730 | Q100: 0 | S100: 3.225806452 | Y100: =IF(A100="","",IF(E100="to be placed","",IF(MIN(IF($A$7:$A$10000=A100,$I$7:$I$10000))=I100,MIN(IF($A$7:$A$10000=A100,$I$7:$I$10000)),""))) ->  | AB100: =IF($A100="","",IF($E100="to be placed","",IF(MIN(IF($A$7:$A$10000=A100,$I$7:$I$10000))=I100,MIN(IF($A$7:$A$10000=A100,$I$7:$I$10000)),IF(SMALL(IF($A$7:$A$10000=A100,$I$7:$I$10000),2)=I100,SMALL(IF($A$7:$A$10000=A100,$I$7:$I$10000),2),"")))) ->  | AF100: =IF($A100="","",IF($E100="to be placed","",IF(MIN(IF($A$7:$A$10000=A100,$I$7:$I$10000))=I100,MIN(IF($A$7:$A$10000=A100,$I$7:$I$10000)),IF(SMALL(IF($A$7:$A$10000=A100,$I$7:$I$10000),2)=I100,SMALL(IF($A$7:$A$10000=A100,$I$7:$I$10000),2),IF(SMALL(IF($A$7:$A$10000=A100,$I$7:$I$10000),3)=I100,SMALL(IF($A$7:$A$10000=A100,$I$7:$I$10000),3),""))))) -> 
A101: 100595327 | B101: Sale (AUS) 24th Dec | C101: Sale | D101: 2012-12-24T13:36:00 | E101: R2 1200m Mdn | F101: 2012-12-24T13:38:13 | G101: 11. Joy Of Gold | H101: 2012-12-24T13:41:50 | I101: 160 | J101: 2012-12-24T13:37:48 | K101: 2012-12-24T13:28:45 | L101: PE | M101: 7 | N101: 152.72 | O101: 7 | P101: 6934731 | Q101: 0 | S101: 0.6289308176 | T101: 2.969064722 | W101: -1 | Y101: =IF(A101="","",IF(E101="to be placed","",IF(MIN(IF($A$7:$A$10000=A101,$I$7:$I$10000))=I101,MIN(IF($A$7:$A$10000=A101,$I$7:$I$10000)),""))) ->  | AB101: =IF($A101="","",IF($E101="to be placed","",IF(MIN(IF($A$7:$A$10000=A101,$I$7:$I$10000))=I101,MIN(IF($A$7:$A$10000=A101,$I$7:$I$10000)),IF(SMALL(IF($A$7:$A$10000=A101,$I$7:$I$10000),2)=I101,SMALL(IF($A$7:$A$10000=A101,$I$7:$I$10000),2),"")))) ->  | AD101: 1.74845 | AF101: =IF($A101="","",IF($E101="to be placed","",IF(MIN(IF($A$7:$A$10000=A101,$I$7:$I$10000))=I101,MIN(IF($A$7:$A$10000=A101,$I$7:$I$10000)),IF(SMALL(IF($A$7:$A$10000=A101,$I$7:$I$10000),2)=I101,SMALL(IF($A$7:$A$10000=A101,$I$7:$I$10000),2),IF(SMALL(IF($A$7:$A$10000=A101,$I$7:$I$10000),3)=I101,SMALL(IF($A$7:$A$10000=A101,$I$7:$I$10000),3),""))))) ->  | AH101: 2.622675
A102: 100595362 | B102: Goul (AUS) 24th Dec | C102: Goul | D102: 2012-12-24T13:40:00 | E102: R2 1710m Pace M | F102: 2013-01-04T08:29:17 | G102: 4. Intersects | H102: 2012-12-24T13:47:23 | I102: 16 | J102: 2012-12-24T13:41:03 | K102: 2012-12-24T13:40:51 | L102: NI | M102: 5 | N102: 670.54 | O102: 7 | P102: 4879409 | Q102: 0 | S102: 6.666666667 | V102: 1 | Y102: =IF(A102="","",IF(E102="to be placed","",IF(MIN(IF($A$7:$A$10000=A102,$I$7:$I$10000))=I102,MIN(IF($A$7:$A$10000=A102,$I$7:$I$10000)),""))) ->  | AB102: =IF($A102="","",IF($E102="to be placed","",IF(MIN(IF($A$7:$A$10000=A102,$I$7:$I$10000))=I102,MIN(IF($A$7:$A$10000=A102,$I$7:$I$10000)),IF(SMALL(IF($A$7:$A$10000=A102,$I$7:$I$10000),2)=I102,SMALL(IF($A$7:$A$10000=A102,$I$7:$I$10000),2),"")))) ->  | AF102: =IF($A102="","",IF($E102="to be placed","",IF(MIN(IF($A$7:$A$10000=A102,$I$7:$I$10000))=I102,MIN(IF($A$7:$A$10000=A102,$I$7:$I$10000)),IF(SMALL(IF($A$7:$A$10000=A102,$I$7:$I$10000),2)=I102,SMALL(IF($A$7:$A$10000=A102,$I$7:$I$10000),2),IF(SMALL(IF($A$7:$A$10000=A102,$I$7:$I$10000),3)=I102,SMALL(IF($A$7:$A$10000=A102,$I$7:$I$10000),3),""))))) -> 
A103: 100595362 | B103: Goul (AUS) 24th Dec | C103: Goul | D103: 2012-12-24T13:40:00 | E103: R2 1710m Pace M | F103: 2013-01-04T08:29:17 | G103: 2. Threemacsnacastle | H103: 2012-12-24T13:47:23 | I103: 27 | J103: 2012-12-24T13:41:03 | K103: 2012-12-24T13:40:09 | L103: NI | M103: 7 | N103: 182.96 | O103: 7 | P103: 5055461 | Q103: 0 | S103: 3.846153846 | Y103: =IF(A103="","",IF(E103="to be placed","",IF(MIN(IF($A$7:$A$10000=A103,$I$7:$I$10000))=I103,MIN(IF($A$7:$A$10000=A103,$I$7:$I$10000)),""))) ->  | AB103: =IF($A103="","",IF($E103="to be placed","",IF(MIN(IF($A$7:$A$10000=A103,$I$7:$I$10000))=I103,MIN(IF($A$7:$A$10000=A103,$I$7:$I$10000)),IF(SMALL(IF($A$7:$A$10000=A103,$I$7:$I$10000),2)=I103,SMALL(IF($A$7:$A$10000=A103,$I$7:$I$10000),2),"")))) ->  | AF103: =IF($A103="","",IF($E103="to be placed","",IF(MIN(IF($A$7:$A$10000=A103,$I$7:$I$10000))=I103,MIN(IF($A$7:$A$10000=A103,$I$7:$I$10000)),IF(SMALL(IF($A$7:$A$10000=A103,$I$7:$I$10000),2)=I103,SMALL(IF($A$7:$A$10000=A103,$I$7:$I$10000),2),IF(SMALL(IF($A$7:$A$10000=A103,$I$7:$I$10000),3)=I103,SMALL(IF($A$7:$A$10000=A103,$I$7:$I$10000),3),""))))) -> 
A104: 100595362 | B104: Goul (AUS) 24th Dec | C104: Goul | D104: 2012-12-24T13:40:00 | E104: R2 1710m Pace M | F104: 2013-01-04T08:29:17 | G104: 6. Ultra Bullville | H104: 2012-12-24T13:47:23 | I104: 210 | J104: 2012-12-24T13:40:49 | K104: 2012-12-24T13:40:47 | L104: NI | M104: 8 | N104: 8.48 | O104: 7 | P104: 5223661 | Q104: 0 | S104: 0.4784688995 | Y104: =IF(A104="","",IF(E104="to be placed","",IF(MIN(IF($A$7:$A$10000=A104,$I$7:$I$10000))=I104,MIN(IF($A$7:$A$10000=A104,$I$7:$I$10000)),""))) ->  | AB104: =IF($A104="","",IF($E104="to be placed","",IF(MIN(IF($A$7:$A$10000=A104,$I$7:$I$10000))=I104,MIN(IF($A$7:$A$10000=A104,$I$7:$I$10000)),IF(SMALL(IF($A$7:$A$10000=A104,$I$7:$I$10000),2)=I104,SMALL(IF($A$7:$A$10000=A104,$I$7:$I$10000),2),"")))) ->  | AF104: =IF($A104="","",IF($E104="to be placed","",IF(MIN(IF($A$7:$A$10000=A104,$I$7:$I$10000))=I104,MIN(IF($A$7:$A$10000=A104,$I$7:$I$10000)),IF(SMALL(IF($A$7:$A$10000=A104,$I$7:$I$10000),2)=I104,SMALL(IF($A$7:$A$10000=A104,$I$7:$I$10000),2),IF(SMALL(IF($A$7:$A$10000=A104,$I$7:$I$10000),3)=I104,SMALL(IF($A$7:$A$10000=A104,$I$7:$I$10000),3),""))))) -> 
A105: 100595362 | B105: Goul (AUS) 24th Dec | C105: Goul | D105: 2012-12-24T13:40:00 | E105: R2 1710m Pace M | F105: 2013-01-04T08:29:17 | G105: 8. Kenneth Lloyd | H105: 2012-12-24T13:47:23 | I105: 55 | J105: 2012-12-24T13:41:05 | K105: 2012-12-24T13:41:05 | L105: NI | M105: 2 | N105: 84.3 | O105: 7 | P105: 5972395 | Q105: 0 | S105: 1.851851852 | Y105: =IF(A105="","",IF(E105="to be placed","",IF(MIN(IF($A$7:$A$10000=A105,$I$7:$I$10000))=I105,MIN(IF($A$7:$A$10000=A105,$I$7:$I$10000)),""))) ->  | AB105: =IF($A105="","",IF($E105="to be placed","",IF(MIN(IF($A$7:$A$10000=A105,$I$7:$I$10000))=I105,MIN(IF($A$7:$A$10000=A105,$I$7:$I$10000)),IF(SMALL(IF($A$7:$A$10000=A105,$I$7:$I$10000),2)=I105,SMALL(IF($A$7:$A$10000=A105,$I$7:$I$10000),2),"")))) ->  | AF105: =IF($A105="","",IF($E105="to be placed","",IF(MIN(IF($A$7:$A$10000=A105,$I$7:$I$10000))=I105,MIN(IF($A$7:$A$10000=A105,$I$7:$I$10000)),IF(SMALL(IF($A$7:$A$10000=A105,$I$7:$I$10000),2)=I105,SMALL(IF($A$7:$A$10000=A105,$I$7:$I$10000),2),IF(SMALL(IF($A$7:$A$10000=A105,$I$7:$I$10000),3)=I105,SMALL(IF($A$7:$A$10000=A105,$I$7:$I$10000),3),""))))) -> 
A106: 100595362 | B106: Goul (AUS) 24th Dec | C106: Goul | D106: 2012-12-24T13:40:00 | E106: R2 1710m Pace M | F106: 2013-01-04T08:29:17 | G106: 7. Nelson County | H106: 2012-12-24T13:47:23 | I106: 12 | J106: 2012-12-24T13:41:03 | K106: 2012-12-24T13:40:43 | L106: NI | M106: 13 | N106: 262.18 | O106: 7 | P106: 6081937 | Q106: 0 | S106: 9.090909091 | V106: 1 | Y106: =IF(A106="","",IF(E106="to be placed","",IF(MIN(IF($A$7:$A$10000=A106,$I$7:$I$10000))=I106,MIN(IF($A$7:$A$10000=A106,$I$7:$I$10000)),""))) ->  | AB106: =IF($A106="","",IF($E106="to be placed","",IF(MIN(IF($A$7:$A$10000=A106,$I$7:$I$10000))=I106,MIN(IF($A$7:$A$10000=A106,$I$7:$I$10000)),IF(SMALL(IF($A$7:$A$10000=A106,$I$7:$I$10000),2)=I106,SMALL(IF($A$7:$A$10000=A106,$I$7:$I$10000),2),"")))) ->  | AF106: =IF($A106="","",IF($E106="to be placed","",IF(MIN(IF($A$7:$A$10000=A106,$I$7:$I$10000))=I106,MIN(IF($A$7:$A$10000=A106,$I$7:$I$10000)),IF(SMALL(IF($A$7:$A$10000=A106,$I$7:$I$10000),2)=I106,SMALL(IF($A$7:$A$10000=A106,$I$7:$I$10000),2),IF(SMALL(IF($A$7:$A$10000=A106,$I$7:$I$10000),3)=I106,SMALL(IF($A$7:$A$10000=A106,$I$7:$I$10000),3),""))))) -> 12 | AG106: 0.935
A107: 100595362 | B107: Goul (AUS) 24th Dec | C107: Goul | D107: 2012-12-24T13:40:00 | E107: R2 1710m Pace M | F107: 2013-01-04T08:29:17 | G107: 5. Bluechip Pyrenees | H107: 2012-12-24T13:47:23 | I107: 42 | J107: 2012-12-24T13:40:49 | K107: 2012-12-24T13:40:12 | L107: NI | M107: 7 | N107: 34.44 | O107: 7 | P107: 6145109 | Q107: 0 | S107: 2.43902439 | Y107: =IF(A107="","",IF(E107="to be placed","",IF(MIN(IF($A$7:$A$10000=A107,$I$7:$I$10000))=I107,MIN(IF($A$7:$A$10000=A107,$I$7:$I$10000)),""))) ->  | AB107: =IF($A107="","",IF($E107="to be placed","",IF(MIN(IF($A$7:$A$10000=A107,$I$7:$I$10000))=I107,MIN(IF($A$7:$A$10000=A107,$I$7:$I$10000)),IF(SMALL(IF($A$7:$A$10000=A107,$I$7:$I$10000),2)=I107,SMALL(IF($A$7:$A$10000=A107,$I$7:$I$10000),2),"")))) ->  | AF107: =IF($A107="","",IF($E107="to be placed","",IF(MIN(IF($A$7:$A$10000=A107,$I$7:$I$10000))=I107,MIN(IF($A$7:$A$10000=A107,$I$7:$I$10000)),IF(SMALL(IF($A$7:$A$10000=A107,$I$7:$I$10000),2)=I107,SMALL(IF($A$7:$A$10000=A107,$I$7:$I$10000),2),IF(SMALL(IF($A$7:$A$10000=A107,$I$7:$I$10000),3)=I107,SMALL(IF($A$7:$A$10000=A107,$I$7:$I$10000),3),""))))) -> 
A108: 100595362 | B108: Goul (AUS) 24th Dec | C108: Goul | D108: 2012-12-24T13:40:00 | E108: R2 1710m Pace M | F108: 2013-01-04T08:29:17 | G108: 1. Flyin Crusa | H108: 2012-12-24T13:47:23 | I108: 2 | J108: 2012-12-24T13:41:05 | K108: 2012-12-24T13:41:00 | L108: NI | M108: 5 | N108: 3688.56 | O108: 7 | P108: 6501067 | Q108: 1 | S108: -100 | V108: -1 | Y108: =IF(A108="","",IF(E108="to be placed","",IF(MIN(IF($A$7:$A$10000=A108,$I$7:$I$10000))=I108,MIN(IF($A$7:$A$10000=A108,$I$7:$I$10000)),""))) -> 2 | Z108: -1 | AB108: =IF($A108="","",IF($E108="to be placed","",IF(MIN(IF($A$7:$A$10000=A108,$I$7:$I$10000))=I108,MIN(IF($A$7:$A$10000=A108,$I$7:$I$10000)),IF(SMALL(IF($A$7:$A$10000=A108,$I$7:$I$10000),2)=I108,SMALL(IF($A$7:$A$10000=A108,$I$7:$I$10000),2),"")))) -> 2 | AC108: -1 | AF108: =IF($A108="","",IF($E108="to be placed","",IF(MIN(IF($A$7:$A$10000=A108,$I$7:$I$10000))=I108,MIN(IF($A$7:$A$10000=A108,$I$7:$I$10000)),IF(SMALL(IF($A$7:$A$10000=A108,$I$7:$I$10000),2)=I108,SMALL(IF($A$7:$A$10000=A108,$I$7:$I$10000),2),IF(SMALL(IF($A$7:$A$10000=A108,$I$7:$I$10000),3)=I108,SMALL(IF($A$7:$A$10000=A108,$I$7:$I$10000),3),""))))) -> 2 | AG108: -1
A109: 100595362 | B109: Goul (AUS) 24th Dec | C109: Goul | D109: 2012-12-24T13:40:00 | E109: R2 1710m Pace M | F109: 2013-01-04T08:29:17 | G109: 3. Cheap Miss | H109: 2012-12-24T13:47:23 | I109: 3.2 | J109: 2012-12-24T13:41:02 | K109: 2012-12-24T13:40:56 | L109: NI | M109: 4 | N109: 1566.96 | O109: 7 | P109: 6556404 | Q109: 0 | S109: 45.45454545 | T109: -30.1723798 | V109: 1 | W109: 1.87 | Y109: =IF(A109="","",IF(E109="to be placed","",IF(MIN(IF($A$7:$A$10000=A109,$I$7:$I$10000))=I109,MIN(IF($A$7:$A$10000=A109,$I$7:$I$10000)),""))) ->  | AB109: =IF($A109="","",IF($E109="to be placed","",IF(MIN(IF($A$7:$A$10000=A109,$I$7:$I$10000))=I109,MIN(IF($A$7:$A$10000=A109,$I$7:$I$10000)),IF(SMALL(IF($A$7:$A$10000=A109,$I$7:$I$10000),2)=I109,SMALL(IF($A$7:$A$10000=A109,$I$7:$I$10000),2),"")))) -> 3.2 | AC109: 0.935 | AD109: -0.065 | AF109: =IF($A109="","",IF($E109="to be placed","",IF(MIN(IF($A$7:$A$10000=A109,$I$7:$I$10000))=I109,MIN(IF($A$7:$A$10000=A109,$I$7:$I$10000)),IF(SMALL(IF($A$7:$A$10000=A109,$I$7:$I$10000),2)=I109,SMALL(IF($A$7:$A$10000=A109,$I$7:$I$10000),2),IF(SMALL(IF($A$7:$A$10000=A109,$I$7:$I$10000),3)=I109,SMALL(IF($A$7:$A$10000=A109,$I$7:$I$10000),3),""))))) -> 3.2 | AG109: 0.935 | AH109: 0.81345
A110: 100595363 | B110: Goul (AUS) 24th Dec | C110: Goul | D110: 2012-12-24T13:40:00 | E110: TO BE PLACED | F110: 2013-01-04T08:29:17 | G110: 2. Threemacsnacastle | H110: 2012-12-24T13:47:45 | I110: 3.4 | J110: 2012-12-24T13:40:20 | K110: 2012-12-24T13:40:19 | L110: NI | M110: 3 | N110: 216.74 | O110: 7 | P110: 5055461 | Q110: 0 | Y110: =IF(A110="","",IF(E110="to be placed","",IF(MIN(IF($A$7:$A$10000=A110,$I$7:$I$10000))=I110,MIN(IF($A$7:$A$10000=A110,$I$7:$I$10000)),""))) ->  | AB110: =IF($A110="","",IF($E110="to be placed","",IF(MIN(IF($A$7:$A$10000=A110,$I$7:$I$10000))=I110,MIN(IF($A$7:$A$10000=A110,$I$7:$I$10000)),IF(SMALL(IF($A$7:$A$10000=A110,$I$7:$I$10000),2)=I110,SMALL(IF($A$7:$A$10000=A110,$I$7:$I$10000),2),"")))) ->  | AF110: =IF($A110="","",IF($E110="to be placed","",IF(MIN(IF($A$7:$A$10000=A110,$I$7:$I$10000))=I110,MIN(IF($A$7:$A$10000=A110,$I$7:$I$10000)),IF(SMALL(IF($A$7:$A$10000=A110,$I$7:$I$10000),2)=I110,SMALL(IF($A$7:$A$10000=A110,$I$7:$I$10000),2),IF(SMALL(IF($A$7:$A$10000=A110,$I$7:$I$10000),3)=I110,SMALL(IF($A$7:$A$10000=A110,$I$7:$I$10000),3),""))))) -> 
A111: 100595363 | B111: Goul (AUS) 24th Dec | C111: Goul | D111: 2012-12-24T13:40:00 | E111: TO BE PLACED | F111: 2013-01-04T08:29:17 | G111: 6. Ultra Bullville | H111: 2012-12-24T13:47:45 | I111: 7.8 | J111: 2012-12-24T13:40:35 | K111: 2012-12-24T13:40:35 | L111: NI | M111: 2 | N111: 6 | O111: 7 | P111: 5223661 | Q111: 0 | Y111: =IF(A111="","",IF(E111="to be placed","",IF(MIN(IF($A$7:$A$10000=A111,$I$7:$I$10000))=I111,MIN(IF($A$7:$A$10000=A111,$I$7:$I$10000)),""))) ->  | AB111: =IF($A111="","",IF($E111="to be placed","",IF(MIN(IF($A$7:$A$10000=A111,$I$7:$I$10000))=I111,MIN(IF($A$7:$A$10000=A111,$I$7:$I$10000)),IF(SMALL(IF($A$7:$A$10000=A111,$I$7:$I$10000),2)=I111,SMALL(IF($A$7:$A$10000=A111,$I$7:$I$10000),2),"")))) ->  | AF111: =IF($A111="","",IF($E111="to be placed","",IF(MIN(IF($A$7:$A$10000=A111,$I$7:$I$10000))=I111,MIN(IF($A$7:$A$10000=A111,$I$7:$I$10000)),IF(SMALL(IF($A$7:$A$10000=A111,$I$7:$I$10000),2)=I111,SMALL(IF($A$7:$A$10000=A111,$I$7:$I$10000),2),IF(SMALL(IF($A$7:$A$10000=A111,$I$7:$I$10000),3)=I111,SMALL(IF($A$7:$A$10000=A111,$I$7:$I$10000),3),""))))) -> 
A112: 100595363 | B112: Goul (AUS) 24th Dec | C112: Goul | D112: 2012-12-24T13:40:00 | E112: TO BE PLACED | F112: 2013-01-04T08:29:17 | G112: 5. Bluechip Pyrenees | H112: 2012-12-24T13:47:45 | I112: 8 | J112: 2012-12-24T13:40:39 | K112: 2012-12-24T13:40:39 | L112: NI | M112: 2 | N112: 38.6 | O112: 7 | P112: 6145109 | Q112: 0 | Y112: =IF(A112="","",IF(E112="to be placed","",IF(MIN(IF($A$7:$A$10000=A112,$I$7:$I$10000))=I112,MIN(IF($A$7:$A$10000=A112,$I$7:$I$10000)),""))) ->  | AB112: =IF($A112="","",IF($E112="to be placed","",IF(MIN(IF($A$7:$A$10000=A112,$I$7:$I$10000))=I112,MIN(IF($A$7:$A$10000=A112,$I$7:$I$10000)),IF(SMALL(IF($A$7:$A$10000=A112,$I$7:$I$10000),2)=I112,SMALL(IF($A$7:$A$10000=A112,$I$7:$I$10000),2),"")))) ->  | AF112: =IF($A112="","",IF($E112="to be placed","",IF(MIN(IF($A$7:$A$10000=A112,$I$7:$I$10000))=I112,MIN(IF($A$7:$A$10000=A112,$I$7:$I$10000)),IF(SMALL(IF($A$7:$A$10000=A112,$I$7:$I$10000),2)=I112,SMALL(IF($A$7:$A$10000=A112,$I$7:$I$10000),2),IF(SMALL(IF($A$7:$A$10000=A112,$I$7:$I$10000),3)=I112,SMALL(IF($A$7:$A$10000=A112,$I$7:$I$10000),3),""))))) -> 
A113: 100595363 | B113: Goul (AUS) 24th Dec | C113: Goul | D113: 2012-12-24T13:40:00 | E113: TO BE PLACED | F113: 2013-01-04T08:29:17 | G113: 1. Flyin Crusa | H113: 2012-12-24T13:47:45 | I113: 1.77 | J113: 2012-12-24T13:41:01 | K113: 2012-12-24T13:41:01 | L113: NI | M113: 3 | N113: 64.34 | O113: 7 | P113: 6501067 | Q113: 1 | Y113: =IF(A113="","",IF(E113="to be placed","",IF(MIN(IF($A$7:$A$10000=A113,$I$7:$I$10000))=I113,MIN(IF($A$7:$A$10000=A113,$I$7:$I$10000)),""))) ->  | AB113: =IF($A113="","",IF($E113="to be placed","",IF(MIN(IF($A$7:$A$10000=A113,$I$7:$I$10000))=I113,MIN(IF($A$7:$A$10000=A113,$I$7:$I$10000)),IF(SMALL(IF($A$7:$A$10000=A113,$I$7:$I$10000),2)=I113,SMALL(IF($A$7:$A$10000=A113,$I$7:$I$10000),2),"")))) ->  | AF113: =IF($A113="","",IF($E113="to be placed","",IF(MIN(IF($A$7:$A$10000=A113,$I$7:$I$10000))=I113,MIN(IF($A$7:$A$10000=A113,$I$7:$I$10000)),IF(SMALL(IF($A$7:$A$10000=A113,$I$7:$I$10000),2)=I113,SMALL(IF($A$7:$A$10000=A113,$I$7:$I$10000),2),IF(SMALL(IF($A$7:$A$10000=A113,$I$7:$I$10000),3)=I113,SMALL(IF($A$7:$A$10000=A113,$I$7:$I$10000),3),""))))) -> 
A114: 100595363 | B114: Goul (AUS) 24th Dec | C114: Goul | D114: 2012-12-24T13:40:00 | E114: TO BE PLACED | F114: 2013-01-04T08:29:17 | G114: 3. Cheap Miss | H114: 2012-12-24T13:47:45 | I114: 2.16 | J114: 2012-12-24T13:38:31 | K114: 2012-12-24T13:38:31 | L114: NI | M114: 2 | N114: 0.04 | O114: 7 | P114: 6556404 | Q114: 1 | Y114: =IF(A114="","",IF(E114="to be placed","",IF(MIN(IF($A$7:$A$10000=A114,$I$7:$I$10000))=I114,MIN(IF($A$7:$A$10000=A114,$I$7:$I$10000)),""))) ->  | AB114: =IF($A114="","",IF($E114="to be placed","",IF(MIN(IF($A$7:$A$10000=A114,$I$7:$I$10000))=I114,MIN(IF($A$7:$A$10000=A114,$I$7:$I$10000)),IF(SMALL(IF($A$7:$A$10000=A114,$I$7:$I$10000),2)=I114,SMALL(IF($A$7:$A$10000=A114,$I$7:$I$10000),2),"")))) ->  | AF114: =IF($A114="","",IF($E114="to be placed","",IF(MIN(IF($A$7:$A$10000=A114,$I$7:$I$10000))=I114,MIN(IF($A$7:$A$10000=A114,$I$7:$I$10000)),IF(SMALL(IF($A$7:$A$10000=A114,$I$7:$I$10000),2)=I114,SMALL(IF($A$7:$A$10000=A114,$I$7:$I$10000),2),IF(SMALL(IF($A$7:$A$10000=A114,$I$7:$I$10000),3)=I114,SMALL(IF($A$7:$A$10000=A114,$I$7:$I$10000),3),""))))) -> 
A115: 100595298 | B115: Orng (AUS) 24th Dec | C115: Orng | D115: 2012-12-24T13:46:00 | E115: TO BE PLACED | F115: 2013-01-04T08:29:15 | G115: 10. Jayboy | H115: 2012-12-24T13:50:30 | I115: 20 | J115: 2012-12-24T13:45:39 | K115: 2012-12-24T13:44:48 | L115: NI | M115: 8 | N115: 49.22 | O115: 7 | P115: 4807828 | Q115: 0 | Y115: =IF(A115="","",IF(E115="to be placed","",IF(MIN(IF($A$7:$A$10000=A115,$I$7:$I$10000))=I115,MIN(IF($A$7:$A$10000=A115,$I$7:$I$10000)),""))) ->  | AB115: =IF($A115="","",IF($E115="to be placed","",IF(MIN(IF($A$7:$A$10000=A115,$I$7:$I$10000))=I115,MIN(IF($A$7:$A$10000=A115,$I$7:$I$10000)),IF(SMALL(IF($A$7:$A$10000=A115,$I$7:$I$10000),2)=I115,SMALL(IF($A$7:$A$10000=A115,$I$7:$I$10000),2),"")))) ->  | AF115: =IF($A115="","",IF($E115="to be placed","",IF(MIN(IF($A$7:$A$10000=A115,$I$7:$I$10000))=I115,MIN(IF($A$7:$A$10000=A115,$I$7:$I$10000)),IF(SMALL(IF($A$7:$A$10000=A115,$I$7:$I$10000),2)=I115,SMALL(IF($A$7:$A$10000=A115,$I$7:$I$10000),2),IF(SMALL(IF($A$7:$A$10000=A115,$I$7:$I$10000),3)=I115,SMALL(IF($A$7:$A$10000=A115,$I$7:$I$10000),3),""))))) -> 
A116: 100595298 | B116: Orng (AUS) 24th Dec | C116: Orng | D116: 2012-12-24T13:46:00 | E116: TO BE PLACED | F116: 2013-01-04T08:29:15 | G116: 7. Dont Con A Con | H116: 2012-12-24T13:50:30 | I116: 2.14 | J116: 2012-12-24T13:46:32 | K116: 2012-12-24T13:46:16 | L116: NI | M116: 7 | N116: 1354.04 | O116: 7 | P116: 6015872 | Q116: 1 | Y116: =IF(A116="","",IF(E116="to be placed","",IF(MIN(IF($A$7:$A$10000=A116,$I$7:$I$10000))=I116,MIN(IF($A$7:$A$10000=A116,$I$7:$I$10000)),""))) ->  | AB116: =IF($A116="","",IF($E116="to be placed","",IF(MIN(IF($A$7:$A$10000=A116,$I$7:$I$10000))=I116,MIN(IF($A$7:$A$10000=A116,$I$7:$I$10000)),IF(SMALL(IF($A$7:$A$10000=A116,$I$7:$I$10000),2)=I116,SMALL(IF($A$7:$A$10000=A116,$I$7:$I$10000),2),"")))) ->  | AF116: =IF($A116="","",IF($E116="to be placed","",IF(MIN(IF($A$7:$A$10000=A116,$I$7:$I$10000))=I116,MIN(IF($A$7:$A$10000=A116,$I$7:$I$10000)),IF(SMALL(IF($A$7:$A$10000=A116,$I$7:$I$10000),2)=I116,SMALL(IF($A$7:$A$10000=A116,$I$7:$I$10000),2),IF(SMALL(IF($A$7:$A$10000=A116,$I$7:$I$10000),3)=I116,SMALL(IF($A$7:$A$10000=A116,$I$7:$I$10000),3),""))))) -> 
A117: 100595298 | B117: Orng (AUS) 24th Dec | C117: Orng | D117: 2012-12-24T13:46:00 | E117: TO BE PLACED | F117: 2013-01-04T08:29:15 | G117: 3. Misblueblud | H117: 2012-12-24T13:50:30 | I117: 1.63 | J117: 2012-12-24T13:46:23 | K117: 2012-12-24T13:43:58 | L117: NI | M117: 5 | N117: 2401.82 | O117: 7 | P117: 6451443 | Q117: 1 | Y117: =IF(A117="","",IF(E117="to be placed","",IF(MIN(IF($A$7:$A$10000=A117,$I$7:$I$10000))=I117,MIN(IF($A$7:$A$10000=A117,$I$7:$I$10000)),""))) ->  | AB117: =IF($A117="","",IF($E117="to be placed","",IF(MIN(IF($A$7:$A$10000=A117,$I$7:$I$10000))=I117,MIN(IF($A$7:$A$10000=A117,$I$7:$I$10000)),IF(SMALL(IF($A$7:$A$10000=A117,$I$7:$I$10000),2)=I117,SMALL(IF($A$7:$A$10000=A117,$I$7:$I$10000),2),"")))) ->  | AF117: =IF($A117="","",IF($E117="to be placed","",IF(MIN(IF($A$7:$A$10000=A117,$I$7:$I$10000))=I117,MIN(IF($A$7:$A$10000=A117,$I$7:$I$10000)),IF(SMALL(IF($A$7:$A$10000=A117,$I$7:$I$10000),2)=I117,SMALL(IF($A$7:$A$10000=A117,$I$7:$I$10000),2),IF(SMALL(IF($A$7:$A$10000=A117,$I$7:$I$10000),3)=I117,SMALL(IF($A$7:$A$10000=A117,$I$7:$I$10000),3),""))))) -> 
A118: 100595298 | B118: Orng (AUS) 24th Dec | C118: Orng | D118: 2012-12-24T13:46:00 | E118: TO BE PLACED | F118: 2013-01-04T08:29:15 | G118: 1. Rapid Canny | H118: 2012-12-24T13:50:30 | I118: 2.8 | J118: 2012-12-24T13:46:20 | K118: 2012-12-24T13:44:32 | L118: NI | M118: 7 | N118: 130.8 | O118: 7 | P118: 6621835 | Q118: 0 | Y118: =IF(A118="","",IF(E118="to be placed","",IF(MIN(IF($A$7:$A$10000=A118,$I$7:$I$10000))=I118,MIN(IF($A$7:$A$10000=A118,$I$7:$I$10000)),""))) ->  | AB118: =IF($A118="","",IF($E118="to be placed","",IF(MIN(IF($A$7:$A$10000=A118,$I$7:$I$10000))=I118,MIN(IF($A$7:$A$10000=A118,$I$7:$I$10000)),IF(SMALL(IF($A$7:$A$10000=A118,$I$7:$I$10000),2)=I118,SMALL(IF($A$7:$A$10000=A118,$I$7:$I$10000),2),"")))) ->  | AF118: =IF($A118="","",IF($E118="to be placed","",IF(MIN(IF($A$7:$A$10000=A118,$I$7:$I$10000))=I118,MIN(IF($A$7:$A$10000=A118,$I$7:$I$10000)),IF(SMALL(IF($A$7:$A$10000=A118,$I$7:$I$10000),2)=I118,SMALL(IF($A$7:$A$10000=A118,$I$7:$I$10000),2),IF(SMALL(IF($A$7:$A$10000=A118,$I$7:$I$10000),3)=I118,SMALL(IF($A$7:$A$10000=A118,$I$7:$I$10000),3),""))))) -> 
A119: 100595298 | B119: Orng (AUS) 24th Dec | C119: Orng | D119: 2012-12-24T13:46:00 | E119: TO BE PLACED | F119: 2013-01-04T08:29:15 | G119: 8. Agrippina | H119: 2012-12-24T13:50:30 | I119: 20 | J119: 2012-12-24T13:45:25 | K119: 2012-12-24T13:45:25 | L119: NI | M119: 2 | N119: 43.8 | O119: 7 | P119: 6840012 | Q119: 0 | Y119: =IF(A119="","",IF(E119="to be placed","",IF(MIN(IF($A$7:$A$10000=A119,$I$7:$I$10000))=I119,MIN(IF($A$7:$A$10000=A119,$I$7:$I$10000)),""))) ->  | AB119: =IF($A119="","",IF($E119="to be placed","",IF(MIN(IF($A$7:$A$10000=A119,$I$7:$I$10000))=I119,MIN(IF($A$7:$A$10000=A119,$I$7:$I$10000)),IF(SMALL(IF($A$7:$A$10000=A119,$I$7:$I$10000),2)=I119,SMALL(IF($A$7:$A$10000=A119,$I$7:$I$10000),2),"")))) ->  | AF119: =IF($A119="","",IF($E119="to be placed","",IF(MIN(IF($A$7:$A$10000=A119,$I$7:$I$10000))=I119,MIN(IF($A$7:$A$10000=A119,$I$7:$I$10000)),IF(SMALL(IF($A$7:$A$10000=A119,$I$7:$I$10000),2)=I119,SMALL(IF($A$7:$A$10000=A119,$I$7:$I$10000),2),IF(SMALL(IF($A$7:$A$10000=A119,$I$7:$I$10000),3)=I119,SMALL(IF($A$7:$A$10000=A119,$I$7:$I$10000),3),""))))) -> 
A120: 100595298 | B120: Orng (AUS) 24th Dec | C120: Orng | D120: 2012-12-24T13:46:00 | E120: TO BE PLACED | F120: 2013-01-04T08:29:15 | G120: 2. Danmarino | H120: 2012-12-24T13:50:30 | I120: 2.64 | J120: 2012-12-24T13:46:24 | K120: 2012-12-24T13:44:15 | L120: NI | M120: 6 | N120: 359.6 | O120: 7 | P120: 6934675 | Q120: 0 | Y120: =IF(A120="","",IF(E120="to be placed","",IF(MIN(IF($A$7:$A$10000=A120,$I$7:$I$10000))=I120,MIN(IF($A$7:$A$10000=A120,$I$7:$I$10000)),""))) ->  | AB120: =IF($A120="","",IF($E120="to be placed","",IF(MIN(IF($A$7:$A$10000=A120,$I$7:$I$10000))=I120,MIN(IF($A$7:$A$10000=A120,$I$7:$I$10000)),IF(SMALL(IF($A$7:$A$10000=A120,$I$7:$I$10000),2)=I120,SMALL(IF($A$7:$A$10000=A120,$I$7:$I$10000),2),"")))) ->  | AF120: =IF($A120="","",IF($E120="to be placed","",IF(MIN(IF($A$7:$A$10000=A120,$I$7:$I$10000))=I120,MIN(IF($A$7:$A$10000=A120,$I$7:$I$10000)),IF(SMALL(IF($A$7:$A$10000=A120,$I$7:$I$10000),2)=I120,SMALL(IF($A$7:$A$10000=A120,$I$7:$I$10000),2),IF(SMALL(IF($A$7:$A$10000=A120,$I$7:$I$10000),3)=I120,SMALL(IF($A$7:$A$10000=A120,$I$7:$I$10000),3),""))))) -> 
A121: 100595298 | B121: Orng (AUS) 24th Dec | C121: Orng | D121: 2012-12-24T13:46:00 | E121: TO BE PLACED | F121: 2013-01-04T08:29:15 | G121: 4. Bloomfield Bound | H121: 2012-12-24T13:50:30 | I121: 2.72 | J121: 2012-12-24T13:46:28 | K121: 2012-12-24T13:44:57 | L121: NI | M121: 11 | N121: 106.32 | O121: 7 | P121: 6934676 | Q121: 0 | Y121: =IF(A121="","",IF(E121="to be placed","",IF(MIN(IF($A$7:$A$10000=A121,$I$7:$I$10000))=I121,MIN(IF($A$7:$A$10000=A121,$I$7:$I$10000)),""))) ->  | AB121: =IF($A121="","",IF($E121="to be placed","",IF(MIN(IF($A$7:$A$10000=A121,$I$7:$I$10000))=I121,MIN(IF($A$7:$A$10000=A121,$I$7:$I$10000)),IF(SMALL(IF($A$7:$A$10000=A121,$I$7:$I$10000),2)=I121,SMALL(IF($A$7:$A$10000=A121,$I$7:$I$10000),2),"")))) ->  | AF121: =IF($A121="","",IF($E121="to be placed","",IF(MIN(IF($A$7:$A$10000=A121,$I$7:$I$10000))=I121,MIN(IF($A$7:$A$10000=A121,$I$7:$I$10000)),IF(SMALL(IF($A$7:$A$10000=A121,$I$7:$I$10000),2)=I121,SMALL(IF($A$7:$A$10000=A121,$I$7:$I$10000),2),IF(SMALL(IF($A$7:$A$10000=A121,$I$7:$I$10000),3)=I121,SMALL(IF($A$7:$A$10000=A121,$I$7:$I$10000),3),""))))) -> 
A122: 100595298 | B122: Orng (AUS) 24th Dec | C122: Orng | D122: 2012-12-24T13:46:00 | E122: TO BE PLACED | F122: 2013-01-04T08:29:15 | G122: 5. Dashexpress | H122: 2012-12-24T13:50:30 | I122: 2.72 | J122: 2012-12-24T13:46:32 | K122: 2012-12-24T13:46:04 | L122: NI | M122: 4 | N122: 83.16 | O122: 7 | P122: 6934677 | Q122: 0 | Y122: =IF(A122="","",IF(E122="to be placed","",IF(MIN(IF($A$7:$A$10000=A122,$I$7:$I$10000))=I122,MIN(IF($A$7:$A$10000=A122,$I$7:$I$10000)),""))) ->  | AB122: =IF($A122="","",IF($E122="to be placed","",IF(MIN(IF($A$7:$A$10000=A122,$I$7:$I$10000))=I122,MIN(IF($A$7:$A$10000=A122,$I$7:$I$10000)),IF(SMALL(IF($A$7:$A$10000=A122,$I$7:$I$10000),2)=I122,SMALL(IF($A$7:$A$10000=A122,$I$7:$I$10000),2),"")))) ->  | AF122: =IF($A122="","",IF($E122="to be placed","",IF(MIN(IF($A$7:$A$10000=A122,$I$7:$I$10000))=I122,MIN(IF($A$7:$A$10000=A122,$I$7:$I$10000)),IF(SMALL(IF($A$7:$A$10000=A122,$I$7:$I$10000),2)=I122,SMALL(IF($A$7:$A$10000=A122,$I$7:$I$10000),2),IF(SMALL(IF($A$7:$A$10000=A122,$I$7:$I$10000),3)=I122,SMALL(IF($A$7:$A$10000=A122,$I$7:$I$10000),3),""))))) -> 
A123: 100595298 | B123: Orng (AUS) 24th Dec | C123: Orng | D123: 2012-12-24T13:46:00 | E123: TO BE PLACED | F123: 2013-01-04T08:29:15 | G123: 6. Roundup Rosie | H123: 2012-12-24T13:50:30 | I123: 36 | J123: 2012-12-24T13:45:20 | K123: 2012-12-24T13:45:13 | L123: NI | M123: 5 | N123: 12.38 | O123: 7 | P123: 6934678 | Q123: 0 | Y123: =IF(A123="","",IF(E123="to be placed","",IF(MIN(IF($A$7:$A$10000=A123,$I$7:$I$10000))=I123,MIN(IF($A$7:$A$10000=A123,$I$7:$I$10000)),""))) ->  | AB123: =IF($A123="","",IF($E123="to be placed","",IF(MIN(IF($A$7:$A$10000=A123,$I$7:$I$10000))=I123,MIN(IF($A$7:$A$10000=A123,$I$7:$I$10000)),IF(SMALL(IF($A$7:$A$10000=A123,$I$7:$I$10000),2)=I123,SMALL(IF($A$7:$A$10000=A123,$I$7:$I$10000),2),"")))) ->  | AF123: =IF($A123="","",IF($E123="to be placed","",IF(MIN(IF($A$7:$A$10000=A123,$I$7:$I$10000))=I123,MIN(IF($A$7:$A$10000=A123,$I$7:$I$10000)),IF(SMALL(IF($A$7:$A$10000=A123,$I$7:$I$10000),2)=I123,SMALL(IF($A$7:$A$10000=A123,$I$7:$I$10000),2),IF(SMALL(IF($A$7:$A$10000=A123,$I$7:$I$10000),3)=I123,SMALL(IF($A$7:$A$10000=A123,$I$7:$I$10000),3),""))))) -> 
A124: 100595298 | B124: Orng (AUS) 24th Dec | C124: Orng | D124: 2012-12-24T13:46:00 | E124: TO BE PLACED | F124: 2013-01-04T08:29:15 | G124: 9. Familiarise | H124: 2012-12-24T13:50:30 | I124: 3.2 | J124: 2012-12-24T13:46:36 | K124: 2012-12-24T13:46:36 | L124: NI | M124: 2 | N124: 569.94 | O124: 7 | P124: 6934679 | Q124: 1 | Y124: =IF(A124="","",IF(E124="to be placed","",IF(MIN(IF($A$7:$A$10000=A124,$I$7:$I$10000))=I124,MIN(IF($A$7:$A$10000=A124,$I$7:$I$10000)),""))) ->  | AB124: =IF($A124="","",IF($E124="to be placed","",IF(MIN(IF($A$7:$A$10000=A124,$I$7:$I$10000))=I124,MIN(IF($A$7:$A$10000=A124,$I$7:$I$10000)),IF(SMALL(IF($A$7:$A$10000=A124,$I$7:$I$10000),2)=I124,SMALL(IF($A$7:$A$10000=A124,$I$7:$I$10000),2),"")))) ->  | AF124: =IF($A124="","",IF($E124="to be placed","",IF(MIN(IF($A$7:$A$10000=A124,$I$7:$I$10000))=I124,MIN(IF($A$7:$A$10000=A124,$I$7:$I$10000)),IF(SMALL(IF($A$7:$A$10000=A124,$I$7:$I$10000),2)=I124,SMALL(IF($A$7:$A$10000=A124,$I$7:$I$10000),2),IF(SMALL(IF($A$7:$A$10000=A124,$I$7:$I$10000),3)=I124,SMALL(IF($A$7:$A$10000=A124,$I$7:$I$10000),3),""))))) -> 
A125: 100595298 | B125: Orng (AUS) 24th Dec | C125: Orng | D125: 2012-12-24T13:46:00 | E125: TO BE PLACED | F125: 2013-01-04T08:29:15 | G125: 11. Vivalixir | H125: 2012-12-24T13:50:30 | I125: 22 | J125: 2012-12-24T13:46:34 | K125: 2012-12-24T13:46:34 | L125: NI | M125: 2 | N125: 53.5 | O125: 7 | P125: 6934680 | Q125: 0 | Y125: =IF(A125="","",IF(E125="to be placed","",IF(MIN(IF($A$7:$A$10000=A125,$I$7:$I$10000))=I125,MIN(IF($A$7:$A$10000=A125,$I$7:$I$10000)),""))) ->  | AB125: =IF($A125="","",IF($E125="to be placed","",IF(MIN(IF($A$7:$A$10000=A125,$I$7:$I$10000))=I125,MIN(IF($A$7:$A$10000=A125,$I$7:$I$10000)),IF(SMALL(IF($A$7:$A$10000=A125,$I$7:$I$10000),2)=I125,SMALL(IF($A$7:$A$10000=A125,$I$7:$I$10000),2),"")))) ->  | AF125: =IF($A125="","",IF($E125="to be placed","",IF(MIN(IF($A$7:$A$10000=A125,$I$7:$I$10000))=I125,MIN(IF($A$7:$A$10000=A125,$I$7:$I$10000)),IF(SMALL(IF($A$7:$A$10000=A125,$I$7:$I$10000),2)=I125,SMALL(IF($A$7:$A$10000=A125,$I$7:$I$10000),2),IF(SMALL(IF($A$7:$A$10000=A125,$I$7:$I$10000),3)=I125,SMALL(IF($A$7:$A$10000=A125,$I$7:$I$10000),3),""))))) -> 
A126: 100595299 | B126: Orng (AUS) 24th Dec | C126: Orng | D126: 2012-12-24T13:46:00 | E126: R2 1000m Mdn | F126: 2012-12-24T13:46:40 | G126: 10. Jayboy | H126: 2012-12-24T13:49:46 | I126: 200 | J126: 2012-12-24T13:46:34 | K126: 2012-12-24T13:45:35 | L126: PE | M126: 14 | N126: 169.28 | O126: 7 | P126: 4807828 | Q126: 0 | S126: 0.5025125628 | Y126: =IF(A126="","",IF(E126="to be placed","",IF(MIN(IF($A$7:$A$10000=A126,$I$7:$I$10000))=I126,MIN(IF($A$7:$A$10000=A126,$I$7:$I$10000)),""))) ->  | AB126: =IF($A126="","",IF($E126="to be placed","",IF(MIN(IF($A$7:$A$10000=A126,$I$7:$I$10000))=I126,MIN(IF($A$7:$A$10000=A126,$I$7:$I$10000)),IF(SMALL(IF($A$7:$A$10000=A126,$I$7:$I$10000),2)=I126,SMALL(IF($A$7:$A$10000=A126,$I$7:$I$10000),2),"")))) ->  | AF126: =IF($A126="","",IF($E126="to be placed","",IF(MIN(IF($A$7:$A$10000=A126,$I$7:$I$10000))=I126,MIN(IF($A$7:$A$10000=A126,$I$7:$I$10000)),IF(SMALL(IF($A$7:$A$10000=A126,$I$7:$I$10000),2)=I126,SMALL(IF($A$7:$A$10000=A126,$I$7:$I$10000),2),IF(SMALL(IF($A$7:$A$10000=A126,$I$7:$I$10000),3)=I126,SMALL(IF($A$7:$A$10000=A126,$I$7:$I$10000),3),""))))) -> 
A127: 100595299 | B127: Orng (AUS) 24th Dec | C127: Orng | D127: 2012-12-24T13:46:00 | E127: R2 1000m Mdn | F127: 2012-12-24T13:46:40 | G127: 7. Dont Con A Con | H127: 2012-12-24T13:49:46 | I127: 4.9 | J127: 2012-12-24T13:46:35 | K127: 2012-12-24T13:37:29 | L127: PE | M127: 27 | N127: 7744.78 | O127: 7 | P127: 6015872 | Q127: 1 | S127: -100 | V127: -3.9 | Y127: =IF(A127="","",IF(E127="to be placed","",IF(MIN(IF($A$7:$A$10000=A127,$I$7:$I$10000))=I127,MIN(IF($A$7:$A$10000=A127,$I$7:$I$10000)),""))) ->  | AB127: =IF($A127="","",IF($E127="to be placed","",IF(MIN(IF($A$7:$A$10000=A127,$I$7:$I$10000))=I127,MIN(IF($A$7:$A$10000=A127,$I$7:$I$10000)),IF(SMALL(IF($A$7:$A$10000=A127,$I$7:$I$10000),2)=I127,SMALL(IF($A$7:$A$10000=A127,$I$7:$I$10000),2),"")))) -> 4.9 | AC127: -3.9 | AF127: =IF($A127="","",IF($E127="to be placed","",IF(MIN(IF($A$7:$A$10000=A127,$I$7:$I$10000))=I127,MIN(IF($A$7:$A$10000=A127,$I$7:$I$10000)),IF(SMALL(IF($A$7:$A$10000=A127,$I$7:$I$10000),2)=I127,SMALL(IF($A$7:$A$10000=A127,$I$7:$I$10000),2),IF(SMALL(IF($A$7:$A$10000=A127,$I$7:$I$10000),3)=I127,SMALL(IF($A$7:$A$10000=A127,$I$7:$I$10000),3),""))))) -> 4.9 | AG127: -3.9
A128: 100595299 | B128: Orng (AUS) 24th Dec | C128: Orng | D128: 2012-12-24T13:46:00 | E128: R2 1000m Mdn | F128: 2012-12-24T13:46:40 | G128: 3. Misblueblud | H128: 2012-12-24T13:49:46 | I128: 4.4 | J128: 2012-12-24T13:46:39 | K128: 2012-12-24T13:43:59 | L128: PE | M128: 35 | N128: 9682.76 | O128: 7 | P128: 6451443 | Q128: 0 | S128: 29.41176471 | V128: 1 | Y128: =IF(A128="","",IF(E128="to be placed","",IF(MIN(IF($A$7:$A$10000=A128,$I$7:$I$10000))=I128,MIN(IF($A$7:$A$10000=A128,$I$7:$I$10000)),""))) -> 4.4 | Z128: 0.935 | AB128: =IF($A128="","",IF($E128="to be placed","",IF(MIN(IF($A$7:$A$10000=A128,$I$7:$I$10000))=I128,MIN(IF($A$7:$A$10000=A128,$I$7:$I$10000)),IF(SMALL(IF($A$7:$A$10000=A128,$I$7:$I$10000),2)=I128,SMALL(IF($A$7:$A$10000=A128,$I$7:$I$10000),2),"")))) -> 4.4 | AC128: 0.935 | AF128: =IF($A128="","",IF($E128="to be placed","",IF(MIN(IF($A$7:$A$10000=A128,$I$7:$I$10000))=I128,MIN(IF($A$7:$A$10000=A128,$I$7:$I$10000)),IF(SMALL(IF($A$7:$A$10000=A128,$I$7:$I$10000),2)=I128,SMALL(IF($A$7:$A$10000=A128,$I$7:$I$10000),2),IF(SMALL(IF($A$7:$A$10000=A128,$I$7:$I$10000),3)=I128,SMALL(IF($A$7:$A$10000=A128,$I$7:$I$10000),3),""))))) -> 4.4 | AG128: 0.935
A129: 100595299 | B129: Orng (AUS) 24th Dec | C129: Orng | D129: 2012-12-24T13:46:00 | E129: R2 1000m Mdn | F129: 2012-12-24T13:46:40 | G129: 1. Rapid Canny | H129: 2012-12-24T13:49:46 | I129: 9 | J129: 2012-12-24T13:46:31 | K129: 2012-12-24T13:45:00 | L129: PE | M129: 15 | N129: 1781.82 | O129: 7 | P129: 6621835 | Q129: 0 | S129: 12.5 | V129: 1 | Y129: =IF(A129="","",IF(E129="to be placed","",IF(MIN(IF($A$7:$A$10000=A129,$I$7:$I$10000))=I129,MIN(IF($A$7:$A$10000=A129,$I$7:$I$10000)),""))) ->  | AB129: =IF($A129="","",IF($E129="to be placed","",IF(MIN(IF($A$7:$A$10000=A129,$I$7:$I$10000))=I129,MIN(IF($A$7:$A$10000=A129,$I$7:$I$10000)),IF(SMALL(IF($A$7:$A$10000=A129,$I$7:$I$10000),2)=I129,SMALL(IF($A$7:$A$10000=A129,$I$7:$I$10000),2),"")))) ->  | AF129: =IF($A129="","",IF($E129="to be placed","",IF(MIN(IF($A$7:$A$10000=A129,$I$7:$I$10000))=I129,MIN(IF($A$7:$A$10000=A129,$I$7:$I$10000)),IF(SMALL(IF($A$7:$A$10000=A129,$I$7:$I$10000),2)=I129,SMALL(IF($A$7:$A$10000=A129,$I$7:$I$10000),2),IF(SMALL(IF($A$7:$A$10000=A129,$I$7:$I$10000),3)=I129,SMALL(IF($A$7:$A$10000=A129,$I$7:$I$10000),3),""))))) -> 
A130: 100595299 | B130: Orng (AUS) 24th Dec | C130: Orng | D130: 2012-12-24T13:46:00 | E130: R2 1000m Mdn | F130: 2012-12-24T13:46:40 | G130: 8. Agrippina | H130: 2012-12-24T13:49:46 | I130: 100 | J130: 2012-12-24T13:46:29 | K130: 2012-12-24T13:46:11 | L130: PE | M130: 5 | N130: 70.74 | O130: 7 | P130: 6840012 | Q130: 0 | S130: 1.01010101 | Y130: =IF(A130="","",IF(E130="to be placed","",IF(MIN(IF($A$7:$A$10000=A130,$I$7:$I$10000))=I130,MIN(IF($A$7:$A$10000=A130,$I$7:$I$10000)),""))) ->  | AB130: =IF($A130="","",IF($E130="to be placed","",IF(MIN(IF($A$7:$A$10000=A130,$I$7:$I$10000))=I130,MIN(IF($A$7:$A$10000=A130,$I$7:$I$10000)),IF(SMALL(IF($A$7:$A$10000=A130,$I$7:$I$10000),2)=I130,SMALL(IF($A$7:$A$10000=A130,$I$7:$I$10000),2),"")))) ->  | AF130: =IF($A130="","",IF($E130="to be placed","",IF(MIN(IF($A$7:$A$10000=A130,$I$7:$I$10000))=I130,MIN(IF($A$7:$A$10000=A130,$I$7:$I$10000)),IF(SMALL(IF($A$7:$A$10000=A130,$I$7:$I$10000),2)=I130,SMALL(IF($A$7:$A$10000=A130,$I$7:$I$10000),2),IF(SMALL(IF($A$7:$A$10000=A130,$I$7:$I$10000),3)=I130,SMALL(IF($A$7:$A$10000=A130,$I$7:$I$10000),3),""))))) -> 
A131: 100595299 | B131: Orng (AUS) 24th Dec | C131: Orng | D131: 2012-12-24T13:46:00 | E131: R2 1000m Mdn | F131: 2012-12-24T13:46:40 | G131: 2. Danmarino | H131: 2012-12-24T13:49:46 | I131: 8 | J131: 2012-12-24T13:46:39 | K131: 2012-12-24T13:30:14 | L131: PE | M131: 61 | N131: 3299.42 | O131: 7 | P131: 6934675 | Q131: 0 | S131: 14.28571429 | V131: 1 | Y131: =IF(A131="","",IF(E131="to be placed","",IF(MIN(IF($A$7:$A$10000=A131,$I$7:$I$10000))=I131,MIN(IF($A$7:$A$10000=A131,$I$7:$I$10000)),""))) ->  | AB131: =IF($A131="","",IF($E131="to be placed","",IF(MIN(IF($A$7:$A$10000=A131,$I$7:$I$10000))=I131,MIN(IF($A$7:$A$10000=A131,$I$7:$I$10000)),IF(SMALL(IF($A$7:$A$10000=A131,$I$7:$I$10000),2)=I131,SMALL(IF($A$7:$A$10000=A131,$I$7:$I$10000),2),"")))) ->  | AF131: =IF($A131="","",IF($E131="to be placed","",IF(MIN(IF($A$7:$A$10000=A131,$I$7:$I$10000))=I131,MIN(IF($A$7:$A$10000=A131,$I$7:$I$10000)),IF(SMALL(IF($A$7:$A$10000=A131,$I$7:$I$10000),2)=I131,SMALL(IF($A$7:$A$10000=A131,$I$7:$I$10000),2),IF(SMALL(IF($A$7:$A$10000=A131,$I$7:$I$10000),3)=I131,SMALL(IF($A$7:$A$10000=A131,$I$7:$I$10000),3),""))))) -> 8 | AG131: 0.935
A132: 100595299 | B132: Orng (AUS) 24th Dec | C132: Orng | D132: 2012-12-24T13:46:00 | E132: R2 1000m Mdn | F132: 2012-12-24T13:46:40 | G132: 4. Bloomfield Bound | H132: 2012-12-24T13:49:46 | I132: 8.2 | J132: 2012-12-24T13:46:31 | K132: 2012-12-24T13:37:17 | L132: PE | M132: 17 | N132: 2608.42 | O132: 7 | P132: 6934676 | Q132: 0 | S132: 13.88888889 | V132: 1 | Y132: =IF(A132="","",IF(E132="to be placed","",IF(MIN(IF($A$7:$A$10000=A132,$I$7:$I$10000))=I132,MIN(IF($A$7:$A$10000=A132,$I$7:$I$10000)),""))) ->  | AB132: =IF($A132="","",IF($E132="to be placed","",IF(MIN(IF($A$7:$A$10000=A132,$I$7:$I$10000))=I132,MIN(IF($A$7:$A$10000=A132,$I$7:$I$10000)),IF(SMALL(IF($A$7:$A$10000=A132,$I$7:$I$10000),2)=I132,SMALL(IF($A$7:$A$10000=A132,$I$7:$I$10000),2),"")))) ->  | AF132: =IF($A132="","",IF($E132="to be placed","",IF(MIN(IF($A$7:$A$10000=A132,$I$7:$I$10000))=I132,MIN(IF($A$7:$A$10000=A132,$I$7:$I$10000)),IF(SMALL(IF($A$7:$A$10000=A132,$I$7:$I$10000),2)=I132,SMALL(IF($A$7:$A$10000=A132,$I$7:$I$10000),2),IF(SMALL(IF($A$7:$A$10000=A132,$I$7:$I$10000),3)=I132,SMALL(IF($A$7:$A$10000=A132,$I$7:$I$10000),3),""))))) -> 
A133: 100595299 | B133: Orng (AUS) 24th Dec | C133: Orng | D133: 2012-12-24T13:46:00 | E133: R2 1000m Mdn | F133: 2012-12-24T13:46:40 | G133: 5. Dashexpress | H133: 2012-12-24T13:49:46 | I133: 9 | J133: 2012-12-24T13:46:33 | K133: 2012-12-24T13:43:13 | L133: PE | M133: 34 | N133: 2268.08 | O133: 7 | P133: 6934677 | Q133: 0 | S133: 12.5 | V133: 1 | Y133: =IF(A133="","",IF(E133="to be placed","",IF(MIN(IF($A$7:$A$10000=A133,$I$7:$I$10000))=I133,MIN(IF($A$7:$A$10000=A133,$I$7:$I$10000)),""))) ->  | AB133: =IF($A133="","",IF($E133="to be placed","",IF(MIN(IF($A$7:$A$10000=A133,$I$7:$I$10000))=I133,MIN(IF($A$7:$A$10000=A133,$I$7:$I$10000)),IF(SMALL(IF($A$7:$A$10000=A133,$I$7:$I$10000),2)=I133,SMALL(IF($A$7:$A$10000=A133,$I$7:$I$10000),2),"")))) ->  | AF133: =IF($A133="","",IF($E133="to be placed","",IF(MIN(IF($A$7:$A$10000=A133,$I$7:$I$10000))=I133,MIN(IF($A$7:$A$10000=A133,$I$7:$I$10000)),IF(SMALL(IF($A$7:$A$10000=A133,$I$7:$I$10000),2)=I133,SMALL(IF($A$7:$A$10000=A133,$I$7:$I$10000),2),IF(SMALL(IF($A$7:$A$10000=A133,$I$7:$I$10000),3)=I133,SMALL(IF($A$7:$A$10000=A133,$I$7:$I$10000),3),""))))) -> 
A134: 100595299 | B134: Orng (AUS) 24th Dec | C134: Orng | D134: 2012-12-24T13:46:00 | E134: R2 1000m Mdn | F134: 2012-12-24T13:46:40 | G134: 6. Roundup Rosie | H134: 2012-12-24T13:49:46 | I134: 200 | J134: 2012-12-24T13:46:29 | K134: 2012-12-24T13:42:19 | L134: PE | M134: 6 | N134: 57.56 | O134: 7 | P134: 6934678 | Q134: 0 | S134: 0.5025125628 | Y134: =IF(A134="","",IF(E134="to be placed","",IF(MIN(IF($A$7:$A$10000=A134,$I$7:$I$10000))=I134,MIN(IF($A$7:$A$10000=A134,$I$7:$I$10000)),""))) ->  | AB134: =IF($A134="","",IF($E134="to be placed","",IF(MIN(IF($A$7:$A$10000=A134,$I$7:$I$10000))=I134,MIN(IF($A$7:$A$10000=A134,$I$7:$I$10000)),IF(SMALL(IF($A$7:$A$10000=A134,$I$7:$I$10000),2)=I134,SMALL(IF($A$7:$A$10000=A134,$I$7:$I$10000),2),"")))) ->  | AF134: =IF($A134="","",IF($E134="to be placed","",IF(MIN(IF($A$7:$A$10000=A134,$I$7:$I$10000))=I134,MIN(IF($A$7:$A$10000=A134,$I$7:$I$10000)),IF(SMALL(IF($A$7:$A$10000=A134,$I$7:$I$10000),2)=I134,SMALL(IF($A$7:$A$10000=A134,$I$7:$I$10000),2),IF(SMALL(IF($A$7:$A$10000=A134,$I$7:$I$10000),3)=I134,SMALL(IF($A$7:$A$10000=A134,$I$7:$I$10000),3),""))))) -> 
A135: 100595299 | B135: Orng (AUS) 24th Dec | C135: Orng | D135: 2012-12-24T13:46:00 | E135: R2 1000m Mdn | F135: 2012-12-24T13:46:40 | G135: 9. Familiarise | H135: 2012-12-24T13:49:46 | I135: 11 | J135: 2012-12-24T13:46:37 | K135: 2012-12-24T13:46:04 | L135: PE | M135: 30 | N135: 2538.5 | O135: 7 | P135: 6934679 | Q135: 0 | S135: 10 | V135: 1 | Y135: =IF(A135="","",IF(E135="to be placed","",IF(MIN(IF($A$7:$A$10000=A135,$I$7:$I$10000))=I135,MIN(IF($A$7:$A$10000=A135,$I$7:$I$10000)),""))) ->  | AB135: =IF($A135="","",IF($E135="to be placed","",IF(MIN(IF($A$7:$A$10000=A135,$I$7:$I$10000))=I135,MIN(IF($A$7:$A$10000=A135,$I$7:$I$10000)),IF(SMALL(IF($A$7:$A$10000=A135,$I$7:$I$10000),2)=I135,SMALL(IF($A$7:$A$10000=A135,$I$7:$I$10000),2),"")))) ->  | AF135: =IF($A135="","",IF($E135="to be placed","",IF(MIN(IF($A$7:$A$10000=A135,$I$7:$I$10000))=I135,MIN(IF($A$7:$A$10000=A135,$I$7:$I$10000)),IF(SMALL(IF($A$7:$A$10000=A135,$I$7:$I$10000),2)=I135,SMALL(IF($A$7:$A$10000=A135,$I$7:$I$10000),2),IF(SMALL(IF($A$7:$A$10000=A135,$I$7:$I$10000),3)=I135,SMALL(IF($A$7:$A$10000=A135,$I$7:$I$10000),3),""))))) -> 
A136: 100595299 | B136: Orng (AUS) 24th Dec | C136: Orng | D136: 2012-12-24T13:46:00 | E136: R2 1000m Mdn | F136: 2012-12-24T13:46:40 | G136: 11. Vivalixir | H136: 2012-12-24T13:49:46 | I136: 100 | J136: 2012-12-24T13:46:29 | K136: 2012-12-24T13:44:07 | L136: PE | M136: 6 | N136: 75.68 | O136: 7 | P136: 6934680 | Q136: 0 | S136: =IF($D136="","",IF($E136="to be placed","",IF($Q136=1,-$I136*SUM(100/($I136-1))+SUM(100/($I136-1)),SUM(100/($I136-1))))) -> 1.01010101 | T136: =IF($D136="","",IF($E136="to be placed","",IF(AND($A136<>$A137,SUMIF($A$7:$A$10000,$A136,S$7:S$10000)>0),SUMIF($A$7:$A$10000,$A136,S$7:S$10000)*(1-$T$1),IF($A136<>$A137,SUMIF($A$7:$A$10000,$A136,S$7:S$10000),"")))) -> -4.388404974 | V136: =IF($D136="","",IF($E136="to be placed","",IF(AND($I136<20,$Q136=1),-$I136+1,IF(AND($I136<20,$Q136<>1),1,"")))) ->  | W136: 1.9635 | Y136: =IF(A136="","",IF(E136="to be placed","",IF(MIN(IF($A$7:$A$10000=A136,$I$7:$I$10000))=I136,MIN(IF($A$7:$A$10000=A136,$I$7:$I$10000)),""))) ->  | Z136: =IF($D136="","",IF($E136="to be placed","",IF(ISERROR(Y136*1),"",IF(AND(Y136>0,Q136=1),-Y136+1,IF(AND(Y136<>"",Q136<>1),0.935,""))))) ->  | AB136: =IF($A136="","",IF($E136="to be placed","",IF(MIN(IF($A$7:$A$10000=A136,$I$7:$I$10000))=I136,MIN(IF($A$7:$A$10000=A136,$I$7:$I$10000)),IF(SMALL(IF($A$7:$A$10000=A136,$I$7:$I$10000),2)=I136,SMALL(IF($A$7:$A$10000=A136,$I$7:$I$10000),2),"")))) ->  | AD136: =IF($D136="","",IF($E136="to be placed","",IF(AND($A136<>$A137,SUMIF($A$7:$A$10000,$A136,AC$7:AC$10000)>0),SUMIF($A$7:$A$10000,$A136,AC$7:AC$10000)*(1-$T$1),IF($A136<>$A137,SUMIF($A$7:$A$10000,$A136,AC$7:AC$10000),"")))) -> -2.965 | AF136: =IF($A136="","",IF($E136="to be placed","",IF(MIN(IF($A$7:$A$10000=A136,$I$7:$I$10000))=I136,MIN(IF($A$7:$A$10000=A136,$I$7:$I$10000)),IF(SMALL(IF($A$7:$A$10000=A136,$I$7:$I$10000),2)=I136,SMALL(IF($A$7:$A$10000=A136,$I$7:$I$10000),2),IF(SMALL(IF($A$7:$A$10000=A136,$I$7:$I$10000),3)=I136,SMALL(IF($A$7:$A$10000=A136,$I$7:$I$10000),3),""))))) ->  | AH136: =IF($D136="","",IF($E136="to be placed","",IF(AND($A136<>$A137,SUMIF($A$7:$A$10000,$A136,AG$7:AG$10000)>0),SUMIF($A$7:$A$10000,$A136,AG$7:AG$10000)*(1-$T$1),IF($A136<>$A137,SUMIF($A$7:$A$10000,$A136,AG$7:AG$10000),"")))) -> -2.03
A137: 100595380 | B137: Mary (AUS) 24th Dec | C137: Mary | D137: 2012-12-24T13:53:00 | E137: R2 2190m Trot M | F137: 2013-01-04T08:29:17 | G137: 1. Whiskey Business | H137: 2012-12-24T14:03:00 | I137: 30 | J137: 2012-12-24T13:53:50 | K137: 2012-12-24T13:53:20 | L137: NI | M137: 3 | N137: 58.18 | O137: 7 | P137: 304829 | Q137: 0 | S137: 3.448275862 | Y137: =IF(A137="","",IF(E137="to be placed","",IF(MIN(IF($A$7:$A$10000=A137,$I$7:$I$10000))=I137,MIN(IF($A$7:$A$10000=A137,$I$7:$I$10000)),""))) ->  | AB137: =IF($A137="","",IF($E137="to be placed","",IF(MIN(IF($A$7:$A$10000=A137,$I$7:$I$10000))=I137,MIN(IF($A$7:$A$10000=A137,$I$7:$I$10000)),IF(SMALL(IF($A$7:$A$10000=A137,$I$7:$I$10000),2)=I137,SMALL(IF($A$7:$A$10000=A137,$I$7:$I$10000),2),"")))) ->  | AF137: =IF($A137="","",IF($E137="to be placed","",IF(MIN(IF($A$7:$A$10000=A137,$I$7:$I$10000))=I137,MIN(IF($A$7:$A$10000=A137,$I$7:$I$10000)),IF(SMALL(IF($A$7:$A$10000=A137,$I$7:$I$10000),2)=I137,SMALL(IF($A$7:$A$10000=A137,$I$7:$I$10000),2),IF(SMALL(IF($A$7:$A$10000=A137,$I$7:$I$10000),3)=I137,SMALL(IF($A$7:$A$10000=A137,$I$7:$I$10000),3),""))))) -> 
A138: 100595380 | B138: Mary (AUS) 24th Dec | C138: Mary | D138: 2012-12-24T13:53:00 | E138: R2 2190m Trot M | F138: 2013-01-04T08:29:17 | G138: 10. Rakos | H138: 2012-12-24T14:03:00 | I138: 40 | J138: 2012-12-24T13:53:49 | K138: 2012-12-24T13:53:00 | L138: NI | M138: 7 | N138: 8.02 | O138: 7 | P138: 4863962 | Q138: 0 | S138: 2.564102564 | Y138: =IF(A138="","",IF(E138="to be placed","",IF(MIN(IF($A$7:$A$10000=A138,$I$7:$I$10000))=I138,MIN(IF($A$7:$A$10000=A138,$I$7:$I$10000)),""))) ->  | AB138: =IF($A138="","",IF($E138="to be placed","",IF(MIN(IF($A$7:$A$10000=A138,$I$7:$I$10000))=I138,MIN(IF($A$7:$A$10000=A138,$I$7:$I$10000)),IF(SMALL(IF($A$7:$A$10000=A138,$I$7:$I$10000),2)=I138,SMALL(IF($A$7:$A$10000=A138,$I$7:$I$10000),2),"")))) ->  | AF138: =IF($A138="","",IF($E138="to be placed","",IF(MIN(IF($A$7:$A$10000=A138,$I$7:$I$10000))=I138,MIN(IF($A$7:$A$10000=A138,$I$7:$I$10000)),IF(SMALL(IF($A$7:$A$10000=A138,$I$7:$I$10000),2)=I138,SMALL(IF($A$7:$A$10000=A138,$I$7:$I$10000),2),IF(SMALL(IF($A$7:$A$10000=A138,$I$7:$I$10000),3)=I138,SMALL(IF($A$7:$A$10000=A138,$I$7:$I$10000),3),""))))) -> 
A139: 100595380 | B139: Mary (AUS) 24th Dec | C139: Mary | D139: 2012-12-24T13:53:00 | E139: R2 2190m Trot M | F139: 2013-01-04T08:29:17 | G139: 9. Duchess Pat | H139: 2012-12-24T14:03:00 | I139: 8 | J139: 2012-12-24T13:54:05 | K139: 2012-12-24T13:54:05 | L139: NI | M139: 4 | N139: 1145 | O139: 7 | P139: 5398761 | Q139: 0 | S139: 14.28571429 | V139: 1 | Y139: =IF(A139="","",IF(E139="to be placed","",IF(MIN(IF($A$7:$A$10000=A139,$I$7:$I$10000))=I139,MIN(IF($A$7:$A$10000=A139,$I$7:$I$10000)),""))) ->  | AB139: =IF($A139="","",IF($E139="to be placed","",IF(MIN(IF($A$7:$A$10000=A139,$I$7:$I$10000))=I139,MIN(IF($A$7:$A$10000=A139,$I$7:$I$10000)),IF(SMALL(IF($A$7:$A$10000=A139,$I$7:$I$10000),2)=I139,SMALL(IF($A$7:$A$10000=A139,$I$7:$I$10000),2),"")))) -> 8 | AC139: 0.935 | AF139: =IF($A139="","",IF($E139="to be placed","",IF(MIN(IF($A$7:$A$10000=A139,$I$7:$I$10000))=I139,MIN(IF($A$7:$A$10000=A139,$I$7:$I$10000)),IF(SMALL(IF($A$7:$A$10000=A139,$I$7:$I$10000),2)=I139,SMALL(IF($A$7:$A$10000=A139,$I$7:$I$10000),2),IF(SMALL(IF($A$7:$A$10000=A139,$I$7:$I$10000),3)=I139,SMALL(IF($A$7:$A$10000=A139,$I$7:$I$10000),3),""))))) -> 8 | AG139: 0.935
A140: 100595380 | B140: Mary (AUS) 24th Dec | C140: Mary | D140: 2012-12-24T13:53:00 | E140: R2 2190m Trot M | F140: 2013-01-04T08:29:17 | G140: 7. Sunwhiz | H140: 2012-12-24T14:03:00 | I140: 27 | J140: 2012-12-24T13:54:05 | K140: 2012-12-24T13:54:05 | L140: NI | M140: 2 | N140: 119.4 | O140: 7 | P140: 5536863 | Q140: 0 | S140: 3.846153846 | Y140: =IF(A140="","",IF(E140="to be placed","",IF(MIN(IF($A$7:$A$10000=A140,$I$7:$I$10000))=I140,MIN(IF($A$7:$A$10000=A140,$I$7:$I$10000)),""))) ->  | AB140: =IF($A140="","",IF($E140="to be placed","",IF(MIN(IF($A$7:$A$10000=A140,$I$7:$I$10000))=I140,MIN(IF($A$7:$A$10000=A140,$I$7:$I$10000)),IF(SMALL(IF($A$7:$A$10000=A140,$I$7:$I$10000),2)=I140,SMALL(IF($A$7:$A$10000=A140,$I$7:$I$10000),2),"")))) ->  | AF140: =IF($A140="","",IF($E140="to be placed","",IF(MIN(IF($A$7:$A$10000=A140,$I$7:$I$10000))=I140,MIN(IF($A$7:$A$10000=A140,$I$7:$I$10000)),IF(SMALL(IF($A$7:$A$10000=A140,$I$7:$I$10000),2)=I140,SMALL(IF($A$7:$A$10000=A140,$I$7:$I$10000),2),IF(SMALL(IF($A$7:$A$10000=A140,$I$7:$I$10000),3)=I140,SMALL(IF($A$7:$A$10000=A140,$I$7:$I$10000),3),""))))) -> 
A141: 100595380 | B141: Mary (AUS) 24th Dec | C141: Mary | D141: 2012-12-24T13:53:00 | E141: R2 2190m Trot M | F141: 2013-01-04T08:29:17 | G141: 11. Chevaux Rainbow | H141: 2012-12-24T14:03:00 | I141: 17 | J141: 2012-12-24T13:54:06 | K141: 2012-12-24T13:53:49 | L141: NI | M141: 5 | N141: 278.2 | O141: 7 | P141: 5682174 | Q141: 0 | S141: 6.25 | V141: 1 | Y141: =IF(A141="","",IF(E141="to be placed","",IF(MIN(IF($A$7:$A$10000=A141,$I$7:$I$10000))=I141,MIN(IF($A$7:$A$10000=A141,$I$7:$I$10000)),""))) ->  | AB141: =IF($A141="","",IF($E141="to be placed","",IF(MIN(IF($A$7:$A$10000=A141,$I$7:$I$10000))=I141,MIN(IF($A$7:$A$10000=A141,$I$7:$I$10000)),IF(SMALL(IF($A$7:$A$10000=A141,$I$7:$I$10000),2)=I141,SMALL(IF($A$7:$A$10000=A141,$I$7:$I$10000),2),"")))) ->  | AF141: =IF($A141="","",IF($E141="to be placed","",IF(MIN(IF($A$7:$A$10000=A141,$I$7:$I$10000))=I141,MIN(IF($A$7:$A$10000=A141,$I$7:$I$10000)),IF(SMALL(IF($A$7:$A$10000=A141,$I$7:$I$10000),2)=I141,SMALL(IF($A$7:$A$10000=A141,$I$7:$I$10000),2),IF(SMALL(IF($A$7:$A$10000=A141,$I$7:$I$10000),3)=I141,SMALL(IF($A$7:$A$10000=A141,$I$7:$I$10000),3),""))))) -> 
A142: 100595380 | B142: Mary (AUS) 24th Dec | C142: Mary | D142: 2012-12-24T13:53:00 | E142: R2 2190m Trot M | F142: 2013-01-04T08:29:17 | G142: 5. Redcaviar | H142: 2012-12-24T14:03:00 | I142: 9.4 | J142: 2012-12-24T13:54:05 | K142: 2012-12-24T13:53:35 | L142: NI | M142: 7 | N142: 359.3 | O142: 7 | P142: 5720449 | Q142: 0 | S142: 11.9047619 | V142: 1 | Y142: =IF(A142="","",IF(E142="to be placed","",IF(MIN(IF($A$7:$A$10000=A142,$I$7:$I$10000))=I142,MIN(IF($A$7:$A$10000=A142,$I$7:$I$10000)),""))) ->  | AB142: =IF($A142="","",IF($E142="to be placed","",IF(MIN(IF($A$7:$A$10000=A142,$I$7:$I$10000))=I142,MIN(IF($A$7:$A$10000=A142,$I$7:$I$10000)),IF(SMALL(IF($A$7:$A$10000=A142,$I$7:$I$10000),2)=I142,SMALL(IF($A$7:$A$10000=A142,$I$7:$I$10000),2),"")))) ->  | AF142: =IF($A142="","",IF($E142="to be placed","",IF(MIN(IF($A$7:$A$10000=A142,$I$7:$I$10000))=I142,MIN(IF($A$7:$A$10000=A142,$I$7:$I$10000)),IF(SMALL(IF($A$7:$A$10000=A142,$I$7:$I$10000),2)=I142,SMALL(IF($A$7:$A$10000=A142,$I$7:$I$10000),2),IF(SMALL(IF($A$7:$A$10000=A142,$I$7:$I$10000),3)=I142,SMALL(IF($A$7:$A$10000=A142,$I$7:$I$10000),3),""))))) -> 9.4 | AG142: 0.935
A143: 100595380 | B143: Mary (AUS) 24th Dec | C143: Mary | D143: 2012-12-24T13:53:00 | E143: R2 2190m Trot M | F143: 2013-01-04T08:29:17 | G143: 6. Waikare Patricia | H143: 2012-12-24T14:03:00 | I143: 1.88 | J143: 2012-12-24T13:54:06 | K143: 2012-12-24T13:54:06 | L143: NI | M143: 2 | N143: 8325.46 | O143: 7 | P143: 6087969 | Q143: 1 | S143: -100 | V143: -0.88 | Y143: =IF(A143="","",IF(E143="to be placed","",IF(MIN(IF($A$7:$A$10000=A143,$I$7:$I$10000))=I143,MIN(IF($A$7:$A$10000=A143,$I$7:$I$10000)),""))) -> 1.88 | Z143: -0.88 | AB143: =IF($A143="","",IF($E143="to be placed","",IF(MIN(IF($A$7:$A$10000=A143,$I$7:$I$10000))=I143,MIN(IF($A$7:$A$10000=A143,$I$7:$I$10000)),IF(SMALL(IF($A$7:$A$10000=A143,$I$7:$I$10000),2)=I143,SMALL(IF($A$7:$A$10000=A143,$I$7:$I$10000),2),"")))) -> 1.88 | AC143: -0.88 | AF143: =IF($A143="","",IF($E143="to be placed","",IF(MIN(IF($A$7:$A$10000=A143,$I$7:$I$10000))=I143,MIN(IF($A$7:$A$10000=A143,$I$7:$I$10000)),IF(SMALL(IF($A$7:$A$10000=A143,$I$7:$I$10000),2)=I143,SMALL(IF($A$7:$A$10000=A143,$I$7:$I$10000),2),IF(SMALL(IF($A$7:$A$10000=A143,$I$7:$I$10000),3)=I143,SMALL(IF($A$7:$A$10000=A143,$I$7:$I$10000),3),""))))) -> 1.88 | AG143: -0.88
A144: 100595380 | B144: Mary (AUS) 24th Dec | C144: Mary | D144: 2012-12-24T13:53:00 | E144: R2 2190m Trot M | F144: 2013-01-04T08:29:17 | G144: 2. Freeasthewind | H144: 2012-12-24T14:03:00 | I144: 50 | J144: 2012-12-24T13:54:04 | K144: 2012-12-24T13:53:34 | L144: NI | M144: 5 | N144: 98.04 | O144: 7 | P144: 6314819 | Q144: 0 | S144: 2.040816327 | Y144: =IF(A144="","",IF(E144="to be placed","",IF(MIN(IF($A$7:$A$10000=A144,$I$7:$I$10000))=I144,MIN(IF($A$7:$A$10000=A144,$I$7:$I$10000)),""))) ->  | AB144: =IF($A144="","",IF($E144="to be placed","",IF(MIN(IF($A$7:$A$10000=A144,$I$7:$I$10000))=I144,MIN(IF($A$7:$A$10000=A144,$I$7:$I$10000)),IF(SMALL(IF($A$7:$A$10000=A144,$I$7:$I$10000),2)=I144,SMALL(IF($A$7:$A$10000=A144,$I$7:$I$10000),2),"")))) ->  | AF144: =IF($A144="","",IF($E144="to be placed","",IF(MIN(IF($A$7:$A$10000=A144,$I$7:$I$10000))=I144,MIN(IF($A$7:$A$10000=A144,$I$7:$I$10000)),IF(SMALL(IF($A$7:$A$10000=A144,$I$7:$I$10000),2)=I144,SMALL(IF($A$7:$A$10000=A144,$I$7:$I$10000),2),IF(SMALL(IF($A$7:$A$10000=A144,$I$7:$I$10000),3)=I144,SMALL(IF($A$7:$A$10000=A144,$I$7:$I$10000),3),""))))) -> 
A145: 100595380 | B145: Mary (AUS) 24th Dec | C145: Mary | D145: 2012-12-24T13:53:00 | E145: R2 2190m Trot M | F145: 2013-01-04T08:29:17 | G145: 12. My Turn My Turn | H145: 2012-12-24T14:03:00 | I145: 20 | J145: 2012-12-24T13:54:05 | K145: 2012-12-24T13:54:05 | L145: NI | M145: 3 | N145: 47.28 | O145: 7 | P145: 6380193 | Q145: 0 | S145: 5.263157895 | Y145: =IF(A145="","",IF(E145="to be placed","",IF(MIN(IF($A$7:$A$10000=A145,$I$7:$I$10000))=I145,MIN(IF($A$7:$A$10000=A145,$I$7:$I$10000)),""))) ->  | AB145: =IF($A145="","",IF($E145="to be placed","",IF(MIN(IF($A$7:$A$10000=A145,$I$7:$I$10000))=I145,MIN(IF($A$7:$A$10000=A145,$I$7:$I$10000)),IF(SMALL(IF($A$7:$A$10000=A145,$I$7:$I$10000),2)=I145,SMALL(IF($A$7:$A$10000=A145,$I$7:$I$10000),2),"")))) ->  | AF145: =IF($A145="","",IF($E145="to be placed","",IF(MIN(IF($A$7:$A$10000=A145,$I$7:$I$10000))=I145,MIN(IF($A$7:$A$10000=A145,$I$7:$I$10000)),IF(SMALL(IF($A$7:$A$10000=A145,$I$7:$I$10000),2)=I145,SMALL(IF($A$7:$A$10000=A145,$I$7:$I$10000),2),IF(SMALL(IF($A$7:$A$10000=A145,$I$7:$I$10000),3)=I145,SMALL(IF($A$7:$A$10000=A145,$I$7:$I$10000),3),""))))) -> 
A146: 100595380 | B146: Mary (AUS) 24th Dec | C146: Mary | D146: 2012-12-24T13:53:00 | E146: R2 2190m Trot M | F146: 2013-01-04T08:29:17 | G146: 4. Flying Maori | H146: 2012-12-24T14:03:00 | I146: 40 | J146: 2012-12-24T13:54:03 | K146: 2012-12-24T13:54:01 | L146: NI | M146: 4 | N146: 12 | O146: 7 | P146: 6720567 | Q146: 0 | S146: 2.564102564 | Y146: =IF(A146="","",IF(E146="to be placed","",IF(MIN(IF($A$7:$A$10000=A146,$I$7:$I$10000))=I146,MIN(IF($A$7:$A$10000=A146,$I$7:$I$10000)),""))) ->  | AB146: =IF($A146="","",IF($E146="to be placed","",IF(MIN(IF($A$7:$A$10000=A146,$I$7:$I$10000))=I146,MIN(IF($A$7:$A$10000=A146,$I$7:$I$10000)),IF(SMALL(IF($A$7:$A$10000=A146,$I$7:$I$10000),2)=I146,SMALL(IF($A$7:$A$10000=A146,$I$7:$I$10000),2),"")))) ->  | AF146: =IF($A146="","",IF($E146="to be placed","",IF(MIN(IF($A$7:$A$10000=A146,$I$7:$I$10000))=I146,MIN(IF($A$7:$A$10000=A146,$I$7:$I$10000)),IF(SMALL(IF($A$7:$A$10000=A146,$I$7:$I$10000),2)=I146,SMALL(IF($A$7:$A$10000=A146,$I$7:$I$10000),2),IF(SMALL(IF($A$7:$A$10000=A146,$I$7:$I$10000),3)=I146,SMALL(IF($A$7:$A$10000=A146,$I$7:$I$10000),3),""))))) -> 
A147: 100595380 | B147: Mary (AUS) 24th Dec | C147: Mary | D147: 2012-12-24T13:53:00 | E147: R2 2190m Trot M | F147: 2013-01-04T08:29:17 | G147: 3. The Yankee Clipper | H147: 2012-12-24T14:03:00 | I147: 40 | J147: 2012-12-24T13:53:30 | K147: 2012-12-24T13:52:52 | L147: NI | M147: 4 | N147: 80.56 | O147: 7 | P147: 6810052 | Q147: 0 | S147: 2.564102564 | T147: -45.26881219 | W147: 1.9822 | Y147: =IF(A147="","",IF(E147="to be placed","",IF(MIN(IF($A$7:$A$10000=A147,$I$7:$I$10000))=I147,MIN(IF($A$7:$A$10000=A147,$I$7:$I$10000)),""))) ->  | AB147: =IF($A147="","",IF($E147="to be placed","",IF(MIN(IF($A$7:$A$10000=A147,$I$7:$I$10000))=I147,MIN(IF($A$7:$A$10000=A147,$I$7:$I$10000)),IF(SMALL(IF($A$7:$A$10000=A147,$I$7:$I$10000),2)=I147,SMALL(IF($A$7:$A$10000=A147,$I$7:$I$10000),2),"")))) ->  | AD147: 0.051425 | AF147: =IF($A147="","",IF($E147="to be placed","",IF(MIN(IF($A$7:$A$10000=A147,$I$7:$I$10000))=I147,MIN(IF($A$7:$A$10000=A147,$I$7:$I$10000)),IF(SMALL(IF($A$7:$A$10000=A147,$I$7:$I$10000),2)=I147,SMALL(IF($A$7:$A$10000=A147,$I$7:$I$10000),2),IF(SMALL(IF($A$7:$A$10000=A147,$I$7:$I$10000),3)=I147,SMALL(IF($A$7:$A$10000=A147,$I$7:$I$10000),3),""))))) ->  | AH147: 0.92565
A148: 100595381 | B148: Mary (AUS) 24th Dec | C148: Mary | D148: 2012-12-24T13:53:00 | E148: TO BE PLACED | F148: 2013-01-04T08:29:17 | G148: 1. Whiskey Business | H148: 2012-12-24T14:03:21 | I148: 4.9 | J148: 2012-12-24T13:52:32 | K148: 2012-12-24T13:52:32 | L148: NI | M148: 2 | N148: 8 | O148: 7 | P148: 304829 | Q148: 0 | Y148: =IF(A148="","",IF(E148="to be placed","",IF(MIN(IF($A$7:$A$10000=A148,$I$7:$I$10000))=I148,MIN(IF($A$7:$A$10000=A148,$I$7:$I$10000)),""))) ->  | AB148: =IF($A148="","",IF($E148="to be placed","",IF(MIN(IF($A$7:$A$10000=A148,$I$7:$I$10000))=I148,MIN(IF($A$7:$A$10000=A148,$I$7:$I$10000)),IF(SMALL(IF($A$7:$A$10000=A148,$I$7:$I$10000),2)=I148,SMALL(IF($A$7:$A$10000=A148,$I$7:$I$10000),2),"")))) ->  | AF148: =IF($A148="","",IF($E148="to be placed","",IF(MIN(IF($A$7:$A$10000=A148,$I$7:$I$10000))=I148,MIN(IF($A$7:$A$10000=A148,$I$7:$I$10000)),IF(SMALL(IF($A$7:$A$10000=A148,$I$7:$I$10000),2)=I148,SMALL(IF($A$7:$A$10000=A148,$I$7:$I$10000),2),IF(SMALL(IF($A$7:$A$10000=A148,$I$7:$I$10000),3)=I148,SMALL(IF($A$7:$A$10000=A148,$I$7:$I$10000),3),""))))) -> 
A149: 100595381 | B149: Mary (AUS) 24th Dec | C149: Mary | D149: 2012-12-24T13:53:00 | E149: TO BE PLACED | F149: 2013-01-04T08:29:17 | G149: 9. Duchess Pat | H149: 2012-12-24T14:03:21 | I149: 2.26 | J149: 2012-12-24T13:53:57 | K149: 2012-12-24T13:53:57 | L149: NI | M149: 3 | N149: 84.58 | O149: 7 | P149: 5398761 | Q149: 1 | Y149: =IF(A149="","",IF(E149="to be placed","",IF(MIN(IF($A$7:$A$10000=A149,$I$7:$I$10000))=I149,MIN(IF($A$7:$A$10000=A149,$I$7:$I$10000)),""))) ->  | AB149: =IF($A149="","",IF($E149="to be placed","",IF(MIN(IF($A$7:$A$10000=A149,$I$7:$I$10000))=I149,MIN(IF($A$7:$A$10000=A149,$I$7:$I$10000)),IF(SMALL(IF($A$7:$A$10000=A149,$I$7:$I$10000),2)=I149,SMALL(IF($A$7:$A$10000=A149,$I$7:$I$10000),2),"")))) ->  | AF149: =IF($A149="","",IF($E149="to be placed","",IF(MIN(IF($A$7:$A$10000=A149,$I$7:$I$10000))=I149,MIN(IF($A$7:$A$10000=A149,$I$7:$I$10000)),IF(SMALL(IF($A$7:$A$10000=A149,$I$7:$I$10000),2)=I149,SMALL(IF($A$7:$A$10000=A149,$I$7:$I$10000),2),IF(SMALL(IF($A$7:$A$10000=A149,$I$7:$I$10000),3)=I149,SMALL(IF($A$7:$A$10000=A149,$I$7:$I$10000),3),""))))) -> 
A150: 100595381 | B150: Mary (AUS) 24th Dec | C150: Mary | D150: 2012-12-24T13:53:00 | E150: TO BE PLACED | F150: 2013-01-04T08:29:17 | G150: 7. Sunwhiz | H150: 2012-12-24T14:03:21 | I150: 4.9 | J150: 2012-12-24T13:52:29 | K150: 2012-12-24T13:52:29 | L150: NI | M150: 2 | N150: 4 | O150: 7 | P150: 5536863 | Q150: 0 | Y150: =IF(A150="","",IF(E150="to be placed","",IF(MIN(IF($A$7:$A$10000=A150,$I$7:$I$10000))=I150,MIN(IF($A$7:$A$10000=A150,$I$7:$I$10000)),""))) ->  | AB150: =IF($A150="","",IF($E150="to be placed","",IF(MIN(IF($A$7:$A$10000=A150,$I$7:$I$10000))=I150,MIN(IF($A$7:$A$10000=A150,$I$7:$I$10000)),IF(SMALL(IF($A$7:$A$10000=A150,$I$7:$I$10000),2)=I150,SMALL(IF($A$7:$A$10000=A150,$I$7:$I$10000),2),"")))) ->  | AF150: =IF($A150="","",IF($E150="to be placed","",IF(MIN(IF($A$7:$A$10000=A150,$I$7:$I$10000))=I150,MIN(IF($A$7:$A$10000=A150,$I$7:$I$10000)),IF(SMALL(IF($A$7:$A$10000=A150,$I$7:$I$10000),2)=I150,SMALL(IF($A$7:$A$10000=A150,$I$7:$I$10000),2),IF(SMALL(IF($A$7:$A$10000=A150,$I$7:$I$10000),3)=I150,SMALL(IF($A$7:$A$10000=A150,$I$7:$I$10000),3),""))))) -> 
A151: 100595381 | B151: Mary (AUS) 24th Dec | C151: Mary | D151: 2012-12-24T13:53:00 | E151: TO BE PLACED | F151: 2013-01-04T08:29:17 | G151: 11. Chevaux Rainbow | H151: 2012-12-24T14:03:21 | I151: 2.82 | J151: 2012-12-24T13:53:46 | K151: 2012-12-24T13:53:46 | L151: NI | M151: 2 | N151: 25.74 | O151: 7 | P151: 5682174 | Q151: 1 | Y151: =IF(A151="","",IF(E151="to be placed","",IF(MIN(IF($A$7:$A$10000=A151,$I$7:$I$10000))=I151,MIN(IF($A$7:$A$10000=A151,$I$7:$I$10000)),""))) ->  | AB151: =IF($A151="","",IF($E151="to be placed","",IF(MIN(IF($A$7:$A$10000=A151,$I$7:$I$10000))=I151,MIN(IF($A$7:$A$10000=A151,$I$7:$I$10000)),IF(SMALL(IF($A$7:$A$10000=A151,$I$7:$I$10000),2)=I151,SMALL(IF($A$7:$A$10000=A151,$I$7:$I$10000),2),"")))) ->  | AF151: =IF($A151="","",IF($E151="to be placed","",IF(MIN(IF($A$7:$A$10000=A151,$I$7:$I$10000))=I151,MIN(IF($A$7:$A$10000=A151,$I$7:$I$10000)),IF(SMALL(IF($A$7:$A$10000=A151,$I$7:$I$10000),2)=I151,SMALL(IF($A$7:$A$10000=A151,$I$7:$I$10000),2),IF(SMALL(IF($A$7:$A$10000=A151,$I$7:$I$10000),3)=I151,SMALL(IF($A$7:$A$10000=A151,$I$7:$I$10000),3),""))))) -> 
A152: 100595381 | B152: Mary (AUS) 24th Dec | C152: Mary | D152: 2012-12-24T13:53:00 | E152: TO BE PLACED | F152: 2013-01-04T08:29:17 | G152: 5. Redcaviar | H152: 2012-12-24T14:03:21 | I152: 3 | J152: 2012-12-24T13:51:34 | K152: 2012-12-24T13:51:34 | L152: NI | M152: 2 | N152: 0.02 | O152: 7 | P152: 5720449 | Q152: 0 | Y152: =IF(A152="","",IF(E152="to be placed","",IF(MIN(IF($A$7:$A$10000=A152,$I$7:$I$10000))=I152,MIN(IF($A$7:$A$10000=A152,$I$7:$I$10000)),""))) ->  | AB152: =IF($A152="","",IF($E152="to be placed","",IF(MIN(IF($A$7:$A$10000=A152,$I$7:$I$10000))=I152,MIN(IF($A$7:$A$10000=A152,$I$7:$I$10000)),IF(SMALL(IF($A$7:$A$10000=A152,$I$7:$I$10000),2)=I152,SMALL(IF($A$7:$A$10000=A152,$I$7:$I$10000),2),"")))) ->  | AF152: =IF($A152="","",IF($E152="to be placed","",IF(MIN(IF($A$7:$A$10000=A152,$I$7:$I$10000))=I152,MIN(IF($A$7:$A$10000=A152,$I$7:$I$10000)),IF(SMALL(IF($A$7:$A$10000=A152,$I$7:$I$10000),2)=I152,SMALL(IF($A$7:$A$10000=A152,$I$7:$I$10000),2),IF(SMALL(IF($A$7:$A$10000=A152,$I$7:$I$10000),3)=I152,SMALL(IF($A$7:$A$10000=A152,$I$7:$I$10000),3),""))))) -> 
A153: 100595381 | B153: Mary (AUS) 24th Dec | C153: Mary | D153: 2012-12-24T13:53:00 | E153: TO BE PLACED | F153: 2013-01-04T08:29:17 | G153: 6. Waikare Patricia | H153: 2012-12-24T14:03:21 | I153: 1.22 | J153: 2012-12-24T13:54:06 | K153: 2012-12-24T13:53:50 | L153: NI | M153: 4 | N153: 1334.06 | O153: 7 | P153: 6087969 | Q153: 1 | Y153: =IF(A153="","",IF(E153="to be placed","",IF(MIN(IF($A$7:$A$10000=A153,$I$7:$I$10000))=I153,MIN(IF($A$7:$A$10000=A153,$I$7:$I$10000)),""))) ->  | AB153: =IF($A153="","",IF($E153="to be placed","",IF(MIN(IF($A$7:$A$10000=A153,$I$7:$I$10000))=I153,MIN(IF($A$7:$A$10000=A153,$I$7:$I$10000)),IF(SMALL(IF($A$7:$A$10000=A153,$I$7:$I$10000),2)=I153,SMALL(IF($A$7:$A$10000=A153,$I$7:$I$10000),2),"")))) ->  | AF153: =IF($A153="","",IF($E153="to be placed","",IF(MIN(IF($A$7:$A$10000=A153,$I$7:$I$10000))=I153,MIN(IF($A$7:$A$10000=A153,$I$7:$I$10000)),IF(SMALL(IF($A$7:$A$10000=A153,$I$7:$I$10000),2)=I153,SMALL(IF($A$7:$A$10000=A153,$I$7:$I$10000),2),IF(SMALL(IF($A$7:$A$10000=A153,$I$7:$I$10000),3)=I153,SMALL(IF($A$7:$A$10000=A153,$I$7:$I$10000),3),""))))) -> 
A154: 100595381 | B154: Mary (AUS) 24th Dec | C154: Mary | D154: 2012-12-24T13:53:00 | E154: TO BE PLACED | F154: 2013-01-04T08:29:17 | G154: 2. Freeasthewind | H154: 2012-12-24T14:03:21 | I154: 11 | J154: 2012-12-24T13:54:05 | K154: 2012-12-24T13:54:05 | L154: NI | M154: 2 | N154: 41.18 | O154: 7 | P154: 6314819 | Q154: 0 | Y154: =IF(A154="","",IF(E154="to be placed","",IF(MIN(IF($A$7:$A$10000=A154,$I$7:$I$10000))=I154,MIN(IF($A$7:$A$10000=A154,$I$7:$I$10000)),""))) ->  | AB154: =IF($A154="","",IF($E154="to be placed","",IF(MIN(IF($A$7:$A$10000=A154,$I$7:$I$10000))=I154,MIN(IF($A$7:$A$10000=A154,$I$7:$I$10000)),IF(SMALL(IF($A$7:$A$10000=A154,$I$7:$I$10000),2)=I154,SMALL(IF($A$7:$A$10000=A154,$I$7:$I$10000),2),"")))) ->  | AF154: =IF($A154="","",IF($E154="to be placed","",IF(MIN(IF($A$7:$A$10000=A154,$I$7:$I$10000))=I154,MIN(IF($A$7:$A$10000=A154,$I$7:$I$10000)),IF(SMALL(IF($A$7:$A$10000=A154,$I$7:$I$10000),2)=I154,SMALL(IF($A$7:$A$10000=A154,$I$7:$I$10000),2),IF(SMALL(IF($A$7:$A$10000=A154,$I$7:$I$10000),3)=I154,SMALL(IF($A$7:$A$10000=A154,$I$7:$I$10000),3),""))))) -> 
A155: 100595381 | B155: Mary (AUS) 24th Dec | C155: Mary | D155: 2012-12-24T13:53:00 | E155: TO BE PLACED | F155: 2013-01-04T08:29:17 | G155: 4. Flying Maori | H155: 2012-12-24T14:03:21 | I155: 5.2 | J155: 2012-12-24T13:53:18 | K155: 2012-12-24T13:53:18 | L155: NI | M155: 2 | N155: 6 | O155: 7 | P155: 6720567 | Q155: 0 | Y155: =IF(A155="","",IF(E155="to be placed","",IF(MIN(IF($A$7:$A$10000=A155,$I$7:$I$10000))=I155,MIN(IF($A$7:$A$10000=A155,$I$7:$I$10000)),""))) ->  | AB155: =IF($A155="","",IF($E155="to be placed","",IF(MIN(IF($A$7:$A$10000=A155,$I$7:$I$10000))=I155,MIN(IF($A$7:$A$10000=A155,$I$7:$I$10000)),IF(SMALL(IF($A$7:$A$10000=A155,$I$7:$I$10000),2)=I155,SMALL(IF($A$7:$A$10000=A155,$I$7:$I$10000),2),"")))) ->  | AF155: =IF($A155="","",IF($E155="to be placed","",IF(MIN(IF($A$7:$A$10000=A155,$I$7:$I$10000))=I155,MIN(IF($A$7:$A$10000=A155,$I$7:$I$10000)),IF(SMALL(IF($A$7:$A$10000=A155,$I$7:$I$10000),2)=I155,SMALL(IF($A$7:$A$10000=A155,$I$7:$I$10000),2),IF(SMALL(IF($A$7:$A$10000=A155,$I$7:$I$10000),3)=I155,SMALL(IF($A$7:$A$10000=A155,$I$7:$I$10000),3),""))))) -> 
A156: 100595381 | B156: Mary (AUS) 24th Dec | C156: Mary | D156: 2012-12-24T13:53:00 | E156: TO BE PLACED | F156: 2013-01-04T08:29:17 | G156: 3. The Yankee Clipper | H156: 2012-12-24T14:03:21 | I156: 11 | J156: 2012-12-24T13:54:06 | K156: 2012-12-24T13:54:06 | L156: NI | M156: 2 | N156: 34.18 | O156: 7 | P156: 6810052 | Q156: 0 | W156: =IF($D156="","",IF($E156="to be placed","",IF(AND($A156<>$A157,SUMIF($A$7:$A$10000,$A156,V$7:V$10000)>0),SUMIF($A$7:$A$10000,$A156,V$7:V$10000)*(1-$T$1),IF($A156<>$A157,SUMIF($A$7:$A$10000,$A156,V$7:V$10000),"")))) ->  | Y156: =IF(A156="","",IF(E156="to be placed","",IF(MIN(IF($A$7:$A$10000=A156,$I$7:$I$10000))=I156,MIN(IF($A$7:$A$10000=A156,$I$7:$I$10000)),""))) ->  | AB156: =IF($A156="","",IF($E156="to be placed","",IF(MIN(IF($A$7:$A$10000=A156,$I$7:$I$10000))=I156,MIN(IF($A$7:$A$10000=A156,$I$7:$I$10000)),IF(SMALL(IF($A$7:$A$10000=A156,$I$7:$I$10000),2)=I156,SMALL(IF($A$7:$A$10000=A156,$I$7:$I$10000),2),"")))) ->  | AF156: =IF($A156="","",IF($E156="to be placed","",IF(MIN(IF($A$7:$A$10000=A156,$I$7:$I$10000))=I156,MIN(IF($A$7:$A$10000=A156,$I$7:$I$10000)),IF(SMALL(IF($A$7:$A$10000=A156,$I$7:$I$10000),2)=I156,SMALL(IF($A$7:$A$10000=A156,$I$7:$I$10000),2),IF(SMALL(IF($A$7:$A$10000=A156,$I$7:$I$10000),3)=I156,SMALL(IF($A$7:$A$10000=A156,$I$7:$I$10000),3),""))))) -> 
A157: 100595312 | B157: Tamw (AUS) 24th Dec | C157: Tamw | D157: 2012-12-24T13:59:00 | E157: TO BE PLACED | F157: 2013-01-04T08:29:16 | G157: 7. Take Charge Lady | H157: 2012-12-24T14:01:38 | I157: 1.69 | J157: 2012-12-24T13:59:38 | K157: 2012-12-24T13:59:38 | L157: NI | M157: 3 | N157: 1149.24 | O157: 7 | P157: 521539 | Q157: 0 | Y157: =IF(A157="","",IF(E157="to be placed","",IF(MIN(IF($A$7:$A$10000=A157,$I$7:$I$10000))=I157,MIN(IF($A$7:$A$10000=A157,$I$7:$I$10000)),""))) ->  | AB157: =IF($A157="","",IF($E157="to be placed","",IF(MIN(IF($A$7:$A$10000=A157,$I$7:$I$10000))=I157,MIN(IF($A$7:$A$10000=A157,$I$7:$I$10000)),IF(SMALL(IF($A$7:$A$10000=A157,$I$7:$I$10000),2)=I157,SMALL(IF($A$7:$A$10000=A157,$I$7:$I$10000),2),"")))) ->  | AF157: =IF($A157="","",IF($E157="to be placed","",IF(MIN(IF($A$7:$A$10000=A157,$I$7:$I$10000))=I157,MIN(IF($A$7:$A$10000=A157,$I$7:$I$10000)),IF(SMALL(IF($A$7:$A$10000=A157,$I$7:$I$10000),2)=I157,SMALL(IF($A$7:$A$10000=A157,$I$7:$I$10000),2),IF(SMALL(IF($A$7:$A$10000=A157,$I$7:$I$10000),3)=I157,SMALL(IF($A$7:$A$10000=A157,$I$7:$I$10000),3),""))))) -> 
A158: 100595312 | B158: Tamw (AUS) 24th Dec | C158: Tamw | D158: 2012-12-24T13:59:00 | E158: TO BE PLACED | F158: 2013-01-04T08:29:16 | G158: 2. Dan Danoro | H158: 2012-12-24T14:01:38 | I158: 19 | J158: 2012-12-24T13:59:42 | K158: 2012-12-24T13:59:42 | L158: NI | M158: 2 | N158: 31.02 | O158: 7 | P158: 6249229 | Q158: 0 | Y158: =IF(A158="","",IF(E158="to be placed","",IF(MIN(IF($A$7:$A$10000=A158,$I$7:$I$10000))=I158,MIN(IF($A$7:$A$10000=A158,$I$7:$I$10000)),""))) ->  | AB158: =IF($A158="","",IF($E158="to be placed","",IF(MIN(IF($A$7:$A$10000=A158,$I$7:$I$10000))=I158,MIN(IF($A$7:$A$10000=A158,$I$7:$I$10000)),IF(SMALL(IF($A$7:$A$10000=A158,$I$7:$I$10000),2)=I158,SMALL(IF($A$7:$A$10000=A158,$I$7:$I$10000),2),"")))) ->  | AF158: =IF($A158="","",IF($E158="to be placed","",IF(MIN(IF($A$7:$A$10000=A158,$I$7:$I$10000))=I158,MIN(IF($A$7:$A$10000=A158,$I$7:$I$10000)),IF(SMALL(IF($A$7:$A$10000=A158,$I$7:$I$10000),2)=I158,SMALL(IF($A$7:$A$10000=A158,$I$7:$I$10000),2),IF(SMALL(IF($A$7:$A$10000=A158,$I$7:$I$10000),3)=I158,SMALL(IF($A$7:$A$10000=A158,$I$7:$I$10000),3),""))))) -> 
A159: 100595312 | B159: Tamw (AUS) 24th Dec | C159: Tamw | D159: 2012-12-24T13:59:00 | E159: TO BE PLACED | F159: 2013-01-04T08:29:16 | G159: 12. Limitation | H159: 2012-12-24T14:01:38 | I159: 2.3 | J159: 2012-12-24T13:59:59 | K159: 2012-12-24T13:59:55 | L159: NI | M159: 4 | N159: 521.68 | O159: 7 | P159: 6690839 | Q159: 1 | Y159: =IF(A159="","",IF(E159="to be placed","",IF(MIN(IF($A$7:$A$10000=A159,$I$7:$I$10000))=I159,MIN(IF($A$7:$A$10000=A159,$I$7:$I$10000)),""))) ->  | AB159: =IF($A159="","",IF($E159="to be placed","",IF(MIN(IF($A$7:$A$10000=A159,$I$7:$I$10000))=I159,MIN(IF($A$7:$A$10000=A159,$I$7:$I$10000)),IF(SMALL(IF($A$7:$A$10000=A159,$I$7:$I$10000),2)=I159,SMALL(IF($A$7:$A$10000=A159,$I$7:$I$10000),2),"")))) ->  | AF159: =IF($A159="","",IF($E159="to be placed","",IF(MIN(IF($A$7:$A$10000=A159,$I$7:$I$10000))=I159,MIN(IF($A$7:$A$10000=A159,$I$7:$I$10000)),IF(SMALL(IF($A$7:$A$10000=A159,$I$7:$I$10000),2)=I159,SMALL(IF($A$7:$A$10000=A159,$I$7:$I$10000),2),IF(SMALL(IF($A$7:$A$10000=A159,$I$7:$I$10000),3)=I159,SMALL(IF($A$7:$A$10000=A159,$I$7:$I$10000),3),""))))) -> 
A160: 100595312 | B160: Tamw (AUS) 24th Dec | C160: Tamw | D160: 2012-12-24T13:59:00 | E160: TO BE PLACED | F160: 2013-01-04T08:29:16 | G160: 4. Seeking Louie | H160: 2012-12-24T14:01:38 | I160: 12.5 | J160: 2012-12-24T14:00:05 | K160: 2012-12-24T13:57:02 | L160: NI | M160: 8 | N160: 76.28 | O160: 7 | P160: 6934762 | Q160: 0 | Y160: =IF(A160="","",IF(E160="to be placed","",IF(MIN(IF($A$7:$A$10000=A160,$I$7:$I$10000))=I160,MIN(IF($A$7:$A$10000=A160,$I$7:$I$10000)),""))) ->  | AB160: =IF($A160="","",IF($E160="to be placed","",IF(MIN(IF($A$7:$A$10000=A160,$I$7:$I$10000))=I160,MIN(IF($A$7:$A$10000=A160,$I$7:$I$10000)),IF(SMALL(IF($A$7:$A$10000=A160,$I$7:$I$10000),2)=I160,SMALL(IF($A$7:$A$10000=A160,$I$7:$I$10000),2),"")))) ->  | AF160: =IF($A160="","",IF($E160="to be placed","",IF(MIN(IF($A$7:$A$10000=A160,$I$7:$I$10000))=I160,MIN(IF($A$7:$A$10000=A160,$I$7:$I$10000)),IF(SMALL(IF($A$7:$A$10000=A160,$I$7:$I$10000),2)=I160,SMALL(IF($A$7:$A$10000=A160,$I$7:$I$10000),2),IF(SMALL(IF($A$7:$A$10000=A160,$I$7:$I$10000),3)=I160,SMALL(IF($A$7:$A$10000=A160,$I$7:$I$10000),3),""))))) -> 
A161: 100595312 | B161: Tamw (AUS) 24th Dec | C161: Tamw | D161: 2012-12-24T13:59:00 | E161: TO BE PLACED | F161: 2013-01-04T08:29:16 | G161: 5. Shafali Lad | H161: 2012-12-24T14:01:38 | I161: 12.5 | J161: 2012-12-24T13:59:09 | K161: 2012-12-24T13:59:09 | L161: NI | M161: 2 | N161: 32.24 | O161: 7 | P161: 6934763 | Q161: 0 | Y161: =IF(A161="","",IF(E161="to be placed","",IF(MIN(IF($A$7:$A$10000=A161,$I$7:$I$10000))=I161,MIN(IF($A$7:$A$10000=A161,$I$7:$I$10000)),""))) ->  | AB161: =IF($A161="","",IF($E161="to be placed","",IF(MIN(IF($A$7:$A$10000=A161,$I$7:$I$10000))=I161,MIN(IF($A$7:$A$10000=A161,$I$7:$I$10000)),IF(SMALL(IF($A$7:$A$10000=A161,$I$7:$I$10000),2)=I161,SMALL(IF($A$7:$A$10000=A161,$I$7:$I$10000),2),"")))) ->  | AF161: =IF($A161="","",IF($E161="to be placed","",IF(MIN(IF($A$7:$A$10000=A161,$I$7:$I$10000))=I161,MIN(IF($A$7:$A$10000=A161,$I$7:$I$10000)),IF(SMALL(IF($A$7:$A$10000=A161,$I$7:$I$10000),2)=I161,SMALL(IF($A$7:$A$10000=A161,$I$7:$I$10000),2),IF(SMALL(IF($A$7:$A$10000=A161,$I$7:$I$10000),3)=I161,SMALL(IF($A$7:$A$10000=A161,$I$7:$I$10000),3),""))))) -> 
A162: 100595312 | B162: Tamw (AUS) 24th Dec | C162: Tamw | D162: 2012-12-24T13:59:00 | E162: TO BE PLACED | F162: 2013-01-04T08:29:16 | G162: 6. Stop The Flow | H162: 2012-12-24T14:01:38 | I162: 2.12 | J162: 2012-12-24T13:59:58 | K162: 2012-12-24T13:58:21 | L162: NI | M162: 6 | N162: 885.46 | O162: 7 | P162: 6934764 | Q162: 0 | Y162: =IF(A162="","",IF(E162="to be placed","",IF(MIN(IF($A$7:$A$10000=A162,$I$7:$I$10000))=I162,MIN(IF($A$7:$A$10000=A162,$I$7:$I$10000)),""))) ->  | AB162: =IF($A162="","",IF($E162="to be placed","",IF(MIN(IF($A$7:$A$10000=A162,$I$7:$I$10000))=I162,MIN(IF($A$7:$A$10000=A162,$I$7:$I$10000)),IF(SMALL(IF($A$7:$A$10000=A162,$I$7:$I$10000),2)=I162,SMALL(IF($A$7:$A$10000=A162,$I$7:$I$10000),2),"")))) ->  | AF162: =IF($A162="","",IF($E162="to be placed","",IF(MIN(IF($A$7:$A$10000=A162,$I$7:$I$10000))=I162,MIN(IF($A$7:$A$10000=A162,$I$7:$I$10000)),IF(SMALL(IF($A$7:$A$10000=A162,$I$7:$I$10000),2)=I162,SMALL(IF($A$7:$A$10000=A162,$I$7:$I$10000),2),IF(SMALL(IF($A$7:$A$10000=A162,$I$7:$I$10000),3)=I162,SMALL(IF($A$7:$A$10000=A162,$I$7:$I$10000),3),""))))) -> 
A163: 100595312 | B163: Tamw (AUS) 24th Dec | C163: Tamw | D163: 2012-12-24T13:59:00 | E163: TO BE PLACED | F163: 2013-01-04T08:29:16 | G163: 8. The Brown One | H163: 2012-12-24T14:01:38 | I163: 1.74 | J163: 2012-12-24T13:59:54 | K163: 2012-12-24T13:59:54 | L163: NI | M163: 2 | N163: 384.88 | O163: 7 | P163: 6934765 | Q163: 1 | Y163: =IF(A163="","",IF(E163="to be placed","",IF(MIN(IF($A$7:$A$10000=A163,$I$7:$I$10000))=I163,MIN(IF($A$7:$A$10000=A163,$I$7:$I$10000)),""))) ->  | AB163: =IF($A163="","",IF($E163="to be placed","",IF(MIN(IF($A$7:$A$10000=A163,$I$7:$I$10000))=I163,MIN(IF($A$7:$A$10000=A163,$I$7:$I$10000)),IF(SMALL(IF($A$7:$A$10000=A163,$I$7:$I$10000),2)=I163,SMALL(IF($A$7:$A$10000=A163,$I$7:$I$10000),2),"")))) ->  | AF163: =IF($A163="","",IF($E163="to be placed","",IF(MIN(IF($A$7:$A$10000=A163,$I$7:$I$10000))=I163,MIN(IF($A$7:$A$10000=A163,$I$7:$I$10000)),IF(SMALL(IF($A$7:$A$10000=A163,$I$7:$I$10000),2)=I163,SMALL(IF($A$7:$A$10000=A163,$I$7:$I$10000),2),IF(SMALL(IF($A$7:$A$10000=A163,$I$7:$I$10000),3)=I163,SMALL(IF($A$7:$A$10000=A163,$I$7:$I$10000),3),""))))) -> 
A164: 100595312 | B164: Tamw (AUS) 24th Dec | C164: Tamw | D164: 2012-12-24T13:59:00 | E164: TO BE PLACED | F164: 2013-01-04T08:29:16 | G164: 9. Belannoro | H164: 2012-12-24T14:01:38 | I164: 1.77 | J164: 2012-12-24T14:00:07 | K164: 2012-12-24T13:59:18 | L164: NI | M164: 8 | N164: 1358.98 | O164: 7 | P164: 6934766 | Q164: 1 | Y164: =IF(A164="","",IF(E164="to be placed","",IF(MIN(IF($A$7:$A$10000=A164,$I$7:$I$10000))=I164,MIN(IF($A$7:$A$10000=A164,$I$7:$I$10000)),""))) ->  | AB164: =IF($A164="","",IF($E164="to be placed","",IF(MIN(IF($A$7:$A$10000=A164,$I$7:$I$10000))=I164,MIN(IF($A$7:$A$10000=A164,$I$7:$I$10000)),IF(SMALL(IF($A$7:$A$10000=A164,$I$7:$I$10000),2)=I164,SMALL(IF($A$7:$A$10000=A164,$I$7:$I$10000),2),"")))) ->  | AF164: =IF($A164="","",IF($E164="to be placed","",IF(MIN(IF($A$7:$A$10000=A164,$I$7:$I$10000))=I164,MIN(IF($A$7:$A$10000=A164,$I$7:$I$10000)),IF(SMALL(IF($A$7:$A$10000=A164,$I$7:$I$10000),2)=I164,SMALL(IF($A$7:$A$10000=A164,$I$7:$I$10000),2),IF(SMALL(IF($A$7:$A$10000=A164,$I$7:$I$10000),3)=I164,SMALL(IF($A$7:$A$10000=A164,$I$7:$I$10000),3),""))))) -> 
A165: 100595312 | B165: Tamw (AUS) 24th Dec | C165: Tamw | D165: 2012-12-24T13:59:00 | E165: TO BE PLACED | F165: 2013-01-04T08:29:16 | G165: 11. Evella | H165: 2012-12-24T14:01:38 | I165: 34 | J165: 2012-12-24T13:58:51 | K165: 2012-12-24T13:58:51 | L165: NI | M165: 2 | N165: 0.18 | O165: 7 | P165: 6934768 | Q165: 0 | Y165: =IF(A165="","",IF(E165="to be placed","",IF(MIN(IF($A$7:$A$10000=A165,$I$7:$I$10000))=I165,MIN(IF($A$7:$A$10000=A165,$I$7:$I$10000)),""))) ->  | AB165: =IF($A165="","",IF($E165="to be placed","",IF(MIN(IF($A$7:$A$10000=A165,$I$7:$I$10000))=I165,MIN(IF($A$7:$A$10000=A165,$I$7:$I$10000)),IF(SMALL(IF($A$7:$A$10000=A165,$I$7:$I$10000),2)=I165,SMALL(IF($A$7:$A$10000=A165,$I$7:$I$10000),2),"")))) ->  | AF165: =IF($A165="","",IF($E165="to be placed","",IF(MIN(IF($A$7:$A$10000=A165,$I$7:$I$10000))=I165,MIN(IF($A$7:$A$10000=A165,$I$7:$I$10000)),IF(SMALL(IF($A$7:$A$10000=A165,$I$7:$I$10000),2)=I165,SMALL(IF($A$7:$A$10000=A165,$I$7:$I$10000),2),IF(SMALL(IF($A$7:$A$10000=A165,$I$7:$I$10000),3)=I165,SMALL(IF($A$7:$A$10000=A165,$I$7:$I$10000),3),""))))) -> 
A166: 100595312 | B166: Tamw (AUS) 24th Dec | C166: Tamw | D166: 2012-12-24T13:59:00 | E166: TO BE PLACED | F166: 2013-01-04T08:29:16 | G166: 13. Time To Fly By | H166: 2012-12-24T14:01:38 | I166: 4.9 | J166: 2012-12-24T13:59:43 | K166: 2012-12-24T13:56:07 | L166: NI | M166: 12 | N166: 121.54 | O166: 7 | P166: 6934769 | Q166: 0 | Y166: =IF(A166="","",IF(E166="to be placed","",IF(MIN(IF($A$7:$A$10000=A166,$I$7:$I$10000))=I166,MIN(IF($A$7:$A$10000=A166,$I$7:$I$10000)),""))) ->  | AB166: =IF($A166="","",IF($E166="to be placed","",IF(MIN(IF($A$7:$A$10000=A166,$I$7:$I$10000))=I166,MIN(IF($A$7:$A$10000=A166,$I$7:$I$10000)),IF(SMALL(IF($A$7:$A$10000=A166,$I$7:$I$10000),2)=I166,SMALL(IF($A$7:$A$10000=A166,$I$7:$I$10000),2),"")))) ->  | AF166: =IF($A166="","",IF($E166="to be placed","",IF(MIN(IF($A$7:$A$10000=A166,$I$7:$I$10000))=I166,MIN(IF($A$7:$A$10000=A166,$I$7:$I$10000)),IF(SMALL(IF($A$7:$A$10000=A166,$I$7:$I$10000),2)=I166,SMALL(IF($A$7:$A$10000=A166,$I$7:$I$10000),2),IF(SMALL(IF($A$7:$A$10000=A166,$I$7:$I$10000),3)=I166,SMALL(IF($A$7:$A$10000=A166,$I$7:$I$10000),3),""))))) -> 
A167: 100595313 | B167: Tamw (AUS) 24th Dec | C167: Tamw | D167: 2012-12-24T13:59:00 | E167: R2 1000m 3yo | F167: 2012-12-24T14:00:08 | G167: 7. Take Charge Lady | H167: 2012-12-24T14:01:30 | I167: 4.8 | J167: 2012-12-24T14:00:07 | K167: 2012-12-24T13:59:29 | L167: PE | M167: 24 | N167: 11129.5 | O167: 7 | P167: 521539 | Q167: 0 | S167: 26.31578947 | V167: 1 | Y167: =IF(A167="","",IF(E167="to be placed","",IF(MIN(IF($A$7:$A$10000=A167,$I$7:$I$10000))=I167,MIN(IF($A$7:$A$10000=A167,$I$7:$I$10000)),""))) ->  | AB167: =IF($A167="","",IF($E167="to be placed","",IF(MIN(IF($A$7:$A$10000=A167,$I$7:$I$10000))=I167,MIN(IF($A$7:$A$10000=A167,$I$7:$I$10000)),IF(SMALL(IF($A$7:$A$10000=A167,$I$7:$I$10000),2)=I167,SMALL(IF($A$7:$A$10000=A167,$I$7:$I$10000),2),"")))) ->  | AF167: =IF($A167="","",IF($E167="to be placed","",IF(MIN(IF($A$7:$A$10000=A167,$I$7:$I$10000))=I167,MIN(IF($A$7:$A$10000=A167,$I$7:$I$10000)),IF(SMALL(IF($A$7:$A$10000=A167,$I$7:$I$10000),2)=I167,SMALL(IF($A$7:$A$10000=A167,$I$7:$I$10000),2),IF(SMALL(IF($A$7:$A$10000=A167,$I$7:$I$10000),3)=I167,SMALL(IF($A$7:$A$10000=A167,$I$7:$I$10000),3),""))))) -> 4.8 | AG167: 0.935
A168: 100595313 | B168: Tamw (AUS) 24th Dec | C168: Tamw | D168: 2012-12-24T13:59:00 | E168: R2 1000m 3yo | F168: 2012-12-24T14:00:08 | G168: 2. Dan Danoro | H168: 2012-12-24T14:01:30 | I168: 120 | J168: 2012-12-24T13:59:59 | K168: 2012-12-24T13:55:44 | L168: PE | M168: 18 | N168: 261.54 | O168: 7 | P168: 6249229 | Q168: 0 | S168: 0.8403361345 | Y168: =IF(A168="","",IF(E168="to be placed","",IF(MIN(IF($A$7:$A$10000=A168,$I$7:$I$10000))=I168,MIN(IF($A$7:$A$10000=A168,$I$7:$I$10000)),""))) ->  | AB168: =IF($A168="","",IF($E168="to be placed","",IF(MIN(IF($A$7:$A$10000=A168,$I$7:$I$10000))=I168,MIN(IF($A$7:$A$10000=A168,$I$7:$I$10000)),IF(SMALL(IF($A$7:$A$10000=A168,$I$7:$I$10000),2)=I168,SMALL(IF($A$7:$A$10000=A168,$I$7:$I$10000),2),"")))) ->  | AF168: =IF($A168="","",IF($E168="to be placed","",IF(MIN(IF($A$7:$A$10000=A168,$I$7:$I$10000))=I168,MIN(IF($A$7:$A$10000=A168,$I$7:$I$10000)),IF(SMALL(IF($A$7:$A$10000=A168,$I$7:$I$10000),2)=I168,SMALL(IF($A$7:$A$10000=A168,$I$7:$I$10000),2),IF(SMALL(IF($A$7:$A$10000=A168,$I$7:$I$10000),3)=I168,SMALL(IF($A$7:$A$10000=A168,$I$7:$I$10000),3),""))))) -> 
A169: 100595313 | B169: Tamw (AUS) 24th Dec | C169: Tamw | D169: 2012-12-24T13:59:00 | E169: R2 1000m 3yo | F169: 2012-12-24T14:00:08 | G169: 12. Limitation | H169: 2012-12-24T14:01:30 | I169: 7.2 | J169: 2012-12-24T14:00:00 | K169: 2012-12-24T13:59:58 | L169: PE | M169: 4 | N169: 4721.94 | O169: 7 | P169: 6690839 | Q169: 1 | S169: -100 | V169: -6.2 | Y169: =IF(A169="","",IF(E169="to be placed","",IF(MIN(IF($A$7:$A$10000=A169,$I$7:$I$10000))=I169,MIN(IF($A$7:$A$10000=A169,$I$7:$I$10000)),""))) ->  | AB169: =IF($A169="","",IF($E169="to be placed","",IF(MIN(IF($A$7:$A$10000=A169,$I$7:$I$10000))=I169,MIN(IF($A$7:$A$10000=A169,$I$7:$I$10000)),IF(SMALL(IF($A$7:$A$10000=A169,$I$7:$I$10000),2)=I169,SMALL(IF($A$7:$A$10000=A169,$I$7:$I$10000),2),"")))) ->  | AF169: =IF($A169="","",IF($E169="to be placed","",IF(MIN(IF($A$7:$A$10000=A169,$I$7:$I$10000))=I169,MIN(IF($A$7:$A$10000=A169,$I$7:$I$10000)),IF(SMALL(IF($A$7:$A$10000=A169,$I$7:$I$10000),2)=I169,SMALL(IF($A$7:$A$10000=A169,$I$7:$I$10000),2),IF(SMALL(IF($A$7:$A$10000=A169,$I$7:$I$10000),3)=I169,SMALL(IF($A$7:$A$10000=A169,$I$7:$I$10000),3),""))))) -> 
A170: 100595313 | B170: Tamw (AUS) 24th Dec | C170: Tamw | D170: 2012-12-24T13:59:00 | E170: R2 1000m 3yo | F170: 2012-12-24T14:00:08 | G170: 4. Seeking Louie | H170: 2012-12-24T14:01:30 | I170: 95 | J170: 2012-12-24T14:00:00 | K170: 2012-12-24T13:58:04 | L170: PE | M170: 18 | N170: 165.7 | O170: 7 | P170: 6934762 | Q170: 0 | S170: 1.063829787 | Y170: =IF(A170="","",IF(E170="to be placed","",IF(MIN(IF($A$7:$A$10000=A170,$I$7:$I$10000))=I170,MIN(IF($A$7:$A$10000=A170,$I$7:$I$10000)),""))) ->  | AB170: =IF($A170="","",IF($E170="to be placed","",IF(MIN(IF($A$7:$A$10000=A170,$I$7:$I$10000))=I170,MIN(IF($A$7:$A$10000=A170,$I$7:$I$10000)),IF(SMALL(IF($A$7:$A$10000=A170,$I$7:$I$10000),2)=I170,SMALL(IF($A$7:$A$10000=A170,$I$7:$I$10000),2),"")))) ->  | AF170: =IF($A170="","",IF($E170="to be placed","",IF(MIN(IF($A$7:$A$10000=A170,$I$7:$I$10000))=I170,MIN(IF($A$7:$A$10000=A170,$I$7:$I$10000)),IF(SMALL(IF($A$7:$A$10000=A170,$I$7:$I$10000),2)=I170,SMALL(IF($A$7:$A$10000=A170,$I$7:$I$10000),2),IF(SMALL(IF($A$7:$A$10000=A170,$I$7:$I$10000),3)=I170,SMALL(IF($A$7:$A$10000=A170,$I$7:$I$10000),3),""))))) -> 
A171: 100595313 | B171: Tamw (AUS) 24th Dec | C171: Tamw | D171: 2012-12-24T13:59:00 | E171: R2 1000m 3yo | F171: 2012-12-24T14:00:08 | G171: 5. Shafali Lad | H171: 2012-12-24T14:01:30 | I171: 80 | J171: 2012-12-24T13:59:54 | K171: 2012-12-24T13:59:51 | L171: PE | M171: 3 | N171: 136.84 | O171: 7 | P171: 6934763 | Q171: 0 | S171: 1.265822785 | Y171: =IF(A171="","",IF(E171="to be placed","",IF(MIN(IF($A$7:$A$10000=A171,$I$7:$I$10000))=I171,MIN(IF($A$7:$A$10000=A171,$I$7:$I$10000)),""))) ->  | AB171: =IF($A171="","",IF($E171="to be placed","",IF(MIN(IF($A$7:$A$10000=A171,$I$7:$I$10000))=I171,MIN(IF($A$7:$A$10000=A171,$I$7:$I$10000)),IF(SMALL(IF($A$7:$A$10000=A171,$I$7:$I$10000),2)=I171,SMALL(IF($A$7:$A$10000=A171,$I$7:$I$10000),2),"")))) ->  | AF171: =IF($A171="","",IF($E171="to be placed","",IF(MIN(IF($A$7:$A$10000=A171,$I$7:$I$10000))=I171,MIN(IF($A$7:$A$10000=A171,$I$7:$I$10000)),IF(SMALL(IF($A$7:$A$10000=A171,$I$7:$I$10000),2)=I171,SMALL(IF($A$7:$A$10000=A171,$I$7:$I$10000),2),IF(SMALL(IF($A$7:$A$10000=A171,$I$7:$I$10000),3)=I171,SMALL(IF($A$7:$A$10000=A171,$I$7:$I$10000),3),""))))) -> 
A172: 100595313 | B172: Tamw (AUS) 24th Dec | C172: Tamw | D172: 2012-12-24T13:59:00 | E172: R2 1000m 3yo | F172: 2012-12-24T14:00:08 | G172: 6. Stop The Flow | H172: 2012-12-24T14:01:30 | I172: 6.2 | J172: 2012-12-24T14:00:06 | K172: 2012-12-24T13:56:34 | L172: PE | M172: 96 | N172: 7461.06 | O172: 7 | P172: 6934764 | Q172: 0 | S172: 19.23076923 | V172: 1 | Y172: =IF(A172="","",IF(E172="to be placed","",IF(MIN(IF($A$7:$A$10000=A172,$I$7:$I$10000))=I172,MIN(IF($A$7:$A$10000=A172,$I$7:$I$10000)),""))) ->  | AB172: =IF($A172="","",IF($E172="to be placed","",IF(MIN(IF($A$7:$A$10000=A172,$I$7:$I$10000))=I172,MIN(IF($A$7:$A$10000=A172,$I$7:$I$10000)),IF(SMALL(IF($A$7:$A$10000=A172,$I$7:$I$10000),2)=I172,SMALL(IF($A$7:$A$10000=A172,$I$7:$I$10000),2),"")))) ->  | AF172: =IF($A172="","",IF($E172="to be placed","",IF(MIN(IF($A$7:$A$10000=A172,$I$7:$I$10000))=I172,MIN(IF($A$7:$A$10000=A172,$I$7:$I$10000)),IF(SMALL(IF($A$7:$A$10000=A172,$I$7:$I$10000),2)=I172,SMALL(IF($A$7:$A$10000=A172,$I$7:$I$10000),2),IF(SMALL(IF($A$7:$A$10000=A172,$I$7:$I$10000),3)=I172,SMALL(IF($A$7:$A$10000=A172,$I$7:$I$10000),3),""))))) -> 
A173: 100595313 | B173: Tamw (AUS) 24th Dec | C173: Tamw | D173: 2012-12-24T13:59:00 | E173: R2 1000m 3yo | F173: 2012-12-24T14:00:08 | G173: 8. The Brown One | H173: 2012-12-24T14:01:30 | I173: 4.6 | J173: 2012-12-24T13:59:59 | K173: 2012-12-24T13:58:02 | L173: PE | M173: 60 | N173: 7065.62 | O173: 7 | P173: 6934765 | Q173: 0 | S173: 27.77777778 | V173: 1 | Y173: =IF(A173="","",IF(E173="to be placed","",IF(MIN(IF($A$7:$A$10000=A173,$I$7:$I$10000))=I173,MIN(IF($A$7:$A$10000=A173,$I$7:$I$10000)),""))) ->  | AB173: =IF($A173="","",IF($E173="to be placed","",IF(MIN(IF($A$7:$A$10000=A173,$I$7:$I$10000))=I173,MIN(IF($A$7:$A$10000=A173,$I$7:$I$10000)),IF(SMALL(IF($A$7:$A$10000=A173,$I$7:$I$10000),2)=I173,SMALL(IF($A$7:$A$10000=A173,$I$7:$I$10000),2),"")))) -> 4.6 | AC173: 0.935 | AF173: =IF($A173="","",IF($E173="to be placed","",IF(MIN(IF($A$7:$A$10000=A173,$I$7:$I$10000))=I173,MIN(IF($A$7:$A$10000=A173,$I$7:$I$10000)),IF(SMALL(IF($A$7:$A$10000=A173,$I$7:$I$10000),2)=I173,SMALL(IF($A$7:$A$10000=A173,$I$7:$I$10000),2),IF(SMALL(IF($A$7:$A$10000=A173,$I$7:$I$10000),3)=I173,SMALL(IF($A$7:$A$10000=A173,$I$7:$I$10000),3),""))))) -> 4.6 | AG173: 0.935
A174: 100595313 | B174: Tamw (AUS) 24th Dec | C174: Tamw | D174: 2012-12-24T13:59:00 | E174: R2 1000m 3yo | F174: 2012-12-24T14:00:08 | G174: 9. Belannoro | H174: 2012-12-24T14:01:30 | I174: 4.4 | J174: 2012-12-24T13:59:59 | K174: 2012-12-24T13:59:58 | L174: PE | M174: 5 | N174: 6194.82 | O174: 7 | P174: 6934766 | Q174: 0 | S174: 29.41176471 | V174: 1 | Y174: =IF(A174="","",IF(E174="to be placed","",IF(MIN(IF($A$7:$A$10000=A174,$I$7:$I$10000))=I174,MIN(IF($A$7:$A$10000=A174,$I$7:$I$10000)),""))) -> 4.4 | Z174: 0.935 | AB174: =IF($A174="","",IF($E174="to be placed","",IF(MIN(IF($A$7:$A$10000=A174,$I$7:$I$10000))=I174,MIN(IF($A$7:$A$10000=A174,$I$7:$I$10000)),IF(SMALL(IF($A$7:$A$10000=A174,$I$7:$I$10000),2)=I174,SMALL(IF($A$7:$A$10000=A174,$I$7:$I$10000),2),"")))) -> 4.4 | AC174: 0.935 | AF174: =IF($A174="","",IF($E174="to be placed","",IF(MIN(IF($A$7:$A$10000=A174,$I$7:$I$10000))=I174,MIN(IF($A$7:$A$10000=A174,$I$7:$I$10000)),IF(SMALL(IF($A$7:$A$10000=A174,$I$7:$I$10000),2)=I174,SMALL(IF($A$7:$A$10000=A174,$I$7:$I$10000),2),IF(SMALL(IF($A$7:$A$10000=A174,$I$7:$I$10000),3)=I174,SMALL(IF($A$7:$A$10000=A174,$I$7:$I$10000),3),""))))) -> 4.4 | AG174: 0.935
A175: 100595313 | B175: Tamw (AUS) 24th Dec | C175: Tamw | D175: 2012-12-24T13:59:00 | E175: R2 1000m 3yo | F175: 2012-12-24T14:00:08 | G175: 11. Evella | H175: 2012-12-24T14:01:30 | I175: 160 | J175: 2012-12-24T13:59:53 | K175: 2012-12-24T13:58:27 | L175: PE | M175: 16 | N175: 85.02 | O175: 7 | P175: 6934768 | Q175: 0 | S175: 0.6289308176 | Y175: =IF(A175="","",IF(E175="to be placed","",IF(MIN(IF($A$7:$A$10000=A175,$I$7:$I$10000))=I175,MIN(IF($A$7:$A$10000=A175,$I$7:$I$10000)),""))) ->  | AB175: =IF($A175="","",IF($E175="to be placed","",IF(MIN(IF($A$7:$A$10000=A175,$I$7:$I$10000))=I175,MIN(IF($A$7:$A$10000=A175,$I$7:$I$10000)),IF(SMALL(IF($A$7:$A$10000=A175,$I$7:$I$10000),2)=I175,SMALL(IF($A$7:$A$10000=A175,$I$7:$I$10000),2),"")))) ->  | AF175: =IF($A175="","",IF($E175="to be placed","",IF(MIN(IF($A$7:$A$10000=A175,$I$7:$I$10000))=I175,MIN(IF($A$7:$A$10000=A175,$I$7:$I$10000)),IF(SMALL(IF($A$7:$A$10000=A175,$I$7:$I$10000),2)=I175,SMALL(IF($A$7:$A$10000=A175,$I$7:$I$10000),2),IF(SMALL(IF($A$7:$A$10000=A175,$I$7:$I$10000),3)=I175,SMALL(IF($A$7:$A$10000=A175,$I$7:$I$10000),3),""))))) -> 
A176: 100595313 | B176: Tamw (AUS) 24th Dec | C176: Tamw | D176: 2012-12-24T13:59:00 | E176: R2 1000m 3yo | F176: 2012-12-24T14:00:08 | G176: 13. Time To Fly By | H176: 2012-12-24T14:01:30 | I176: 21 | J176: 2012-12-24T14:00:06 | K176: 2012-12-24T13:56:03 | L176: PE | M176: 9 | N176: 910.7 | O176: 7 | P176: 6934769 | Q176: 0 | S176: 5 | T176: 10.78524437 | W176: -2.2 | Y176: =IF(A176="","",IF(E176="to be placed","",IF(MIN(IF($A$7:$A$10000=A176,$I$7:$I$10000))=I176,MIN(IF($A$7:$A$10000=A176,$I$7:$I$10000)),""))) ->  | AB176: =IF($A176="","",IF($E176="to be placed","",IF(MIN(IF($A$7:$A$10000=A176,$I$7:$I$10000))=I176,MIN(IF($A$7:$A$10000=A176,$I$7:$I$10000)),IF(SMALL(IF($A$7:$A$10000=A176,$I$7:$I$10000),2)=I176,SMALL(IF($A$7:$A$10000=A176,$I$7:$I$10000),2),"")))) ->  | AD176: 1.74845 | AF176: =IF($A176="","",IF($E176="to be placed","",IF(MIN(IF($A$7:$A$10000=A176,$I$7:$I$10000))=I176,MIN(IF($A$7:$A$10000=A176,$I$7:$I$10000)),IF(SMALL(IF($A$7:$A$10000=A176,$I$7:$I$10000),2)=I176,SMALL(IF($A$7:$A$10000=A176,$I$7:$I$10000),2),IF(SMALL(IF($A$7:$A$10000=A176,$I$7:$I$10000),3)=I176,SMALL(IF($A$7:$A$10000=A176,$I$7:$I$10000),3),""))))) ->  | AH176: 2.622675
A177: 100595396 | B177: GlbD (AUS) 24th Dec | C177: GlbD | D177: 2012-12-24T14:03:00 | E177: R1 2230m Trot S | F177: 2013-01-04T08:29:17 | G177: 10. Awesome Adam | H177: 2012-12-24T14:06:45 | I177: 15.5 | J177: 2012-12-24T14:02:17 | K177: 2012-12-24T14:02:17 | L177: NI | M177: 2 | N177: 10 | O177: 7 | P177: 872933 | Q177: 0 | S177: 6.896551724 | V177: 1 | Y177: =IF(A177="","",IF(E177="to be placed","",IF(MIN(IF($A$7:$A$10000=A177,$I$7:$I$10000))=I177,MIN(IF($A$7:$A$10000=A177,$I$7:$I$10000)),""))) ->  | AB177: =IF($A177="","",IF($E177="to be placed","",IF(MIN(IF($A$7:$A$10000=A177,$I$7:$I$10000))=I177,MIN(IF($A$7:$A$10000=A177,$I$7:$I$10000)),IF(SMALL(IF($A$7:$A$10000=A177,$I$7:$I$10000),2)=I177,SMALL(IF($A$7:$A$10000=A177,$I$7:$I$10000),2),"")))) ->  | AF177: =IF($A177="","",IF($E177="to be placed","",IF(MIN(IF($A$7:$A$10000=A177,$I$7:$I$10000))=I177,MIN(IF($A$7:$A$10000=A177,$I$7:$I$10000)),IF(SMALL(IF($A$7:$A$10000=A177,$I$7:$I$10000),2)=I177,SMALL(IF($A$7:$A$10000=A177,$I$7:$I$10000),2),IF(SMALL(IF($A$7:$A$10000=A177,$I$7:$I$10000),3)=I177,SMALL(IF($A$7:$A$10000=A177,$I$7:$I$10000),3),""))))) -> 
A178: 100595396 | B178: GlbD (AUS) 24th Dec | C178: GlbD | D178: 2012-12-24T14:03:00 | E178: R1 2230m Trot S | F178: 2013-01-04T08:29:17 | G178: 3. Adams Rib | H178: 2012-12-24T14:06:45 | I178: 60 | J178: 2012-12-24T14:03:05 | K178: 2012-12-24T14:03:05 | L178: NI | M178: 4 | N178: 6.42 | O178: 7 | P178: 3631234 | Q178: 0 | S178: 1.694915254 | Y178: =IF(A178="","",IF(E178="to be placed","",IF(MIN(IF($A$7:$A$10000=A178,$I$7:$I$10000))=I178,MIN(IF($A$7:$A$10000=A178,$I$7:$I$10000)),""))) ->  | AB178: =IF($A178="","",IF($E178="to be placed","",IF(MIN(IF($A$7:$A$10000=A178,$I$7:$I$10000))=I178,MIN(IF($A$7:$A$10000=A178,$I$7:$I$10000)),IF(SMALL(IF($A$7:$A$10000=A178,$I$7:$I$10000),2)=I178,SMALL(IF($A$7:$A$10000=A178,$I$7:$I$10000),2),"")))) ->  | AF178: =IF($A178="","",IF($E178="to be placed","",IF(MIN(IF($A$7:$A$10000=A178,$I$7:$I$10000))=I178,MIN(IF($A$7:$A$10000=A178,$I$7:$I$10000)),IF(SMALL(IF($A$7:$A$10000=A178,$I$7:$I$10000),2)=I178,SMALL(IF($A$7:$A$10000=A178,$I$7:$I$10000),2),IF(SMALL(IF($A$7:$A$10000=A178,$I$7:$I$10000),3)=I178,SMALL(IF($A$7:$A$10000=A178,$I$7:$I$10000),3),""))))) -> 
A179: 100595396 | B179: GlbD (AUS) 24th Dec | C179: GlbD | D179: 2012-12-24T14:03:00 | E179: R1 2230m Trot S | F179: 2013-01-04T08:29:17 | G179: 9. Fiery Salute | H179: 2012-12-24T14:06:45 | I179: 6.4 | J179: 2012-12-24T14:03:20 | K179: 2012-12-24T14:03:20 | L179: NI | M179: 2 | N179: 297.66 | O179: 7 | P179: 4872762 | Q179: 0 | S179: 18.51851852 | V179: 1 | Y179: =IF(A179="","",IF(E179="to be placed","",IF(MIN(IF($A$7:$A$10000=A179,$I$7:$I$10000))=I179,MIN(IF($A$7:$A$10000=A179,$I$7:$I$10000)),""))) ->  | AB179: =IF($A179="","",IF($E179="to be placed","",IF(MIN(IF($A$7:$A$10000=A179,$I$7:$I$10000))=I179,MIN(IF($A$7:$A$10000=A179,$I$7:$I$10000)),IF(SMALL(IF($A$7:$A$10000=A179,$I$7:$I$10000),2)=I179,SMALL(IF($A$7:$A$10000=A179,$I$7:$I$10000),2),"")))) ->  | AF179: =IF($A179="","",IF($E179="to be placed","",IF(MIN(IF($A$7:$A$10000=A179,$I$7:$I$10000))=I179,MIN(IF($A$7:$A$10000=A179,$I$7:$I$10000)),IF(SMALL(IF($A$7:$A$10000=A179,$I$7:$I$10000),2)=I179,SMALL(IF($A$7:$A$10000=A179,$I$7:$I$10000),2),IF(SMALL(IF($A$7:$A$10000=A179,$I$7:$I$10000),3)=I179,SMALL(IF($A$7:$A$10000=A179,$I$7:$I$10000),3),""))))) -> 6.4 | AG179: 0.935
A180: 100595396 | B180: GlbD (AUS) 24th Dec | C180: GlbD | D180: 2012-12-24T14:03:00 | E180: R1 2230m Trot S | F180: 2013-01-04T08:29:17 | G180: 2. Indiheir | H180: 2012-12-24T14:06:45 | I180: 320 | J180: 2012-12-24T14:03:26 | K180: 2012-12-24T14:03:26 | L180: NI | M180: 6 | N180: 6.42 | O180: 7 | P180: 4909824 | Q180: 0 | S180: 0.3134796238 | Y180: =IF(A180="","",IF(E180="to be placed","",IF(MIN(IF($A$7:$A$10000=A180,$I$7:$I$10000))=I180,MIN(IF($A$7:$A$10000=A180,$I$7:$I$10000)),""))) ->  | AB180: =IF($A180="","",IF($E180="to be placed","",IF(MIN(IF($A$7:$A$10000=A180,$I$7:$I$10000))=I180,MIN(IF($A$7:$A$10000=A180,$I$7:$I$10000)),IF(SMALL(IF($A$7:$A$10000=A180,$I$7:$I$10000),2)=I180,SMALL(IF($A$7:$A$10000=A180,$I$7:$I$10000),2),"")))) ->  | AF180: =IF($A180="","",IF($E180="to be placed","",IF(MIN(IF($A$7:$A$10000=A180,$I$7:$I$10000))=I180,MIN(IF($A$7:$A$10000=A180,$I$7:$I$10000)),IF(SMALL(IF($A$7:$A$10000=A180,$I$7:$I$10000),2)=I180,SMALL(IF($A$7:$A$10000=A180,$I$7:$I$10000),2),IF(SMALL(IF($A$7:$A$10000=A180,$I$7:$I$10000),3)=I180,SMALL(IF($A$7:$A$10000=A180,$I$7:$I$10000),3),""))))) -> 
A181: 100595396 | B181: GlbD (AUS) 24th Dec | C181: GlbD | D181: 2012-12-24T14:03:00 | E181: R1 2230m Trot S | F181: 2013-01-04T08:29:17 | G181: 8. Siegfried | H181: 2012-12-24T14:06:45 | I181: 2.92 | J181: 2012-12-24T14:03:24 | K181: 2012-12-24T14:02:37 | L181: NI | M181: 5 | N181: 2491.46 | O181: 7 | P181: 5236095 | Q181: 1 | S181: -100 | V181: -1.92 | Y181: =IF(A181="","",IF(E181="to be placed","",IF(MIN(IF($A$7:$A$10000=A181,$I$7:$I$10000))=I181,MIN(IF($A$7:$A$10000=A181,$I$7:$I$10000)),""))) -> 2.92 | Z181: -1.92 | AB181: =IF($A181="","",IF($E181="to be placed","",IF(MIN(IF($A$7:$A$10000=A181,$I$7:$I$10000))=I181,MIN(IF($A$7:$A$10000=A181,$I$7:$I$10000)),IF(SMALL(IF($A$7:$A$10000=A181,$I$7:$I$10000),2)=I181,SMALL(IF($A$7:$A$10000=A181,$I$7:$I$10000),2),"")))) -> 2.92 | AC181: -1.92 | AF181: =IF($A181="","",IF($E181="to be placed","",IF(MIN(IF($A$7:$A$10000=A181,$I$7:$I$10000))=I181,MIN(IF($A$7:$A$10000=A181,$I$7:$I$10000)),IF(SMALL(IF($A$7:$A$10000=A181,$I$7:$I$10000),2)=I181,SMALL(IF($A$7:$A$10000=A181,$I$7:$I$10000),2),IF(SMALL(IF($A$7:$A$10000=A181,$I$7:$I$10000),3)=I181,SMALL(IF($A$7:$A$10000=A181,$I$7:$I$10000),3),""))))) -> 2.92 | AG181: -1.92
A182: 100595396 | B182: GlbD (AUS) 24th Dec | C182: GlbD | D182: 2012-12-24T14:03:00 | E182: R1 2230m Trot S | F182: 2013-01-04T08:29:17 | G182: 7. Used Tickets | H182: 2012-12-24T14:06:45 | I182: 7.6 | J182: 2012-12-24T14:03:26 | K182: 2012-12-24T14:03:26 | L182: NI | M182: 3 | N182: 186.22 | O182: 7 | P182: 5258093 | Q182: 0 | S182: 15.15151515 | V182: 1 | Y182: =IF(A182="","",IF(E182="to be placed","",IF(MIN(IF($A$7:$A$10000=A182,$I$7:$I$10000))=I182,MIN(IF($A$7:$A$10000=A182,$I$7:$I$10000)),""))) ->  | AB182: =IF($A182="","",IF($E182="to be placed","",IF(MIN(IF($A$7:$A$10000=A182,$I$7:$I$10000))=I182,MIN(IF($A$7:$A$10000=A182,$I$7:$I$10000)),IF(SMALL(IF($A$7:$A$10000=A182,$I$7:$I$10000),2)=I182,SMALL(IF($A$7:$A$10000=A182,$I$7:$I$10000),2),"")))) ->  | AF182: =IF($A182="","",IF($E182="to be placed","",IF(MIN(IF($A$7:$A$10000=A182,$I$7:$I$10000))=I182,MIN(IF($A$7:$A$10000=A182,$I$7:$I$10000)),IF(SMALL(IF($A$7:$A$10000=A182,$I$7:$I$10000),2)=I182,SMALL(IF($A$7:$A$10000=A182,$I$7:$I$10000),2),IF(SMALL(IF($A$7:$A$10000=A182,$I$7:$I$10000),3)=I182,SMALL(IF($A$7:$A$10000=A182,$I$7:$I$10000),3),""))))) -> 
A183: 100595396 | B183: GlbD (AUS) 24th Dec | C183: GlbD | D183: 2012-12-24T14:03:00 | E183: R1 2230m Trot S | F183: 2013-01-04T08:29:17 | G183: 5. Aldebaran Chippie | H183: 2012-12-24T14:06:45 | I183: 4.7 | J183: 2012-12-24T14:03:27 | K183: 2012-12-24T14:03:20 | L183: NI | M183: 3 | N183: 321.42 | O183: 7 | P183: 5622862 | Q183: 0 | S183: 27.02702703 | V183: 1 | Y183: =IF(A183="","",IF(E183="to be placed","",IF(MIN(IF($A$7:$A$10000=A183,$I$7:$I$10000))=I183,MIN(IF($A$7:$A$10000=A183,$I$7:$I$10000)),""))) ->  | AB183: =IF($A183="","",IF($E183="to be placed","",IF(MIN(IF($A$7:$A$10000=A183,$I$7:$I$10000))=I183,MIN(IF($A$7:$A$10000=A183,$I$7:$I$10000)),IF(SMALL(IF($A$7:$A$10000=A183,$I$7:$I$10000),2)=I183,SMALL(IF($A$7:$A$10000=A183,$I$7:$I$10000),2),"")))) -> 4.7 | AC183: 0.935 | AF183: =IF($A183="","",IF($E183="to be placed","",IF(MIN(IF($A$7:$A$10000=A183,$I$7:$I$10000))=I183,MIN(IF($A$7:$A$10000=A183,$I$7:$I$10000)),IF(SMALL(IF($A$7:$A$10000=A183,$I$7:$I$10000),2)=I183,SMALL(IF($A$7:$A$10000=A183,$I$7:$I$10000),2),IF(SMALL(IF($A$7:$A$10000=A183,$I$7:$I$10000),3)=I183,SMALL(IF($A$7:$A$10000=A183,$I$7:$I$10000),3),""))))) -> 4.7 | AG183: 0.935
A184: 100595396 | B184: GlbD (AUS) 24th Dec | C184: GlbD | D184: 2012-12-24T14:03:00 | E184: R1 2230m Trot S | F184: 2013-01-04T08:29:17 | G184: 6. Buster Maori | H184: 2012-12-24T14:06:45 | I184: 22 | J184: 2012-12-24T14:02:18 | K184: 2012-12-24T14:02:18 | L184: NI | M184: 2 | N184: 4 | O184: 7 | P184: 5706951 | Q184: 0 | S184: 4.761904762 | Y184: =IF(A184="","",IF(E184="to be placed","",IF(MIN(IF($A$7:$A$10000=A184,$I$7:$I$10000))=I184,MIN(IF($A$7:$A$10000=A184,$I$7:$I$10000)),""))) ->  | AB184: =IF($A184="","",IF($E184="to be placed","",IF(MIN(IF($A$7:$A$10000=A184,$I$7:$I$10000))=I184,MIN(IF($A$7:$A$10000=A184,$I$7:$I$10000)),IF(SMALL(IF($A$7:$A$10000=A184,$I$7:$I$10000),2)=I184,SMALL(IF($A$7:$A$10000=A184,$I$7:$I$10000),2),"")))) ->  | AF184: =IF($A184="","",IF($E184="to be placed","",IF(MIN(IF($A$7:$A$10000=A184,$I$7:$I$10000))=I184,MIN(IF($A$7:$A$10000=A184,$I$7:$I$10000)),IF(SMALL(IF($A$7:$A$10000=A184,$I$7:$I$10000),2)=I184,SMALL(IF($A$7:$A$10000=A184,$I$7:$I$10000),2),IF(SMALL(IF($A$7:$A$10000=A184,$I$7:$I$10000),3)=I184,SMALL(IF($A$7:$A$10000=A184,$I$7:$I$10000),3),""))))) -> 
A185: 100595396 | B185: GlbD (AUS) 24th Dec | C185: GlbD | D185: 2012-12-24T14:03:00 | E185: R1 2230m Trot S | F185: 2013-01-04T08:29:17 | G185: 4. Super Deville | H185: 2012-12-24T14:06:45 | I185: 8 | J185: 2012-12-24T14:02:29 | K185: 2012-12-24T14:02:29 | L185: NI | M185: 2 | N185: 257.34 | O185: 7 | P185: 5722660 | Q185: 0 | S185: 14.28571429 | T185: -11.35037365 | V185: 1 | W185: 2.8798 | Y185: =IF(A185="","",IF(E185="to be placed","",IF(MIN(IF($A$7:$A$10000=A185,$I$7:$I$10000))=I185,MIN(IF($A$7:$A$10000=A185,$I$7:$I$10000)),""))) ->  | AB185: =IF($A185="","",IF($E185="to be placed","",IF(MIN(IF($A$7:$A$10000=A185,$I$7:$I$10000))=I185,MIN(IF($A$7:$A$10000=A185,$I$7:$I$10000)),IF(SMALL(IF($A$7:$A$10000=A185,$I$7:$I$10000),2)=I185,SMALL(IF($A$7:$A$10000=A185,$I$7:$I$10000),2),"")))) ->  | AD185: -0.985 | AF185: =IF($A185="","",IF($E185="to be placed","",IF(MIN(IF($A$7:$A$10000=A185,$I$7:$I$10000))=I185,MIN(IF($A$7:$A$10000=A185,$I$7:$I$10000)),IF(SMALL(IF($A$7:$A$10000=A185,$I$7:$I$10000),2)=I185,SMALL(IF($A$7:$A$10000=A185,$I$7:$I$10000),2),IF(SMALL(IF($A$7:$A$10000=A185,$I$7:$I$10000),3)=I185,SMALL(IF($A$7:$A$10000=A185,$I$7:$I$10000),3),""))))) ->  | AH185: -0.05
A186: 100595397 | B186: GlbD (AUS) 24th Dec | C186: GlbD | D186: 2012-12-24T14:03:00 | E186: TO BE PLACED | F186: 2013-01-04T08:29:18 | G186: 8. Siegfried | H186: 2012-12-24T14:12:00 | I186: 1.36 | J186: 2012-12-24T14:02:58 | K186: 2012-12-24T14:02:58 | L186: NI | M186: 2 | N186: 0.62 | O186: 7 | P186: 5236095 | Q186: 1 | Y186: =IF(A186="","",IF(E186="to be placed","",IF(MIN(IF($A$7:$A$10000=A186,$I$7:$I$10000))=I186,MIN(IF($A$7:$A$10000=A186,$I$7:$I$10000)),""))) ->  | AB186: =IF($A186="","",IF($E186="to be placed","",IF(MIN(IF($A$7:$A$10000=A186,$I$7:$I$10000))=I186,MIN(IF($A$7:$A$10000=A186,$I$7:$I$10000)),IF(SMALL(IF($A$7:$A$10000=A186,$I$7:$I$10000),2)=I186,SMALL(IF($A$7:$A$10000=A186,$I$7:$I$10000),2),"")))) ->  | AF186: =IF($A186="","",IF($E186="to be placed","",IF(MIN(IF($A$7:$A$10000=A186,$I$7:$I$10000))=I186,MIN(IF($A$7:$A$10000=A186,$I$7:$I$10000)),IF(SMALL(IF($A$7:$A$10000=A186,$I$7:$I$10000),2)=I186,SMALL(IF($A$7:$A$10000=A186,$I$7:$I$10000),2),IF(SMALL(IF($A$7:$A$10000=A186,$I$7:$I$10000),3)=I186,SMALL(IF($A$7:$A$10000=A186,$I$7:$I$10000),3),""))))) -> 
A187: 100595397 | B187: GlbD (AUS) 24th Dec | C187: GlbD | D187: 2012-12-24T14:03:00 | E187: TO BE PLACED | F187: 2013-01-04T08:29:18 | G187: 7. Used Tickets | H187: 2012-12-24T14:12:00 | I187: 3 | J187: 2012-12-24T14:03:13 | K187: 2012-12-24T14:03:13 | L187: NI | M187: 2 | N187: 39.6 | O187: 7 | P187: 5258093 | Q187: 0 | Y187: =IF(A187="","",IF(E187="to be placed","",IF(MIN(IF($A$7:$A$10000=A187,$I$7:$I$10000))=I187,MIN(IF($A$7:$A$10000=A187,$I$7:$I$10000)),""))) ->  | AB187: =IF($A187="","",IF($E187="to be placed","",IF(MIN(IF($A$7:$A$10000=A187,$I$7:$I$10000))=I187,MIN(IF($A$7:$A$10000=A187,$I$7:$I$10000)),IF(SMALL(IF($A$7:$A$10000=A187,$I$7:$I$10000),2)=I187,SMALL(IF($A$7:$A$10000=A187,$I$7:$I$10000),2),"")))) ->  | AF187: =IF($A187="","",IF($E187="to be placed","",IF(MIN(IF($A$7:$A$10000=A187,$I$7:$I$10000))=I187,MIN(IF($A$7:$A$10000=A187,$I$7:$I$10000)),IF(SMALL(IF($A$7:$A$10000=A187,$I$7:$I$10000),2)=I187,SMALL(IF($A$7:$A$10000=A187,$I$7:$I$10000),2),IF(SMALL(IF($A$7:$A$10000=A187,$I$7:$I$10000),3)=I187,SMALL(IF($A$7:$A$10000=A187,$I$7:$I$10000),3),""))))) -> 
A188: 100595397 | B188: GlbD (AUS) 24th Dec | C188: GlbD | D188: 2012-12-24T14:03:00 | E188: TO BE PLACED | F188: 2013-01-04T08:29:18 | G188: 5. Aldebaran Chippie | H188: 2012-12-24T14:12:00 | I188: 1.8 | J188: 2012-12-24T14:03:22 | K188: 2012-12-24T14:03:22 | L188: NI | M188: 2 | N188: 0.18 | O188: 7 | P188: 5622862 | Q188: 1 | Y188: =IF(A188="","",IF(E188="to be placed","",IF(MIN(IF($A$7:$A$10000=A188,$I$7:$I$10000))=I188,MIN(IF($A$7:$A$10000=A188,$I$7:$I$10000)),""))) ->  | AB188: =IF($A188="","",IF($E188="to be placed","",IF(MIN(IF($A$7:$A$10000=A188,$I$7:$I$10000))=I188,MIN(IF($A$7:$A$10000=A188,$I$7:$I$10000)),IF(SMALL(IF($A$7:$A$10000=A188,$I$7:$I$10000),2)=I188,SMALL(IF($A$7:$A$10000=A188,$I$7:$I$10000),2),"")))) ->  | AF188: =IF($A188="","",IF($E188="to be placed","",IF(MIN(IF($A$7:$A$10000=A188,$I$7:$I$10000))=I188,MIN(IF($A$7:$A$10000=A188,$I$7:$I$10000)),IF(SMALL(IF($A$7:$A$10000=A188,$I$7:$I$10000),2)=I188,SMALL(IF($A$7:$A$10000=A188,$I$7:$I$10000),2),IF(SMALL(IF($A$7:$A$10000=A188,$I$7:$I$10000),3)=I188,SMALL(IF($A$7:$A$10000=A188,$I$7:$I$10000),3),""))))) -> 
A189: 100595397 | B189: GlbD (AUS) 24th Dec | C189: GlbD | D189: 2012-12-24T14:03:00 | E189: TO BE PLACED | F189: 2013-01-04T08:29:18 | G189: 4. Super Deville | H189: 2012-12-24T14:12:00 | I189: 4 | J189: 2012-12-24T14:03:16 | K189: 2012-12-24T14:03:16 | L189: NI | M189: 2 | N189: 33.46 | O189: 7 | P189: 5722660 | Q189: 0 | Y189: =IF(A189="","",IF(E189="to be placed","",IF(MIN(IF($A$7:$A$10000=A189,$I$7:$I$10000))=I189,MIN(IF($A$7:$A$10000=A189,$I$7:$I$10000)),""))) ->  | AB189: =IF($A189="","",IF($E189="to be placed","",IF(MIN(IF($A$7:$A$10000=A189,$I$7:$I$10000))=I189,MIN(IF($A$7:$A$10000=A189,$I$7:$I$10000)),IF(SMALL(IF($A$7:$A$10000=A189,$I$7:$I$10000),2)=I189,SMALL(IF($A$7:$A$10000=A189,$I$7:$I$10000),2),"")))) ->  | AF189: =IF($A189="","",IF($E189="to be placed","",IF(MIN(IF($A$7:$A$10000=A189,$I$7:$I$10000))=I189,MIN(IF($A$7:$A$10000=A189,$I$7:$I$10000)),IF(SMALL(IF($A$7:$A$10000=A189,$I$7:$I$10000),2)=I189,SMALL(IF($A$7:$A$10000=A189,$I$7:$I$10000),2),IF(SMALL(IF($A$7:$A$10000=A189,$I$7:$I$10000),3)=I189,SMALL(IF($A$7:$A$10000=A189,$I$7:$I$10000),3),""))))) -> 
A190: 100595328 | B190: Sale (AUS) 24th Dec | C190: Sale | D190: 2012-12-24T14:12:00 | E190: TO BE PLACED | F190: 2013-01-04T08:29:16 | G190: 6. Power To Surprise | H190: 2012-12-24T14:16:13 | I190: 3.7 | J190: 2012-12-24T14:12:17 | K190: 2012-12-24T14:12:08 | L190: NI | M190: 4 | N190: 1317.08 | O190: 7 | P190: 3630762 | Q190: 1 | Y190: =IF(A190="","",IF(E190="to be placed","",IF(MIN(IF($A$7:$A$10000=A190,$I$7:$I$10000))=I190,MIN(IF($A$7:$A$10000=A190,$I$7:$I$10000)),""))) ->  | AB190: =IF($A190="","",IF($E190="to be placed","",IF(MIN(IF($A$7:$A$10000=A190,$I$7:$I$10000))=I190,MIN(IF($A$7:$A$10000=A190,$I$7:$I$10000)),IF(SMALL(IF($A$7:$A$10000=A190,$I$7:$I$10000),2)=I190,SMALL(IF($A$7:$A$10000=A190,$I$7:$I$10000),2),"")))) ->  | AF190: =IF($A190="","",IF($E190="to be placed","",IF(MIN(IF($A$7:$A$10000=A190,$I$7:$I$10000))=I190,MIN(IF($A$7:$A$10000=A190,$I$7:$I$10000)),IF(SMALL(IF($A$7:$A$10000=A190,$I$7:$I$10000),2)=I190,SMALL(IF($A$7:$A$10000=A190,$I$7:$I$10000),2),IF(SMALL(IF($A$7:$A$10000=A190,$I$7:$I$10000),3)=I190,SMALL(IF($A$7:$A$10000=A190,$I$7:$I$10000),3),""))))) -> 
A191: 100595328 | B191: Sale (AUS) 24th Dec | C191: Sale | D191: 2012-12-24T14:12:00 | E191: TO BE PLACED | F191: 2013-01-04T08:29:16 | G191: 7. Black Hawk Down | H191: 2012-12-24T14:16:13 | I191: 2 | J191: 2012-12-24T14:12:16 | K191: 2012-12-24T14:08:37 | L191: NI | M191: 18 | N191: 2203.46 | O191: 7 | P191: 4204295 | Q191: 0 | Y191: =IF(A191="","",IF(E191="to be placed","",IF(MIN(IF($A$7:$A$10000=A191,$I$7:$I$10000))=I191,MIN(IF($A$7:$A$10000=A191,$I$7:$I$10000)),""))) ->  | AB191: =IF($A191="","",IF($E191="to be placed","",IF(MIN(IF($A$7:$A$10000=A191,$I$7:$I$10000))=I191,MIN(IF($A$7:$A$10000=A191,$I$7:$I$10000)),IF(SMALL(IF($A$7:$A$10000=A191,$I$7:$I$10000),2)=I191,SMALL(IF($A$7:$A$10000=A191,$I$7:$I$10000),2),"")))) ->  | AF191: =IF($A191="","",IF($E191="to be placed","",IF(MIN(IF($A$7:$A$10000=A191,$I$7:$I$10000))=I191,MIN(IF($A$7:$A$10000=A191,$I$7:$I$10000)),IF(SMALL(IF($A$7:$A$10000=A191,$I$7:$I$10000),2)=I191,SMALL(IF($A$7:$A$10000=A191,$I$7:$I$10000),2),IF(SMALL(IF($A$7:$A$10000=A191,$I$7:$I$10000),3)=I191,SMALL(IF($A$7:$A$10000=A191,$I$7:$I$10000),3),""))))) -> 
A192: 100595328 | B192: Sale (AUS) 24th Dec | C192: Sale | D192: 2012-12-24T14:12:00 | E192: TO BE PLACED | F192: 2013-01-04T08:29:16 | G192: 8. Elkayel | H192: 2012-12-24T14:16:13 | I192: 3.6 | J192: 2012-12-24T14:12:17 | K192: 2012-12-24T14:12:07 | L192: NI | M192: 4 | N192: 548.08 | O192: 7 | P192: 5094123 | Q192: 0 | Y192: =IF(A192="","",IF(E192="to be placed","",IF(MIN(IF($A$7:$A$10000=A192,$I$7:$I$10000))=I192,MIN(IF($A$7:$A$10000=A192,$I$7:$I$10000)),""))) ->  | AB192: =IF($A192="","",IF($E192="to be placed","",IF(MIN(IF($A$7:$A$10000=A192,$I$7:$I$10000))=I192,MIN(IF($A$7:$A$10000=A192,$I$7:$I$10000)),IF(SMALL(IF($A$7:$A$10000=A192,$I$7:$I$10000),2)=I192,SMALL(IF($A$7:$A$10000=A192,$I$7:$I$10000),2),"")))) ->  | AF192: =IF($A192="","",IF($E192="to be placed","",IF(MIN(IF($A$7:$A$10000=A192,$I$7:$I$10000))=I192,MIN(IF($A$7:$A$10000=A192,$I$7:$I$10000)),IF(SMALL(IF($A$7:$A$10000=A192,$I$7:$I$10000),2)=I192,SMALL(IF($A$7:$A$10000=A192,$I$7:$I$10000),2),IF(SMALL(IF($A$7:$A$10000=A192,$I$7:$I$10000),3)=I192,SMALL(IF($A$7:$A$10000=A192,$I$7:$I$10000),3),""))))) -> 
A193: 100595328 | B193: Sale (AUS) 24th Dec | C193: Sale | D193: 2012-12-24T14:12:00 | E193: TO BE PLACED | F193: 2013-01-04T08:29:16 | G193: 10. Gold Pass | H193: 2012-12-24T14:16:13 | I193: 42 | J193: 2012-12-24T14:12:08 | K193: 2012-12-24T14:11:59 | L193: NI | M193: 5 | N193: 68.16 | O193: 7 | P193: 5133150 | Q193: 0 | Y193: =IF(A193="","",IF(E193="to be placed","",IF(MIN(IF($A$7:$A$10000=A193,$I$7:$I$10000))=I193,MIN(IF($A$7:$A$10000=A193,$I$7:$I$10000)),""))) ->  | AB193: =IF($A193="","",IF($E193="to be placed","",IF(MIN(IF($A$7:$A$10000=A193,$I$7:$I$10000))=I193,MIN(IF($A$7:$A$10000=A193,$I$7:$I$10000)),IF(SMALL(IF($A$7:$A$10000=A193,$I$7:$I$10000),2)=I193,SMALL(IF($A$7:$A$10000=A193,$I$7:$I$10000),2),"")))) ->  | AF193: =IF($A193="","",IF($E193="to be placed","",IF(MIN(IF($A$7:$A$10000=A193,$I$7:$I$10000))=I193,MIN(IF($A$7:$A$10000=A193,$I$7:$I$10000)),IF(SMALL(IF($A$7:$A$10000=A193,$I$7:$I$10000),2)=I193,SMALL(IF($A$7:$A$10000=A193,$I$7:$I$10000),2),IF(SMALL(IF($A$7:$A$10000=A193,$I$7:$I$10000),3)=I193,SMALL(IF($A$7:$A$10000=A193,$I$7:$I$10000),3),""))))) -> 
A194: 100595328 | B194: Sale (AUS) 24th Dec | C194: Sale | D194: 2012-12-24T14:12:00 | E194: TO BE PLACED | F194: 2013-01-04T08:29:16 | G194: 9. Shirlaski | H194: 2012-12-24T14:16:13 | I194: 2.76 | J194: 2012-12-24T14:12:08 | K194: 2012-12-24T14:12:08 | L194: NI | M194: 2 | N194: 289.4 | O194: 7 | P194: 6081185 | Q194: 0 | Y194: =IF(A194="","",IF(E194="to be placed","",IF(MIN(IF($A$7:$A$10000=A194,$I$7:$I$10000))=I194,MIN(IF($A$7:$A$10000=A194,$I$7:$I$10000)),""))) ->  | AB194: =IF($A194="","",IF($E194="to be placed","",IF(MIN(IF($A$7:$A$10000=A194,$I$7:$I$10000))=I194,MIN(IF($A$7:$A$10000=A194,$I$7:$I$10000)),IF(SMALL(IF($A$7:$A$10000=A194,$I$7:$I$10000),2)=I194,SMALL(IF($A$7:$A$10000=A194,$I$7:$I$10000),2),"")))) ->  | AF194: =IF($A194="","",IF($E194="to be placed","",IF(MIN(IF($A$7:$A$10000=A194,$I$7:$I$10000))=I194,MIN(IF($A$7:$A$10000=A194,$I$7:$I$10000)),IF(SMALL(IF($A$7:$A$10000=A194,$I$7:$I$10000),2)=I194,SMALL(IF($A$7:$A$10000=A194,$I$7:$I$10000),2),IF(SMALL(IF($A$7:$A$10000=A194,$I$7:$I$10000),3)=I194,SMALL(IF($A$7:$A$10000=A194,$I$7:$I$10000),3),""))))) -> 
A195: 100595328 | B195: Sale (AUS) 24th Dec | C195: Sale | D195: 2012-12-24T14:12:00 | E195: TO BE PLACED | F195: 2013-01-04T08:29:16 | G195: 2. Compelled | H195: 2012-12-24T14:16:13 | I195: 1.82 | J195: 2012-12-24T14:12:08 | K195: 2012-12-24T14:12:06 | L195: NI | M195: 4 | N195: 955.3 | O195: 7 | P195: 6177228 | Q195: 0 | Y195: =IF(A195="","",IF(E195="to be placed","",IF(MIN(IF($A$7:$A$10000=A195,$I$7:$I$10000))=I195,MIN(IF($A$7:$A$10000=A195,$I$7:$I$10000)),""))) ->  | AB195: =IF($A195="","",IF($E195="to be placed","",IF(MIN(IF($A$7:$A$10000=A195,$I$7:$I$10000))=I195,MIN(IF($A$7:$A$10000=A195,$I$7:$I$10000)),IF(SMALL(IF($A$7:$A$10000=A195,$I$7:$I$10000),2)=I195,SMALL(IF($A$7:$A$10000=A195,$I$7:$I$10000),2),"")))) ->  | AF195: =IF($A195="","",IF($E195="to be placed","",IF(MIN(IF($A$7:$A$10000=A195,$I$7:$I$10000))=I195,MIN(IF($A$7:$A$10000=A195,$I$7:$I$10000)),IF(SMALL(IF($A$7:$A$10000=A195,$I$7:$I$10000),2)=I195,SMALL(IF($A$7:$A$10000=A195,$I$7:$I$10000),2),IF(SMALL(IF($A$7:$A$10000=A195,$I$7:$I$10000),3)=I195,SMALL(IF($A$7:$A$10000=A195,$I$7:$I$10000),3),""))))) -> 
A196: 100595328 | B196: Sale (AUS) 24th Dec | C196: Sale | D196: 2012-12-24T14:12:00 | E196: TO BE PLACED | F196: 2013-01-04T08:29:16 | G196: 1. Frogsplash | H196: 2012-12-24T14:16:13 | I196: 2.48 | J196: 2012-12-24T14:12:17 | K196: 2012-12-24T14:12:17 | L196: NI | M196: 4 | N196: 766.72 | O196: 7 | P196: 6334840 | Q196: 1 | Y196: =IF(A196="","",IF(E196="to be placed","",IF(MIN(IF($A$7:$A$10000=A196,$I$7:$I$10000))=I196,MIN(IF($A$7:$A$10000=A196,$I$7:$I$10000)),""))) ->  | AB196: =IF($A196="","",IF($E196="to be placed","",IF(MIN(IF($A$7:$A$10000=A196,$I$7:$I$10000))=I196,MIN(IF($A$7:$A$10000=A196,$I$7:$I$10000)),IF(SMALL(IF($A$7:$A$10000=A196,$I$7:$I$10000),2)=I196,SMALL(IF($A$7:$A$10000=A196,$I$7:$I$10000),2),"")))) ->  | AF196: =IF($A196="","",IF($E196="to be placed","",IF(MIN(IF($A$7:$A$10000=A196,$I$7:$I$10000))=I196,MIN(IF($A$7:$A$10000=A196,$I$7:$I$10000)),IF(SMALL(IF($A$7:$A$10000=A196,$I$7:$I$10000),2)=I196,SMALL(IF($A$7:$A$10000=A196,$I$7:$I$10000),2),IF(SMALL(IF($A$7:$A$10000=A196,$I$7:$I$10000),3)=I196,SMALL(IF($A$7:$A$10000=A196,$I$7:$I$10000),3),""))))) -> 
A197: 100595328 | B197: Sale (AUS) 24th Dec | C197: Sale | D197: 2012-12-24T14:12:00 | E197: TO BE PLACED | F197: 2013-01-04T08:29:16 | G197: 3. Amazing Warrior | H197: 2012-12-24T14:16:13 | I197: 13.5 | J197: 2012-12-24T14:12:15 | K197: 2012-12-24T14:11:59 | L197: NI | M197: 7 | N197: 100.12 | O197: 7 | P197: 6934733 | Q197: 0 | Y197: =IF(A197="","",IF(E197="to be placed","",IF(MIN(IF($A$7:$A$10000=A197,$I$7:$I$10000))=I197,MIN(IF($A$7:$A$10000=A197,$I$7:$I$10000)),""))) ->  | AB197: =IF($A197="","",IF($E197="to be placed","",IF(MIN(IF($A$7:$A$10000=A197,$I$7:$I$10000))=I197,MIN(IF($A$7:$A$10000=A197,$I$7:$I$10000)),IF(SMALL(IF($A$7:$A$10000=A197,$I$7:$I$10000),2)=I197,SMALL(IF($A$7:$A$10000=A197,$I$7:$I$10000),2),"")))) ->  | AF197: =IF($A197="","",IF($E197="to be placed","",IF(MIN(IF($A$7:$A$10000=A197,$I$7:$I$10000))=I197,MIN(IF($A$7:$A$10000=A197,$I$7:$I$10000)),IF(SMALL(IF($A$7:$A$10000=A197,$I$7:$I$10000),2)=I197,SMALL(IF($A$7:$A$10000=A197,$I$7:$I$10000),2),IF(SMALL(IF($A$7:$A$10000=A197,$I$7:$I$10000),3)=I197,SMALL(IF($A$7:$A$10000=A197,$I$7:$I$10000),3),""))))) -> 
A198: 100595328 | B198: Sale (AUS) 24th Dec | C198: Sale | D198: 2012-12-24T14:12:00 | E198: TO BE PLACED | F198: 2013-01-04T08:29:16 | G198: 4. Singersongwriter | H198: 2012-12-24T14:16:13 | I198: 1.79 | J198: 2012-12-24T14:12:16 | K198: 2012-12-24T14:10:31 | L198: NI | M198: 6 | N198: 747.82 | O198: 7 | P198: 6934734 | Q198: 1 | Y198: =IF(A198="","",IF(E198="to be placed","",IF(MIN(IF($A$7:$A$10000=A198,$I$7:$I$10000))=I198,MIN(IF($A$7:$A$10000=A198,$I$7:$I$10000)),""))) ->  | AB198: =IF($A198="","",IF($E198="to be placed","",IF(MIN(IF($A$7:$A$10000=A198,$I$7:$I$10000))=I198,MIN(IF($A$7:$A$10000=A198,$I$7:$I$10000)),IF(SMALL(IF($A$7:$A$10000=A198,$I$7:$I$10000),2)=I198,SMALL(IF($A$7:$A$10000=A198,$I$7:$I$10000),2),"")))) ->  | AF198: =IF($A198="","",IF($E198="to be placed","",IF(MIN(IF($A$7:$A$10000=A198,$I$7:$I$10000))=I198,MIN(IF($A$7:$A$10000=A198,$I$7:$I$10000)),IF(SMALL(IF($A$7:$A$10000=A198,$I$7:$I$10000),2)=I198,SMALL(IF($A$7:$A$10000=A198,$I$7:$I$10000),2),IF(SMALL(IF($A$7:$A$10000=A198,$I$7:$I$10000),3)=I198,SMALL(IF($A$7:$A$10000=A198,$I$7:$I$10000),3),""))))) -> 
A199: 100595329 | B199: Sale (AUS) 24th Dec | C199: Sale | D199: 2012-12-24T14:12:00 | E199: R3 2200m Hcap | F199: 2012-12-24T14:12:18 | G199: 6. Power To Surprise | H199: 2012-12-24T14:14:58 | I199: 15.5 | J199: 2012-12-24T14:12:17 | K199: 2012-12-24T14:12:17 | L199: PE | M199: 3 | N199: 2048.92 | O199: 7 | P199: 3630762 | Q199: 0 | S199: 6.896551724 | V199: 1 | Y199: =IF(A199="","",IF(E199="to be placed","",IF(MIN(IF($A$7:$A$10000=A199,$I$7:$I$10000))=I199,MIN(IF($A$7:$A$10000=A199,$I$7:$I$10000)),""))) ->  | AB199: =IF($A199="","",IF($E199="to be placed","",IF(MIN(IF($A$7:$A$10000=A199,$I$7:$I$10000))=I199,MIN(IF($A$7:$A$10000=A199,$I$7:$I$10000)),IF(SMALL(IF($A$7:$A$10000=A199,$I$7:$I$10000),2)=I199,SMALL(IF($A$7:$A$10000=A199,$I$7:$I$10000),2),"")))) ->  | AF199: =IF($A199="","",IF($E199="to be placed","",IF(MIN(IF($A$7:$A$10000=A199,$I$7:$I$10000))=I199,MIN(IF($A$7:$A$10000=A199,$I$7:$I$10000)),IF(SMALL(IF($A$7:$A$10000=A199,$I$7:$I$10000),2)=I199,SMALL(IF($A$7:$A$10000=A199,$I$7:$I$10000),2),IF(SMALL(IF($A$7:$A$10000=A199,$I$7:$I$10000),3)=I199,SMALL(IF($A$7:$A$10000=A199,$I$7:$I$10000),3),""))))) -> 
A200: 100595329 | B200: Sale (AUS) 24th Dec | C200: Sale | D200: 2012-12-24T14:12:00 | E200: R3 2200m Hcap | F200: 2012-12-24T14:12:18 | G200: 7. Black Hawk Down | H200: 2012-12-24T14:14:58 | I200: 6 | J200: 2012-12-24T14:12:15 | K200: 2012-12-24T14:12:04 | L200: PE | M200: 12 | N200: 10233.42 | O200: 7 | P200: 4204295 | Q200: 0 | S200: =IF($D200="","",IF($E200="to be placed","",IF($Q200=1,-$I200*SUM(100/($I200-1))+SUM(100/($I200-1)),SUM(100/($I200-1))))) -> 20 | T200: =IF($D200="","",IF($E200="to be placed","",IF(AND($A200<>$A201,SUMIF($A$7:$A$10000,$A200,S$7:S$10000)>0),SUMIF($A$7:$A$10000,$A200,S$7:S$10000)*(1-$T$1),IF($A200<>$A201,SUMIF($A$7:$A$10000,$A200,S$7:S$10000),"")))) ->  | V200: =IF($D200="","",IF($E200="to be placed","",IF(AND($I200<20,$Q200=1),-$I200+1,IF(AND($I200<20,$Q200<>1),1,"")))) -> 1 | Y200: =IF(A200="","",IF(E200="to be placed","",IF(MIN(IF($A$7:$A$10000=A200,$I$7:$I$10000))=I200,MIN(IF($A$7:$A$10000=A200,$I$7:$I$10000)),""))) ->  | Z200: =IF($D200="","",IF($E200="to be placed","",IF(ISERROR(Y200*1),"",IF(AND(Y200>0,Q200=1),-Y200+1,IF(AND(Y200<>"",Q200<>1),0.935,""))))) ->  | AB200: =IF($A200="","",IF($E200="to be placed","",IF(MIN(IF($A$7:$A$10000=A200,$I$7:$I$10000))=I200,MIN(IF($A$7:$A$10000=A200,$I$7:$I$10000)),IF(SMALL(IF($A$7:$A$10000=A200,$I$7:$I$10000),2)=I200,SMALL(IF($A$7:$A$10000=A200,$I$7:$I$10000),2),"")))) ->  | AD200: =IF($D200="","",IF($E200="to be placed","",IF(AND($A200<>$A201,SUMIF($A$7:$A$10000,$A200,AC$7:AC$10000)>0),SUMIF($A$7:$A$10000,$A200,AC$7:AC$10000)*(1-$T$1),IF($A200<>$A201,SUMIF($A$7:$A$10000,$A200,AC$7:AC$10000),"")))) ->  | AF200: =IF($A200="","",IF($E200="to be placed","",IF(MIN(IF($A$7:$A$10000=A200,$I$7:$I$10000))=I200,MIN(IF($A$7:$A$10000=A200,$I$7:$I$10000)),IF(SMALL(IF($A$7:$A$10000=A200,$I$7:$I$10000),2)=I200,SMALL(IF($A$7:$A$10000=A200,$I$7:$I$10000),2),IF(SMALL(IF($A$7:$A$10000=A200,$I$7:$I$10000),3)=I200,SMALL(IF($A$7:$A$10000=A200,$I$7:$I$10000),3),""))))) -> 6 | AG200: 0.935 | AH200: =IF($D200="","",IF($E200="to be placed","",IF(AND($A200<>$A201,SUMIF($A$7:$A$10000,$A200,AG$7:AG$10000)>0),SUMIF($A$7:$A$10000,$A200,AG$7:AG$10000)*(1-$T$1),IF($A200<>$A201,SUMIF($A$7:$A$10000,$A200,AG$7:AG$10000),"")))) -> 
A201: 100595329 | B201: Sale (AUS) 24th Dec | C201: Sale | D201: 2012-12-24T14:12:00 | E201: R3 2200m Hcap | F201: 2012-12-24T14:12:18 | G201: 8. Elkayel | H201: 2012-12-24T14:14:58 | I201: 16.5 | J201: 2012-12-24T14:12:17 | K201: 2012-12-24T14:10:10 | L201: PE | M201: 32 | N201: 1002.92 | O201: 7 | P201: 5094123 | Q201: 0 | S201: 6.451612903 | V201: 1 | Y201: =IF(A201="","",IF(E201="to be placed","",IF(MIN(IF($A$7:$A$10000=A201,$I$7:$I$10000))=I201,MIN(IF($A$7:$A$10000=A201,$I$7:$I$10000)),""))) ->  | AB201: =IF($A201="","",IF($E201="to be placed","",IF(MIN(IF($A$7:$A$10000=A201,$I$7:$I$10000))=I201,MIN(IF($A$7:$A$10000=A201,$I$7:$I$10000)),IF(SMALL(IF($A$7:$A$10000=A201,$I$7:$I$10000),2)=I201,SMALL(IF($A$7:$A$10000=A201,$I$7:$I$10000),2),"")))) ->  | AF201: =IF($A201="","",IF($E201="to be placed","",IF(MIN(IF($A$7:$A$10000=A201,$I$7:$I$10000))=I201,MIN(IF($A$7:$A$10000=A201,$I$7:$I$10000)),IF(SMALL(IF($A$7:$A$10000=A201,$I$7:$I$10000),2)=I201,SMALL(IF($A$7:$A$10000=A201,$I$7:$I$10000),2),IF(SMALL(IF($A$7:$A$10000=A201,$I$7:$I$10000),3)=I201,SMALL(IF($A$7:$A$10000=A201,$I$7:$I$10000),3),""))))) -> 
A202: 100595329 | B202: Sale (AUS) 24th Dec | C202: Sale | D202: 2012-12-24T14:12:00 | E202: R3 2200m Hcap | F202: 2012-12-24T14:12:18 | G202: 10. Gold Pass | H202: 2012-12-24T14:14:58 | I202: 350 | J202: 2012-12-24T14:12:10 | K202: 2012-12-24T14:11:45 | L202: PE | M202: 15 | N202: 240.06 | O202: 7 | P202: 5133150 | Q202: 0 | S202: 0.2865329513 | Y202: =IF(A202="","",IF(E202="to be placed","",IF(MIN(IF($A$7:$A$10000=A202,$I$7:$I$10000))=I202,MIN(IF($A$7:$A$10000=A202,$I$7:$I$10000)),""))) ->  | AB202: =IF($A202="","",IF($E202="to be placed","",IF(MIN(IF($A$7:$A$10000=A202,$I$7:$I$10000))=I202,MIN(IF($A$7:$A$10000=A202,$I$7:$I$10000)),IF(SMALL(IF($A$7:$A$10000=A202,$I$7:$I$10000),2)=I202,SMALL(IF($A$7:$A$10000=A202,$I$7:$I$10000),2),"")))) ->  | AF202: =IF($A202="","",IF($E202="to be placed","",IF(MIN(IF($A$7:$A$10000=A202,$I$7:$I$10000))=I202,MIN(IF($A$7:$A$10000=A202,$I$7:$I$10000)),IF(SMALL(IF($A$7:$A$10000=A202,$I$7:$I$10000),2)=I202,SMALL(IF($A$7:$A$10000=A202,$I$7:$I$10000),2),IF(SMALL(IF($A$7:$A$10000=A202,$I$7:$I$10000),3)=I202,SMALL(IF($A$7:$A$10000=A202,$I$7:$I$10000),3),""))))) -> 
A203: 100595329 | B203: Sale (AUS) 24th Dec | C203: Sale | D203: 2012-12-24T14:12:00 | E203: R3 2200m Hcap | F203: 2012-12-24T14:12:18 | G203: 9. Shirlaski | H203: 2012-12-24T14:14:58 | I203: 8.8 | J203: 2012-12-24T14:12:15 | K203: 2012-12-24T14:06:10 | L203: PE | M203: 47 | N203: 2897.74 | O203: 7 | P203: 6081185 | Q203: 0 | S203: 12.82051282 | V203: 1 | Y203: =IF(A203="","",IF(E203="to be placed","",IF(MIN(IF($A$7:$A$10000=A203,$I$7:$I$10000))=I203,MIN(IF($A$7:$A$10000=A203,$I$7:$I$10000)),""))) ->  | AB203: =IF($A203="","",IF($E203="to be placed","",IF(MIN(IF($A$7:$A$10000=A203,$I$7:$I$10000))=I203,MIN(IF($A$7:$A$10000=A203,$I$7:$I$10000)),IF(SMALL(IF($A$7:$A$10000=A203,$I$7:$I$10000),2)=I203,SMALL(IF($A$7:$A$10000=A203,$I$7:$I$10000),2),"")))) ->  | AF203: =IF($A203="","",IF($E203="to be placed","",IF(MIN(IF($A$7:$A$10000=A203,$I$7:$I$10000))=I203,MIN(IF($A$7:$A$10000=A203,$I$7:$I$10000)),IF(SMALL(IF($A$7:$A$10000=A203,$I$7:$I$10000),2)=I203,SMALL(IF($A$7:$A$10000=A203,$I$7:$I$10000),2),IF(SMALL(IF($A$7:$A$10000=A203,$I$7:$I$10000),3)=I203,SMALL(IF($A$7:$A$10000=A203,$I$7:$I$10000),3),""))))) -> 
... 874 more rows

Sheet template
G1: make a copy of the sheet and paste new data to cell A7 | S1: comm rate | T1: 0.065
T5: =SUM(T7:T10743) -> 0 | V5: $20sp | W5: =SUM(W7:W10743) -> 0 | Y5: sp | Z5: =SUM(Z7:Z10743) -> 0 | AB5: first | AD5: =SUM(AD7:AD10743) -> 0 | AF5: first | AH5: =SUM(AH7:AH10743) -> 0
A6: EVENT_ID | B6: FULL_DESCRIPTION | C6: COURSE | D6: SCHEDULED_OFF | E6: EVENT | F6: ACTUAL_OFF | G6: SELECTION | H6: SETTLED_DATE | I6: ODDS | J6: LATEST_TAKEN | K6: FIRST_TAKEN | L6: IN_PLAY | M6: NUMBER_BETS | N6: VOLUME_MATCHED | O6: SPORTS_ID | P6: SELECTION_ID | Q6: WIN_FLAG | S6: liab$100 | T6: race net | V6: max | W6: race net | Y6: race fav | Z6: race net | AB6: 2 favs | AC6: collect | AD6: race net | AF6: 3 favs | AG6: collect | AH6: race net
S7: =IF($D7="","",IF($E7="to be placed","",IF($Q7=1,-$I7*SUM(100/($I7-1))+SUM(100/($I7-1)),SUM(100/($I7-1))))) ->  | T7: =IF($D7="","",IF($E7="to be placed","",IF(AND($A7<>$A8,SUMIF($A$7:$A$10999,$A7,S$7:S$10999)>0),SUMIF($A$7:$A$10999,$A7,S$7:S$10999)*(1-$T$1),IF($A7<>$A8,SUMIF($A$7:$A$10999,$A7,S$7:S$10999),"")))) ->  | V7: =IF($D7="","",IF($E7="to be placed","",IF(AND($I7<20,$Q7=1),-$I7+1,IF(AND($I7<20,$Q7<>1),1,"")))) ->  | W7: =IF($D7="","",IF($E7="to be placed","",IF(AND($A7<>$A8,SUMIF($A$7:$A$10999,$A7,V$7:V$10999)>0),SUMIF($A$7:$A$10999,$A7,V$7:V$10999)*(1-$T$1),IF($A7<>$A8,SUMIF($A$7:$A$10999,$A7,V$7:V$10999),"")))) ->  | Y7: =IF(A7="","",IF(E7="to be placed","",IF(MIN(IF($A$7:$A$10999=A7,$I$7:$I$10999))=I7,MIN(IF($A$7:$A$10999=A7,$I$7:$I$10999)),""))) ->  | Z7: =IF($D7="","",IF($E7="to be placed","",IF(ISERROR(Y7*1),"",IF(AND(Y7>0,Q7=1),-Y7+1,IF(AND(Y7<>"",Q7<>1),0.935,""))))) ->  | AB7: =IF($A7="","",IF($E7="to be placed","",IF(MIN(IF($A$7:$A$10999=A7,$I$7:$I$10999))=I7,MIN(IF($A$7:$A$10999=A7,$I$7:$I$10999)),IF(SMALL(IF($A$7:$A$10999=A7,$I$7:$I$10999),2)=I7,SMALL(IF($A$7:$A$10999=A7,$I$7:$I$10999),2),"")))) ->  | AC7: =IF($D7="","",IF($E7="to be placed","",IF(ISERROR(AB7*1),"",IF(AND(AB7>0,$Q7=1),-AB7+1,IF(AND(AB7<>"",$Q7<>1),0.935,""))))) ->  | AD7: =IF($D7="","",IF($E7="to be placed","",IF(AND($A7<>$A8,SUMIF($A$7:$A$10999,$A7,AC$7:AC$10999)>0),SUMIF($A$7:$A$10999,$A7,AC$7:AC$10999)*(1-$T$1),IF($A7<>$A8,SUMIF($A$7:$A$10999,$A7,AC$7:AC$10999),"")))) ->  | AF7: =IF($A7="","",IF($E7="to be placed","",IF(MIN(IF($A$7:$A$10999=A7,$I$7:$I$10999))=I7,MIN(IF($A$7:$A$10999=A7,$I$7:$I$10999)),IF(SMALL(IF($A$7:$A$10999=A7,$I$7:$I$10999),2)=I7,SMALL(IF($A$7:$A$10999=A7,$I$7:$I$10999),2),IF(SMALL(IF($A$7:$A$10999=A7,$I$7:$I$10999),3)=I7,SMALL(IF($A$7:$A$10999=A7,$I$7:$I$10999),3),""))))) ->  | AG7: =IF($D7="","",IF($E7="to be placed","",IF(ISERROR(AF7*1),"",IF(AND(AF7>0,$Q7=1),-AF7+1,IF(AND(AF7<>"",$Q7<>1),0.935,""))))) ->  | AH7: =IF($D7="","",IF($E7="to be placed","",IF(AND($A7<>$A8,SUMIF($A$7:$A$10999,$A7,AG$7:AG$10999)>0),SUMIF($A$7:$A$10999,$A7,AG$7:AG$10999)*(1-$T$1),IF($A7<>$A8,SUMIF($A$7:$A$10999,$A7,AG$7:AG$10999),"")))) -> 
S8: =IF($D8="","",IF($E8="to be placed","",IF($Q8=1,-$I8*SUM(100/($I8-1))+SUM(100/($I8-1)),SUM(100/($I8-1))))) ->  | V8: =IF($D8="","",IF($E8="to be placed","",IF(AND($I8<20,$Q8=1),-$I8+1,IF(AND($I8<20,$Q8<>1),1,"")))) ->  | Y8: =IF(A8="","",IF(E8="to be placed","",IF(MIN(IF($A$7:$A$10999=A8,$I$7:$I$10999))=I8,MIN(IF($A$7:$A$10999=A8,$I$7:$I$10999)),""))) ->  | Z8: =IF($D8="","",IF($E8="to be placed","",IF(ISERROR(Y8*1),"",IF(AND(Y8>0,Q8=1),-Y8+1,IF(AND(Y8<>"",Q8<>1),0.935,""))))) ->  | AB8: =IF($A8="","",IF($E8="to be placed","",IF(MIN(IF($A$7:$A$10999=A8,$I$7:$I$10999))=I8,MIN(IF($A$7:$A$10999=A8,$I$7:$I$10999)),IF(SMALL(IF($A$7:$A$10999=A8,$I$7:$I$10999),2)=I8,SMALL(IF($A$7:$A$10999=A8,$I$7:$I$10999),2),"")))) ->  | AF8: =IF($A8="","",IF($E8="to be placed","",IF(MIN(IF($A$7:$A$10999=A8,$I$7:$I$10999))=I8,MIN(IF($A$7:$A$10999=A8,$I$7:$I$10999)),IF(SMALL(IF($A$7:$A$10999=A8,$I$7:$I$10999),2)=I8,SMALL(IF($A$7:$A$10999=A8,$I$7:$I$10999),2),IF(SMALL(IF($A$7:$A$10999=A8,$I$7:$I$10999),3)=I8,SMALL(IF($A$7:$A$10999=A8,$I$7:$I$10999),3),""))))) -> 
Y9: =IF(A9="","",IF(E9="to be placed","",IF(MIN(IF($A$7:$A$10999=A9,$I$7:$I$10999))=I9,MIN(IF($A$7:$A$10999=A9,$I$7:$I$10999)),""))) ->  | AB9: =IF($A9="","",IF($E9="to be placed","",IF(MIN(IF($A$7:$A$10999=A9,$I$7:$I$10999))=I9,MIN(IF($A$7:$A$10999=A9,$I$7:$I$10999)),IF(SMALL(IF($A$7:$A$10999=A9,$I$7:$I$10999),2)=I9,SMALL(IF($A$7:$A$10999=A9,$I$7:$I$10999),2),"")))) ->  | AF9: =IF($A9="","",IF($E9="to be placed","",IF(MIN(IF($A$7:$A$10999=A9,$I$7:$I$10999))=I9,MIN(IF($A$7:$A$10999=A9,$I$7:$I$10999)),IF(SMALL(IF($A$7:$A$10999=A9,$I$7:$I$10999),2)=I9,SMALL(IF($A$7:$A$10999=A9,$I$7:$I$10999),2),IF(SMALL(IF($A$7:$A$10999=A9,$I$7:$I$10999),3)=I9,SMALL(IF($A$7:$A$10999=A9,$I$7:$I$10999),3),""))))) -> 
Y10: =IF(A10="","",IF(E10="to be placed","",IF(MIN(IF($A$7:$A$10999=A10,$I$7:$I$10999))=I10,MIN(IF($A$7:$A$10999=A10,$I$7:$I$10999)),""))) ->  | AB10: =IF($A10="","",IF($E10="to be placed","",IF(MIN(IF($A$7:$A$10999=A10,$I$7:$I$10999))=I10,MIN(IF($A$7:$A$10999=A10,$I$7:$I$10999)),IF(SMALL(IF($A$7:$A$10999=A10,$I$7:$I$10999),2)=I10,SMALL(IF($A$7:$A$10999=A10,$I$7:$I$10999),2),"")))) ->  | AF10: =IF($A10="","",IF($E10="to be placed","",IF(MIN(IF($A$7:$A$10999=A10,$I$7:$I$10999))=I10,MIN(IF($A$7:$A$10999=A10,$I$7:$I$10999)),IF(SMALL(IF($A$7:$A$10999=A10,$I$7:$I$10999),2)=I10,SMALL(IF($A$7:$A$10999=A10,$I$7:$I$10999),2),IF(SMALL(IF($A$7:$A$10999=A10,$I$7:$I$10999),3)=I10,SMALL(IF($A$7:$A$10999=A10,$I$7:$I$10999),3),""))))) -> 
Y11: =IF(A11="","",IF(E11="to be placed","",IF(MIN(IF($A$7:$A$10999=A11,$I$7:$I$10999))=I11,MIN(IF($A$7:$A$10999=A11,$I$7:$I$10999)),""))) ->  | AB11: =IF($A11="","",IF($E11="to be placed","",IF(MIN(IF($A$7:$A$10999=A11,$I$7:$I$10999))=I11,MIN(IF($A$7:$A$10999=A11,$I$7:$I$10999)),IF(SMALL(IF($A$7:$A$10999=A11,$I$7:$I$10999),2)=I11,SMALL(IF($A$7:$A$10999=A11,$I$7:$I$10999),2),"")))) ->  | AF11: =IF($A11="","",IF($E11="to be placed","",IF(MIN(IF($A$7:$A$10999=A11,$I$7:$I$10999))=I11,MIN(IF($A$7:$A$10999=A11,$I$7:$I$10999)),IF(SMALL(IF($A$7:$A$10999=A11,$I$7:$I$10999),2)=I11,SMALL(IF($A$7:$A$10999=A11,$I$7:$I$10999),2),IF(SMALL(IF($A$7:$A$10999=A11,$I$7:$I$10999),3)=I11,SMALL(IF($A$7:$A$10999=A11,$I$7:$I$10999),3),""))))) -> 
Y12: =IF(A12="","",IF(E12="to be placed","",IF(MIN(IF($A$7:$A$10999=A12,$I$7:$I$10999))=I12,MIN(IF($A$7:$A$10999=A12,$I$7:$I$10999)),""))) ->  | AB12: =IF($A12="","",IF($E12="to be placed","",IF(MIN(IF($A$7:$A$10999=A12,$I$7:$I$10999))=I12,MIN(IF($A$7:$A$10999=A12,$I$7:$I$10999)),IF(SMALL(IF($A$7:$A$10999=A12,$I$7:$I$10999),2)=I12,SMALL(IF($A$7:$A$10999=A12,$I$7:$I$10999),2),"")))) ->  | AF12: =IF($A12="","",IF($E12="to be placed","",IF(MIN(IF($A$7:$A$10999=A12,$I$7:$I$10999))=I12,MIN(IF($A$7:$A$10999=A12,$I$7:$I$10999)),IF(SMALL(IF($A$7:$A$10999=A12,$I$7:$I$10999),2)=I12,SMALL(IF($A$7:$A$10999=A12,$I$7:$I$10999),2),IF(SMALL(IF($A$7:$A$10999=A12,$I$7:$I$10999),3)=I12,SMALL(IF($A$7:$A$10999=A12,$I$7:$I$10999),3),""))))) -> 
Y13: =IF(A13="","",IF(E13="to be placed","",IF(MIN(IF($A$7:$A$10999=A13,$I$7:$I$10999))=I13,MIN(IF($A$7:$A$10999=A13,$I$7:$I$10999)),""))) ->  | AB13: =IF($A13="","",IF($E13="to be placed","",IF(MIN(IF($A$7:$A$10999=A13,$I$7:$I$10999))=I13,MIN(IF($A$7:$A$10999=A13,$I$7:$I$10999)),IF(SMALL(IF($A$7:$A$10999=A13,$I$7:$I$10999),2)=I13,SMALL(IF($A$7:$A$10999=A13,$I$7:$I$10999),2),"")))) ->  | AF13: =IF($A13="","",IF($E13="to be placed","",IF(MIN(IF($A$7:$A$10999=A13,$I$7:$I$10999))=I13,MIN(IF($A$7:$A$10999=A13,$I$7:$I$10999)),IF(SMALL(IF($A$7:$A$10999=A13,$I$7:$I$10999),2)=I13,SMALL(IF($A$7:$A$10999=A13,$I$7:$I$10999),2),IF(SMALL(IF($A$7:$A$10999=A13,$I$7:$I$10999),3)=I13,SMALL(IF($A$7:$A$10999=A13,$I$7:$I$10999),3),""))))) -> 
Y14: =IF(A14="","",IF(E14="to be placed","",IF(MIN(IF($A$7:$A$10999=A14,$I$7:$I$10999))=I14,MIN(IF($A$7:$A$10999=A14,$I$7:$I$10999)),""))) ->  | AB14: =IF($A14="","",IF($E14="to be placed","",IF(MIN(IF($A$7:$A$10999=A14,$I$7:$I$10999))=I14,MIN(IF($A$7:$A$10999=A14,$I$7:$I$10999)),IF(SMALL(IF($A$7:$A$10999=A14,$I$7:$I$10999),2)=I14,SMALL(IF($A$7:$A$10999=A14,$I$7:$I$10999),2),"")))) ->  | AF14: =IF($A14="","",IF($E14="to be placed","",IF(MIN(IF($A$7:$A$10999=A14,$I$7:$I$10999))=I14,MIN(IF($A$7:$A$10999=A14,$I$7:$I$10999)),IF(SMALL(IF($A$7:$A$10999=A14,$I$7:$I$10999),2)=I14,SMALL(IF($A$7:$A$10999=A14,$I$7:$I$10999),2),IF(SMALL(IF($A$7:$A$10999=A14,$I$7:$I$10999),3)=I14,SMALL(IF($A$7:$A$10999=A14,$I$7:$I$10999),3),""))))) -> 
Y15: =IF(A15="","",IF(E15="to be placed","",IF(MIN(IF($A$7:$A$10999=A15,$I$7:$I$10999))=I15,MIN(IF($A$7:$A$10999=A15,$I$7:$I$10999)),""))) ->  | AB15: =IF($A15="","",IF($E15="to be placed","",IF(MIN(IF($A$7:$A$10999=A15,$I$7:$I$10999))=I15,MIN(IF($A$7:$A$10999=A15,$I$7:$I$10999)),IF(SMALL(IF($A$7:$A$10999=A15,$I$7:$I$10999),2)=I15,SMALL(IF($A$7:$A$10999=A15,$I$7:$I$10999),2),"")))) ->  | AF15: =IF($A15="","",IF($E15="to be placed","",IF(MIN(IF($A$7:$A$10999=A15,$I$7:$I$10999))=I15,MIN(IF($A$7:$A$10999=A15,$I$7:$I$10999)),IF(SMALL(IF($A$7:$A$10999=A15,$I$7:$I$10999),2)=I15,SMALL(IF($A$7:$A$10999=A15,$I$7:$I$10999),2),IF(SMALL(IF($A$7:$A$10999=A15,$I$7:$I$10999),3)=I15,SMALL(IF($A$7:$A$10999=A15,$I$7:$I$10999),3),""))))) -> 
Y16: =IF(A16="","",IF(E16="to be placed","",IF(MIN(IF($A$7:$A$10999=A16,$I$7:$I$10999))=I16,MIN(IF($A$7:$A$10999=A16,$I$7:$I$10999)),""))) ->  | AB16: =IF($A16="","",IF($E16="to be placed","",IF(MIN(IF($A$7:$A$10999=A16,$I$7:$I$10999))=I16,MIN(IF($A$7:$A$10999=A16,$I$7:$I$10999)),IF(SMALL(IF($A$7:$A$10999=A16,$I$7:$I$10999),2)=I16,SMALL(IF($A$7:$A$10999=A16,$I$7:$I$10999),2),"")))) ->  | AF16: =IF($A16="","",IF($E16="to be placed","",IF(MIN(IF($A$7:$A$10999=A16,$I$7:$I$10999))=I16,MIN(IF($A$7:$A$10999=A16,$I$7:$I$10999)),IF(SMALL(IF($A$7:$A$10999=A16,$I$7:$I$10999),2)=I16,SMALL(IF($A$7:$A$10999=A16,$I$7:$I$10999),2),IF(SMALL(IF($A$7:$A$10999=A16,$I$7:$I$10999),3)=I16,SMALL(IF($A$7:$A$10999=A16,$I$7:$I$10999),3),""))))) -> 
Y17: =IF(A17="","",IF(E17="to be placed","",IF(MIN(IF($A$7:$A$10999=A17,$I$7:$I$10999))=I17,MIN(IF($A$7:$A$10999=A17,$I$7:$I$10999)),""))) ->  | AB17: =IF($A17="","",IF($E17="to be placed","",IF(MIN(IF($A$7:$A$10999=A17,$I$7:$I$10999))=I17,MIN(IF($A$7:$A$10999=A17,$I$7:$I$10999)),IF(SMALL(IF($A$7:$A$10999=A17,$I$7:$I$10999),2)=I17,SMALL(IF($A$7:$A$10999=A17,$I$7:$I$10999),2),"")))) ->  | AF17: =IF($A17="","",IF($E17="to be placed","",IF(MIN(IF($A$7:$A$10999=A17,$I$7:$I$10999))=I17,MIN(IF($A$7:$A$10999=A17,$I$7:$I$10999)),IF(SMALL(IF($A$7:$A$10999=A17,$I$7:$I$10999),2)=I17,SMALL(IF($A$7:$A$10999=A17,$I$7:$I$10999),2),IF(SMALL(IF($A$7:$A$10999=A17,$I$7:$I$10999),3)=I17,SMALL(IF($A$7:$A$10999=A17,$I$7:$I$10999),3),""))))) -> 
Y18: =IF(A18="","",IF(E18="to be placed","",IF(MIN(IF($A$7:$A$10999=A18,$I$7:$I$10999))=I18,MIN(IF($A$7:$A$10999=A18,$I$7:$I$10999)),""))) ->  | AB18: =IF($A18="","",IF($E18="to be placed","",IF(MIN(IF($A$7:$A$10999=A18,$I$7:$I$10999))=I18,MIN(IF($A$7:$A$10999=A18,$I$7:$I$10999)),IF(SMALL(IF($A$7:$A$10999=A18,$I$7:$I$10999),2)=I18,SMALL(IF($A$7:$A$10999=A18,$I$7:$I$10999),2),"")))) ->  | AF18: =IF($A18="","",IF($E18="to be placed","",IF(MIN(IF($A$7:$A$10999=A18,$I$7:$I$10999))=I18,MIN(IF($A$7:$A$10999=A18,$I$7:$I$10999)),IF(SMALL(IF($A$7:$A$10999=A18,$I$7:$I$10999),2)=I18,SMALL(IF($A$7:$A$10999=A18,$I$7:$I$10999),2),IF(SMALL(IF($A$7:$A$10999=A18,$I$7:$I$10999),3)=I18,SMALL(IF($A$7:$A$10999=A18,$I$7:$I$10999),3),""))))) -> 
Y19: =IF(A19="","",IF(E19="to be placed","",IF(MIN(IF($A$7:$A$10999=A19,$I$7:$I$10999))=I19,MIN(IF($A$7:$A$10999=A19,$I$7:$I$10999)),""))) ->  | AB19: =IF($A19="","",IF($E19="to be placed","",IF(MIN(IF($A$7:$A$10999=A19,$I$7:$I$10999))=I19,MIN(IF($A$7:$A$10999=A19,$I$7:$I$10999)),IF(SMALL(IF($A$7:$A$10999=A19,$I$7:$I$10999),2)=I19,SMALL(IF($A$7:$A$10999=A19,$I$7:$I$10999),2),"")))) ->  | AF19: =IF($A19="","",IF($E19="to be placed","",IF(MIN(IF($A$7:$A$10999=A19,$I$7:$I$10999))=I19,MIN(IF($A$7:$A$10999=A19,$I$7:$I$10999)),IF(SMALL(IF($A$7:$A$10999=A19,$I$7:$I$10999),2)=I19,SMALL(IF($A$7:$A$10999=A19,$I$7:$I$10999),2),IF(SMALL(IF($A$7:$A$10999=A19,$I$7:$I$10999),3)=I19,SMALL(IF($A$7:$A$10999=A19,$I$7:$I$10999),3),""))))) -> 
Y20: =IF(A20="","",IF(E20="to be placed","",IF(MIN(IF($A$7:$A$10999=A20,$I$7:$I$10999))=I20,MIN(IF($A$7:$A$10999=A20,$I$7:$I$10999)),""))) ->  | AB20: =IF($A20="","",IF($E20="to be placed","",IF(MIN(IF($A$7:$A$10999=A20,$I$7:$I$10999))=I20,MIN(IF($A$7:$A$10999=A20,$I$7:$I$10999)),IF(SMALL(IF($A$7:$A$10999=A20,$I$7:$I$10999),2)=I20,SMALL(IF($A$7:$A$10999=A20,$I$7:$I$10999),2),"")))) ->  | AF20: =IF($A20="","",IF($E20="to be placed","",IF(MIN(IF($A$7:$A$10999=A20,$I$7:$I$10999))=I20,MIN(IF($A$7:$A$10999=A20,$I$7:$I$10999)),IF(SMALL(IF($A$7:$A$10999=A20,$I$7:$I$10999),2)=I20,SMALL(IF($A$7:$A$10999=A20,$I$7:$I$10999),2),IF(SMALL(IF($A$7:$A$10999=A20,$I$7:$I$10999),3)=I20,SMALL(IF($A$7:$A$10999=A20,$I$7:$I$10999),3),""))))) -> 
Y21: =IF(A21="","",IF(E21="to be placed","",IF(MIN(IF($A$7:$A$10999=A21,$I$7:$I$10999))=I21,MIN(IF($A$7:$A$10999=A21,$I$7:$I$10999)),""))) ->  | AB21: =IF($A21="","",IF($E21="to be placed","",IF(MIN(IF($A$7:$A$10999=A21,$I$7:$I$10999))=I21,MIN(IF($A$7:$A$10999=A21,$I$7:$I$10999)),IF(SMALL(IF($A$7:$A$10999=A21,$I$7:$I$10999),2)=I21,SMALL(IF($A$7:$A$10999=A21,$I$7:$I$10999),2),"")))) ->  | AF21: =IF($A21="","",IF($E21="to be placed","",IF(MIN(IF($A$7:$A$10999=A21,$I$7:$I$10999))=I21,MIN(IF($A$7:$A$10999=A21,$I$7:$I$10999)),IF(SMALL(IF($A$7:$A$10999=A21,$I$7:$I$10999),2)=I21,SMALL(IF($A$7:$A$10999=A21,$I$7:$I$10999),2),IF(SMALL(IF($A$7:$A$10999=A21,$I$7:$I$10999),3)=I21,SMALL(IF($A$7:$A$10999=A21,$I$7:$I$10999),3),""))))) -> 
Y22: =IF(A22="","",IF(E22="to be placed","",IF(MIN(IF($A$7:$A$10999=A22,$I$7:$I$10999))=I22,MIN(IF($A$7:$A$10999=A22,$I$7:$I$10999)),""))) ->  | AB22: =IF($A22="","",IF($E22="to be placed","",IF(MIN(IF($A$7:$A$10999=A22,$I$7:$I$10999))=I22,MIN(IF($A$7:$A$10999=A22,$I$7:$I$10999)),IF(SMALL(IF($A$7:$A$10999=A22,$I$7:$I$10999),2)=I22,SMALL(IF($A$7:$A$10999=A22,$I$7:$I$10999),2),"")))) ->  | AF22: =IF($A22="","",IF($E22="to be placed","",IF(MIN(IF($A$7:$A$10999=A22,$I$7:$I$10999))=I22,MIN(IF($A$7:$A$10999=A22,$I$7:$I$10999)),IF(SMALL(IF($A$7:$A$10999=A22,$I$7:$I$10999),2)=I22,SMALL(IF($A$7:$A$10999=A22,$I$7:$I$10999),2),IF(SMALL(IF($A$7:$A$10999=A22,$I$7:$I$10999),3)=I22,SMALL(IF($A$7:$A$10999=A22,$I$7:$I$10999),3),""))))) -> 
Y23: =IF(A23="","",IF(E23="to be placed","",IF(MIN(IF($A$7:$A$10999=A23,$I$7:$I$10999))=I23,MIN(IF($A$7:$A$10999=A23,$I$7:$I$10999)),""))) ->  | AB23: =IF($A23="","",IF($E23="to be placed","",IF(MIN(IF($A$7:$A$10999=A23,$I$7:$I$10999))=I23,MIN(IF($A$7:$A$10999=A23,$I$7:$I$10999)),IF(SMALL(IF($A$7:$A$10999=A23,$I$7:$I$10999),2)=I23,SMALL(IF($A$7:$A$10999=A23,$I$7:$I$10999),2),"")))) ->  | AF23: =IF($A23="","",IF($E23="to be placed","",IF(MIN(IF($A$7:$A$10999=A23,$I$7:$I$10999))=I23,MIN(IF($A$7:$A$10999=A23,$I$7:$I$10999)),IF(SMALL(IF($A$7:$A$10999=A23,$I$7:$I$10999),2)=I23,SMALL(IF($A$7:$A$10999=A23,$I$7:$I$10999),2),IF(SMALL(IF($A$7:$A$10999=A23,$I$7:$I$10999),3)=I23,SMALL(IF($A$7:$A$10999=A23,$I$7:$I$10999),3),""))))) -> 
Y24: =IF(A24="","",IF(E24="to be placed","",IF(MIN(IF($A$7:$A$10999=A24,$I$7:$I$10999))=I24,MIN(IF($A$7:$A$10999=A24,$I$7:$I$10999)),""))) ->  | AB24: =IF($A24="","",IF($E24="to be placed","",IF(MIN(IF($A$7:$A$10999=A24,$I$7:$I$10999))=I24,MIN(IF($A$7:$A$10999=A24,$I$7:$I$10999)),IF(SMALL(IF($A$7:$A$10999=A24,$I$7:$I$10999),2)=I24,SMALL(IF($A$7:$A$10999=A24,$I$7:$I$10999),2),"")))) ->  | AF24: =IF($A24="","",IF($E24="to be placed","",IF(MIN(IF($A$7:$A$10999=A24,$I$7:$I$10999))=I24,MIN(IF($A$7:$A$10999=A24,$I$7:$I$10999)),IF(SMALL(IF($A$7:$A$10999=A24,$I$7:$I$10999),2)=I24,SMALL(IF($A$7:$A$10999=A24,$I$7:$I$10999),2),IF(SMALL(IF($A$7:$A$10999=A24,$I$7:$I$10999),3)=I24,SMALL(IF($A$7:$A$10999=A24,$I$7:$I$10999),3),""))))) -> 
Y25: =IF(A25="","",IF(E25="to be placed","",IF(MIN(IF($A$7:$A$10999=A25,$I$7:$I$10999))=I25,MIN(IF($A$7:$A$10999=A25,$I$7:$I$10999)),""))) ->  | AB25: =IF($A25="","",IF($E25="to be placed","",IF(MIN(IF($A$7:$A$10999=A25,$I$7:$I$10999))=I25,MIN(IF($A$7:$A$10999=A25,$I$7:$I$10999)),IF(SMALL(IF($A$7:$A$10999=A25,$I$7:$I$10999),2)=I25,SMALL(IF($A$7:$A$10999=A25,$I$7:$I$10999),2),"")))) ->  | AF25: =IF($A25="","",IF($E25="to be placed","",IF(MIN(IF($A$7:$A$10999=A25,$I$7:$I$10999))=I25,MIN(IF($A$7:$A$10999=A25,$I$7:$I$10999)),IF(SMALL(IF($A$7:$A$10999=A25,$I$7:$I$10999),2)=I25,SMALL(IF($A$7:$A$10999=A25,$I$7:$I$10999),2),IF(SMALL(IF($A$7:$A$10999=A25,$I$7:$I$10999),3)=I25,SMALL(IF($A$7:$A$10999=A25,$I$7:$I$10999),3),""))))) -> 
Y26: =IF(A26="","",IF(E26="to be placed","",IF(MIN(IF($A$7:$A$10999=A26,$I$7:$I$10999))=I26,MIN(IF($A$7:$A$10999=A26,$I$7:$I$10999)),""))) ->  | AB26: =IF($A26="","",IF($E26="to be placed","",IF(MIN(IF($A$7:$A$10999=A26,$I$7:$I$10999))=I26,MIN(IF($A$7:$A$10999=A26,$I$7:$I$10999)),IF(SMALL(IF($A$7:$A$10999=A26,$I$7:$I$10999),2)=I26,SMALL(IF($A$7:$A$10999=A26,$I$7:$I$10999),2),"")))) ->  | AF26: =IF($A26="","",IF($E26="to be placed","",IF(MIN(IF($A$7:$A$10999=A26,$I$7:$I$10999))=I26,MIN(IF($A$7:$A$10999=A26,$I$7:$I$10999)),IF(SMALL(IF($A$7:$A$10999=A26,$I$7:$I$10999),2)=I26,SMALL(IF($A$7:$A$10999=A26,$I$7:$I$10999),2),IF(SMALL(IF($A$7:$A$10999=A26,$I$7:$I$10999),3)=I26,SMALL(IF($A$7:$A$10999=A26,$I$7:$I$10999),3),""))))) -> 
Y27: =IF(A27="","",IF(E27="to be placed","",IF(MIN(IF($A$7:$A$10999=A27,$I$7:$I$10999))=I27,MIN(IF($A$7:$A$10999=A27,$I$7:$I$10999)),""))) ->  | AB27: =IF($A27="","",IF($E27="to be placed","",IF(MIN(IF($A$7:$A$10999=A27,$I$7:$I$10999))=I27,MIN(IF($A$7:$A$10999=A27,$I$7:$I$10999)),IF(SMALL(IF($A$7:$A$10999=A27,$I$7:$I$10999),2)=I27,SMALL(IF($A$7:$A$10999=A27,$I$7:$I$10999),2),"")))) ->  | AF27: =IF($A27="","",IF($E27="to be placed","",IF(MIN(IF($A$7:$A$10999=A27,$I$7:$I$10999))=I27,MIN(IF($A$7:$A$10999=A27,$I$7:$I$10999)),IF(SMALL(IF($A$7:$A$10999=A27,$I$7:$I$10999),2)=I27,SMALL(IF($A$7:$A$10999=A27,$I$7:$I$10999),2),IF(SMALL(IF($A$7:$A$10999=A27,$I$7:$I$10999),3)=I27,SMALL(IF($A$7:$A$10999=A27,$I$7:$I$10999),3),""))))) -> 
Y28: =IF(A28="","",IF(E28="to be placed","",IF(MIN(IF($A$7:$A$10999=A28,$I$7:$I$10999))=I28,MIN(IF($A$7:$A$10999=A28,$I$7:$I$10999)),""))) ->  | AB28: =IF($A28="","",IF($E28="to be placed","",IF(MIN(IF($A$7:$A$10999=A28,$I$7:$I$10999))=I28,MIN(IF($A$7:$A$10999=A28,$I$7:$I$10999)),IF(SMALL(IF($A$7:$A$10999=A28,$I$7:$I$10999),2)=I28,SMALL(IF($A$7:$A$10999=A28,$I$7:$I$10999),2),"")))) ->  | AF28: =IF($A28="","",IF($E28="to be placed","",IF(MIN(IF($A$7:$A$10999=A28,$I$7:$I$10999))=I28,MIN(IF($A$7:$A$10999=A28,$I$7:$I$10999)),IF(SMALL(IF($A$7:$A$10999=A28,$I$7:$I$10999),2)=I28,SMALL(IF($A$7:$A$10999=A28,$I$7:$I$10999),2),IF(SMALL(IF($A$7:$A$10999=A28,$I$7:$I$10999),3)=I28,SMALL(IF($A$7:$A$10999=A28,$I$7:$I$10999),3),""))))) -> 
Y29: =IF(A29="","",IF(E29="to be placed","",IF(MIN(IF($A$7:$A$10999=A29,$I$7:$I$10999))=I29,MIN(IF($A$7:$A$10999=A29,$I$7:$I$10999)),""))) ->  | AB29: =IF($A29="","",IF($E29="to be placed","",IF(MIN(IF($A$7:$A$10999=A29,$I$7:$I$10999))=I29,MIN(IF($A$7:$A$10999=A29,$I$7:$I$10999)),IF(SMALL(IF($A$7:$A$10999=A29,$I$7:$I$10999),2)=I29,SMALL(IF($A$7:$A$10999=A29,$I$7:$I$10999),2),"")))) ->  | AF29: =IF($A29="","",IF($E29="to be placed","",IF(MIN(IF($A$7:$A$10999=A29,$I$7:$I$10999))=I29,MIN(IF($A$7:$A$10999=A29,$I$7:$I$10999)),IF(SMALL(IF($A$7:$A$10999=A29,$I$7:$I$10999),2)=I29,SMALL(IF($A$7:$A$10999=A29,$I$7:$I$10999),2),IF(SMALL(IF($A$7:$A$10999=A29,$I$7:$I$10999),3)=I29,SMALL(IF($A$7:$A$10999=A29,$I$7:$I$10999),3),""))))) -> 
Y30: =IF(A30="","",IF(E30="to be placed","",IF(MIN(IF($A$7:$A$10999=A30,$I$7:$I$10999))=I30,MIN(IF($A$7:$A$10999=A30,$I$7:$I$10999)),""))) ->  | AB30: =IF($A30="","",IF($E30="to be placed","",IF(MIN(IF($A$7:$A$10999=A30,$I$7:$I$10999))=I30,MIN(IF($A$7:$A$10999=A30,$I$7:$I$10999)),IF(SMALL(IF($A$7:$A$10999=A30,$I$7:$I$10999),2)=I30,SMALL(IF($A$7:$A$10999=A30,$I$7:$I$10999),2),"")))) ->  | AF30: =IF($A30="","",IF($E30="to be placed","",IF(MIN(IF($A$7:$A$10999=A30,$I$7:$I$10999))=I30,MIN(IF($A$7:$A$10999=A30,$I$7:$I$10999)),IF(SMALL(IF($A$7:$A$10999=A30,$I$7:$I$10999),2)=I30,SMALL(IF($A$7:$A$10999=A30,$I$7:$I$10999),2),IF(SMALL(IF($A$7:$A$10999=A30,$I$7:$I$10999),3)=I30,SMALL(IF($A$7:$A$10999=A30,$I$7:$I$10999),3),""))))) -> 
Y31: =IF(A31="","",IF(E31="to be placed","",IF(MIN(IF($A$7:$A$10999=A31,$I$7:$I$10999))=I31,MIN(IF($A$7:$A$10999=A31,$I$7:$I$10999)),""))) ->  | AB31: =IF($A31="","",IF($E31="to be placed","",IF(MIN(IF($A$7:$A$10999=A31,$I$7:$I$10999))=I31,MIN(IF($A$7:$A$10999=A31,$I$7:$I$10999)),IF(SMALL(IF($A$7:$A$10999=A31,$I$7:$I$10999),2)=I31,SMALL(IF($A$7:$A$10999=A31,$I$7:$I$10999),2),"")))) ->  | AF31: =IF($A31="","",IF($E31="to be placed","",IF(MIN(IF($A$7:$A$10999=A31,$I$7:$I$10999))=I31,MIN(IF($A$7:$A$10999=A31,$I$7:$I$10999)),IF(SMALL(IF($A$7:$A$10999=A31,$I$7:$I$10999),2)=I31,SMALL(IF($A$7:$A$10999=A31,$I$7:$I$10999),2),IF(SMALL(IF($A$7:$A$10999=A31,$I$7:$I$10999),3)=I31,SMALL(IF($A$7:$A$10999=A31,$I$7:$I$10999),3),""))))) -> 
Y32: =IF(A32="","",IF(E32="to be placed","",IF(MIN(IF($A$7:$A$10999=A32,$I$7:$I$10999))=I32,MIN(IF($A$7:$A$10999=A32,$I$7:$I$10999)),""))) ->  | AB32: =IF($A32="","",IF($E32="to be placed","",IF(MIN(IF($A$7:$A$10999=A32,$I$7:$I$10999))=I32,MIN(IF($A$7:$A$10999=A32,$I$7:$I$10999)),IF(SMALL(IF($A$7:$A$10999=A32,$I$7:$I$10999),2)=I32,SMALL(IF($A$7:$A$10999=A32,$I$7:$I$10999),2),"")))) ->  | AF32: =IF($A32="","",IF($E32="to be placed","",IF(MIN(IF($A$7:$A$10999=A32,$I$7:$I$10999))=I32,MIN(IF($A$7:$A$10999=A32,$I$7:$I$10999)),IF(SMALL(IF($A$7:$A$10999=A32,$I$7:$I$10999),2)=I32,SMALL(IF($A$7:$A$10999=A32,$I$7:$I$10999),2),IF(SMALL(IF($A$7:$A$10999=A32,$I$7:$I$10999),3)=I32,SMALL(IF($A$7:$A$10999=A32,$I$7:$I$10999),3),""))))) -> 
Y33: =IF(A33="","",IF(E33="to be placed","",IF(MIN(IF($A$7:$A$10999=A33,$I$7:$I$10999))=I33,MIN(IF($A$7:$A$10999=A33,$I$7:$I$10999)),""))) ->  | AB33: =IF($A33="","",IF($E33="to be placed","",IF(MIN(IF($A$7:$A$10999=A33,$I$7:$I$10999))=I33,MIN(IF($A$7:$A$10999=A33,$I$7:$I$10999)),IF(SMALL(IF($A$7:$A$10999=A33,$I$7:$I$10999),2)=I33,SMALL(IF($A$7:$A$10999=A33,$I$7:$I$10999),2),"")))) ->  | AF33: =IF($A33="","",IF($E33="to be placed","",IF(MIN(IF($A$7:$A$10999=A33,$I$7:$I$10999))=I33,MIN(IF($A$7:$A$10999=A33,$I$7:$I$10999)),IF(SMALL(IF($A$7:$A$10999=A33,$I$7:$I$10999),2)=I33,SMALL(IF($A$7:$A$10999=A33,$I$7:$I$10999),2),IF(SMALL(IF($A$7:$A$10999=A33,$I$7:$I$10999),3)=I33,SMALL(IF($A$7:$A$10999=A33,$I$7:$I$10999),3),""))))) -> 
Y34: =IF(A34="","",IF(E34="to be placed","",IF(MIN(IF($A$7:$A$10999=A34,$I$7:$I$10999))=I34,MIN(IF($A$7:$A$10999=A34,$I$7:$I$10999)),""))) ->  | AB34: =IF($A34="","",IF($E34="to be placed","",IF(MIN(IF($A$7:$A$10999=A34,$I$7:$I$10999))=I34,MIN(IF($A$7:$A$10999=A34,$I$7:$I$10999)),IF(SMALL(IF($A$7:$A$10999=A34,$I$7:$I$10999),2)=I34,SMALL(IF($A$7:$A$10999=A34,$I$7:$I$10999),2),"")))) ->  | AF34: =IF($A34="","",IF($E34="to be placed","",IF(MIN(IF($A$7:$A$10999=A34,$I$7:$I$10999))=I34,MIN(IF($A$7:$A$10999=A34,$I$7:$I$10999)),IF(SMALL(IF($A$7:$A$10999=A34,$I$7:$I$10999),2)=I34,SMALL(IF($A$7:$A$10999=A34,$I$7:$I$10999),2),IF(SMALL(IF($A$7:$A$10999=A34,$I$7:$I$10999),3)=I34,SMALL(IF($A$7:$A$10999=A34,$I$7:$I$10999),3),""))))) -> 
Y35: =IF(A35="","",IF(E35="to be placed","",IF(MIN(IF($A$7:$A$10999=A35,$I$7:$I$10999))=I35,MIN(IF($A$7:$A$10999=A35,$I$7:$I$10999)),""))) ->  | AB35: =IF($A35="","",IF($E35="to be placed","",IF(MIN(IF($A$7:$A$10999=A35,$I$7:$I$10999))=I35,MIN(IF($A$7:$A$10999=A35,$I$7:$I$10999)),IF(SMALL(IF($A$7:$A$10999=A35,$I$7:$I$10999),2)=I35,SMALL(IF($A$7:$A$10999=A35,$I$7:$I$10999),2),"")))) ->  | AF35: =IF($A35="","",IF($E35="to be placed","",IF(MIN(IF($A$7:$A$10999=A35,$I$7:$I$10999))=I35,MIN(IF($A$7:$A$10999=A35,$I$7:$I$10999)),IF(SMALL(IF($A$7:$A$10999=A35,$I$7:$I$10999),2)=I35,SMALL(IF($A$7:$A$10999=A35,$I$7:$I$10999),2),IF(SMALL(IF($A$7:$A$10999=A35,$I$7:$I$10999),3)=I35,SMALL(IF($A$7:$A$10999=A35,$I$7:$I$10999),3),""))))) -> 
Y36: =IF(A36="","",IF(E36="to be placed","",IF(MIN(IF($A$7:$A$10999=A36,$I$7:$I$10999))=I36,MIN(IF($A$7:$A$10999=A36,$I$7:$I$10999)),""))) ->  | AB36: =IF($A36="","",IF($E36="to be placed","",IF(MIN(IF($A$7:$A$10999=A36,$I$7:$I$10999))=I36,MIN(IF($A$7:$A$10999=A36,$I$7:$I$10999)),IF(SMALL(IF($A$7:$A$10999=A36,$I$7:$I$10999),2)=I36,SMALL(IF($A$7:$A$10999=A36,$I$7:$I$10999),2),"")))) ->  | AF36: =IF($A36="","",IF($E36="to be placed","",IF(MIN(IF($A$7:$A$10999=A36,$I$7:$I$10999))=I36,MIN(IF($A$7:$A$10999=A36,$I$7:$I$10999)),IF(SMALL(IF($A$7:$A$10999=A36,$I$7:$I$10999),2)=I36,SMALL(IF($A$7:$A$10999=A36,$I$7:$I$10999),2),IF(SMALL(IF($A$7:$A$10999=A36,$I$7:$I$10999),3)=I36,SMALL(IF($A$7:$A$10999=A36,$I$7:$I$10999),3),""))))) -> 
Y37: =IF(A37="","",IF(E37="to be placed","",IF(MIN(IF($A$7:$A$10999=A37,$I$7:$I$10999))=I37,MIN(IF($A$7:$A$10999=A37,$I$7:$I$10999)),""))) ->  | AB37: =IF($A37="","",IF($E37="to be placed","",IF(MIN(IF($A$7:$A$10999=A37,$I$7:$I$10999))=I37,MIN(IF($A$7:$A$10999=A37,$I$7:$I$10999)),IF(SMALL(IF($A$7:$A$10999=A37,$I$7:$I$10999),2)=I37,SMALL(IF($A$7:$A$10999=A37,$I$7:$I$10999),2),"")))) ->  | AF37: =IF($A37="","",IF($E37="to be placed","",IF(MIN(IF($A$7:$A$10999=A37,$I$7:$I$10999))=I37,MIN(IF($A$7:$A$10999=A37,$I$7:$I$10999)),IF(SMALL(IF($A$7:$A$10999=A37,$I$7:$I$10999),2)=I37,SMALL(IF($A$7:$A$10999=A37,$I$7:$I$10999),2),IF(SMALL(IF($A$7:$A$10999=A37,$I$7:$I$10999),3)=I37,SMALL(IF($A$7:$A$10999=A37,$I$7:$I$10999),3),""))))) -> 
Y38: =IF(A38="","",IF(E38="to be placed","",IF(MIN(IF($A$7:$A$10999=A38,$I$7:$I$10999))=I38,MIN(IF($A$7:$A$10999=A38,$I$7:$I$10999)),""))) ->  | AB38: =IF($A38="","",IF($E38="to be placed","",IF(MIN(IF($A$7:$A$10999=A38,$I$7:$I$10999))=I38,MIN(IF($A$7:$A$10999=A38,$I$7:$I$10999)),IF(SMALL(IF($A$7:$A$10999=A38,$I$7:$I$10999),2)=I38,SMALL(IF($A$7:$A$10999=A38,$I$7:$I$10999),2),"")))) ->  | AF38: =IF($A38="","",IF($E38="to be placed","",IF(MIN(IF($A$7:$A$10999=A38,$I$7:$I$10999))=I38,MIN(IF($A$7:$A$10999=A38,$I$7:$I$10999)),IF(SMALL(IF($A$7:$A$10999=A38,$I$7:$I$10999),2)=I38,SMALL(IF($A$7:$A$10999=A38,$I$7:$I$10999),2),IF(SMALL(IF($A$7:$A$10999=A38,$I$7:$I$10999),3)=I38,SMALL(IF($A$7:$A$10999=A38,$I$7:$I$10999),3),""))))) -> 
Y39: =IF(A39="","",IF(E39="to be placed","",IF(MIN(IF($A$7:$A$10999=A39,$I$7:$I$10999))=I39,MIN(IF($A$7:$A$10999=A39,$I$7:$I$10999)),""))) ->  | AB39: =IF($A39="","",IF($E39="to be placed","",IF(MIN(IF($A$7:$A$10999=A39,$I$7:$I$10999))=I39,MIN(IF($A$7:$A$10999=A39,$I$7:$I$10999)),IF(SMALL(IF($A$7:$A$10999=A39,$I$7:$I$10999),2)=I39,SMALL(IF($A$7:$A$10999=A39,$I$7:$I$10999),2),"")))) ->  | AF39: =IF($A39="","",IF($E39="to be placed","",IF(MIN(IF($A$7:$A$10999=A39,$I$7:$I$10999))=I39,MIN(IF($A$7:$A$10999=A39,$I$7:$I$10999)),IF(SMALL(IF($A$7:$A$10999=A39,$I$7:$I$10999),2)=I39,SMALL(IF($A$7:$A$10999=A39,$I$7:$I$10999),2),IF(SMALL(IF($A$7:$A$10999=A39,$I$7:$I$10999),3)=I39,SMALL(IF($A$7:$A$10999=A39,$I$7:$I$10999),3),""))))) -> 
Y40: =IF(A40="","",IF(E40="to be placed","",IF(MIN(IF($A$7:$A$10999=A40,$I$7:$I$10999))=I40,MIN(IF($A$7:$A$10999=A40,$I$7:$I$10999)),""))) ->  | AB40: =IF($A40="","",IF($E40="to be placed","",IF(MIN(IF($A$7:$A$10999=A40,$I$7:$I$10999))=I40,MIN(IF($A$7:$A$10999=A40,$I$7:$I$10999)),IF(SMALL(IF($A$7:$A$10999=A40,$I$7:$I$10999),2)=I40,SMALL(IF($A$7:$A$10999=A40,$I$7:$I$10999),2),"")))) ->  | AF40: =IF($A40="","",IF($E40="to be placed","",IF(MIN(IF($A$7:$A$10999=A40,$I$7:$I$10999))=I40,MIN(IF($A$7:$A$10999=A40,$I$7:$I$10999)),IF(SMALL(IF($A$7:$A$10999=A40,$I$7:$I$10999),2)=I40,SMALL(IF($A$7:$A$10999=A40,$I$7:$I$10999),2),IF(SMALL(IF($A$7:$A$10999=A40,$I$7:$I$10999),3)=I40,SMALL(IF($A$7:$A$10999=A40,$I$7:$I$10999),3),""))))) -> 
Y41: =IF(A41="","",IF(E41="to be placed","",IF(MIN(IF($A$7:$A$10999=A41,$I$7:$I$10999))=I41,MIN(IF($A$7:$A$10999=A41,$I$7:$I$10999)),""))) ->  | AB41: =IF($A41="","",IF($E41="to be placed","",IF(MIN(IF($A$7:$A$10999=A41,$I$7:$I$10999))=I41,MIN(IF($A$7:$A$10999=A41,$I$7:$I$10999)),IF(SMALL(IF($A$7:$A$10999=A41,$I$7:$I$10999),2)=I41,SMALL(IF($A$7:$A$10999=A41,$I$7:$I$10999),2),"")))) ->  | AF41: =IF($A41="","",IF($E41="to be placed","",IF(MIN(IF($A$7:$A$10999=A41,$I$7:$I$10999))=I41,MIN(IF($A$7:$A$10999=A41,$I$7:$I$10999)),IF(SMALL(IF($A$7:$A$10999=A41,$I$7:$I$10999),2)=I41,SMALL(IF($A$7:$A$10999=A41,$I$7:$I$10999),2),IF(SMALL(IF($A$7:$A$10999=A41,$I$7:$I$10999),3)=I41,SMALL(IF($A$7:$A$10999=A41,$I$7:$I$10999),3),""))))) -> 
Y42: =IF(A42="","",IF(E42="to be placed","",IF(MIN(IF($A$7:$A$10999=A42,$I$7:$I$10999))=I42,MIN(IF($A$7:$A$10999=A42,$I$7:$I$10999)),""))) ->  | AB42: =IF($A42="","",IF($E42="to be placed","",IF(MIN(IF($A$7:$A$10999=A42,$I$7:$I$10999))=I42,MIN(IF($A$7:$A$10999=A42,$I$7:$I$10999)),IF(SMALL(IF($A$7:$A$10999=A42,$I$7:$I$10999),2)=I42,SMALL(IF($A$7:$A$10999=A42,$I$7:$I$10999),2),"")))) ->  | AF42: =IF($A42="","",IF($E42="to be placed","",IF(MIN(IF($A$7:$A$10999=A42,$I$7:$I$10999))=I42,MIN(IF($A$7:$A$10999=A42,$I$7:$I$10999)),IF(SMALL(IF($A$7:$A$10999=A42,$I$7:$I$10999),2)=I42,SMALL(IF($A$7:$A$10999=A42,$I$7:$I$10999),2),IF(SMALL(IF($A$7:$A$10999=A42,$I$7:$I$10999),3)=I42,SMALL(IF($A$7:$A$10999=A42,$I$7:$I$10999),3),""))))) -> 
Y43: =IF(A43="","",IF(E43="to be placed","",IF(MIN(IF($A$7:$A$10999=A43,$I$7:$I$10999))=I43,MIN(IF($A$7:$A$10999=A43,$I$7:$I$10999)),""))) ->  | AB43: =IF($A43="","",IF($E43="to be placed","",IF(MIN(IF($A$7:$A$10999=A43,$I$7:$I$10999))=I43,MIN(IF($A$7:$A$10999=A43,$I$7:$I$10999)),IF(SMALL(IF($A$7:$A$10999=A43,$I$7:$I$10999),2)=I43,SMALL(IF($A$7:$A$10999=A43,$I$7:$I$10999),2),"")))) ->  | AF43: =IF($A43="","",IF($E43="to be placed","",IF(MIN(IF($A$7:$A$10999=A43,$I$7:$I$10999))=I43,MIN(IF($A$7:$A$10999=A43,$I$7:$I$10999)),IF(SMALL(IF($A$7:$A$10999=A43,$I$7:$I$10999),2)=I43,SMALL(IF($A$7:$A$10999=A43,$I$7:$I$10999),2),IF(SMALL(IF($A$7:$A$10999=A43,$I$7:$I$10999),3)=I43,SMALL(IF($A$7:$A$10999=A43,$I$7:$I$10999),3),""))))) -> 
Y44: =IF(A44="","",IF(E44="to be placed","",IF(MIN(IF($A$7:$A$10999=A44,$I$7:$I$10999))=I44,MIN(IF($A$7:$A$10999=A44,$I$7:$I$10999)),""))) ->  | AB44: =IF($A44="","",IF($E44="to be placed","",IF(MIN(IF($A$7:$A$10999=A44,$I$7:$I$10999))=I44,MIN(IF($A$7:$A$10999=A44,$I$7:$I$10999)),IF(SMALL(IF($A$7:$A$10999=A44,$I$7:$I$10999),2)=I44,SMALL(IF($A$7:$A$10999=A44,$I$7:$I$10999),2),"")))) ->  | AF44: =IF($A44="","",IF($E44="to be placed","",IF(MIN(IF($A$7:$A$10999=A44,$I$7:$I$10999))=I44,MIN(IF($A$7:$A$10999=A44,$I$7:$I$10999)),IF(SMALL(IF($A$7:$A$10999=A44,$I$7:$I$10999),2)=I44,SMALL(IF($A$7:$A$10999=A44,$I$7:$I$10999),2),IF(SMALL(IF($A$7:$A$10999=A44,$I$7:$I$10999),3)=I44,SMALL(IF($A$7:$A$10999=A44,$I$7:$I$10999),3),""))))) -> 
Y45: =IF(A45="","",IF(E45="to be placed","",IF(MIN(IF($A$7:$A$10999=A45,$I$7:$I$10999))=I45,MIN(IF($A$7:$A$10999=A45,$I$7:$I$10999)),""))) ->  | AB45: =IF($A45="","",IF($E45="to be placed","",IF(MIN(IF($A$7:$A$10999=A45,$I$7:$I$10999))=I45,MIN(IF($A$7:$A$10999=A45,$I$7:$I$10999)),IF(SMALL(IF($A$7:$A$10999=A45,$I$7:$I$10999),2)=I45,SMALL(IF($A$7:$A$10999=A45,$I$7:$I$10999),2),"")))) ->  | AF45: =IF($A45="","",IF($E45="to be placed","",IF(MIN(IF($A$7:$A$10999=A45,$I$7:$I$10999))=I45,MIN(IF($A$7:$A$10999=A45,$I$7:$I$10999)),IF(SMALL(IF($A$7:$A$10999=A45,$I$7:$I$10999),2)=I45,SMALL(IF($A$7:$A$10999=A45,$I$7:$I$10999),2),IF(SMALL(IF($A$7:$A$10999=A45,$I$7:$I$10999),3)=I45,SMALL(IF($A$7:$A$10999=A45,$I$7:$I$10999),3),""))))) -> 
Y46: =IF(A46="","",IF(E46="to be placed","",IF(MIN(IF($A$7:$A$10999=A46,$I$7:$I$10999))=I46,MIN(IF($A$7:$A$10999=A46,$I$7:$I$10999)),""))) ->  | AB46: =IF($A46="","",IF($E46="to be placed","",IF(MIN(IF($A$7:$A$10999=A46,$I$7:$I$10999))=I46,MIN(IF($A$7:$A$10999=A46,$I$7:$I$10999)),IF(SMALL(IF($A$7:$A$10999=A46,$I$7:$I$10999),2)=I46,SMALL(IF($A$7:$A$10999=A46,$I$7:$I$10999),2),"")))) ->  | AF46: =IF($A46="","",IF($E46="to be placed","",IF(MIN(IF($A$7:$A$10999=A46,$I$7:$I$10999))=I46,MIN(IF($A$7:$A$10999=A46,$I$7:$I$10999)),IF(SMALL(IF($A$7:$A$10999=A46,$I$7:$I$10999),2)=I46,SMALL(IF($A$7:$A$10999=A46,$I$7:$I$10999),2),IF(SMALL(IF($A$7:$A$10999=A46,$I$7:$I$10999),3)=I46,SMALL(IF($A$7:$A$10999=A46,$I$7:$I$10999),3),""))))) -> 
Y47: =IF(A47="","",IF(E47="to be placed","",IF(MIN(IF($A$7:$A$10999=A47,$I$7:$I$10999))=I47,MIN(IF($A$7:$A$10999=A47,$I$7:$I$10999)),""))) ->  | AB47: =IF($A47="","",IF($E47="to be placed","",IF(MIN(IF($A$7:$A$10999=A47,$I$7:$I$10999))=I47,MIN(IF($A$7:$A$10999=A47,$I$7:$I$10999)),IF(SMALL(IF($A$7:$A$10999=A47,$I$7:$I$10999),2)=I47,SMALL(IF($A$7:$A$10999=A47,$I$7:$I$10999),2),"")))) ->  | AF47: =IF($A47="","",IF($E47="to be placed","",IF(MIN(IF($A$7:$A$10999=A47,$I$7:$I$10999))=I47,MIN(IF($A$7:$A$10999=A47,$I$7:$I$10999)),IF(SMALL(IF($A$7:$A$10999=A47,$I$7:$I$10999),2)=I47,SMALL(IF($A$7:$A$10999=A47,$I$7:$I$10999),2),IF(SMALL(IF($A$7:$A$10999=A47,$I$7:$I$10999),3)=I47,SMALL(IF($A$7:$A$10999=A47,$I$7:$I$10999),3),""))))) -> 
Y48: =IF(A48="","",IF(E48="to be placed","",IF(MIN(IF($A$7:$A$10999=A48,$I$7:$I$10999))=I48,MIN(IF($A$7:$A$10999=A48,$I$7:$I$10999)),""))) ->  | AB48: =IF($A48="","",IF($E48="to be placed","",IF(MIN(IF($A$7:$A$10999=A48,$I$7:$I$10999))=I48,MIN(IF($A$7:$A$10999=A48,$I$7:$I$10999)),IF(SMALL(IF($A$7:$A$10999=A48,$I$7:$I$10999),2)=I48,SMALL(IF($A$7:$A$10999=A48,$I$7:$I$10999),2),"")))) ->  | AF48: =IF($A48="","",IF($E48="to be placed","",IF(MIN(IF($A$7:$A$10999=A48,$I$7:$I$10999))=I48,MIN(IF($A$7:$A$10999=A48,$I$7:$I$10999)),IF(SMALL(IF($A$7:$A$10999=A48,$I$7:$I$10999),2)=I48,SMALL(IF($A$7:$A$10999=A48,$I$7:$I$10999),2),IF(SMALL(IF($A$7:$A$10999=A48,$I$7:$I$10999),3)=I48,SMALL(IF($A$7:$A$10999=A48,$I$7:$I$10999),3),""))))) -> 
Y49: =IF(A49="","",IF(E49="to be placed","",IF(MIN(IF($A$7:$A$10999=A49,$I$7:$I$10999))=I49,MIN(IF($A$7:$A$10999=A49,$I$7:$I$10999)),""))) ->  | AB49: =IF($A49="","",IF($E49="to be placed","",IF(MIN(IF($A$7:$A$10999=A49,$I$7:$I$10999))=I49,MIN(IF($A$7:$A$10999=A49,$I$7:$I$10999)),IF(SMALL(IF($A$7:$A$10999=A49,$I$7:$I$10999),2)=I49,SMALL(IF($A$7:$A$10999=A49,$I$7:$I$10999),2),"")))) ->  | AF49: =IF($A49="","",IF($E49="to be placed","",IF(MIN(IF($A$7:$A$10999=A49,$I$7:$I$10999))=I49,MIN(IF($A$7:$A$10999=A49,$I$7:$I$10999)),IF(SMALL(IF($A$7:$A$10999=A49,$I$7:$I$10999),2)=I49,SMALL(IF($A$7:$A$10999=A49,$I$7:$I$10999),2),IF(SMALL(IF($A$7:$A$10999=A49,$I$7:$I$10999),3)=I49,SMALL(IF($A$7:$A$10999=A49,$I$7:$I$10999),3),""))))) -> 
Y50: =IF(A50="","",IF(E50="to be placed","",IF(MIN(IF($A$7:$A$10999=A50,$I$7:$I$10999))=I50,MIN(IF($A$7:$A$10999=A50,$I$7:$I$10999)),""))) ->  | AB50: =IF($A50="","",IF($E50="to be placed","",IF(MIN(IF($A$7:$A$10999=A50,$I$7:$I$10999))=I50,MIN(IF($A$7:$A$10999=A50,$I$7:$I$10999)),IF(SMALL(IF($A$7:$A$10999=A50,$I$7:$I$10999),2)=I50,SMALL(IF($A$7:$A$10999=A50,$I$7:$I$10999),2),"")))) ->  | AF50: =IF($A50="","",IF($E50="to be placed","",IF(MIN(IF($A$7:$A$10999=A50,$I$7:$I$10999))=I50,MIN(IF($A$7:$A$10999=A50,$I$7:$I$10999)),IF(SMALL(IF($A$7:$A$10999=A50,$I$7:$I$10999),2)=I50,SMALL(IF($A$7:$A$10999=A50,$I$7:$I$10999),2),IF(SMALL(IF($A$7:$A$10999=A50,$I$7:$I$10999),3)=I50,SMALL(IF($A$7:$A$10999=A50,$I$7:$I$10999),3),""))))) -> 
Y51: =IF(A51="","",IF(E51="to be placed","",IF(MIN(IF($A$7:$A$10999=A51,$I$7:$I$10999))=I51,MIN(IF($A$7:$A$10999=A51,$I$7:$I$10999)),""))) ->  | AB51: =IF($A51="","",IF($E51="to be placed","",IF(MIN(IF($A$7:$A$10999=A51,$I$7:$I$10999))=I51,MIN(IF($A$7:$A$10999=A51,$I$7:$I$10999)),IF(SMALL(IF($A$7:$A$10999=A51,$I$7:$I$10999),2)=I51,SMALL(IF($A$7:$A$10999=A51,$I$7:$I$10999),2),"")))) ->  | AF51: =IF($A51="","",IF($E51="to be placed","",IF(MIN(IF($A$7:$A$10999=A51,$I$7:$I$10999))=I51,MIN(IF($A$7:$A$10999=A51,$I$7:$I$10999)),IF(SMALL(IF($A$7:$A$10999=A51,$I$7:$I$10999),2)=I51,SMALL(IF($A$7:$A$10999=A51,$I$7:$I$10999),2),IF(SMALL(IF($A$7:$A$10999=A51,$I$7:$I$10999),3)=I51,SMALL(IF($A$7:$A$10999=A51,$I$7:$I$10999),3),""))))) -> 
Y52: =IF(A52="","",IF(E52="to be placed","",IF(MIN(IF($A$7:$A$10999=A52,$I$7:$I$10999))=I52,MIN(IF($A$7:$A$10999=A52,$I$7:$I$10999)),""))) ->  | AB52: =IF($A52="","",IF($E52="to be placed","",IF(MIN(IF($A$7:$A$10999=A52,$I$7:$I$10999))=I52,MIN(IF($A$7:$A$10999=A52,$I$7:$I$10999)),IF(SMALL(IF($A$7:$A$10999=A52,$I$7:$I$10999),2)=I52,SMALL(IF($A$7:$A$10999=A52,$I$7:$I$10999),2),"")))) ->  | AF52: =IF($A52="","",IF($E52="to be placed","",IF(MIN(IF($A$7:$A$10999=A52,$I$7:$I$10999))=I52,MIN(IF($A$7:$A$10999=A52,$I$7:$I$10999)),IF(SMALL(IF($A$7:$A$10999=A52,$I$7:$I$10999),2)=I52,SMALL(IF($A$7:$A$10999=A52,$I$7:$I$10999),2),IF(SMALL(IF($A$7:$A$10999=A52,$I$7:$I$10999),3)=I52,SMALL(IF($A$7:$A$10999=A52,$I$7:$I$10999),3),""))))) -> 
Y53: =IF(A53="","",IF(E53="to be placed","",IF(MIN(IF($A$7:$A$10999=A53,$I$7:$I$10999))=I53,MIN(IF($A$7:$A$10999=A53,$I$7:$I$10999)),""))) ->  | AB53: =IF($A53="","",IF($E53="to be placed","",IF(MIN(IF($A$7:$A$10999=A53,$I$7:$I$10999))=I53,MIN(IF($A$7:$A$10999=A53,$I$7:$I$10999)),IF(SMALL(IF($A$7:$A$10999=A53,$I$7:$I$10999),2)=I53,SMALL(IF($A$7:$A$10999=A53,$I$7:$I$10999),2),"")))) ->  | AF53: =IF($A53="","",IF($E53="to be placed","",IF(MIN(IF($A$7:$A$10999=A53,$I$7:$I$10999))=I53,MIN(IF($A$7:$A$10999=A53,$I$7:$I$10999)),IF(SMALL(IF($A$7:$A$10999=A53,$I$7:$I$10999),2)=I53,SMALL(IF($A$7:$A$10999=A53,$I$7:$I$10999),2),IF(SMALL(IF($A$7:$A$10999=A53,$I$7:$I$10999),3)=I53,SMALL(IF($A$7:$A$10999=A53,$I$7:$I$10999),3),""))))) -> 
Y54: =IF(A54="","",IF(E54="to be placed","",IF(MIN(IF($A$7:$A$10999=A54,$I$7:$I$10999))=I54,MIN(IF($A$7:$A$10999=A54,$I$7:$I$10999)),""))) ->  | AB54: =IF($A54="","",IF($E54="to be placed","",IF(MIN(IF($A$7:$A$10999=A54,$I$7:$I$10999))=I54,MIN(IF($A$7:$A$10999=A54,$I$7:$I$10999)),IF(SMALL(IF($A$7:$A$10999=A54,$I$7:$I$10999),2)=I54,SMALL(IF($A$7:$A$10999=A54,$I$7:$I$10999),2),"")))) ->  | AF54: =IF($A54="","",IF($E54="to be placed","",IF(MIN(IF($A$7:$A$10999=A54,$I$7:$I$10999))=I54,MIN(IF($A$7:$A$10999=A54,$I$7:$I$10999)),IF(SMALL(IF($A$7:$A$10999=A54,$I$7:$I$10999),2)=I54,SMALL(IF($A$7:$A$10999=A54,$I$7:$I$10999),2),IF(SMALL(IF($A$7:$A$10999=A54,$I$7:$I$10999),3)=I54,SMALL(IF($A$7:$A$10999=A54,$I$7:$I$10999),3),""))))) -> 
Y55: =IF(A55="","",IF(E55="to be placed","",IF(MIN(IF($A$7:$A$10999=A55,$I$7:$I$10999))=I55,MIN(IF($A$7:$A$10999=A55,$I$7:$I$10999)),""))) ->  | AB55: =IF($A55="","",IF($E55="to be placed","",IF(MIN(IF($A$7:$A$10999=A55,$I$7:$I$10999))=I55,MIN(IF($A$7:$A$10999=A55,$I$7:$I$10999)),IF(SMALL(IF($A$7:$A$10999=A55,$I$7:$I$10999),2)=I55,SMALL(IF($A$7:$A$10999=A55,$I$7:$I$10999),2),"")))) ->  | AF55: =IF($A55="","",IF($E55="to be placed","",IF(MIN(IF($A$7:$A$10999=A55,$I$7:$I$10999))=I55,MIN(IF($A$7:$A$10999=A55,$I$7:$I$10999)),IF(SMALL(IF($A$7:$A$10999=A55,$I$7:$I$10999),2)=I55,SMALL(IF($A$7:$A$10999=A55,$I$7:$I$10999),2),IF(SMALL(IF($A$7:$A$10999=A55,$I$7:$I$10999),3)=I55,SMALL(IF($A$7:$A$10999=A55,$I$7:$I$10999),3),""))))) -> 
Y56: =IF(A56="","",IF(E56="to be placed","",IF(MIN(IF($A$7:$A$10999=A56,$I$7:$I$10999))=I56,MIN(IF($A$7:$A$10999=A56,$I$7:$I$10999)),""))) ->  | AB56: =IF($A56="","",IF($E56="to be placed","",IF(MIN(IF($A$7:$A$10999=A56,$I$7:$I$10999))=I56,MIN(IF($A$7:$A$10999=A56,$I$7:$I$10999)),IF(SMALL(IF($A$7:$A$10999=A56,$I$7:$I$10999),2)=I56,SMALL(IF($A$7:$A$10999=A56,$I$7:$I$10999),2),"")))) ->  | AF56: =IF($A56="","",IF($E56="to be placed","",IF(MIN(IF($A$7:$A$10999=A56,$I$7:$I$10999))=I56,MIN(IF($A$7:$A$10999=A56,$I$7:$I$10999)),IF(SMALL(IF($A$7:$A$10999=A56,$I$7:$I$10999),2)=I56,SMALL(IF($A$7:$A$10999=A56,$I$7:$I$10999),2),IF(SMALL(IF($A$7:$A$10999=A56,$I$7:$I$10999),3)=I56,SMALL(IF($A$7:$A$10999=A56,$I$7:$I$10999),3),""))))) -> 
Y57: =IF(A57="","",IF(E57="to be placed","",IF(MIN(IF($A$7:$A$10999=A57,$I$7:$I$10999))=I57,MIN(IF($A$7:$A$10999=A57,$I$7:$I$10999)),""))) ->  | AB57: =IF($A57="","",IF($E57="to be placed","",IF(MIN(IF($A$7:$A$10999=A57,$I$7:$I$10999))=I57,MIN(IF($A$7:$A$10999=A57,$I$7:$I$10999)),IF(SMALL(IF($A$7:$A$10999=A57,$I$7:$I$10999),2)=I57,SMALL(IF($A$7:$A$10999=A57,$I$7:$I$10999),2),"")))) ->  | AF57: =IF($A57="","",IF($E57="to be placed","",IF(MIN(IF($A$7:$A$10999=A57,$I$7:$I$10999))=I57,MIN(IF($A$7:$A$10999=A57,$I$7:$I$10999)),IF(SMALL(IF($A$7:$A$10999=A57,$I$7:$I$10999),2)=I57,SMALL(IF($A$7:$A$10999=A57,$I$7:$I$10999),2),IF(SMALL(IF($A$7:$A$10999=A57,$I$7:$I$10999),3)=I57,SMALL(IF($A$7:$A$10999=A57,$I$7:$I$10999),3),""))))) -> 
Y58: =IF(A58="","",IF(E58="to be placed","",IF(MIN(IF($A$7:$A$10999=A58,$I$7:$I$10999))=I58,MIN(IF($A$7:$A$10999=A58,$I$7:$I$10999)),""))) ->  | AB58: =IF($A58="","",IF($E58="to be placed","",IF(MIN(IF($A$7:$A$10999=A58,$I$7:$I$10999))=I58,MIN(IF($A$7:$A$10999=A58,$I$7:$I$10999)),IF(SMALL(IF($A$7:$A$10999=A58,$I$7:$I$10999),2)=I58,SMALL(IF($A$7:$A$10999=A58,$I$7:$I$10999),2),"")))) ->  | AF58: =IF($A58="","",IF($E58="to be placed","",IF(MIN(IF($A$7:$A$10999=A58,$I$7:$I$10999))=I58,MIN(IF($A$7:$A$10999=A58,$I$7:$I$10999)),IF(SMALL(IF($A$7:$A$10999=A58,$I$7:$I$10999),2)=I58,SMALL(IF($A$7:$A$10999=A58,$I$7:$I$10999),2),IF(SMALL(IF($A$7:$A$10999=A58,$I$7:$I$10999),3)=I58,SMALL(IF($A$7:$A$10999=A58,$I$7:$I$10999),3),""))))) -> 
Y59: =IF(A59="","",IF(E59="to be placed","",IF(MIN(IF($A$7:$A$10999=A59,$I$7:$I$10999))=I59,MIN(IF($A$7:$A$10999=A59,$I$7:$I$10999)),""))) ->  | AB59: =IF($A59="","",IF($E59="to be placed","",IF(MIN(IF($A$7:$A$10999=A59,$I$7:$I$10999))=I59,MIN(IF($A$7:$A$10999=A59,$I$7:$I$10999)),IF(SMALL(IF($A$7:$A$10999=A59,$I$7:$I$10999),2)=I59,SMALL(IF($A$7:$A$10999=A59,$I$7:$I$10999),2),"")))) ->  | AF59: =IF($A59="","",IF($E59="to be placed","",IF(MIN(IF($A$7:$A$10999=A59,$I$7:$I$10999))=I59,MIN(IF($A$7:$A$10999=A59,$I$7:$I$10999)),IF(SMALL(IF($A$7:$A$10999=A59,$I$7:$I$10999),2)=I59,SMALL(IF($A$7:$A$10999=A59,$I$7:$I$10999),2),IF(SMALL(IF($A$7:$A$10999=A59,$I$7:$I$10999),3)=I59,SMALL(IF($A$7:$A$10999=A59,$I$7:$I$10999),3),""))))) -> 
Y60: =IF(A60="","",IF(E60="to be placed","",IF(MIN(IF($A$7:$A$10999=A60,$I$7:$I$10999))=I60,MIN(IF($A$7:$A$10999=A60,$I$7:$I$10999)),""))) ->  | AB60: =IF($A60="","",IF($E60="to be placed","",IF(MIN(IF($A$7:$A$10999=A60,$I$7:$I$10999))=I60,MIN(IF($A$7:$A$10999=A60,$I$7:$I$10999)),IF(SMALL(IF($A$7:$A$10999=A60,$I$7:$I$10999),2)=I60,SMALL(IF($A$7:$A$10999=A60,$I$7:$I$10999),2),"")))) ->  | AF60: =IF($A60="","",IF($E60="to be placed","",IF(MIN(IF($A$7:$A$10999=A60,$I$7:$I$10999))=I60,MIN(IF($A$7:$A$10999=A60,$I$7:$I$10999)),IF(SMALL(IF($A$7:$A$10999=A60,$I$7:$I$10999),2)=I60,SMALL(IF($A$7:$A$10999=A60,$I$7:$I$10999),2),IF(SMALL(IF($A$7:$A$10999=A60,$I$7:$I$10999),3)=I60,SMALL(IF($A$7:$A$10999=A60,$I$7:$I$10999),3),""))))) -> 
Y61: =IF(A61="","",IF(E61="to be placed","",IF(MIN(IF($A$7:$A$10999=A61,$I$7:$I$10999))=I61,MIN(IF($A$7:$A$10999=A61,$I$7:$I$10999)),""))) ->  | AB61: =IF($A61="","",IF($E61="to be placed","",IF(MIN(IF($A$7:$A$10999=A61,$I$7:$I$10999))=I61,MIN(IF($A$7:$A$10999=A61,$I$7:$I$10999)),IF(SMALL(IF($A$7:$A$10999=A61,$I$7:$I$10999),2)=I61,SMALL(IF($A$7:$A$10999=A61,$I$7:$I$10999),2),"")))) ->  | AF61: =IF($A61="","",IF($E61="to be placed","",IF(MIN(IF($A$7:$A$10999=A61,$I$7:$I$10999))=I61,MIN(IF($A$7:$A$10999=A61,$I$7:$I$10999)),IF(SMALL(IF($A$7:$A$10999=A61,$I$7:$I$10999),2)=I61,SMALL(IF($A$7:$A$10999=A61,$I$7:$I$10999),2),IF(SMALL(IF($A$7:$A$10999=A61,$I$7:$I$10999),3)=I61,SMALL(IF($A$7:$A$10999=A61,$I$7:$I$10999),3),""))))) -> 
Y62: =IF(A62="","",IF(E62="to be placed","",IF(MIN(IF($A$7:$A$10999=A62,$I$7:$I$10999))=I62,MIN(IF($A$7:$A$10999=A62,$I$7:$I$10999)),""))) ->  | AB62: =IF($A62="","",IF($E62="to be placed","",IF(MIN(IF($A$7:$A$10999=A62,$I$7:$I$10999))=I62,MIN(IF($A$7:$A$10999=A62,$I$7:$I$10999)),IF(SMALL(IF($A$7:$A$10999=A62,$I$7:$I$10999),2)=I62,SMALL(IF($A$7:$A$10999=A62,$I$7:$I$10999),2),"")))) ->  | AF62: =IF($A62="","",IF($E62="to be placed","",IF(MIN(IF($A$7:$A$10999=A62,$I$7:$I$10999))=I62,MIN(IF($A$7:$A$10999=A62,$I$7:$I$10999)),IF(SMALL(IF($A$7:$A$10999=A62,$I$7:$I$10999),2)=I62,SMALL(IF($A$7:$A$10999=A62,$I$7:$I$10999),2),IF(SMALL(IF($A$7:$A$10999=A62,$I$7:$I$10999),3)=I62,SMALL(IF($A$7:$A$10999=A62,$I$7:$I$10999),3),""))))) -> 
Y63: =IF(A63="","",IF(E63="to be placed","",IF(MIN(IF($A$7:$A$10999=A63,$I$7:$I$10999))=I63,MIN(IF($A$7:$A$10999=A63,$I$7:$I$10999)),""))) ->  | AB63: =IF($A63="","",IF($E63="to be placed","",IF(MIN(IF($A$7:$A$10999=A63,$I$7:$I$10999))=I63,MIN(IF($A$7:$A$10999=A63,$I$7:$I$10999)),IF(SMALL(IF($A$7:$A$10999=A63,$I$7:$I$10999),2)=I63,SMALL(IF($A$7:$A$10999=A63,$I$7:$I$10999),2),"")))) ->  | AF63: =IF($A63="","",IF($E63="to be placed","",IF(MIN(IF($A$7:$A$10999=A63,$I$7:$I$10999))=I63,MIN(IF($A$7:$A$10999=A63,$I$7:$I$10999)),IF(SMALL(IF($A$7:$A$10999=A63,$I$7:$I$10999),2)=I63,SMALL(IF($A$7:$A$10999=A63,$I$7:$I$10999),2),IF(SMALL(IF($A$7:$A$10999=A63,$I$7:$I$10999),3)=I63,SMALL(IF($A$7:$A$10999=A63,$I$7:$I$10999),3),""))))) -> 
Y64: =IF(A64="","",IF(E64="to be placed","",IF(MIN(IF($A$7:$A$10999=A64,$I$7:$I$10999))=I64,MIN(IF($A$7:$A$10999=A64,$I$7:$I$10999)),""))) ->  | AB64: =IF($A64="","",IF($E64="to be placed","",IF(MIN(IF($A$7:$A$10999=A64,$I$7:$I$10999))=I64,MIN(IF($A$7:$A$10999=A64,$I$7:$I$10999)),IF(SMALL(IF($A$7:$A$10999=A64,$I$7:$I$10999),2)=I64,SMALL(IF($A$7:$A$10999=A64,$I$7:$I$10999),2),"")))) ->  | AF64: =IF($A64="","",IF($E64="to be placed","",IF(MIN(IF($A$7:$A$10999=A64,$I$7:$I$10999))=I64,MIN(IF($A$7:$A$10999=A64,$I$7:$I$10999)),IF(SMALL(IF($A$7:$A$10999=A64,$I$7:$I$10999),2)=I64,SMALL(IF($A$7:$A$10999=A64,$I$7:$I$10999),2),IF(SMALL(IF($A$7:$A$10999=A64,$I$7:$I$10999),3)=I64,SMALL(IF($A$7:$A$10999=A64,$I$7:$I$10999),3),""))))) -> 
Y65: =IF(A65="","",IF(E65="to be placed","",IF(MIN(IF($A$7:$A$10999=A65,$I$7:$I$10999))=I65,MIN(IF($A$7:$A$10999=A65,$I$7:$I$10999)),""))) ->  | AB65: =IF($A65="","",IF($E65="to be placed","",IF(MIN(IF($A$7:$A$10999=A65,$I$7:$I$10999))=I65,MIN(IF($A$7:$A$10999=A65,$I$7:$I$10999)),IF(SMALL(IF($A$7:$A$10999=A65,$I$7:$I$10999),2)=I65,SMALL(IF($A$7:$A$10999=A65,$I$7:$I$10999),2),"")))) ->  | AF65: =IF($A65="","",IF($E65="to be placed","",IF(MIN(IF($A$7:$A$10999=A65,$I$7:$I$10999))=I65,MIN(IF($A$7:$A$10999=A65,$I$7:$I$10999)),IF(SMALL(IF($A$7:$A$10999=A65,$I$7:$I$10999),2)=I65,SMALL(IF($A$7:$A$10999=A65,$I$7:$I$10999),2),IF(SMALL(IF($A$7:$A$10999=A65,$I$7:$I$10999),3)=I65,SMALL(IF($A$7:$A$10999=A65,$I$7:$I$10999),3),""))))) -> 
Y66: =IF(A66="","",IF(E66="to be placed","",IF(MIN(IF($A$7:$A$10999=A66,$I$7:$I$10999))=I66,MIN(IF($A$7:$A$10999=A66,$I$7:$I$10999)),""))) ->  | AB66: =IF($A66="","",IF($E66="to be placed","",IF(MIN(IF($A$7:$A$10999=A66,$I$7:$I$10999))=I66,MIN(IF($A$7:$A$10999=A66,$I$7:$I$10999)),IF(SMALL(IF($A$7:$A$10999=A66,$I$7:$I$10999),2)=I66,SMALL(IF($A$7:$A$10999=A66,$I$7:$I$10999),2),"")))) ->  | AF66: =IF($A66="","",IF($E66="to be placed","",IF(MIN(IF($A$7:$A$10999=A66,$I$7:$I$10999))=I66,MIN(IF($A$7:$A$10999=A66,$I$7:$I$10999)),IF(SMALL(IF($A$7:$A$10999=A66,$I$7:$I$10999),2)=I66,SMALL(IF($A$7:$A$10999=A66,$I$7:$I$10999),2),IF(SMALL(IF($A$7:$A$10999=A66,$I$7:$I$10999),3)=I66,SMALL(IF($A$7:$A$10999=A66,$I$7:$I$10999),3),""))))) -> 
Y67: =IF(A67="","",IF(E67="to be placed","",IF(MIN(IF($A$7:$A$10999=A67,$I$7:$I$10999))=I67,MIN(IF($A$7:$A$10999=A67,$I$7:$I$10999)),""))) ->  | AB67: =IF($A67="","",IF($E67="to be placed","",IF(MIN(IF($A$7:$A$10999=A67,$I$7:$I$10999))=I67,MIN(IF($A$7:$A$10999=A67,$I$7:$I$10999)),IF(SMALL(IF($A$7:$A$10999=A67,$I$7:$I$10999),2)=I67,SMALL(IF($A$7:$A$10999=A67,$I$7:$I$10999),2),"")))) ->  | AF67: =IF($A67="","",IF($E67="to be placed","",IF(MIN(IF($A$7:$A$10999=A67,$I$7:$I$10999))=I67,MIN(IF($A$7:$A$10999=A67,$I$7:$I$10999)),IF(SMALL(IF($A$7:$A$10999=A67,$I$7:$I$10999),2)=I67,SMALL(IF($A$7:$A$10999=A67,$I$7:$I$10999),2),IF(SMALL(IF($A$7:$A$10999=A67,$I$7:$I$10999),3)=I67,SMALL(IF($A$7:$A$10999=A67,$I$7:$I$10999),3),""))))) -> 
Y68: =IF(A68="","",IF(E68="to be placed","",IF(MIN(IF($A$7:$A$10999=A68,$I$7:$I$10999))=I68,MIN(IF($A$7:$A$10999=A68,$I$7:$I$10999)),""))) ->  | AB68: =IF($A68="","",IF($E68="to be placed","",IF(MIN(IF($A$7:$A$10999=A68,$I$7:$I$10999))=I68,MIN(IF($A$7:$A$10999=A68,$I$7:$I$10999)),IF(SMALL(IF($A$7:$A$10999=A68,$I$7:$I$10999),2)=I68,SMALL(IF($A$7:$A$10999=A68,$I$7:$I$10999),2),"")))) ->  | AF68: =IF($A68="","",IF($E68="to be placed","",IF(MIN(IF($A$7:$A$10999=A68,$I$7:$I$10999))=I68,MIN(IF($A$7:$A$10999=A68,$I$7:$I$10999)),IF(SMALL(IF($A$7:$A$10999=A68,$I$7:$I$10999),2)=I68,SMALL(IF($A$7:$A$10999=A68,$I$7:$I$10999),2),IF(SMALL(IF($A$7:$A$10999=A68,$I$7:$I$10999),3)=I68,SMALL(IF($A$7:$A$10999=A68,$I$7:$I$10999),3),""))))) -> 
Y69: =IF(A69="","",IF(E69="to be placed","",IF(MIN(IF($A$7:$A$10999=A69,$I$7:$I$10999))=I69,MIN(IF($A$7:$A$10999=A69,$I$7:$I$10999)),""))) ->  | AB69: =IF($A69="","",IF($E69="to be placed","",IF(MIN(IF($A$7:$A$10999=A69,$I$7:$I$10999))=I69,MIN(IF($A$7:$A$10999=A69,$I$7:$I$10999)),IF(SMALL(IF($A$7:$A$10999=A69,$I$7:$I$10999),2)=I69,SMALL(IF($A$7:$A$10999=A69,$I$7:$I$10999),2),"")))) ->  | AF69: =IF($A69="","",IF($E69="to be placed","",IF(MIN(IF($A$7:$A$10999=A69,$I$7:$I$10999))=I69,MIN(IF($A$7:$A$10999=A69,$I$7:$I$10999)),IF(SMALL(IF($A$7:$A$10999=A69,$I$7:$I$10999),2)=I69,SMALL(IF($A$7:$A$10999=A69,$I$7:$I$10999),2),IF(SMALL(IF($A$7:$A$10999=A69,$I$7:$I$10999),3)=I69,SMALL(IF($A$7:$A$10999=A69,$I$7:$I$10999),3),""))))) -> 
Y70: =IF(A70="","",IF(E70="to be placed","",IF(MIN(IF($A$7:$A$10999=A70,$I$7:$I$10999))=I70,MIN(IF($A$7:$A$10999=A70,$I$7:$I$10999)),""))) ->  | AB70: =IF($A70="","",IF($E70="to be placed","",IF(MIN(IF($A$7:$A$10999=A70,$I$7:$I$10999))=I70,MIN(IF($A$7:$A$10999=A70,$I$7:$I$10999)),IF(SMALL(IF($A$7:$A$10999=A70,$I$7:$I$10999),2)=I70,SMALL(IF($A$7:$A$10999=A70,$I$7:$I$10999),2),"")))) ->  | AF70: =IF($A70="","",IF($E70="to be placed","",IF(MIN(IF($A$7:$A$10999=A70,$I$7:$I$10999))=I70,MIN(IF($A$7:$A$10999=A70,$I$7:$I$10999)),IF(SMALL(IF($A$7:$A$10999=A70,$I$7:$I$10999),2)=I70,SMALL(IF($A$7:$A$10999=A70,$I$7:$I$10999),2),IF(SMALL(IF($A$7:$A$10999=A70,$I$7:$I$10999),3)=I70,SMALL(IF($A$7:$A$10999=A70,$I$7:$I$10999),3),""))))) -> 
T71: =IF($D71="","",IF($E71="to be placed","",IF(AND($A71<>$A72,SUMIF($A$7:$A$10999,$A71,S$7:S$10999)>0),SUMIF($A$7:$A$10999,$A71,S$7:S$10999)*(1-$T$1),IF($A71<>$A72,SUMIF($A$7:$A$10999,$A71,S$7:S$10999),"")))) ->  | W71: =IF($D71="","",IF($E71="to be placed","",IF(AND($A71<>$A72,SUMIF($A$7:$A$10999,$A71,V$7:V$10999)>0),SUMIF($A$7:$A$10999,$A71,V$7:V$10999)*(1-$T$1),IF($A71<>$A72,SUMIF($A$7:$A$10999,$A71,V$7:V$10999),"")))) ->  | Y71: =IF(A71="","",IF(E71="to be placed","",IF(MIN(IF($A$7:$A$10999=A71,$I$7:$I$10999))=I71,MIN(IF($A$7:$A$10999=A71,$I$7:$I$10999)),""))) ->  | AB71: =IF($A71="","",IF($E71="to be placed","",IF(MIN(IF($A$7:$A$10999=A71,$I$7:$I$10999))=I71,MIN(IF($A$7:$A$10999=A71,$I$7:$I$10999)),IF(SMALL(IF($A$7:$A$10999=A71,$I$7:$I$10999),2)=I71,SMALL(IF($A$7:$A$10999=A71,$I$7:$I$10999),2),"")))) ->  | AC71: =IF($D71="","",IF($E71="to be placed","",IF(ISERROR(AB71*1),"",IF(AND(AB71>0,$Q71=1),-AB71+1,IF(AND(AB71<>"",$Q71<>1),0.935,""))))) ->  | AD71: =IF($D71="","",IF($E71="to be placed","",IF(AND($A71<>$A72,SUMIF($A$7:$A$10999,$A71,AC$7:AC$10999)>0),SUMIF($A$7:$A$10999,$A71,AC$7:AC$10999)*(1-$T$1),IF($A71<>$A72,SUMIF($A$7:$A$10999,$A71,AC$7:AC$10999),"")))) ->  | AF71: =IF($A71="","",IF($E71="to be placed","",IF(MIN(IF($A$7:$A$10999=A71,$I$7:$I$10999))=I71,MIN(IF($A$7:$A$10999=A71,$I$7:$I$10999)),IF(SMALL(IF($A$7:$A$10999=A71,$I$7:$I$10999),2)=I71,SMALL(IF($A$7:$A$10999=A71,$I$7:$I$10999),2),IF(SMALL(IF($A$7:$A$10999=A71,$I$7:$I$10999),3)=I71,SMALL(IF($A$7:$A$10999=A71,$I$7:$I$10999),3),""))))) ->  | AG71: =IF($D71="","",IF($E71="to be placed","",IF(ISERROR(AF71*1),"",IF(AND(AF71>0,$Q71=1),-AF71+1,IF(AND(AF71<>"",$Q71<>1),0.935,""))))) ->  | AH71: =IF($D71="","",IF($E71="to be placed","",IF(AND($A71<>$A72,SUMIF($A$7:$A$10999,$A71,AG$7:AG$10999)>0),SUMIF($A$7:$A$10999,$A71,AG$7:AG$10999)*(1-$T$1),IF($A71<>$A72,SUMIF($A$7:$A$10999,$A71,AG$7:AG$10999),"")))) -> 
S72: =IF($D72="","",IF($E72="to be placed","",IF($Q72=1,-$I72*SUM(100/($I72-1))+SUM(100/($I72-1)),SUM(100/($I72-1))))) ->  | V72: =IF($D72="","",IF($E72="to be placed","",IF(AND($I72<20,$Q72=1),-$I72+1,IF(AND($I72<20,$Q72<>1),1,"")))) ->  | Y72: =IF(A72="","",IF(E72="to be placed","",IF(MIN(IF($A$7:$A$10999=A72,$I$7:$I$10999))=I72,MIN(IF($A$7:$A$10999=A72,$I$7:$I$10999)),""))) ->  | Z72: =IF($D72="","",IF($E72="to be placed","",IF(ISERROR(Y72*1),"",IF(AND(Y72>0,Q72=1),-Y72+1,IF(AND(Y72<>"",Q72<>1),0.935,""))))) ->  | AB72: =IF($A72="","",IF($E72="to be placed","",IF(MIN(IF($A$7:$A$10999=A72,$I$7:$I$10999))=I72,MIN(IF($A$7:$A$10999=A72,$I$7:$I$10999)),IF(SMALL(IF($A$7:$A$10999=A72,$I$7:$I$10999),2)=I72,SMALL(IF($A$7:$A$10999=A72,$I$7:$I$10999),2),"")))) ->  | AF72: =IF($A72="","",IF($E72="to be placed","",IF(MIN(IF($A$7:$A$10999=A72,$I$7:$I$10999))=I72,MIN(IF($A$7:$A$10999=A72,$I$7:$I$10999)),IF(SMALL(IF($A$7:$A$10999=A72,$I$7:$I$10999),2)=I72,SMALL(IF($A$7:$A$10999=A72,$I$7:$I$10999),2),IF(SMALL(IF($A$7:$A$10999=A72,$I$7:$I$10999),3)=I72,SMALL(IF($A$7:$A$10999=A72,$I$7:$I$10999),3),""))))) -> 
Y73: =IF(A73="","",IF(E73="to be placed","",IF(MIN(IF($A$7:$A$10999=A73,$I$7:$I$10999))=I73,MIN(IF($A$7:$A$10999=A73,$I$7:$I$10999)),""))) ->  | AB73: =IF($A73="","",IF($E73="to be placed","",IF(MIN(IF($A$7:$A$10999=A73,$I$7:$I$10999))=I73,MIN(IF($A$7:$A$10999=A73,$I$7:$I$10999)),IF(SMALL(IF($A$7:$A$10999=A73,$I$7:$I$10999),2)=I73,SMALL(IF($A$7:$A$10999=A73,$I$7:$I$10999),2),"")))) ->  | AF73: =IF($A73="","",IF($E73="to be placed","",IF(MIN(IF($A$7:$A$10999=A73,$I$7:$I$10999))=I73,MIN(IF($A$7:$A$10999=A73,$I$7:$I$10999)),IF(SMALL(IF($A$7:$A$10999=A73,$I$7:$I$10999),2)=I73,SMALL(IF($A$7:$A$10999=A73,$I$7:$I$10999),2),IF(SMALL(IF($A$7:$A$10999=A73,$I$7:$I$10999),3)=I73,SMALL(IF($A$7:$A$10999=A73,$I$7:$I$10999),3),""))))) -> 
Y74: =IF(A74="","",IF(E74="to be placed","",IF(MIN(IF($A$7:$A$10999=A74,$I$7:$I$10999))=I74,MIN(IF($A$7:$A$10999=A74,$I$7:$I$10999)),""))) ->  | AB74: =IF($A74="","",IF($E74="to be placed","",IF(MIN(IF($A$7:$A$10999=A74,$I$7:$I$10999))=I74,MIN(IF($A$7:$A$10999=A74,$I$7:$I$10999)),IF(SMALL(IF($A$7:$A$10999=A74,$I$7:$I$10999),2)=I74,SMALL(IF($A$7:$A$10999=A74,$I$7:$I$10999),2),"")))) ->  | AF74: =IF($A74="","",IF($E74="to be placed","",IF(MIN(IF($A$7:$A$10999=A74,$I$7:$I$10999))=I74,MIN(IF($A$7:$A$10999=A74,$I$7:$I$10999)),IF(SMALL(IF($A$7:$A$10999=A74,$I$7:$I$10999),2)=I74,SMALL(IF($A$7:$A$10999=A74,$I$7:$I$10999),2),IF(SMALL(IF($A$7:$A$10999=A74,$I$7:$I$10999),3)=I74,SMALL(IF($A$7:$A$10999=A74,$I$7:$I$10999),3),""))))) -> 
Y75: =IF(A75="","",IF(E75="to be placed","",IF(MIN(IF($A$7:$A$10999=A75,$I$7:$I$10999))=I75,MIN(IF($A$7:$A$10999=A75,$I$7:$I$10999)),""))) ->  | AB75: =IF($A75="","",IF($E75="to be placed","",IF(MIN(IF($A$7:$A$10999=A75,$I$7:$I$10999))=I75,MIN(IF($A$7:$A$10999=A75,$I$7:$I$10999)),IF(SMALL(IF($A$7:$A$10999=A75,$I$7:$I$10999),2)=I75,SMALL(IF($A$7:$A$10999=A75,$I$7:$I$10999),2),"")))) ->  | AF75: =IF($A75="","",IF($E75="to be placed","",IF(MIN(IF($A$7:$A$10999=A75,$I$7:$I$10999))=I75,MIN(IF($A$7:$A$10999=A75,$I$7:$I$10999)),IF(SMALL(IF($A$7:$A$10999=A75,$I$7:$I$10999),2)=I75,SMALL(IF($A$7:$A$10999=A75,$I$7:$I$10999),2),IF(SMALL(IF($A$7:$A$10999=A75,$I$7:$I$10999),3)=I75,SMALL(IF($A$7:$A$10999=A75,$I$7:$I$10999),3),""))))) -> 
Y76: =IF(A76="","",IF(E76="to be placed","",IF(MIN(IF($A$7:$A$10999=A76,$I$7:$I$10999))=I76,MIN(IF($A$7:$A$10999=A76,$I$7:$I$10999)),""))) ->  | AB76: =IF($A76="","",IF($E76="to be placed","",IF(MIN(IF($A$7:$A$10999=A76,$I$7:$I$10999))=I76,MIN(IF($A$7:$A$10999=A76,$I$7:$I$10999)),IF(SMALL(IF($A$7:$A$10999=A76,$I$7:$I$10999),2)=I76,SMALL(IF($A$7:$A$10999=A76,$I$7:$I$10999),2),"")))) ->  | AF76: =IF($A76="","",IF($E76="to be placed","",IF(MIN(IF($A$7:$A$10999=A76,$I$7:$I$10999))=I76,MIN(IF($A$7:$A$10999=A76,$I$7:$I$10999)),IF(SMALL(IF($A$7:$A$10999=A76,$I$7:$I$10999),2)=I76,SMALL(IF($A$7:$A$10999=A76,$I$7:$I$10999),2),IF(SMALL(IF($A$7:$A$10999=A76,$I$7:$I$10999),3)=I76,SMALL(IF($A$7:$A$10999=A76,$I$7:$I$10999),3),""))))) -> 
Y77: =IF(A77="","",IF(E77="to be placed","",IF(MIN(IF($A$7:$A$10999=A77,$I$7:$I$10999))=I77,MIN(IF($A$7:$A$10999=A77,$I$7:$I$10999)),""))) ->  | AB77: =IF($A77="","",IF($E77="to be placed","",IF(MIN(IF($A$7:$A$10999=A77,$I$7:$I$10999))=I77,MIN(IF($A$7:$A$10999=A77,$I$7:$I$10999)),IF(SMALL(IF($A$7:$A$10999=A77,$I$7:$I$10999),2)=I77,SMALL(IF($A$7:$A$10999=A77,$I$7:$I$10999),2),"")))) ->  | AF77: =IF($A77="","",IF($E77="to be placed","",IF(MIN(IF($A$7:$A$10999=A77,$I$7:$I$10999))=I77,MIN(IF($A$7:$A$10999=A77,$I$7:$I$10999)),IF(SMALL(IF($A$7:$A$10999=A77,$I$7:$I$10999),2)=I77,SMALL(IF($A$7:$A$10999=A77,$I$7:$I$10999),2),IF(SMALL(IF($A$7:$A$10999=A77,$I$7:$I$10999),3)=I77,SMALL(IF($A$7:$A$10999=A77,$I$7:$I$10999),3),""))))) -> 
Y78: =IF(A78="","",IF(E78="to be placed","",IF(MIN(IF($A$7:$A$10999=A78,$I$7:$I$10999))=I78,MIN(IF($A$7:$A$10999=A78,$I$7:$I$10999)),""))) ->  | AB78: =IF($A78="","",IF($E78="to be placed","",IF(MIN(IF($A$7:$A$10999=A78,$I$7:$I$10999))=I78,MIN(IF($A$7:$A$10999=A78,$I$7:$I$10999)),IF(SMALL(IF($A$7:$A$10999=A78,$I$7:$I$10999),2)=I78,SMALL(IF($A$7:$A$10999=A78,$I$7:$I$10999),2),"")))) ->  | AF78: =IF($A78="","",IF($E78="to be placed","",IF(MIN(IF($A$7:$A$10999=A78,$I$7:$I$10999))=I78,MIN(IF($A$7:$A$10999=A78,$I$7:$I$10999)),IF(SMALL(IF($A$7:$A$10999=A78,$I$7:$I$10999),2)=I78,SMALL(IF($A$7:$A$10999=A78,$I$7:$I$10999),2),IF(SMALL(IF($A$7:$A$10999=A78,$I$7:$I$10999),3)=I78,SMALL(IF($A$7:$A$10999=A78,$I$7:$I$10999),3),""))))) -> 
Y79: =IF(A79="","",IF(E79="to be placed","",IF(MIN(IF($A$7:$A$10999=A79,$I$7:$I$10999))=I79,MIN(IF($A$7:$A$10999=A79,$I$7:$I$10999)),""))) ->  | AB79: =IF($A79="","",IF($E79="to be placed","",IF(MIN(IF($A$7:$A$10999=A79,$I$7:$I$10999))=I79,MIN(IF($A$7:$A$10999=A79,$I$7:$I$10999)),IF(SMALL(IF($A$7:$A$10999=A79,$I$7:$I$10999),2)=I79,SMALL(IF($A$7:$A$10999=A79,$I$7:$I$10999),2),"")))) ->  | AF79: =IF($A79="","",IF($E79="to be placed","",IF(MIN(IF($A$7:$A$10999=A79,$I$7:$I$10999))=I79,MIN(IF($A$7:$A$10999=A79,$I$7:$I$10999)),IF(SMALL(IF($A$7:$A$10999=A79,$I$7:$I$10999),2)=I79,SMALL(IF($A$7:$A$10999=A79,$I$7:$I$10999),2),IF(SMALL(IF($A$7:$A$10999=A79,$I$7:$I$10999),3)=I79,SMALL(IF($A$7:$A$10999=A79,$I$7:$I$10999),3),""))))) -> 
Y80: =IF(A80="","",IF(E80="to be placed","",IF(MIN(IF($A$7:$A$10999=A80,$I$7:$I$10999))=I80,MIN(IF($A$7:$A$10999=A80,$I$7:$I$10999)),""))) ->  | AB80: =IF($A80="","",IF($E80="to be placed","",IF(MIN(IF($A$7:$A$10999=A80,$I$7:$I$10999))=I80,MIN(IF($A$7:$A$10999=A80,$I$7:$I$10999)),IF(SMALL(IF($A$7:$A$10999=A80,$I$7:$I$10999),2)=I80,SMALL(IF($A$7:$A$10999=A80,$I$7:$I$10999),2),"")))) ->  | AF80: =IF($A80="","",IF($E80="to be placed","",IF(MIN(IF($A$7:$A$10999=A80,$I$7:$I$10999))=I80,MIN(IF($A$7:$A$10999=A80,$I$7:$I$10999)),IF(SMALL(IF($A$7:$A$10999=A80,$I$7:$I$10999),2)=I80,SMALL(IF($A$7:$A$10999=A80,$I$7:$I$10999),2),IF(SMALL(IF($A$7:$A$10999=A80,$I$7:$I$10999),3)=I80,SMALL(IF($A$7:$A$10999=A80,$I$7:$I$10999),3),""))))) -> 
Y81: =IF(A81="","",IF(E81="to be placed","",IF(MIN(IF($A$7:$A$10999=A81,$I$7:$I$10999))=I81,MIN(IF($A$7:$A$10999=A81,$I$7:$I$10999)),""))) ->  | AB81: =IF($A81="","",IF($E81="to be placed","",IF(MIN(IF($A$7:$A$10999=A81,$I$7:$I$10999))=I81,MIN(IF($A$7:$A$10999=A81,$I$7:$I$10999)),IF(SMALL(IF($A$7:$A$10999=A81,$I$7:$I$10999),2)=I81,SMALL(IF($A$7:$A$10999=A81,$I$7:$I$10999),2),"")))) ->  | AF81: =IF($A81="","",IF($E81="to be placed","",IF(MIN(IF($A$7:$A$10999=A81,$I$7:$I$10999))=I81,MIN(IF($A$7:$A$10999=A81,$I$7:$I$10999)),IF(SMALL(IF($A$7:$A$10999=A81,$I$7:$I$10999),2)=I81,SMALL(IF($A$7:$A$10999=A81,$I$7:$I$10999),2),IF(SMALL(IF($A$7:$A$10999=A81,$I$7:$I$10999),3)=I81,SMALL(IF($A$7:$A$10999=A81,$I$7:$I$10999),3),""))))) -> 
Y82: =IF(A82="","",IF(E82="to be placed","",IF(MIN(IF($A$7:$A$10999=A82,$I$7:$I$10999))=I82,MIN(IF($A$7:$A$10999=A82,$I$7:$I$10999)),""))) ->  | AB82: =IF($A82="","",IF($E82="to be placed","",IF(MIN(IF($A$7:$A$10999=A82,$I$7:$I$10999))=I82,MIN(IF($A$7:$A$10999=A82,$I$7:$I$10999)),IF(SMALL(IF($A$7:$A$10999=A82,$I$7:$I$10999),2)=I82,SMALL(IF($A$7:$A$10999=A82,$I$7:$I$10999),2),"")))) ->  | AF82: =IF($A82="","",IF($E82="to be placed","",IF(MIN(IF($A$7:$A$10999=A82,$I$7:$I$10999))=I82,MIN(IF($A$7:$A$10999=A82,$I$7:$I$10999)),IF(SMALL(IF($A$7:$A$10999=A82,$I$7:$I$10999),2)=I82,SMALL(IF($A$7:$A$10999=A82,$I$7:$I$10999),2),IF(SMALL(IF($A$7:$A$10999=A82,$I$7:$I$10999),3)=I82,SMALL(IF($A$7:$A$10999=A82,$I$7:$I$10999),3),""))))) -> 
Y83: =IF(A83="","",IF(E83="to be placed","",IF(MIN(IF($A$7:$A$10999=A83,$I$7:$I$10999))=I83,MIN(IF($A$7:$A$10999=A83,$I$7:$I$10999)),""))) ->  | AB83: =IF($A83="","",IF($E83="to be placed","",IF(MIN(IF($A$7:$A$10999=A83,$I$7:$I$10999))=I83,MIN(IF($A$7:$A$10999=A83,$I$7:$I$10999)),IF(SMALL(IF($A$7:$A$10999=A83,$I$7:$I$10999),2)=I83,SMALL(IF($A$7:$A$10999=A83,$I$7:$I$10999),2),"")))) ->  | AF83: =IF($A83="","",IF($E83="to be placed","",IF(MIN(IF($A$7:$A$10999=A83,$I$7:$I$10999))=I83,MIN(IF($A$7:$A$10999=A83,$I$7:$I$10999)),IF(SMALL(IF($A$7:$A$10999=A83,$I$7:$I$10999),2)=I83,SMALL(IF($A$7:$A$10999=A83,$I$7:$I$10999),2),IF(SMALL(IF($A$7:$A$10999=A83,$I$7:$I$10999),3)=I83,SMALL(IF($A$7:$A$10999=A83,$I$7:$I$10999),3),""))))) -> 
Y84: =IF(A84="","",IF(E84="to be placed","",IF(MIN(IF($A$7:$A$10999=A84,$I$7:$I$10999))=I84,MIN(IF($A$7:$A$10999=A84,$I$7:$I$10999)),""))) ->  | AB84: =IF($A84="","",IF($E84="to be placed","",IF(MIN(IF($A$7:$A$10999=A84,$I$7:$I$10999))=I84,MIN(IF($A$7:$A$10999=A84,$I$7:$I$10999)),IF(SMALL(IF($A$7:$A$10999=A84,$I$7:$I$10999),2)=I84,SMALL(IF($A$7:$A$10999=A84,$I$7:$I$10999),2),"")))) ->  | AF84: =IF($A84="","",IF($E84="to be placed","",IF(MIN(IF($A$7:$A$10999=A84,$I$7:$I$10999))=I84,MIN(IF($A$7:$A$10999=A84,$I$7:$I$10999)),IF(SMALL(IF($A$7:$A$10999=A84,$I$7:$I$10999),2)=I84,SMALL(IF($A$7:$A$10999=A84,$I$7:$I$10999),2),IF(SMALL(IF($A$7:$A$10999=A84,$I$7:$I$10999),3)=I84,SMALL(IF($A$7:$A$10999=A84,$I$7:$I$10999),3),""))))) -> 
Y85: =IF(A85="","",IF(E85="to be placed","",IF(MIN(IF($A$7:$A$10999=A85,$I$7:$I$10999))=I85,MIN(IF($A$7:$A$10999=A85,$I$7:$I$10999)),""))) ->  | AB85: =IF($A85="","",IF($E85="to be placed","",IF(MIN(IF($A$7:$A$10999=A85,$I$7:$I$10999))=I85,MIN(IF($A$7:$A$10999=A85,$I$7:$I$10999)),IF(SMALL(IF($A$7:$A$10999=A85,$I$7:$I$10999),2)=I85,SMALL(IF($A$7:$A$10999=A85,$I$7:$I$10999),2),"")))) ->  | AF85: =IF($A85="","",IF($E85="to be placed","",IF(MIN(IF($A$7:$A$10999=A85,$I$7:$I$10999))=I85,MIN(IF($A$7:$A$10999=A85,$I$7:$I$10999)),IF(SMALL(IF($A$7:$A$10999=A85,$I$7:$I$10999),2)=I85,SMALL(IF($A$7:$A$10999=A85,$I$7:$I$10999),2),IF(SMALL(IF($A$7:$A$10999=A85,$I$7:$I$10999),3)=I85,SMALL(IF($A$7:$A$10999=A85,$I$7:$I$10999),3),""))))) -> 
Y86: =IF(A86="","",IF(E86="to be placed","",IF(MIN(IF($A$7:$A$10999=A86,$I$7:$I$10999))=I86,MIN(IF($A$7:$A$10999=A86,$I$7:$I$10999)),""))) ->  | AB86: =IF($A86="","",IF($E86="to be placed","",IF(MIN(IF($A$7:$A$10999=A86,$I$7:$I$10999))=I86,MIN(IF($A$7:$A$10999=A86,$I$7:$I$10999)),IF(SMALL(IF($A$7:$A$10999=A86,$I$7:$I$10999),2)=I86,SMALL(IF($A$7:$A$10999=A86,$I$7:$I$10999),2),"")))) ->  | AF86: =IF($A86="","",IF($E86="to be placed","",IF(MIN(IF($A$7:$A$10999=A86,$I$7:$I$10999))=I86,MIN(IF($A$7:$A$10999=A86,$I$7:$I$10999)),IF(SMALL(IF($A$7:$A$10999=A86,$I$7:$I$10999),2)=I86,SMALL(IF($A$7:$A$10999=A86,$I$7:$I$10999),2),IF(SMALL(IF($A$7:$A$10999=A86,$I$7:$I$10999),3)=I86,SMALL(IF($A$7:$A$10999=A86,$I$7:$I$10999),3),""))))) -> 
Y87: =IF(A87="","",IF(E87="to be placed","",IF(MIN(IF($A$7:$A$10999=A87,$I$7:$I$10999))=I87,MIN(IF($A$7:$A$10999=A87,$I$7:$I$10999)),""))) ->  | AB87: =IF($A87="","",IF($E87="to be placed","",IF(MIN(IF($A$7:$A$10999=A87,$I$7:$I$10999))=I87,MIN(IF($A$7:$A$10999=A87,$I$7:$I$10999)),IF(SMALL(IF($A$7:$A$10999=A87,$I$7:$I$10999),2)=I87,SMALL(IF($A$7:$A$10999=A87,$I$7:$I$10999),2),"")))) ->  | AF87: =IF($A87="","",IF($E87="to be placed","",IF(MIN(IF($A$7:$A$10999=A87,$I$7:$I$10999))=I87,MIN(IF($A$7:$A$10999=A87,$I$7:$I$10999)),IF(SMALL(IF($A$7:$A$10999=A87,$I$7:$I$10999),2)=I87,SMALL(IF($A$7:$A$10999=A87,$I$7:$I$10999),2),IF(SMALL(IF($A$7:$A$10999=A87,$I$7:$I$10999),3)=I87,SMALL(IF($A$7:$A$10999=A87,$I$7:$I$10999),3),""))))) -> 
Y88: =IF(A88="","",IF(E88="to be placed","",IF(MIN(IF($A$7:$A$10999=A88,$I$7:$I$10999))=I88,MIN(IF($A$7:$A$10999=A88,$I$7:$I$10999)),""))) ->  | AB88: =IF($A88="","",IF($E88="to be placed","",IF(MIN(IF($A$7:$A$10999=A88,$I$7:$I$10999))=I88,MIN(IF($A$7:$A$10999=A88,$I$7:$I$10999)),IF(SMALL(IF($A$7:$A$10999=A88,$I$7:$I$10999),2)=I88,SMALL(IF($A$7:$A$10999=A88,$I$7:$I$10999),2),"")))) ->  | AF88: =IF($A88="","",IF($E88="to be placed","",IF(MIN(IF($A$7:$A$10999=A88,$I$7:$I$10999))=I88,MIN(IF($A$7:$A$10999=A88,$I$7:$I$10999)),IF(SMALL(IF($A$7:$A$10999=A88,$I$7:$I$10999),2)=I88,SMALL(IF($A$7:$A$10999=A88,$I$7:$I$10999),2),IF(SMALL(IF($A$7:$A$10999=A88,$I$7:$I$10999),3)=I88,SMALL(IF($A$7:$A$10999=A88,$I$7:$I$10999),3),""))))) -> 
Y89: =IF(A89="","",IF(E89="to be placed","",IF(MIN(IF($A$7:$A$10999=A89,$I$7:$I$10999))=I89,MIN(IF($A$7:$A$10999=A89,$I$7:$I$10999)),""))) ->  | AB89: =IF($A89="","",IF($E89="to be placed","",IF(MIN(IF($A$7:$A$10999=A89,$I$7:$I$10999))=I89,MIN(IF($A$7:$A$10999=A89,$I$7:$I$10999)),IF(SMALL(IF($A$7:$A$10999=A89,$I$7:$I$10999),2)=I89,SMALL(IF($A$7:$A$10999=A89,$I$7:$I$10999),2),"")))) ->  | AF89: =IF($A89="","",IF($E89="to be placed","",IF(MIN(IF($A$7:$A$10999=A89,$I$7:$I$10999))=I89,MIN(IF($A$7:$A$10999=A89,$I$7:$I$10999)),IF(SMALL(IF($A$7:$A$10999=A89,$I$7:$I$10999),2)=I89,SMALL(IF($A$7:$A$10999=A89,$I$7:$I$10999),2),IF(SMALL(IF($A$7:$A$10999=A89,$I$7:$I$10999),3)=I89,SMALL(IF($A$7:$A$10999=A89,$I$7:$I$10999),3),""))))) -> 
Y90: =IF(A90="","",IF(E90="to be placed","",IF(MIN(IF($A$7:$A$10999=A90,$I$7:$I$10999))=I90,MIN(IF($A$7:$A$10999=A90,$I$7:$I$10999)),""))) ->  | AB90: =IF($A90="","",IF($E90="to be placed","",IF(MIN(IF($A$7:$A$10999=A90,$I$7:$I$10999))=I90,MIN(IF($A$7:$A$10999=A90,$I$7:$I$10999)),IF(SMALL(IF($A$7:$A$10999=A90,$I$7:$I$10999),2)=I90,SMALL(IF($A$7:$A$10999=A90,$I$7:$I$10999),2),"")))) ->  | AF90: =IF($A90="","",IF($E90="to be placed","",IF(MIN(IF($A$7:$A$10999=A90,$I$7:$I$10999))=I90,MIN(IF($A$7:$A$10999=A90,$I$7:$I$10999)),IF(SMALL(IF($A$7:$A$10999=A90,$I$7:$I$10999),2)=I90,SMALL(IF($A$7:$A$10999=A90,$I$7:$I$10999),2),IF(SMALL(IF($A$7:$A$10999=A90,$I$7:$I$10999),3)=I90,SMALL(IF($A$7:$A$10999=A90,$I$7:$I$10999),3),""))))) -> 
Y91: =IF(A91="","",IF(E91="to be placed","",IF(MIN(IF($A$7:$A$10999=A91,$I$7:$I$10999))=I91,MIN(IF($A$7:$A$10999=A91,$I$7:$I$10999)),""))) ->  | AB91: =IF($A91="","",IF($E91="to be placed","",IF(MIN(IF($A$7:$A$10999=A91,$I$7:$I$10999))=I91,MIN(IF($A$7:$A$10999=A91,$I$7:$I$10999)),IF(SMALL(IF($A$7:$A$10999=A91,$I$7:$I$10999),2)=I91,SMALL(IF($A$7:$A$10999=A91,$I$7:$I$10999),2),"")))) ->  | AF91: =IF($A91="","",IF($E91="to be placed","",IF(MIN(IF($A$7:$A$10999=A91,$I$7:$I$10999))=I91,MIN(IF($A$7:$A$10999=A91,$I$7:$I$10999)),IF(SMALL(IF($A$7:$A$10999=A91,$I$7:$I$10999),2)=I91,SMALL(IF($A$7:$A$10999=A91,$I$7:$I$10999),2),IF(SMALL(IF($A$7:$A$10999=A91,$I$7:$I$10999),3)=I91,SMALL(IF($A$7:$A$10999=A91,$I$7:$I$10999),3),""))))) -> 
Y92: =IF(A92="","",IF(E92="to be placed","",IF(MIN(IF($A$7:$A$10999=A92,$I$7:$I$10999))=I92,MIN(IF($A$7:$A$10999=A92,$I$7:$I$10999)),""))) ->  | AB92: =IF($A92="","",IF($E92="to be placed","",IF(MIN(IF($A$7:$A$10999=A92,$I$7:$I$10999))=I92,MIN(IF($A$7:$A$10999=A92,$I$7:$I$10999)),IF(SMALL(IF($A$7:$A$10999=A92,$I$7:$I$10999),2)=I92,SMALL(IF($A$7:$A$10999=A92,$I$7:$I$10999),2),"")))) ->  | AF92: =IF($A92="","",IF($E92="to be placed","",IF(MIN(IF($A$7:$A$10999=A92,$I$7:$I$10999))=I92,MIN(IF($A$7:$A$10999=A92,$I$7:$I$10999)),IF(SMALL(IF($A$7:$A$10999=A92,$I$7:$I$10999),2)=I92,SMALL(IF($A$7:$A$10999=A92,$I$7:$I$10999),2),IF(SMALL(IF($A$7:$A$10999=A92,$I$7:$I$10999),3)=I92,SMALL(IF($A$7:$A$10999=A92,$I$7:$I$10999),3),""))))) -> 
Y93: =IF(A93="","",IF(E93="to be placed","",IF(MIN(IF($A$7:$A$10999=A93,$I$7:$I$10999))=I93,MIN(IF($A$7:$A$10999=A93,$I$7:$I$10999)),""))) ->  | AB93: =IF($A93="","",IF($E93="to be placed","",IF(MIN(IF($A$7:$A$10999=A93,$I$7:$I$10999))=I93,MIN(IF($A$7:$A$10999=A93,$I$7:$I$10999)),IF(SMALL(IF($A$7:$A$10999=A93,$I$7:$I$10999),2)=I93,SMALL(IF($A$7:$A$10999=A93,$I$7:$I$10999),2),"")))) ->  | AF93: =IF($A93="","",IF($E93="to be placed","",IF(MIN(IF($A$7:$A$10999=A93,$I$7:$I$10999))=I93,MIN(IF($A$7:$A$10999=A93,$I$7:$I$10999)),IF(SMALL(IF($A$7:$A$10999=A93,$I$7:$I$10999),2)=I93,SMALL(IF($A$7:$A$10999=A93,$I$7:$I$10999),2),IF(SMALL(IF($A$7:$A$10999=A93,$I$7:$I$10999),3)=I93,SMALL(IF($A$7:$A$10999=A93,$I$7:$I$10999),3),""))))) -> 
Y94: =IF(A94="","",IF(E94="to be placed","",IF(MIN(IF($A$7:$A$10999=A94,$I$7:$I$10999))=I94,MIN(IF($A$7:$A$10999=A94,$I$7:$I$10999)),""))) ->  | AB94: =IF($A94="","",IF($E94="to be placed","",IF(MIN(IF($A$7:$A$10999=A94,$I$7:$I$10999))=I94,MIN(IF($A$7:$A$10999=A94,$I$7:$I$10999)),IF(SMALL(IF($A$7:$A$10999=A94,$I$7:$I$10999),2)=I94,SMALL(IF($A$7:$A$10999=A94,$I$7:$I$10999),2),"")))) ->  | AF94: =IF($A94="","",IF($E94="to be placed","",IF(MIN(IF($A$7:$A$10999=A94,$I$7:$I$10999))=I94,MIN(IF($A$7:$A$10999=A94,$I$7:$I$10999)),IF(SMALL(IF($A$7:$A$10999=A94,$I$7:$I$10999),2)=I94,SMALL(IF($A$7:$A$10999=A94,$I$7:$I$10999),2),IF(SMALL(IF($A$7:$A$10999=A94,$I$7:$I$10999),3)=I94,SMALL(IF($A$7:$A$10999=A94,$I$7:$I$10999),3),""))))) -> 
Y95: =IF(A95="","",IF(E95="to be placed","",IF(MIN(IF($A$7:$A$10999=A95,$I$7:$I$10999))=I95,MIN(IF($A$7:$A$10999=A95,$I$7:$I$10999)),""))) ->  | AB95: =IF($A95="","",IF($E95="to be placed","",IF(MIN(IF($A$7:$A$10999=A95,$I$7:$I$10999))=I95,MIN(IF($A$7:$A$10999=A95,$I$7:$I$10999)),IF(SMALL(IF($A$7:$A$10999=A95,$I$7:$I$10999),2)=I95,SMALL(IF($A$7:$A$10999=A95,$I$7:$I$10999),2),"")))) ->  | AF95: =IF($A95="","",IF($E95="to be placed","",IF(MIN(IF($A$7:$A$10999=A95,$I$7:$I$10999))=I95,MIN(IF($A$7:$A$10999=A95,$I$7:$I$10999)),IF(SMALL(IF($A$7:$A$10999=A95,$I$7:$I$10999),2)=I95,SMALL(IF($A$7:$A$10999=A95,$I$7:$I$10999),2),IF(SMALL(IF($A$7:$A$10999=A95,$I$7:$I$10999),3)=I95,SMALL(IF($A$7:$A$10999=A95,$I$7:$I$10999),3),""))))) -> 
Y96: =IF(A96="","",IF(E96="to be placed","",IF(MIN(IF($A$7:$A$10999=A96,$I$7:$I$10999))=I96,MIN(IF($A$7:$A$10999=A96,$I$7:$I$10999)),""))) ->  | AB96: =IF($A96="","",IF($E96="to be placed","",IF(MIN(IF($A$7:$A$10999=A96,$I$7:$I$10999))=I96,MIN(IF($A$7:$A$10999=A96,$I$7:$I$10999)),IF(SMALL(IF($A$7:$A$10999=A96,$I$7:$I$10999),2)=I96,SMALL(IF($A$7:$A$10999=A96,$I$7:$I$10999),2),"")))) ->  | AF96: =IF($A96="","",IF($E96="to be placed","",IF(MIN(IF($A$7:$A$10999=A96,$I$7:$I$10999))=I96,MIN(IF($A$7:$A$10999=A96,$I$7:$I$10999)),IF(SMALL(IF($A$7:$A$10999=A96,$I$7:$I$10999),2)=I96,SMALL(IF($A$7:$A$10999=A96,$I$7:$I$10999),2),IF(SMALL(IF($A$7:$A$10999=A96,$I$7:$I$10999),3)=I96,SMALL(IF($A$7:$A$10999=A96,$I$7:$I$10999),3),""))))) -> 
Y97: =IF(A97="","",IF(E97="to be placed","",IF(MIN(IF($A$7:$A$10999=A97,$I$7:$I$10999))=I97,MIN(IF($A$7:$A$10999=A97,$I$7:$I$10999)),""))) ->  | AB97: =IF($A97="","",IF($E97="to be placed","",IF(MIN(IF($A$7:$A$10999=A97,$I$7:$I$10999))=I97,MIN(IF($A$7:$A$10999=A97,$I$7:$I$10999)),IF(SMALL(IF($A$7:$A$10999=A97,$I$7:$I$10999),2)=I97,SMALL(IF($A$7:$A$10999=A97,$I$7:$I$10999),2),"")))) ->  | AF97: =IF($A97="","",IF($E97="to be placed","",IF(MIN(IF($A$7:$A$10999=A97,$I$7:$I$10999))=I97,MIN(IF($A$7:$A$10999=A97,$I$7:$I$10999)),IF(SMALL(IF($A$7:$A$10999=A97,$I$7:$I$10999),2)=I97,SMALL(IF($A$7:$A$10999=A97,$I$7:$I$10999),2),IF(SMALL(IF($A$7:$A$10999=A97,$I$7:$I$10999),3)=I97,SMALL(IF($A$7:$A$10999=A97,$I$7:$I$10999),3),""))))) -> 
Y98: =IF(A98="","",IF(E98="to be placed","",IF(MIN(IF($A$7:$A$10999=A98,$I$7:$I$10999))=I98,MIN(IF($A$7:$A$10999=A98,$I$7:$I$10999)),""))) ->  | AB98: =IF($A98="","",IF($E98="to be placed","",IF(MIN(IF($A$7:$A$10999=A98,$I$7:$I$10999))=I98,MIN(IF($A$7:$A$10999=A98,$I$7:$I$10999)),IF(SMALL(IF($A$7:$A$10999=A98,$I$7:$I$10999),2)=I98,SMALL(IF($A$7:$A$10999=A98,$I$7:$I$10999),2),"")))) ->  | AF98: =IF($A98="","",IF($E98="to be placed","",IF(MIN(IF($A$7:$A$10999=A98,$I$7:$I$10999))=I98,MIN(IF($A$7:$A$10999=A98,$I$7:$I$10999)),IF(SMALL(IF($A$7:$A$10999=A98,$I$7:$I$10999),2)=I98,SMALL(IF($A$7:$A$10999=A98,$I$7:$I$10999),2),IF(SMALL(IF($A$7:$A$10999=A98,$I$7:$I$10999),3)=I98,SMALL(IF($A$7:$A$10999=A98,$I$7:$I$10999),3),""))))) -> 
Y99: =IF(A99="","",IF(E99="to be placed","",IF(MIN(IF($A$7:$A$10999=A99,$I$7:$I$10999))=I99,MIN(IF($A$7:$A$10999=A99,$I$7:$I$10999)),""))) ->  | AB99: =IF($A99="","",IF($E99="to be placed","",IF(MIN(IF($A$7:$A$10999=A99,$I$7:$I$10999))=I99,MIN(IF($A$7:$A$10999=A99,$I$7:$I$10999)),IF(SMALL(IF($A$7:$A$10999=A99,$I$7:$I$10999),2)=I99,SMALL(IF($A$7:$A$10999=A99,$I$7:$I$10999),2),"")))) ->  | AF99: =IF($A99="","",IF($E99="to be placed","",IF(MIN(IF($A$7:$A$10999=A99,$I$7:$I$10999))=I99,MIN(IF($A$7:$A$10999=A99,$I$7:$I$10999)),IF(SMALL(IF($A$7:$A$10999=A99,$I$7:$I$10999),2)=I99,SMALL(IF($A$7:$A$10999=A99,$I$7:$I$10999),2),IF(SMALL(IF($A$7:$A$10999=A99,$I$7:$I$10999),3)=I99,SMALL(IF($A$7:$A$10999=A99,$I$7:$I$10999),3),""))))) -> 
Y100: =IF(A100="","",IF(E100="to be placed","",IF(MIN(IF($A$7:$A$10999=A100,$I$7:$I$10999))=I100,MIN(IF($A$7:$A$10999=A100,$I$7:$I$10999)),""))) ->  | AB100: =IF($A100="","",IF($E100="to be placed","",IF(MIN(IF($A$7:$A$10999=A100,$I$7:$I$10999))=I100,MIN(IF($A$7:$A$10999=A100,$I$7:$I$10999)),IF(SMALL(IF($A$7:$A$10999=A100,$I$7:$I$10999),2)=I100,SMALL(IF($A$7:$A$10999=A100,$I$7:$I$10999),2),"")))) ->  | AF100: =IF($A100="","",IF($E100="to be placed","",IF(MIN(IF($A$7:$A$10999=A100,$I$7:$I$10999))=I100,MIN(IF($A$7:$A$10999=A100,$I$7:$I$10999)),IF(SMALL(IF($A$7:$A$10999=A100,$I$7:$I$10999),2)=I100,SMALL(IF($A$7:$A$10999=A100,$I$7:$I$10999),2),IF(SMALL(IF($A$7:$A$10999=A100,$I$7:$I$10999),3)=I100,SMALL(IF($A$7:$A$10999=A100,$I$7:$I$10999),3),""))))) -> 
Y101: =IF(A101="","",IF(E101="to be placed","",IF(MIN(IF($A$7:$A$10999=A101,$I$7:$I$10999))=I101,MIN(IF($A$7:$A$10999=A101,$I$7:$I$10999)),""))) ->  | AB101: =IF($A101="","",IF($E101="to be placed","",IF(MIN(IF($A$7:$A$10999=A101,$I$7:$I$10999))=I101,MIN(IF($A$7:$A$10999=A101,$I$7:$I$10999)),IF(SMALL(IF($A$7:$A$10999=A101,$I$7:$I$10999),2)=I101,SMALL(IF($A$7:$A$10999=A101,$I$7:$I$10999),2),"")))) ->  | AF101: =IF($A101="","",IF($E101="to be placed","",IF(MIN(IF($A$7:$A$10999=A101,$I$7:$I$10999))=I101,MIN(IF($A$7:$A$10999=A101,$I$7:$I$10999)),IF(SMALL(IF($A$7:$A$10999=A101,$I$7:$I$10999),2)=I101,SMALL(IF($A$7:$A$10999=A101,$I$7:$I$10999),2),IF(SMALL(IF($A$7:$A$10999=A101,$I$7:$I$10999),3)=I101,SMALL(IF($A$7:$A$10999=A101,$I$7:$I$10999),3),""))))) -> 
Y102: =IF(A102="","",IF(E102="to be placed","",IF(MIN(IF($A$7:$A$10999=A102,$I$7:$I$10999))=I102,MIN(IF($A$7:$A$10999=A102,$I$7:$I$10999)),""))) ->  | AB102: =IF($A102="","",IF($E102="to be placed","",IF(MIN(IF($A$7:$A$10999=A102,$I$7:$I$10999))=I102,MIN(IF($A$7:$A$10999=A102,$I$7:$I$10999)),IF(SMALL(IF($A$7:$A$10999=A102,$I$7:$I$10999),2)=I102,SMALL(IF($A$7:$A$10999=A102,$I$7:$I$10999),2),"")))) ->  | AF102: =IF($A102="","",IF($E102="to be placed","",IF(MIN(IF($A$7:$A$10999=A102,$I$7:$I$10999))=I102,MIN(IF($A$7:$A$10999=A102,$I$7:$I$10999)),IF(SMALL(IF($A$7:$A$10999=A102,$I$7:$I$10999),2)=I102,SMALL(IF($A$7:$A$10999=A102,$I$7:$I$10999),2),IF(SMALL(IF($A$7:$A$10999=A102,$I$7:$I$10999),3)=I102,SMALL(IF($A$7:$A$10999=A102,$I$7:$I$10999),3),""))))) -> 
Y103: =IF(A103="","",IF(E103="to be placed","",IF(MIN(IF($A$7:$A$10999=A103,$I$7:$I$10999))=I103,MIN(IF($A$7:$A$10999=A103,$I$7:$I$10999)),""))) ->  | AB103: =IF($A103="","",IF($E103="to be placed","",IF(MIN(IF($A$7:$A$10999=A103,$I$7:$I$10999))=I103,MIN(IF($A$7:$A$10999=A103,$I$7:$I$10999)),IF(SMALL(IF($A$7:$A$10999=A103,$I$7:$I$10999),2)=I103,SMALL(IF($A$7:$A$10999=A103,$I$7:$I$10999),2),"")))) ->  | AF103: =IF($A103="","",IF($E103="to be placed","",IF(MIN(IF($A$7:$A$10999=A103,$I$7:$I$10999))=I103,MIN(IF($A$7:$A$10999=A103,$I$7:$I$10999)),IF(SMALL(IF($A$7:$A$10999=A103,$I$7:$I$10999),2)=I103,SMALL(IF($A$7:$A$10999=A103,$I$7:$I$10999),2),IF(SMALL(IF($A$7:$A$10999=A103,$I$7:$I$10999),3)=I103,SMALL(IF($A$7:$A$10999=A103,$I$7:$I$10999),3),""))))) -> 
Y104: =IF(A104="","",IF(E104="to be placed","",IF(MIN(IF($A$7:$A$10999=A104,$I$7:$I$10999))=I104,MIN(IF($A$7:$A$10999=A104,$I$7:$I$10999)),""))) ->  | AB104: =IF($A104="","",IF($E104="to be placed","",IF(MIN(IF($A$7:$A$10999=A104,$I$7:$I$10999))=I104,MIN(IF($A$7:$A$10999=A104,$I$7:$I$10999)),IF(SMALL(IF($A$7:$A$10999=A104,$I$7:$I$10999),2)=I104,SMALL(IF($A$7:$A$10999=A104,$I$7:$I$10999),2),"")))) ->  | AF104: =IF($A104="","",IF($E104="to be placed","",IF(MIN(IF($A$7:$A$10999=A104,$I$7:$I$10999))=I104,MIN(IF($A$7:$A$10999=A104,$I$7:$I$10999)),IF(SMALL(IF($A$7:$A$10999=A104,$I$7:$I$10999),2)=I104,SMALL(IF($A$7:$A$10999=A104,$I$7:$I$10999),2),IF(SMALL(IF($A$7:$A$10999=A104,$I$7:$I$10999),3)=I104,SMALL(IF($A$7:$A$10999=A104,$I$7:$I$10999),3),""))))) -> 
Y105: =IF(A105="","",IF(E105="to be placed","",IF(MIN(IF($A$7:$A$10999=A105,$I$7:$I$10999))=I105,MIN(IF($A$7:$A$10999=A105,$I$7:$I$10999)),""))) ->  | AB105: =IF($A105="","",IF($E105="to be placed","",IF(MIN(IF($A$7:$A$10999=A105,$I$7:$I$10999))=I105,MIN(IF($A$7:$A$10999=A105,$I$7:$I$10999)),IF(SMALL(IF($A$7:$A$10999=A105,$I$7:$I$10999),2)=I105,SMALL(IF($A$7:$A$10999=A105,$I$7:$I$10999),2),"")))) ->  | AF105: =IF($A105="","",IF($E105="to be placed","",IF(MIN(IF($A$7:$A$10999=A105,$I$7:$I$10999))=I105,MIN(IF($A$7:$A$10999=A105,$I$7:$I$10999)),IF(SMALL(IF($A$7:$A$10999=A105,$I$7:$I$10999),2)=I105,SMALL(IF($A$7:$A$10999=A105,$I$7:$I$10999),2),IF(SMALL(IF($A$7:$A$10999=A105,$I$7:$I$10999),3)=I105,SMALL(IF($A$7:$A$10999=A105,$I$7:$I$10999),3),""))))) -> 
Y106: =IF(A106="","",IF(E106="to be placed","",IF(MIN(IF($A$7:$A$10999=A106,$I$7:$I$10999))=I106,MIN(IF($A$7:$A$10999=A106,$I$7:$I$10999)),""))) ->  | AB106: =IF($A106="","",IF($E106="to be placed","",IF(MIN(IF($A$7:$A$10999=A106,$I$7:$I$10999))=I106,MIN(IF($A$7:$A$10999=A106,$I$7:$I$10999)),IF(SMALL(IF($A$7:$A$10999=A106,$I$7:$I$10999),2)=I106,SMALL(IF($A$7:$A$10999=A106,$I$7:$I$10999),2),"")))) ->  | AF106: =IF($A106="","",IF($E106="to be placed","",IF(MIN(IF($A$7:$A$10999=A106,$I$7:$I$10999))=I106,MIN(IF($A$7:$A$10999=A106,$I$7:$I$10999)),IF(SMALL(IF($A$7:$A$10999=A106,$I$7:$I$10999),2)=I106,SMALL(IF($A$7:$A$10999=A106,$I$7:$I$10999),2),IF(SMALL(IF($A$7:$A$10999=A106,$I$7:$I$10999),3)=I106,SMALL(IF($A$7:$A$10999=A106,$I$7:$I$10999),3),""))))) -> 
Y107: =IF(A107="","",IF(E107="to be placed","",IF(MIN(IF($A$7:$A$10999=A107,$I$7:$I$10999))=I107,MIN(IF($A$7:$A$10999=A107,$I$7:$I$10999)),""))) ->  | AB107: =IF($A107="","",IF($E107="to be placed","",IF(MIN(IF($A$7:$A$10999=A107,$I$7:$I$10999))=I107,MIN(IF($A$7:$A$10999=A107,$I$7:$I$10999)),IF(SMALL(IF($A$7:$A$10999=A107,$I$7:$I$10999),2)=I107,SMALL(IF($A$7:$A$10999=A107,$I$7:$I$10999),2),"")))) ->  | AF107: =IF($A107="","",IF($E107="to be placed","",IF(MIN(IF($A$7:$A$10999=A107,$I$7:$I$10999))=I107,MIN(IF($A$7:$A$10999=A107,$I$7:$I$10999)),IF(SMALL(IF($A$7:$A$10999=A107,$I$7:$I$10999),2)=I107,SMALL(IF($A$7:$A$10999=A107,$I$7:$I$10999),2),IF(SMALL(IF($A$7:$A$10999=A107,$I$7:$I$10999),3)=I107,SMALL(IF($A$7:$A$10999=A107,$I$7:$I$10999),3),""))))) -> 
